Workbook

Sheet Riskk (hidden)

Sheet Reference
I1: Yes
A2: Fund Code | B2: Description | C2: Inception | D2: ROI Target | E2: RollEOYFlag | F2: FY End | G2: Pivot Table Sheet | I2: No
A3: KWAP | B3: KWAP (i-VCAP Syariah) | C3: 2011-03-31 | D3: 0.07 | E3: 0 | F3: 12 | G3: KWAP Portfolio Valuation
A4: KWAPSUKUK | B4: KWAP (I-VCAP MGT FIXED INCOME SUKUK) | C4: 2015-05-19 | D4: 0.055 | E4: 0 | F4: 12 | I4: FBM100
A5: IVCAPTAWAS | B5: i-VCAP FOR TABUNG AMANAH WARISAN ANAK SELANGOR | C5: 2017-07-06 | D5: 0.04 | E5: 0 | F5: 12 | G5: TAWAS Portfolio Valuation | I5: KLCI

Sheet Main
A1: V9.1
B2: Front Office Daily Report
B5: * Step 1: Connect to the server | E5: * Please sheet(s) to print
E6: Sheet | F6: YES/NO
E7: KWAP Summary | F7: NO
E8: KWAPSUKUK Summary | F8: NO
E9: TAWAS Summary | F9: NO
B11: * Step 2: Change only if necessary
B13: Company: | C13: I-VCAP MANAGEMENT SDN. BHD.
B14: Value Date: | C14: 2017-09-15
B16: * Step 3: Refresh Data
B22: * Step 4: Print Report

Sheet KWAPSUKUK Summary
A2: ="Asset Allocation and Income Summary for " & FundCodeS & " fund as at " & TEXT(ValueDate,"dd-MMM-yyyy") -> Asset Allocation and Income Summary for KWAPSUKUK fund as at 15-Sep-2017 | T2: KWAPSUKUK
A5: Portfolio Status
B6: Cost | D6: Market Value | G6: Unrealized Gain/(Loss)
B7: RM | D7: RM | G7: RM
A9: Sukuk | B9: =SUMIFS(InPosCsh!I:I,InPosCsh!C:C,FundCodeS,InPosCsh!B:B,"BND") -> 146001800 | C9: =IFERROR(B9/$B$11,0) -> 0.8989015035 | D9: =SUMIFS(InPosCsh!J:J,InPosCsh!C:C,FundCodeS,InPosCsh!B:B,"BND") -> 145656026.4 | E9: =IFERROR(D9/$D$11,0) -> 0.8986858205 | G9: =SUMIFS(InPosCsh!M:M,InPosCsh!C:C,FundCodeS,InPosCsh!B:B,"BND") -> -1816998.61
A10: Cash | B10: =(SUMIFS(InPosCsh!J:J,InPosCsh!C:C,FundCodeS,InPosCsh!B:B,"CSH")+SUMIFS(InRValuation!F:F,InRValuation!A:A,"TBI",InRValuation!B:B,FundCodeS)) -> 16420667.23 | C10: =IFERROR(B10/$B$11,0) -> 0.1010984965 | D10: =(SUMIFS(InPosCsh!J:J,InPosCsh!C:C,FundCodeS,InPosCsh!B:B,"CSH")+SUMIFS(InRValuation!F:F,InRValuation!A:A,"TBI",InRValuation!B:B,FundCodeS)) -> 16420667.23 | E10: =D10/D11 -> 0.1013141795
A11: Portfolio Value | B11: =B9+B10 -> 162422467.2 | D11: =D9+D10 -> 162076693.6 | G11: =G9 -> -1816998.61 | K11: =SUMIF(InTotalCost!A:A,FundCodeS,InTotalCost!E:E) -> 159963283.3
A14: Market Statistics | I14: ROI
C15: TRBPAM | D15: % Movement | I15: - Current | J15: =E38/(C29) -> 0.0316026068
A16: Start date Fund | B16: 2016-05-19 | C16: 144.06 | D16: =IF(C$24=0,0,C$24/C16-1) -> 0.1009995835 | I16: - Annualised | J16: =(1+J15)^(365/(ValueDate-EOMONTH(ValueDate,-MONTH(ValueDate))))-1 -> 0.04500032032
A17: End Prior Year | B17: =OFFSET(InIndex!$A$1,MATCH("TRBPAMSUKUK",InIndex!B:B,0)+ROW(A17)-ROW($A$16)-2,0) -> 2016-12-31 | C17: =OFFSET(InIndex!$C$1,MATCH("TRBPAMSUKUK",InIndex!B:B,0)+ROW(A17)-ROW($A$16)-2,0) -> 152.9 | D17: 0.03734466972 | M17: =+SUMIFS(InLstYTB!$F:$F,InLstYTB!$A:$A,EOMONTH(ValueDate,-MONTH(ValueDate)),InLstYTB!$C:$C,FundCodeS,InLstYTB!$B:$B,"PLR",InLstYTB!$E:$E,">=600000",InLstYTB!$E:$E,"<=699999")+SUMIFS(InLstYTB!$F:$F,InLstYTB!$A:$A,EOMONTH(ValueDate,-MONTH(ValueDate)),InLstYTB!$C:$C,FundCodeS,InLstYTB!$B:$B,"PLR",InLstYTB!$E:$E,">=900000",InLstYTB!$E:$E,"<=999999")+SUMIFS(InLstYTB!$F:$F,InLstYTB!$A:$A,EOMONTH(ValueDate,-MONTH(ValueDate)),InLstYTB!$C:$C,FundCodeS,InLstYTB!$H:$H,"PREWHT") -> -12834958.15 | N17: Gross Income Last Year End
A18: Beginning Year | B18: =OFFSET(InIndex!$A$1,MATCH("TRBPAMSUKUK",InIndex!B:B,0)+ROW(A18)-ROW($A$16)-2,0) -> 2017-01-03 | C18: =OFFSET(InIndex!$C$1,MATCH("TRBPAMSUKUK",InIndex!B:B,0)+ROW(A18)-ROW($A$16)-2,0) -> 152.93 | D18: 0.0371411757 | I18: TWRR (YTD) | M18: =+SUMIFS(InLstYTB!$F:$F,InLstYTB!$A:$A,EOMONTH(ValueDate,-MONTH(ValueDate)-12),InLstYTB!$C:$C,FundCodeS,InLstYTB!$B:$B,"PLR",InLstYTB!$E:$E,">=600000",InLstYTB!$E:$E,"<=699999")+SUMIFS(InLstYTB!$F:$F,InLstYTB!$A:$A,EOMONTH(ValueDate,-MONTH(ValueDate)-12),InLstYTB!$C:$C,FundCodeS,InLstYTB!$B:$B,"PLR",InLstYTB!$E:$E,">=900000",InLstYTB!$E:$E,"<=999999")+SUMIFS(InLstYTB!$F:$F,InLstYTB!$A:$A,EOMONTH(ValueDate,-MONTH(ValueDate)-12),InLstYTB!$C:$C,FundCodeS,InLstYTB!$H:$H,"PREWHT") -> -3963914.49 | N18: Gross Income Last Last Year End
A19: Year High | B19: =OFFSET(InIndex!$A$1,MATCH("TRBPAMSUKUK",InIndex!B:B,0)+ROW(A19)-ROW($A$16)-2,0) -> 2017-09-18 | C19: =OFFSET(InIndex!$C$1,MATCH("TRBPAMSUKUK",InIndex!B:B,0)+ROW(A19)-ROW($A$16)-2,0) -> 158.62 | D19: -6.304375236e-05 | I19: - Portfolio | J19: =SUMIFS(InTWRR!F:F,InTWRR!B:B,ValueDate,InTWRR!A:A,FundCodeS)/IF(V41>V42,1,SUMIFS(InTWRR!F:F,InTWRR!B:B,EndOfYear,InTWRR!A:A,FundCodeS))-1 -> 0.04414081193 | M19: =+IFERROR(ABS(M17-M18),0)+IFERROR(SUM(OFFSET(BudgetHistory!M1:P12,MATCH(YEAR(EOMONTH(ValueDate,-MONTH(ValueDate))),BudgetHistory!A:A,0),0)),0) -> 8872894.61
A20: Year Low | B20: =OFFSET(InIndex!$A$1,MATCH("TRBPAMSUKUK",InIndex!B:B,0)+ROW(A20)-ROW($A$16)-2,0) -> 2017-01-04 | C20: =OFFSET(InIndex!$C$1,MATCH("TRBPAMSUKUK",InIndex!B:B,0)+ROW(A20)-ROW($A$16)-2,0) -> 152.81 | D20: 0.03795563118 | I20: - Benchmark | J20: =D17 -> 0.03734466972
A21: 52 Week High | B21: =OFFSET(InIndex!$A$1,MATCH("TRBPAMSUKUK",InIndex!B:B,0)+ROW(A21)-ROW($A$16)-2,0) -> 2017-09-18 | C21: =OFFSET(InIndex!$C$1,MATCH("TRBPAMSUKUK",InIndex!B:B,0)+ROW(A21)-ROW($A$16)-2,0) -> 158.62 | D21: -6.304375236e-05 | I21: Excess Return | J21: =J19-J20 -> 0.006796142211
A22: 52 Week Low | B22: =OFFSET(InIndex!$A$1,MATCH("TRBPAMSUKUK",InIndex!B:B,0)+ROW(A22)-ROW($A$16)-2,0) -> 2017-01-04 | C22: =OFFSET(InIndex!$C$1,MATCH("TRBPAMSUKUK",InIndex!B:B,0)+ROW(A22)-ROW($A$16)-2,0) -> 152.81 | D22: 0.03795563118
A23: Previous Week | B23: =OFFSET(InIndex!$A$1,MATCH("TRBPAMSUKUK",InIndex!B:B,0)+ROW(A23)-ROW($A$16)-2,0) -> 2017-09-08 | C23: =OFFSET(InIndex!$C$1,MATCH("TRBPAMSUKUK",InIndex!B:B,0)+ROW(A23)-ROW($A$16)-2,0) -> 158.56 | D23: 0.0003153380424 | I23: Duration (years) | J23: =SUMIFS(InRValuation!CX:CX,InRValuation!B:B,"KWAPSUKUK",InRValuation!A:A,"BND") -> 6.99979674
A24: Current Date | B24: =OFFSET(InIndex!$A$1,MATCH("TRBPAMSUKUK",InIndex!B:B,0)+ROW(A24)-ROW($A$16)-2,0) -> 2017-09-15 | C24: =OFFSET(InIndex!$C$1,MATCH("TRBPAMSUKUK",InIndex!B:B,0)+ROW(A24)-ROW($A$16)-2,0) -> 158.61 | I24: Yield (%) | J24: =SUMIFS(InRValuation!CY:CY,InRValuation!B:B,"KWAPSUKUK",InRValuation!A:A,"BND") -> 0.04408509607
A27: Income Status (YTD) | I27: Purchase & Sales (YTD)
C28: (RM) | J28: RM
A29: Ave Capital (RM m) | C29: =-SUMIFS(InTBYTD!F:F,InTBYTD!C:C,FundCodeS,InTBYTD!E:E,800000,InTBYTD!I:I,TEXT(ValueDate,"MMM-yy"))+IFERROR(ABS(M17-M18),0)+IFERROR(SUM(OFFSET(BudgetHistory!$M$1:$P$12,MATCH(YEAR(EOMONTH(ValueDate,-MONTH(ValueDate))),BudgetHistory!A:A,0),0)),0) -> 158872894.6 | I29: Purchase | J29: =SUMIFS(InTran!R:R,InTran!B:B,"*P",InTran!D:D,FundCodeS,InTran!C:C,"BND") -> 96565800
A30: ROI Target (RM m) | C30: =C29*D30 -> 8738009.204 | D30: =VLOOKUP(FundCodeS,Reference!A:D,4,0) -> 0.055 | I30: Sales | J30: =SUMIFS(InTran!V:V,InTran!B:B,"*S",InTran!D:D,FundCodeS,InTran!C:C,"BND")-SUMIFS(InTran!Y:Y,InTran!B:B,"*S",InTran!D:D,FundCodeS,InTran!C:C,"BND") -> 90914720.01
I31: Turnover | J31: =J29+J30 -> 187480520
C32: Budget | E32: Actual
C33: (RM) | E33: (RM) | I33: Portfolio Turnover (x) | J33: =(J31)/(2*AveCost) -> 0.590033059
A34: Capital Gain | C34: =+B61 -> 2007500 | E34: =Y46-(1-VLOOKUP(FundCodeS,Reference!$A:$E,5,0))*Y45+SUM(N45:N50,N53:N58) -> 200097.87
A35: Coupon Income | C35: =+C61 -> 6117500 | E35: =Y53-(1-VLOOKUP(FundCodeS,Reference!$A:$E,5,0))*Y52+Y55-(1-VLOOKUP(FundCodeS,Reference!$A:$E,5,0))*Y54+SUM(O45:O50,O53:O58) -> 4861366.38
A36: Profit Income | C36: =+D61 -> 413000 | E36: =Y51-(1-VLOOKUP(FundCodeS,Reference!$A:$E,5,0))*Y50+W57-(1-VLOOKUP(FundCodeS,Reference!$A:$E,5,0))*W56+SUM(P45:P50,P53:P58) -> 272188.45
A37: (Amortisation)/Accretion | C37: =+E61 -> -288000 | E37: =Y59-(1-VLOOKUP(FundCodeS,Reference!$A:$E,5,0))*Y58+SUM(Q45:Q50,Q53:Q58)+W62-(1-VLOOKUP(FundCodeS,Reference!$A:$E,5,0))*W61 -> -312855.08 | U37: =VLOOKUP(FundCodeS,Reference!A:F,6,0) -> 12 | W37: =-SUMIFS(InTBYTD!F:F,InTBYTD!C:C,FundCodeS,InTBYTD!J:J,"CAP",InTBYTD!I:I,TEXT(ValueDate,"MMM-yy"))/1000000 -> 146.0379365 | X37: =-SUMIFS(InTBYTD!F:F,InTBYTD!C:C,FundCodeS,InTBYTD!E:E,800000,InTBYTD!I:I,TEXT(ValueDate,"MMM-yy"))/1000000 -> 150
A38: Gross Income | C38: =+F61 -> 8250000 | E38: =SUM(E34:E37) -> 5020797.62 | F38: =IFERROR(E38/C29,0) -> 0.0316026068
U39: =IF(AND(FundCodeS="YH-AUR-VCAM",U41=DATE(2014,12,31)),SUMIFS(InTBYTD!F:F,InTBYTD!C:C,"KHAZANAH",InTBYTD!A:A,$U$41,InTBYTD!E:E,">=100000",InTBYTD!E:E,"<=105000")+SUMIFS(InTBYTD!F:F,InTBYTD!C:C,"KHAZANAH",InTBYTD!A:A,$U$41,InTBYTD!J:J,"CSH")+SUMIFS(InTBYTD!F:F,InTBYTD!C:C,"KHAZANAH",InTBYTD!A:A,$U$41,InTBYTD!J:J,"DR")+SUMIFS(InTBYTD!F:F,InTBYTD!C:C,"KHAZANAH",InTBYTD!A:A,$U$41,InTBYTD!E:E,">=139000",InTBYTD!E:E,"<=139999"),0) -> 0 | V39: EOY or Earliest
U40: =SUMIFS(InTBYTD!F:F,InTBYTD!C:C,FundCodeS,InTBYTD!A:A,$V$40,InTBYTD!E:E,">=100000",InTBYTD!E:E,"<=105000")+SUMIFS(InTBYTD!F:F,InTBYTD!C:C,FundCodeS,InTBYTD!A:A,$V$40,InTBYTD!J:J,"CSH")+SUMIFS(InTBYTD!F:F,InTBYTD!C:C,FundCodeS,InTBYTD!A:A,$V$40,InTBYTD!J:J,"DR")+SUMIFS(InTBYTD!F:F,InTBYTD!C:C,FundCodeS,InTBYTD!A:A,$V$40,InTBYTD!E:E,">=139000",InTBYTD!E:E,"<=139999") -> 158735630.4 | V40: =IF(U41>=V41,U41,V41) -> 2016-12-31
U41: =EOMONTH(ValueDate,-MONTH(ValueDate)) -> 2016-12-31 | V41: =VLOOKUP(FundCodeS,Reference!A:C,3,0) -> 2015-05-19
U42: =MAX(V41,V42) -> 2016-12-31 | V42: =IF(U37=12,EOMONTH(ValueDate,-MONTH(ValueDate)),IF(U37=6,IF(MONTH(ValueDate)>6,EOMONTH(ValueDate,-MONTH(ValueDate)+6),EOMONTH(ValueDate,-MONTH(ValueDate)-6)))) -> 2016-12-31
B43: BUDGET | G43: ACTUAL | N43: Extra Figures | U43: =IF(YEAR(ValueDate)=2015,IF(FundCodeS="KWAP",1.00707916420754,IF(FundCodeS="KHAZANAH",1.00107186680052,1)),1) -> 1
B44: CG | C44: Cpn Inc | D44: Pro Inc | E44: (Amortisation)/ Accretion | F44: Total | G44: CG | I44: Cpn Inc | J44: Pro Inc | K44: (Amortisation)/ Accretion | L44: Total | N44: CG | O44: Cpn Inc | P44: Pro Inc | Q44: (Amortisation)/ Accretion | V44: Equity | W44: Fixed Income | X44: Cash | Y44: Total
A45: =TEXT(EOMONTH(DATE(YEAR(ValueDate),1,1),0),"MMM-yy") -> Jan-17 | B45: =IFERROR(OFFSET(BudgetHistory!$H$1,MATCH(YEAR(ValueDate),BudgetHistory!$A:$A,0)+MONTH($A45)-1,1),0) -> 167305.356 | C45: =IFERROR(OFFSET(BudgetHistory!$H$1,MATCH(YEAR(ValueDate),BudgetHistory!$A:$A,0)+MONTH($A45)-1,2),0) -> 519568.4932 | D45: =IFERROR(OFFSET(BudgetHistory!$H$1,MATCH(YEAR(ValueDate),BudgetHistory!$A:$A,0)+MONTH($A45)-1,3),0) -> 7375 | E45: =IFERROR(OFFSET(BudgetHistory!$H$1,MATCH(YEAR(ValueDate),BudgetHistory!$A:$A,0)+MONTH($A45)-1,4),0) -> -24001.9639 | F45: =SUM(B45:E45) -> 670246.8853 | G45: =IF(MONTH(ValueDate)>=MONTH(A45),V68-(1-VLOOKUP(FundCodeS,Reference!$A:$E,5,0))*V67+N45,0) -> 0 | I45: =IF(MONTH(ValueDate)>=MONTH(A45),Y68-(1-VLOOKUP(FundCodeS,Reference!$A:$E,5,0))*Y67+(Z68-(1-VLOOKUP(FundCodeS,Reference!$A:$E,5,0))*Z67)+O45,0) -> 550066.81 | J45: =IF(MONTH(ValueDate)>=MONTH(A45),X68-(1-VLOOKUP(FundCodeS,Reference!$A:$E,5,0))*X67+(AA68-(1-VLOOKUP(FundCodeS,Reference!$A:$E,5,0))*AA67)+P45,0) -> 47764.24 | K45: =IF(MONTH(ValueDate)>=MONTH(A45),AB68-(1-VLOOKUP(FundCodeS,Reference!$A:$E,5,0))*AB67+Q45+AC68-(1-VLOOKUP(FundCodeS,Reference!$A:$E,5,0))*AC67,0) -> -33251.3 | L45: =SUM(G45:K45) -> 564579.75 | M45: x | N45: =IFERROR(OFFSET(BudgetHistory!$H$1,MATCH(YEAR(ValueDate),BudgetHistory!$A:$A,0)+MONTH($A45)-1,5),0) -> 0 | O45: =IFERROR(OFFSET(BudgetHistory!$H$1,MATCH(YEAR(ValueDate),BudgetHistory!$A:$A,0)+MONTH($A45)-1,6),0) -> 0 | P45: =IFERROR(OFFSET(BudgetHistory!$H$1,MATCH(YEAR(ValueDate),BudgetHistory!$A:$A,0)+MONTH($A45)-1,7),0) -> 0 | Q45: =IFERROR(OFFSET(BudgetHistory!$H$1,MATCH(YEAR(ValueDate),BudgetHistory!$A:$A,0)+MONTH($A45)-1,8),0) -> 0 | U45: RGEnd | V45: =-SUMIFS(InTBYTD!$F:$F,InTBYTD!$C:$C,FundCodeS,InTBYTD!A:A,EOMONTH(ValueDate,-MONTH(ValueDate)),InTBYTD!$J:$J,"RG",InTBYTD!$K:$K,"EQT") -> 0 | W45: =-SUMIFS(InTBYTD!$F:$F,InTBYTD!$C:$C,FundCodeS,InTBYTD!$A:$A,EOMONTH(ValueDate,-MONTH(ValueDate)),InTBYTD!$G:$G,"PRRGNL",InTBYTD!$H:$H,"PRGNLO") -> 2378330.56 | X45: =-SUMIFS(InTBYTD!$F:$F,InTBYTD!$C:$C,FundCodeS,InTBYTD!$A:$A,EOMONTH(ValueDate,-MONTH(ValueDate)),InTBYTD!$J:$J,"RG",InTBYTD!$K:$K,"CSH") -> 0 | Y45: =SUM(V45:X45) -> 2378330.56
A46: =TEXT(EOMONTH(DATE(YEAR(ValueDate),2,1),0),"MMM-yy") -> Feb-17 | B46: =IFERROR(OFFSET(BudgetHistory!$H$1,MATCH(YEAR(ValueDate),BudgetHistory!$A:$A,0)+MONTH($A46)-1,1),0) -> 167286.0362 | C46: =IFERROR(OFFSET(BudgetHistory!$H$1,MATCH(YEAR(ValueDate),BudgetHistory!$A:$A,0)+MONTH($A46)-1,2),0) -> 469287.6712 | D46: =IFERROR(OFFSET(BudgetHistory!$H$1,MATCH(YEAR(ValueDate),BudgetHistory!$A:$A,0)+MONTH($A46)-1,3),0) -> 51625 | E46: =IFERROR(OFFSET(BudgetHistory!$H$1,MATCH(YEAR(ValueDate),BudgetHistory!$A:$A,0)+MONTH($A46)-1,4),0) -> -23999.19224 | F46: 664199.5152 | G46: =IF(MONTH(ValueDate)>=MONTH(A46),V69-(1-VLOOKUP(FundCodeS,Reference!$A:$E,5,0))*V68+N46,0) -> 13225.97 | I46: =IF(MONTH(ValueDate)>=MONTH(A46),Y69-(1-VLOOKUP(FundCodeS,Reference!$A:$E,5,0))*Y68+(Z69-(1-VLOOKUP(FundCodeS,Reference!$A:$E,5,0))*Z68)+O46,0) -> 515682.42 | J46: =IF(MONTH(ValueDate)>=MONTH(A46),X69-(1-VLOOKUP(FundCodeS,Reference!$A:$E,5,0))*X68+(AA69-(1-VLOOKUP(FundCodeS,Reference!$A:$E,5,0))*AA68)+P46,0) -> 32425.5 | K46: =IF(MONTH(ValueDate)>=MONTH(A46),AB69-(1-VLOOKUP(FundCodeS,Reference!$A:$E,5,0))*AB68+Q46+AC69-(1-VLOOKUP(FundCodeS,Reference!$A:$E,5,0))*AC68,0) -> -31284.52 | L46: 530049.37 | M46: x | N46: =IFERROR(OFFSET(BudgetHistory!$H$1,MATCH(YEAR(ValueDate),BudgetHistory!$A:$A,0)+MONTH($A46)-1,5),0) -> 0 | O46: =IFERROR(OFFSET(BudgetHistory!$H$1,MATCH(YEAR(ValueDate),BudgetHistory!$A:$A,0)+MONTH($A46)-1,6),0) -> 0 | P46: =IFERROR(OFFSET(BudgetHistory!$H$1,MATCH(YEAR(ValueDate),BudgetHistory!$A:$A,0)+MONTH($A46)-1,7),0) -> 0 | Q46: =IFERROR(OFFSET(BudgetHistory!$H$1,MATCH(YEAR(ValueDate),BudgetHistory!$A:$A,0)+MONTH($A46)-1,8),0) -> 0 | U46: RGValD | V46: =-SUMIFS(InTBYTD!$F:$F,InTBYTD!$C:$C,FundCodeS,InTBYTD!A:A,ValueDate,InTBYTD!$J:$J,"RG",InTBYTD!$K:$K,"EQT") -> 0 | W46: =-SUMIFS(InTBYTD!$F:$F,InTBYTD!$C:$C,FundCodeS,InTBYTD!$A:$A,ValueDate,InTBYTD!$G:$G,"PRRGNL",InTBYTD!$H:$H,"PRGNLO") -> 2578428.43 | X46: =-SUMIFS(InTBYTD!$F:$F,InTBYTD!$C:$C,FundCodeS,InTBYTD!$A:$A,ValueDate,InTBYTD!$J:$J,"RG",InTBYTD!$K:$K,"CSH") -> 0 | Y46: =SUM(V46:X46) -> 2578428.43
A47: =TEXT(EOMONTH(DATE(YEAR(ValueDate),3,1),0),"MMM-yy") -> Mar-17 | B47: =IFERROR(OFFSET(BudgetHistory!$H$1,MATCH(YEAR(ValueDate),BudgetHistory!$A:$A,0)+MONTH($A47)-1,1),0) -> 167276.5382 | C47: =IFERROR(OFFSET(BudgetHistory!$H$1,MATCH(YEAR(ValueDate),BudgetHistory!$A:$A,0)+MONTH($A47)-1,2),0) -> 519568.4932 | D47: =IFERROR(OFFSET(BudgetHistory!$H$1,MATCH(YEAR(ValueDate),BudgetHistory!$A:$A,0)+MONTH($A47)-1,3),0) -> 62687.5 | E47: =IFERROR(OFFSET(BudgetHistory!$H$1,MATCH(YEAR(ValueDate),BudgetHistory!$A:$A,0)+MONTH($A47)-1,4),0) -> -23997.82964 | F47: 725534.7017 | G47: =IF(MONTH(ValueDate)>=MONTH(A47),V70-(1-VLOOKUP(FundCodeS,Reference!$A:$E,5,0))*V69+N47,0) -> 0 | I47: =IF(MONTH(ValueDate)>=MONTH(A47),Y70-(1-VLOOKUP(FundCodeS,Reference!$A:$E,5,0))*Y69+(Z70-(1-VLOOKUP(FundCodeS,Reference!$A:$E,5,0))*Z69)+O47,0) -> 577389.38 | J47: =IF(MONTH(ValueDate)>=MONTH(A47),X70-(1-VLOOKUP(FundCodeS,Reference!$A:$E,5,0))*X69+(AA70-(1-VLOOKUP(FundCodeS,Reference!$A:$E,5,0))*AA69)+P47,0) -> 34293.21 | K47: =IF(MONTH(ValueDate)>=MONTH(A47),AB70-(1-VLOOKUP(FundCodeS,Reference!$A:$E,5,0))*AB69+Q47+AC70-(1-VLOOKUP(FundCodeS,Reference!$A:$E,5,0))*AC69,0) -> -34881.21 | L47: 576801.38 | M47: x | N47: =IFERROR(OFFSET(BudgetHistory!$H$1,MATCH(YEAR(ValueDate),BudgetHistory!$A:$A,0)+MONTH($A47)-1,5),0) -> 0 | O47: =IFERROR(OFFSET(BudgetHistory!$H$1,MATCH(YEAR(ValueDate),BudgetHistory!$A:$A,0)+MONTH($A47)-1,6),0) -> 0 | P47: =IFERROR(OFFSET(BudgetHistory!$H$1,MATCH(YEAR(ValueDate),BudgetHistory!$A:$A,0)+MONTH($A47)-1,7),0) -> 0 | Q47: =IFERROR(OFFSET(BudgetHistory!$H$1,MATCH(YEAR(ValueDate),BudgetHistory!$A:$A,0)+MONTH($A47)-1,8),0) -> 0 | U47: DIEnd | V47: =-SUMIFS(InTBYTD!$F:$F,InTBYTD!$C:$C,FundCodeS,InTBYTD!$A:$A,EOMONTH(ValueDate,-MONTH(ValueDate)),InTBYTD!$J:$J,"DI",InTBYTD!$K:$K,"EQT")-SUMIFS(InTBYTD!$F:$F,InTBYTD!$C:$C,FundCodeS,InTBYTD!$A:$A,EOMONTH(ValueDate,-MONTH(ValueDate)),InTBYTD!$H:$H,"PREWHT") -> 0 | W47: =-SUMIFS(InTBYTD!$F:$F,InTBYTD!$C:$C,FundCodeS,InTBYTD!$A:$A,EOMONTH(ValueDate,-MONTH(ValueDate)),InTBYTD!$J:$J,"DI",InTBYTD!$K:$K,"BND") -> 0 | X47: =-SUMIFS(InTBYTD!$F:$F,InTBYTD!$C:$C,FundCodeS,InTBYTD!$A:$A,EOMONTH(ValueDate,-MONTH(ValueDate)),InTBYTD!$J:$J,"DI",InTBYTD!$K:$K,"CSH") -> 0 | Y47: 0
A48: =TEXT(EOMONTH(DATE(YEAR(ValueDate),4,1),0),"MMM-yy") -> Apr-17 | B48: =IFERROR(OFFSET(BudgetHistory!$H$1,MATCH(YEAR(ValueDate),BudgetHistory!$A:$A,0)+MONTH($A48)-1,1),0) -> 167289.2742 | C48: =IFERROR(OFFSET(BudgetHistory!$H$1,MATCH(YEAR(ValueDate),BudgetHistory!$A:$A,0)+MONTH($A48)-1,2),0) -> 502808.2192 | D48: =IFERROR(OFFSET(BudgetHistory!$H$1,MATCH(YEAR(ValueDate),BudgetHistory!$A:$A,0)+MONTH($A48)-1,3),0) -> 11062.5 | E48: =IFERROR(OFFSET(BudgetHistory!$H$1,MATCH(YEAR(ValueDate),BudgetHistory!$A:$A,0)+MONTH($A48)-1,4),0) -> -23999.65677 | F48: 657160.3366 | G48: =IF(MONTH(ValueDate)>=MONTH(A48),V71-(1-VLOOKUP(FundCodeS,Reference!$A:$E,5,0))*V70+N48,0) -> 5783.71 | I48: =IF(MONTH(ValueDate)>=MONTH(A48),Y71-(1-VLOOKUP(FundCodeS,Reference!$A:$E,5,0))*Y70+(Z71-(1-VLOOKUP(FundCodeS,Reference!$A:$E,5,0))*Z70)+O48,0) -> 575559.51 | J48: =IF(MONTH(ValueDate)>=MONTH(A48),X71-(1-VLOOKUP(FundCodeS,Reference!$A:$E,5,0))*X70+(AA71-(1-VLOOKUP(FundCodeS,Reference!$A:$E,5,0))*AA70)+P48,0) -> 16398.54 | K48: =IF(MONTH(ValueDate)>=MONTH(A48),AB71-(1-VLOOKUP(FundCodeS,Reference!$A:$E,5,0))*AB70+Q48+AC71-(1-VLOOKUP(FundCodeS,Reference!$A:$E,5,0))*AC70,0) -> -32404.23 | L48: 565337.53 | M48: x | N48: =IFERROR(OFFSET(BudgetHistory!$H$1,MATCH(YEAR(ValueDate),BudgetHistory!$A:$A,0)+MONTH($A48)-1,5),0) -> 0 | O48: =IFERROR(OFFSET(BudgetHistory!$H$1,MATCH(YEAR(ValueDate),BudgetHistory!$A:$A,0)+MONTH($A48)-1,6),0) -> 0 | P48: =IFERROR(OFFSET(BudgetHistory!$H$1,MATCH(YEAR(ValueDate),BudgetHistory!$A:$A,0)+MONTH($A48)-1,7),0) -> 0 | Q48: =IFERROR(OFFSET(BudgetHistory!$H$1,MATCH(YEAR(ValueDate),BudgetHistory!$A:$A,0)+MONTH($A48)-1,8),0) -> 0 | U48: DIValD | V48: =-SUMIFS(InTBYTD!$F:$F,InTBYTD!$C:$C,FundCodeS,InTBYTD!$A:$A,ValueDate,InTBYTD!$J:$J,"DI",InTBYTD!$K:$K,"EQT")-SUMIFS(InTBYTD!$F:$F,InTBYTD!$C:$C,FundCodeS,InTBYTD!$A:$A,ValueDate,InTBYTD!$H:$H,"PREWHT") -> 0 | W48: =-SUMIFS(InTBYTD!$F:$F,InTBYTD!$C:$C,FundCodeS,InTBYTD!$A:$A,ValueDate,InTBYTD!$J:$J,"DI",InTBYTD!$K:$K,"BND") -> 0 | X48: =-SUMIFS(InTBYTD!$F:$F,InTBYTD!$C:$C,FundCodeS,InTBYTD!$A:$A,ValueDate,InTBYTD!$J:$J,"DI",InTBYTD!$K:$K,"CSH") -> 0 | Y48: 0
A49: =TEXT(EOMONTH(DATE(YEAR(ValueDate),5,1),0),"MMM-yy") -> May-17 | B49: =IFERROR(OFFSET(BudgetHistory!$H$1,MATCH(YEAR(ValueDate),BudgetHistory!$A:$A,0)+MONTH($A49)-1,1),0) -> 167271.7892 | C49: =IFERROR(OFFSET(BudgetHistory!$H$1,MATCH(YEAR(ValueDate),BudgetHistory!$A:$A,0)+MONTH($A49)-1,2),0) -> 519568.4932 | D49: =IFERROR(OFFSET(BudgetHistory!$H$1,MATCH(YEAR(ValueDate),BudgetHistory!$A:$A,0)+MONTH($A49)-1,3),0) -> 55312.5 | E49: =IFERROR(OFFSET(BudgetHistory!$H$1,MATCH(YEAR(ValueDate),BudgetHistory!$A:$A,0)+MONTH($A49)-1,4),0) -> -23997.14834 | F49: 718155.634 | G49: =IF(MONTH(ValueDate)>=MONTH(A49),V72-(1-VLOOKUP(FundCodeS,Reference!$A:$E,5,0))*V71+N49,0) -> 129424.09 | I49: =IF(MONTH(ValueDate)>=MONTH(A49),Y72-(1-VLOOKUP(FundCodeS,Reference!$A:$E,5,0))*Y71+(Z72-(1-VLOOKUP(FundCodeS,Reference!$A:$E,5,0))*Z71)+O49,0) -> 575950.81 | J49: =IF(MONTH(ValueDate)>=MONTH(A49),X72-(1-VLOOKUP(FundCodeS,Reference!$A:$E,5,0))*X71+(AA72-(1-VLOOKUP(FundCodeS,Reference!$A:$E,5,0))*AA71)+P49,0) -> 36890.85 | K49: =IF(MONTH(ValueDate)>=MONTH(A49),AB72-(1-VLOOKUP(FundCodeS,Reference!$A:$E,5,0))*AB71+Q49+AC72-(1-VLOOKUP(FundCodeS,Reference!$A:$E,5,0))*AC71,0) -> -35054.52 | L49: 707211.23 | M49: x | N49: =IFERROR(OFFSET(BudgetHistory!$H$1,MATCH(YEAR(ValueDate),BudgetHistory!$A:$A,0)+MONTH($A49)-1,5),0) -> 0 | O49: =IFERROR(OFFSET(BudgetHistory!$H$1,MATCH(YEAR(ValueDate),BudgetHistory!$A:$A,0)+MONTH($A49)-1,6),0) -> 0 | P49: =IFERROR(OFFSET(BudgetHistory!$H$1,MATCH(YEAR(ValueDate),BudgetHistory!$A:$A,0)+MONTH($A49)-1,7),0) -> 0 | Q49: =IFERROR(OFFSET(BudgetHistory!$H$1,MATCH(YEAR(ValueDate),BudgetHistory!$A:$A,0)+MONTH($A49)-1,8),0) -> 0 | Y49: 0
A50: =TEXT(EOMONTH(DATE(YEAR(ValueDate),6,1),0),"MMM-yy") -> Jun-17 | B50: =IFERROR(OFFSET(BudgetHistory!$H$1,MATCH(YEAR(ValueDate),BudgetHistory!$A:$A,0)+MONTH($A50)-1,1),0) -> 167270.7099 | C50: =IFERROR(OFFSET(BudgetHistory!$H$1,MATCH(YEAR(ValueDate),BudgetHistory!$A:$A,0)+MONTH($A50)-1,2),0) -> 502808.2192 | D50: =IFERROR(OFFSET(BudgetHistory!$H$1,MATCH(YEAR(ValueDate),BudgetHistory!$A:$A,0)+MONTH($A50)-1,3),0) -> 62687.5 | E50: =IFERROR(OFFSET(BudgetHistory!$H$1,MATCH(YEAR(ValueDate),BudgetHistory!$A:$A,0)+MONTH($A50)-1,4),0) -> -23996.9935 | F50: 708769.4356 | G50: =IF(MONTH(ValueDate)>=MONTH(A50),V73-(1-VLOOKUP(FundCodeS,Reference!$A:$E,5,0))*V72+N50,0) -> 10451.39 | I50: =IF(MONTH(ValueDate)>=MONTH(A50),Y73-(1-VLOOKUP(FundCodeS,Reference!$A:$E,5,0))*Y72+(Z73-(1-VLOOKUP(FundCodeS,Reference!$A:$E,5,0))*Z72)+O50,0) -> 556987.53 | J50: =IF(MONTH(ValueDate)>=MONTH(A50),X73-(1-VLOOKUP(FundCodeS,Reference!$A:$E,5,0))*X72+(AA73-(1-VLOOKUP(FundCodeS,Reference!$A:$E,5,0))*AA72)+P50,0) -> 40389.65 | K50: =IF(MONTH(ValueDate)>=MONTH(A50),AB73-(1-VLOOKUP(FundCodeS,Reference!$A:$E,5,0))*AB72+Q50+AC73-(1-VLOOKUP(FundCodeS,Reference!$A:$E,5,0))*AC72,0) -> -36349.86 | L50: 571478.71 | M50: x | N50: =IFERROR(OFFSET(BudgetHistory!$H$1,MATCH(YEAR(ValueDate),BudgetHistory!$A:$A,0)+MONTH($A50)-1,5),0) -> 0 | O50: =IFERROR(OFFSET(BudgetHistory!$H$1,MATCH(YEAR(ValueDate),BudgetHistory!$A:$A,0)+MONTH($A50)-1,6),0) -> 0 | P50: =IFERROR(OFFSET(BudgetHistory!$H$1,MATCH(YEAR(ValueDate),BudgetHistory!$A:$A,0)+MONTH($A50)-1,7),0) -> 0 | Q50: =IFERROR(OFFSET(BudgetHistory!$H$1,MATCH(YEAR(ValueDate),BudgetHistory!$A:$A,0)+MONTH($A50)-1,8),0) -> 0 | U50: INCEnd | V50: =-SUMIFS(InTBYTD!$F:$F,InTBYTD!$C:$C,FundCodeS,InTBYTD!$A:$A,EOMONTH(ValueDate,-MONTH(ValueDate)),InTBYTD!$J:$J,"INC",InTBYTD!$K:$K,"EQT") -> 0 | W50: 0 | X50: =-SUMIFS(InTBYTD!$F:$F,InTBYTD!$C:$C,FundCodeS,InTBYTD!$A:$A,EOMONTH(ValueDate,-MONTH(ValueDate)),InTBYTD!$J:$J,"INC",InTBYTD!$K:$K,"CSH") -> 814341.94 | Y50: 814341.94
A51: 1H | B51: =SUM(B45:B50) -> 1003699.704 | C51: 3033609.589 | D51: 250750 | E51: -143992.7844 | F51: 4144066.508 | G51: 158885.16 | I51: =SUM(I45:I50) -> 3351636.46 | J51: =SUM(J45:J50) -> 208161.99 | K51: =SUM(K45:K50) -> -203225.64 | L51: =SUM(L45:L50) -> 3515457.97 | U51: INCValD | V51: =-SUMIFS(InTBYTD!$F:$F,InTBYTD!$C:$C,FundCodeS,InTBYTD!$A:$A,ValueDate,InTBYTD!$J:$J,"INC",InTBYTD!$K:$K,"EQT") -> 0 | W51: 0 | X51: =-SUMIFS(InTBYTD!$F:$F,InTBYTD!$C:$C,FundCodeS,InTBYTD!$A:$A,ValueDate,InTBYTD!$J:$J,"INC",InTBYTD!$K:$K,"CSH") -> 1086065.66 | Y51: =SUM(V51:X51) -> 1086065.66
U52: CPayEnd | V52: 0 | W52: =-SUMIFS(InTBYTD!$F:$F,InTBYTD!$C:$C,FundCodeS,InTBYTD!$A:$A,EOMONTH(ValueDate,-MONTH(ValueDate)),InTBYTD!$G:$G,"PRINTI",InTBYTD!$H:$H,"PRINCB") -> 10186158.33 | X52: 0 | Y52: 10186158.33
A53: =TEXT(EOMONTH(DATE(YEAR(ValueDate),7,1),0),"MMM-yy") -> Jul-17 | B53: =IFERROR(OFFSET(BudgetHistory!$H$1,MATCH(YEAR(ValueDate),BudgetHistory!$A:$A,0)+MONTH($A53)-1,1),0) -> 167289.8138 | C53: =IFERROR(OFFSET(BudgetHistory!$H$1,MATCH(YEAR(ValueDate),BudgetHistory!$A:$A,0)+MONTH($A53)-1,2),0) -> 519568.4932 | D53: =IFERROR(OFFSET(BudgetHistory!$H$1,MATCH(YEAR(ValueDate),BudgetHistory!$A:$A,0)+MONTH($A53)-1,3),0) -> 44250 | E53: =IFERROR(OFFSET(BudgetHistory!$H$1,MATCH(YEAR(ValueDate),BudgetHistory!$A:$A,0)+MONTH($A53)-1,4),0) -> -23999.73419 | F53: =SUM(B53:E53) -> 707108.5728 | G53: =IF(MONTH(ValueDate)>=MONTH(A53),V74-(1-VLOOKUP(FundCodeS,Reference!$A:$E,5,0))*V73+N53,0) -> 271.23 | I53: =IF(MONTH(ValueDate)>=MONTH(A53),Y74-(1-VLOOKUP(FundCodeS,Reference!$A:$E,5,0))*Y73+(Z74-(1-VLOOKUP(FundCodeS,Reference!$A:$E,5,0))*Z73)+O53,0) -> 595427.35 | J53: =IF(MONTH(ValueDate)>=MONTH(A53),X74-(1-VLOOKUP(FundCodeS,Reference!$A:$E,5,0))*X73+(AA74-(1-VLOOKUP(FundCodeS,Reference!$A:$E,5,0))*AA73)+P53,0) -> 33863.07 | K53: =IF(MONTH(ValueDate)>=MONTH(A53),AB74-(1-VLOOKUP(FundCodeS,Reference!$A:$E,5,0))*AB73+Q53+AC74-(1-VLOOKUP(FundCodeS,Reference!$A:$E,5,0))*AC73,0) -> -44183.63 | L53: =SUM(G53:K53) -> 585378.02 | M53: x | N53: =IFERROR(OFFSET(BudgetHistory!$H$1,MATCH(YEAR(ValueDate),BudgetHistory!$A:$A,0)+MONTH($A53)-1,5),0) -> 0 | O53: =IFERROR(OFFSET(BudgetHistory!$H$1,MATCH(YEAR(ValueDate),BudgetHistory!$A:$A,0)+MONTH($A53)-1,6),0) -> 0 | P53: =IFERROR(OFFSET(BudgetHistory!$H$1,MATCH(YEAR(ValueDate),BudgetHistory!$A:$A,0)+MONTH($A53)-1,7),0) -> 0 | Q53: =IFERROR(OFFSET(BudgetHistory!$H$1,MATCH(YEAR(ValueDate),BudgetHistory!$A:$A,0)+MONTH($A53)-1,8),0) -> 0 | U53: CPayValD | V53: 0 | W53: =-SUMIFS(InTBYTD!$F:$F,InTBYTD!$C:$C,FundCodeS,InTBYTD!$A:$A,ValueDate,InTBYTD!$G:$G,"PRINTI",InTBYTD!$H:$H,"PRINCB") -> 15047524.71 | X53: 0 | Y53: 15047524.71
A54: =TEXT(EOMONTH(DATE(YEAR(ValueDate),8,1),0),"MMM-yy") -> Aug-17 | B54: =IFERROR(OFFSET(BudgetHistory!$H$1,MATCH(YEAR(ValueDate),BudgetHistory!$A:$A,0)+MONTH($A54)-1,1),0) -> 167293.1597 | C54: =IFERROR(OFFSET(BudgetHistory!$H$1,MATCH(YEAR(ValueDate),BudgetHistory!$A:$A,0)+MONTH($A54)-1,2),0) -> 519568.4932 | D54: =IFERROR(OFFSET(BudgetHistory!$H$1,MATCH(YEAR(ValueDate),BudgetHistory!$A:$A,0)+MONTH($A54)-1,3),0) -> 25812.5 | E54: =IFERROR(OFFSET(BudgetHistory!$H$1,MATCH(YEAR(ValueDate),BudgetHistory!$A:$A,0)+MONTH($A54)-1,4),0) -> -24000.2142 | F54: 688673.9387 | G54: =IF(MONTH(ValueDate)>=MONTH(A54),V75-(1-VLOOKUP(FundCodeS,Reference!$A:$E,5,0))*V74+N54,0) -> 12987.27 | I54: =IF(MONTH(ValueDate)>=MONTH(A54),Y75-(1-VLOOKUP(FundCodeS,Reference!$A:$E,5,0))*Y74+(Z75-(1-VLOOKUP(FundCodeS,Reference!$A:$E,5,0))*Z74)+O54,0) -> 615220.5 | J54: =IF(MONTH(ValueDate)>=MONTH(A54),X75-(1-VLOOKUP(FundCodeS,Reference!$A:$E,5,0))*X74+(AA75-(1-VLOOKUP(FundCodeS,Reference!$A:$E,5,0))*AA74)+P54,0) -> 22029.6 | K54: =IF(MONTH(ValueDate)>=MONTH(A54),AB75-(1-VLOOKUP(FundCodeS,Reference!$A:$E,5,0))*AB74+Q54+AC75-(1-VLOOKUP(FundCodeS,Reference!$A:$E,5,0))*AC74,0) -> -44421.24 | L54: 605816.13 | M54: x | N54: =IFERROR(OFFSET(BudgetHistory!$H$1,MATCH(YEAR(ValueDate),BudgetHistory!$A:$A,0)+MONTH($A54)-1,5),0) -> 0 | O54: =IFERROR(OFFSET(BudgetHistory!$H$1,MATCH(YEAR(ValueDate),BudgetHistory!$A:$A,0)+MONTH($A54)-1,6),0) -> 0 | P54: =IFERROR(OFFSET(BudgetHistory!$H$1,MATCH(YEAR(ValueDate),BudgetHistory!$A:$A,0)+MONTH($A54)-1,7),0) -> 0 | Q54: =IFERROR(OFFSET(BudgetHistory!$H$1,MATCH(YEAR(ValueDate),BudgetHistory!$A:$A,0)+MONTH($A54)-1,8),0) -> 0 | U54: CRecEnd
A55: =TEXT(EOMONTH(DATE(YEAR(ValueDate),9,1),0),"MMM-yy") -> Sep-17 | B55: =IFERROR(OFFSET(BudgetHistory!$H$1,MATCH(YEAR(ValueDate),BudgetHistory!$A:$A,0)+MONTH($A55)-1,1),0) -> 167303.5212 | C55: =IFERROR(OFFSET(BudgetHistory!$H$1,MATCH(YEAR(ValueDate),BudgetHistory!$A:$A,0)+MONTH($A55)-1,2),0) -> 502808.2192 | D55: =IFERROR(OFFSET(BudgetHistory!$H$1,MATCH(YEAR(ValueDate),BudgetHistory!$A:$A,0)+MONTH($A55)-1,3),0) -> 14750 | E55: =IFERROR(OFFSET(BudgetHistory!$H$1,MATCH(YEAR(ValueDate),BudgetHistory!$A:$A,0)+MONTH($A55)-1,4),0) -> -24001.70067 | F55: 660860.0397 | G55: =IF(MONTH(ValueDate)>=MONTH(A55),V76-(1-VLOOKUP(FundCodeS,Reference!$A:$E,5,0))*V75+N55,0) -> 27954.21 | I55: =IF(MONTH(ValueDate)>=MONTH(A55),Y76-(1-VLOOKUP(FundCodeS,Reference!$A:$E,5,0))*Y75+(Z76-(1-VLOOKUP(FundCodeS,Reference!$A:$E,5,0))*Z75)+O55,0) -> 299082.07 | J55: =IF(MONTH(ValueDate)>=MONTH(A55),X76-(1-VLOOKUP(FundCodeS,Reference!$A:$E,5,0))*X75+(AA76-(1-VLOOKUP(FundCodeS,Reference!$A:$E,5,0))*AA75)+P55,0) -> 8133.79 | K55: =IF(MONTH(ValueDate)>=MONTH(A55),AB76-(1-VLOOKUP(FundCodeS,Reference!$A:$E,5,0))*AB75+Q55+AC76-(1-VLOOKUP(FundCodeS,Reference!$A:$E,5,0))*AC75,0) -> -21024.57 | L55: 314145.5 | M55: x | N55: =IFERROR(OFFSET(BudgetHistory!$H$1,MATCH(YEAR(ValueDate),BudgetHistory!$A:$A,0)+MONTH($A55)-1,5),0) -> 0 | O55: =IFERROR(OFFSET(BudgetHistory!$H$1,MATCH(YEAR(ValueDate),BudgetHistory!$A:$A,0)+MONTH($A55)-1,6),0) -> 0 | P55: =IFERROR(OFFSET(BudgetHistory!$H$1,MATCH(YEAR(ValueDate),BudgetHistory!$A:$A,0)+MONTH($A55)-1,7),0) -> 0 | Q55: =IFERROR(OFFSET(BudgetHistory!$H$1,MATCH(YEAR(ValueDate),BudgetHistory!$A:$A,0)+MONTH($A55)-1,8),0) -> 0 | U55: CRecValD
A56: =TEXT(EOMONTH(DATE(YEAR(ValueDate),10,1),0),"MMM-yy") -> Oct-17 | B56: =IFERROR(OFFSET(BudgetHistory!$H$1,MATCH(YEAR(ValueDate),BudgetHistory!$A:$A,0)+MONTH($A56)-1,1),0) -> 167303.9529 | C56: =IFERROR(OFFSET(BudgetHistory!$H$1,MATCH(YEAR(ValueDate),BudgetHistory!$A:$A,0)+MONTH($A56)-1,2),0) -> 519568.4932 | D56: =IFERROR(OFFSET(BudgetHistory!$H$1,MATCH(YEAR(ValueDate),BudgetHistory!$A:$A,0)+MONTH($A56)-1,3),0) -> 7375 | E56: =IFERROR(OFFSET(BudgetHistory!$H$1,MATCH(YEAR(ValueDate),BudgetHistory!$A:$A,0)+MONTH($A56)-1,4),0) -> -24001.76261 | F56: 670245.6835 | G56: =IF(MONTH(ValueDate)>=MONTH(A56),V77-(1-VLOOKUP(FundCodeS,Reference!$A:$E,5,0))*V76+N56,0) -> 0 | I56: =IF(MONTH(ValueDate)>=MONTH(A56),Y77-(1-VLOOKUP(FundCodeS,Reference!$A:$E,5,0))*Y76+(Z77-(1-VLOOKUP(FundCodeS,Reference!$A:$E,5,0))*Z76)+O56,0) -> 0 | J56: =IF(MONTH(ValueDate)>=MONTH(A56),X77-(1-VLOOKUP(FundCodeS,Reference!$A:$E,5,0))*X76+(AA77-(1-VLOOKUP(FundCodeS,Reference!$A:$E,5,0))*AA76)+P56,0) -> 0 | K56: =IF(MONTH(ValueDate)>=MONTH(A56),AB77-(1-VLOOKUP(FundCodeS,Reference!$A:$E,5,0))*AB76+Q56+AC77-(1-VLOOKUP(FundCodeS,Reference!$A:$E,5,0))*AC76,0) -> 0 | L56: 0 | M56: x | N56: =IFERROR(OFFSET(BudgetHistory!$H$1,MATCH(YEAR(ValueDate),BudgetHistory!$A:$A,0)+MONTH($A56)-1,5),0) -> 0 | O56: =IFERROR(OFFSET(BudgetHistory!$H$1,MATCH(YEAR(ValueDate),BudgetHistory!$A:$A,0)+MONTH($A56)-1,6),0) -> 0 | P56: =IFERROR(OFFSET(BudgetHistory!$H$1,MATCH(YEAR(ValueDate),BudgetHistory!$A:$A,0)+MONTH($A56)-1,7),0) -> 0 | Q56: =IFERROR(OFFSET(BudgetHistory!$H$1,MATCH(YEAR(ValueDate),BudgetHistory!$A:$A,0)+MONTH($A56)-1,8),0) -> 0 | U56: OTHIncomeEnd | W56: =-SUMIFS(InTBYTD!$F:$F,InTBYTD!$C:$C,FundCodeS,InTBYTD!$A:$A,EOMONTH(ValueDate,-MONTH(ValueDate)),InTBYTD!$J:$J,"DI",InTBYTD!$K:$K,0) -> 2152.06 | Y56: 2152.06
A57: =TEXT(EOMONTH(DATE(YEAR(ValueDate),11,1),0),"MMM-yy") -> Nov-17 | B57: =IFERROR(OFFSET(BudgetHistory!$H$1,MATCH(YEAR(ValueDate),BudgetHistory!$A:$A,0)+MONTH($A57)-1,1),0) -> 167288.4107 | C57: =IFERROR(OFFSET(BudgetHistory!$H$1,MATCH(YEAR(ValueDate),BudgetHistory!$A:$A,0)+MONTH($A57)-1,2),0) -> 502808.2192 | D57: =IFERROR(OFFSET(BudgetHistory!$H$1,MATCH(YEAR(ValueDate),BudgetHistory!$A:$A,0)+MONTH($A57)-1,3),0) -> 62687.5 | E57: =IFERROR(OFFSET(BudgetHistory!$H$1,MATCH(YEAR(ValueDate),BudgetHistory!$A:$A,0)+MONTH($A57)-1,4),0) -> -23999.5329 | F57: 708784.597 | G57: =IF(MONTH(ValueDate)>=MONTH(A57),V78-(1-VLOOKUP(FundCodeS,Reference!$A:$E,5,0))*V77+N57,0) -> 0 | I57: =IF(MONTH(ValueDate)>=MONTH(A57),Y78-(1-VLOOKUP(FundCodeS,Reference!$A:$E,5,0))*Y77+(Z78-(1-VLOOKUP(FundCodeS,Reference!$A:$E,5,0))*Z77)+O57,0) -> 0 | J57: =IF(MONTH(ValueDate)>=MONTH(A57),X78-(1-VLOOKUP(FundCodeS,Reference!$A:$E,5,0))*X77+(AA78-(1-VLOOKUP(FundCodeS,Reference!$A:$E,5,0))*AA77)+P57,0) -> 0 | K57: =IF(MONTH(ValueDate)>=MONTH(A57),AB78-(1-VLOOKUP(FundCodeS,Reference!$A:$E,5,0))*AB77+Q57+AC78-(1-VLOOKUP(FundCodeS,Reference!$A:$E,5,0))*AC77,0) -> 0 | L57: 0 | M57: x | N57: =IFERROR(OFFSET(BudgetHistory!$H$1,MATCH(YEAR(ValueDate),BudgetHistory!$A:$A,0)+MONTH($A57)-1,5),0) -> 0 | O57: =IFERROR(OFFSET(BudgetHistory!$H$1,MATCH(YEAR(ValueDate),BudgetHistory!$A:$A,0)+MONTH($A57)-1,6),0) -> 0 | P57: =IFERROR(OFFSET(BudgetHistory!$H$1,MATCH(YEAR(ValueDate),BudgetHistory!$A:$A,0)+MONTH($A57)-1,7),0) -> 0 | Q57: =IFERROR(OFFSET(BudgetHistory!$H$1,MATCH(YEAR(ValueDate),BudgetHistory!$A:$A,0)+MONTH($A57)-1,8),0) -> 0 | U57: OTHIncomeEVal | W57: =-SUMIFS(InTBYTD!$F:$F,InTBYTD!$C:$C,FundCodeS,InTBYTD!$A:$A,ValueDate,InTBYTD!$J:$J,"DI",InTBYTD!$K:$K,0) -> 2616.79 | Y57: 2616.79
A58: =TEXT(EOMONTH(DATE(YEAR(ValueDate),12,1),0),"MMM-yy") -> Dec-17 | B58: =IFERROR(OFFSET(BudgetHistory!$H$1,MATCH(YEAR(ValueDate),BudgetHistory!$A:$A,0)+MONTH($A58)-1,1),0) -> 167321.4379 | C58: =IFERROR(OFFSET(BudgetHistory!$H$1,MATCH(YEAR(ValueDate),BudgetHistory!$A:$A,0)+MONTH($A58)-1,2),0) -> 519568.4932 | D58: =IFERROR(OFFSET(BudgetHistory!$H$1,MATCH(YEAR(ValueDate),BudgetHistory!$A:$A,0)+MONTH($A58)-1,3),0) -> 7375 | E58: =IFERROR(OFFSET(BudgetHistory!$H$1,MATCH(YEAR(ValueDate),BudgetHistory!$A:$A,0)+MONTH($A58)-1,4),0) -> -24004.27104 | F58: 670260.66 | G58: =IF(MONTH(ValueDate)>=MONTH(A58),V79-(1-VLOOKUP(FundCodeS,Reference!$A:$E,5,0))*V78+N58,0) -> 0 | I58: =IF(MONTH(ValueDate)>=MONTH(A58),Y79-(1-VLOOKUP(FundCodeS,Reference!$A:$E,5,0))*Y78+(Z79-(1-VLOOKUP(FundCodeS,Reference!$A:$E,5,0))*Z78)+O58,0) -> 0 | J58: =IF(MONTH(ValueDate)>=MONTH(A58),X79-(1-VLOOKUP(FundCodeS,Reference!$A:$E,5,0))*X78+(AA79-(1-VLOOKUP(FundCodeS,Reference!$A:$E,5,0))*AA78)+P58,0) -> 0 | K58: =IF(MONTH(ValueDate)>=MONTH(A58),AB79-(1-VLOOKUP(FundCodeS,Reference!$A:$E,5,0))*AB78+Q58+AC79-(1-VLOOKUP(FundCodeS,Reference!$A:$E,5,0))*AC78,0) -> 0 | L58: 0 | M58: x | N58: =IFERROR(OFFSET(BudgetHistory!$H$1,MATCH(YEAR(ValueDate),BudgetHistory!$A:$A,0)+MONTH($A58)-1,5),0) -> 0 | O58: =IFERROR(OFFSET(BudgetHistory!$H$1,MATCH(YEAR(ValueDate),BudgetHistory!$A:$A,0)+MONTH($A58)-1,6),0) -> 0 | P58: =IFERROR(OFFSET(BudgetHistory!$H$1,MATCH(YEAR(ValueDate),BudgetHistory!$A:$A,0)+MONTH($A58)-1,7),0) -> 0 | Q58: =IFERROR(OFFSET(BudgetHistory!$H$1,MATCH(YEAR(ValueDate),BudgetHistory!$A:$A,0)+MONTH($A58)-1,8),0) -> 0 | U58: AmoAccreEnd | W58: =-SUMIFS(InTBYTD!$F:$F,InTBYTD!$C:$C,FundCodeS,InTBYTD!$A:$A,EOMONTH(ValueDate,-MONTH(ValueDate)),InTBYTD!$G:$G,"PUAMAC",InTBYTD!$H:$H,"PRAMCB")-SUMIFS(InTBYTD!$F:$F,InTBYTD!$C:$C,FundCodeS,InTBYTD!$A:$A,EOMONTH(ValueDate,-MONTH(ValueDate)),InTBYTD!$G:$G,"PUAMAC",InTBYTD!$H:$H,"PRDSCB") -> -237294.18 | Y58: =W58 -> -237294.18
A59: 2H | B59: =SUM(B53:B58) -> 1003800.296 | C59: 3083890.411 | D59: 162250 | E59: -144007.2156 | F59: 4105933.492 | G59: 41212.71 | I59: =SUM(I53:I58) -> 1509729.92 | J59: =SUM(J53:J58) -> 64026.46 | K59: =SUM(K53:K58) -> -109629.44 | L59: =SUM(L53:L58) -> 1505339.65 | U59: AmoAccreVal | W59: =-SUMIFS(InTBYTD!$F:$F,InTBYTD!$C:$C,FundCodeS,InTBYTD!$A:$A,ValueDate,InTBYTD!$G:$G,"PUAMAC",InTBYTD!$H:$H,"PRAMCB")-SUMIFS(InTBYTD!$F:$F,InTBYTD!$C:$C,FundCodeS,InTBYTD!$A:$A,ValueDate,InTBYTD!$G:$G,"PUAMAC",InTBYTD!$H:$H,"PRDSCB") -> -371601.39 | Y59: =W59+IF(YEAR(ValueDate=2016),-SUMIFS(InTran!AC:AC,InTran!D:D,FundCodeS,InTran!AB:AB,T79,InTran!B:B,"BM"),0) -> -371601.39
A61: TOTAL | B61: =B51+B59 -> 2007500 | C61: =C51+C59 -> 6117500 | D61: =D51+D59 -> 413000 | E61: =E51+E59 -> -288000 | F61: =+F51+F59 -> 8250000 | G61: =G51+G59 -> 200097.87 | I61: 4861366.38 | J61: 272188.45 | K61: -312855.08 | L61: 5020797.62 | U61: AmortAccrePLEnd | W61: =-(SUMIFS(InTBYTD!$F:$F,InTBYTD!$C:$C,FundCodeS,InTBYTD!$A:$A,EOMONTH(ValueDate,-MONTH(ValueDate)),InTBYTD!$G:$G,"PRINTI",InTBYTD!$H:$H,"PRAMCB")+SUMIFS(InTBYTD!$F:$F,InTBYTD!$C:$C,FundCodeS,InTBYTD!$A:$A,EOMONTH(ValueDate,-MONTH(ValueDate)),InTBYTD!$G:$G,"PRINTI",InTBYTD!$H:$H,"PRDSCB")) -> -308730.56
U62: AmortAccrePLVal | W62: =-(SUMIFS(InTBYTD!$F:$F,InTBYTD!$C:$C,FundCodeS,InTBYTD!$A:$A,ValueDate,InTBYTD!$G:$G,"PRINTI",InTBYTD!$H:$H,"PRAMCB")+SUMIFS(InTBYTD!$F:$F,InTBYTD!$C:$C,FundCodeS,InTBYTD!$A:$A,ValueDate,InTBYTD!$G:$G,"PRINTI",InTBYTD!$H:$H,"PRDSCB")-SUMIFS(InTran!AC:AC,InTran!D:D,FundCodeS,InTran!AB:AB,T79,InTran!B:B,"BM")) -> -487278.43
A64: Sector Exposure | B64: FBM100 | C64: Portfolio
A65: Automobile | C65: =IFERROR(O65/$D$11,0) -> 0 | N65: 1000 | O65: =SUMIFS(InPos!$I:$I,InPos!$N:$N,N65,InPos!$B:$B,FundCodeS) -> 0 | P65: Automobile | AC65: *
A66: Building Materials | C66: 0 | N66: 1000 | O66: =SUMIFS(InPos!$I:$I,InPos!$N:$N,N66,InPos!$B:$B,FundCodeS) -> 0 | P66: Building Materials | V66: RGValD | W66: DIValD | X66: INCValD | Y66: CPayValD | Z66: CRecValD | AA66: OTHIncomeEVal | AB66: AmoAccreVal | AC66: AmortAccrePLVal
A67: Construction | C67: 0 | N67: 2 | O67: =SUMIFS(InPos!$I:$I,InPos!$N:$N,N67,InPos!$B:$B,FundCodeS) -> 0 | P67: Construction | U67: =DATE(YEAR(ValueDate)-1,12,31) -> 2016-12-31 | V67: =-SUMIFS(InTBYTD!$F:$F,InTBYTD!$C:$C,FundCodeS,InTBYTD!$A:$A,U67,InTBYTD!$G:$G,"PRRGNL",InTBYTD!$H:$H,"PRGNLO") -> 2378330.56 | W67: =-SUMIFS(InTBYTD!$F:$F,InTBYTD!$C:$C,FundCodeS,InTBYTD!$A:$A,U67,InTBYTD!$J:$J,"DI",InTBYTD!$K:$K,"EQT")-SUMIFS(InTBYTD!$F:$F,InTBYTD!$C:$C,FundCodeS,InTBYTD!$A:$A,U67,InTBYTD!$H:$H,"PREWHT") -> 0 | X67: =-SUMIFS(InTBYTD!$F:$F,InTBYTD!$C:$C,FundCodeS,InTBYTD!$A:$A,U67,InTBYTD!$J:$J,"INC",InTBYTD!$K:$K,"CSH") -> 814341.94 | Y67: =-SUMIFS(InTBYTD!$F:$F,InTBYTD!$C:$C,FundCodeS,InTBYTD!$A:$A,U67,InTBYTD!$G:$G,"PRINTI",InTBYTD!$H:$H,"PRINCB") -> 10186158.33 | AA67: =-SUMIFS(InTBYTD!$F:$F,InTBYTD!$C:$C,FundCodeS,InTBYTD!$A:$A,U67,InTBYTD!$J:$J,"DI",InTBYTD!$K:$K,0) -> 2152.06 | AB67: =-SUMIFS(InTBYTD!$F:$F,InTBYTD!$C:$C,FundCodeS,InTBYTD!$A:$A,U67,InTBYTD!$G:$G,"PUAMAC",InTBYTD!$H:$H,"PRAMCB")-SUMIFS(InTBYTD!$F:$F,InTBYTD!$C:$C,FundCodeS,InTBYTD!$A:$A,U67,InTBYTD!$G:$G,"PUAMAC",InTBYTD!$H:$H,"PRDSCB") -> -237294.18 | AC67: =-SUMIFS(InTBYTD!$F:$F,InTBYTD!$C:$C,FundCodeS,InTBYTD!$A:$A,U67,InTBYTD!$G:$G,"PRINTI",InTBYTD!$H:$H,"PRAMCB")-SUMIFS(InTBYTD!$F:$F,InTBYTD!$C:$C,FundCodeS,InTBYTD!$A:$A,U67,InTBYTD!$G:$G,"PRINTI",InTBYTD!$H:$H,"PRDSCB") -> -308730.56
A68: Consumer | C68: 0 | N68: 3 | O68: =SUMIFS(InPos!$I:$I,InPos!$N:$N,N68,InPos!$B:$B,FundCodeS) -> 0 | P68: Consumer | T68: 1 | U68: =EOMONTH(DATE(YEAR(ValueDate),1,1),0) -> 2017-01-31 | V68: =-SUMIFS(InTBYTD!$F:$F,InTBYTD!$C:$C,FundCodeS,InTBYTD!$A:$A,IF(MONTH(ValueDate)=T68,ValueDate,U68),InTBYTD!$G:$G,"PRRGNL",InTBYTD!$H:$H,"PRGNLO") -> 2378330.56 | W68: =-SUMIFS(InTBYTD!$F:$F,InTBYTD!$C:$C,FundCodeS,InTBYTD!$A:$A,IF(MONTH(ValueDate)=T68,ValueDate,U68),InTBYTD!$J:$J,"DI",InTBYTD!$K:$K,"EQT")-SUMIFS(InTBYTD!$F:$F,InTBYTD!$C:$C,FundCodeS,InTBYTD!$A:$A,IF(MONTH(ValueDate)=T68,ValueDate,U68),InTBYTD!$H:$H,"PREWHT") -> 0 | X68: =-SUMIFS(InTBYTD!$F:$F,InTBYTD!$C:$C,FundCodeS,InTBYTD!$A:$A,IF(MONTH(ValueDate)=T68,ValueDate,U68),InTBYTD!$J:$J,"INC",InTBYTD!$K:$K,"CSH") -> 862053.31 | Y68: =-SUMIFS(InTBYTD!$F:$F,InTBYTD!$C:$C,FundCodeS,InTBYTD!$A:$A,IF(MONTH(ValueDate)=T68,ValueDate,U68),InTBYTD!$G:$G,"PRINTI",InTBYTD!$H:$H,"PRINCB") -> 10736225.14 | AA68: =-SUMIFS(InTBYTD!$F:$F,InTBYTD!$C:$C,FundCodeS,InTBYTD!$A:$A,IF(MONTH(ValueDate)=T68,ValueDate,U68),InTBYTD!$J:$J,"DI",InTBYTD!$K:$K,0) -> 2204.93 | AB68: =-SUMIFS(InTBYTD!$F:$F,InTBYTD!$C:$C,FundCodeS,InTBYTD!$A:$A,IF(MONTH(ValueDate)=T68,ValueDate,U68),InTBYTD!$G:$G,"PUAMAC",InTBYTD!$H:$H,"PRAMCB")-SUMIFS(InTBYTD!$F:$F,InTBYTD!$C:$C,FundCodeS,InTBYTD!$A:$A,IF(MONTH(ValueDate)=T68,ValueDate,U68),InTBYTD!$G:$G,"PUAMAC",InTBYTD!$H:$H,"PRDSCB")+IF(YEAR(ValueDate=2016),-SUMIFS(InTran!AC:AC,InTran!D:D,FundCodeS,InTran!AB:AB,T68,InTran!B:B,"BM"),0) -> -270545.48 | AC68: =-SUMIFS(InTBYTD!$F:$F,InTBYTD!$C:$C,FundCodeS,InTBYTD!$A:$A,IF(MONTH(ValueDate)=T68,ValueDate,U68),InTBYTD!$G:$G,"PRINTI",InTBYTD!$H:$H,"PRAMCB")-SUMIFS(InTBYTD!$F:$F,InTBYTD!$C:$C,FundCodeS,InTBYTD!$A:$A,IF(MONTH(ValueDate)=T68,ValueDate,U68),InTBYTD!$G:$G,"PRINTI",InTBYTD!$H:$H,"PRDSCB")+SUMIFS(InTran!AC:AC,InTran!D:D,FundCodeS,InTran!AB:AB,T68,InTran!B:B,"BM") -> -308730.56
A69: Education | C69: 0 | N69: 1000 | O69: =SUMIFS(InPos!$I:$I,InPos!$N:$N,N69,InPos!$B:$B,FundCodeS) -> 0 | P69: Education | T69: 2 | U69: =EOMONTH(DATE(YEAR(ValueDate),2,1),0) -> 2017-02-28 | V69: =-SUMIFS(InTBYTD!$F:$F,InTBYTD!$C:$C,FundCodeS,InTBYTD!$A:$A,IF(MONTH(ValueDate)=T69,ValueDate,U69),InTBYTD!$G:$G,"PRRGNL",InTBYTD!$H:$H,"PRGNLO") -> 2391556.53 | W69: =-SUMIFS(InTBYTD!$F:$F,InTBYTD!$C:$C,FundCodeS,InTBYTD!$A:$A,IF(MONTH(ValueDate)=T69,ValueDate,U69),InTBYTD!$J:$J,"DI",InTBYTD!$K:$K,"EQT")-SUMIFS(InTBYTD!$F:$F,InTBYTD!$C:$C,FundCodeS,InTBYTD!$A:$A,IF(MONTH(ValueDate)=T69,ValueDate,U69),InTBYTD!$H:$H,"PREWHT") -> 0 | X69: =-SUMIFS(InTBYTD!$F:$F,InTBYTD!$C:$C,FundCodeS,InTBYTD!$A:$A,IF(MONTH(ValueDate)=T69,ValueDate,U69),InTBYTD!$J:$J,"INC",InTBYTD!$K:$K,"CSH") -> 894431.06 | Y69: =-SUMIFS(InTBYTD!$F:$F,InTBYTD!$C:$C,FundCodeS,InTBYTD!$A:$A,IF(MONTH(ValueDate)=T69,ValueDate,U69),InTBYTD!$G:$G,"PRINTI",InTBYTD!$H:$H,"PRINCB") -> 11251907.56 | AA69: =-SUMIFS(InTBYTD!$F:$F,InTBYTD!$C:$C,FundCodeS,InTBYTD!$A:$A,IF(MONTH(ValueDate)=T69,ValueDate,U69),InTBYTD!$J:$J,"DI",InTBYTD!$K:$K,0) -> 2252.68 | AB69: =-SUMIFS(InTBYTD!$F:$F,InTBYTD!$C:$C,FundCodeS,InTBYTD!$A:$A,IF(MONTH(ValueDate)=T69,ValueDate,U69),InTBYTD!$G:$G,"PUAMAC",InTBYTD!$H:$H,"PRAMCB")-SUMIFS(InTBYTD!$F:$F,InTBYTD!$C:$C,FundCodeS,InTBYTD!$A:$A,IF(MONTH(ValueDate)=T69,ValueDate,U69),InTBYTD!$G:$G,"PUAMAC",InTBYTD!$H:$H,"PRDSCB")+IF(YEAR(ValueDate=2016),-SUMIFS(InTran!AC:AC,InTran!D:D,FundCodeS,InTran!AB:AB,T69,InTran!B:B,"BM"),0) -> -275354.03 | AC69: =-SUMIFS(InTBYTD!$F:$F,InTBYTD!$C:$C,FundCodeS,InTBYTD!$A:$A,IF(MONTH(ValueDate)=T69,ValueDate,U69),InTBYTD!$G:$G,"PRINTI",InTBYTD!$H:$H,"PRAMCB")-SUMIFS(InTBYTD!$F:$F,InTBYTD!$C:$C,FundCodeS,InTBYTD!$A:$A,IF(MONTH(ValueDate)=T69,ValueDate,U69),InTBYTD!$G:$G,"PRINTI",InTBYTD!$H:$H,"PRDSCB")+SUMIFS(InTran!AC:AC,InTran!D:D,FundCodeS,InTran!AB:AB,T69,InTran!B:B,"BM") -> -335206.53
A70: Finance | C70: 0 | N70: 4 | O70: =SUMIFS(InPos!$I:$I,InPos!$N:$N,N70,InPos!$B:$B,FundCodeS) -> 0 | P70: Finance | T70: 3 | U70: =EOMONTH(DATE(YEAR(ValueDate),3,1),0) -> 2017-03-31 | V70: =-SUMIFS(InTBYTD!$F:$F,InTBYTD!$C:$C,FundCodeS,InTBYTD!$A:$A,IF(MONTH(ValueDate)=T70,ValueDate,U70),InTBYTD!$G:$G,"PRRGNL",InTBYTD!$H:$H,"PRGNLO") -> 2391556.53 | W70: =-SUMIFS(InTBYTD!$F:$F,InTBYTD!$C:$C,FundCodeS,InTBYTD!$A:$A,IF(MONTH(ValueDate)=T70,ValueDate,U70),InTBYTD!$J:$J,"DI",InTBYTD!$K:$K,"EQT")-SUMIFS(InTBYTD!$F:$F,InTBYTD!$C:$C,FundCodeS,InTBYTD!$A:$A,IF(MONTH(ValueDate)=T70,ValueDate,U70),InTBYTD!$H:$H,"PREWHT") -> 0 | X70: =-SUMIFS(InTBYTD!$F:$F,InTBYTD!$C:$C,FundCodeS,InTBYTD!$A:$A,IF(MONTH(ValueDate)=T70,ValueDate,U70),InTBYTD!$J:$J,"INC",InTBYTD!$K:$K,"CSH") -> 928671.68 | Y70: =-SUMIFS(InTBYTD!$F:$F,InTBYTD!$C:$C,FundCodeS,InTBYTD!$A:$A,IF(MONTH(ValueDate)=T70,ValueDate,U70),InTBYTD!$G:$G,"PRINTI",InTBYTD!$H:$H,"PRINCB") -> 11829296.94 | AA70: =-SUMIFS(InTBYTD!$F:$F,InTBYTD!$C:$C,FundCodeS,InTBYTD!$A:$A,IF(MONTH(ValueDate)=T70,ValueDate,U70),InTBYTD!$J:$J,"DI",InTBYTD!$K:$K,0) -> 2305.27 | AB70: =-SUMIFS(InTBYTD!$F:$F,InTBYTD!$C:$C,FundCodeS,InTBYTD!$A:$A,IF(MONTH(ValueDate)=T70,ValueDate,U70),InTBYTD!$G:$G,"PUAMAC",InTBYTD!$H:$H,"PRAMCB")-SUMIFS(InTBYTD!$F:$F,InTBYTD!$C:$C,FundCodeS,InTBYTD!$A:$A,IF(MONTH(ValueDate)=T70,ValueDate,U70),InTBYTD!$G:$G,"PUAMAC",InTBYTD!$H:$H,"PRDSCB")+IF(YEAR(ValueDate=2016),-SUMIFS(InTran!AC:AC,InTran!D:D,FundCodeS,InTran!AB:AB,T70,InTran!B:B,"BM"),0) -> -310235.24 | AC70: =-SUMIFS(InTBYTD!$F:$F,InTBYTD!$C:$C,FundCodeS,InTBYTD!$A:$A,IF(MONTH(ValueDate)=T70,ValueDate,U70),InTBYTD!$G:$G,"PRINTI",InTBYTD!$H:$H,"PRAMCB")-SUMIFS(InTBYTD!$F:$F,InTBYTD!$C:$C,FundCodeS,InTBYTD!$A:$A,IF(MONTH(ValueDate)=T70,ValueDate,U70),InTBYTD!$G:$G,"PRINTI",InTBYTD!$H:$H,"PRDSCB")+SUMIFS(InTran!AC:AC,InTran!D:D,FundCodeS,InTran!AB:AB,T70,InTran!B:B,"BM") -> -335206.53
A71: Healthcare | C71: 0 | N71: 32 | O71: =SUMIFS(InPos!$I:$I,InPos!$N:$N,N71,InPos!$B:$B,FundCodeS) -> 0 | P71: Healthcare | T71: 4 | U71: =EOMONTH(DATE(YEAR(ValueDate),4,1),0) -> 2017-04-30 | V71: =-SUMIFS(InTBYTD!$F:$F,InTBYTD!$C:$C,FundCodeS,InTBYTD!$A:$A,IF(MONTH(ValueDate)=T71,ValueDate,U71),InTBYTD!$G:$G,"PRRGNL",InTBYTD!$H:$H,"PRGNLO") -> 2397340.24 | W71: =-SUMIFS(InTBYTD!$F:$F,InTBYTD!$C:$C,FundCodeS,InTBYTD!$A:$A,IF(MONTH(ValueDate)=T71,ValueDate,U71),InTBYTD!$J:$J,"DI",InTBYTD!$K:$K,"EQT")-SUMIFS(InTBYTD!$F:$F,InTBYTD!$C:$C,FundCodeS,InTBYTD!$A:$A,IF(MONTH(ValueDate)=T71,ValueDate,U71),InTBYTD!$H:$H,"PREWHT") -> 0 | X71: =-SUMIFS(InTBYTD!$F:$F,InTBYTD!$C:$C,FundCodeS,InTBYTD!$A:$A,IF(MONTH(ValueDate)=T71,ValueDate,U71),InTBYTD!$J:$J,"INC",InTBYTD!$K:$K,"CSH") -> 944954.89 | Y71: =-SUMIFS(InTBYTD!$F:$F,InTBYTD!$C:$C,FundCodeS,InTBYTD!$A:$A,IF(MONTH(ValueDate)=T71,ValueDate,U71),InTBYTD!$G:$G,"PRINTI",InTBYTD!$H:$H,"PRINCB") -> 12404856.45 | AA71: =-SUMIFS(InTBYTD!$F:$F,InTBYTD!$C:$C,FundCodeS,InTBYTD!$A:$A,IF(MONTH(ValueDate)=T71,ValueDate,U71),InTBYTD!$J:$J,"DI",InTBYTD!$K:$K,0) -> 2420.6 | AB71: =-SUMIFS(InTBYTD!$F:$F,InTBYTD!$C:$C,FundCodeS,InTBYTD!$A:$A,IF(MONTH(ValueDate)=T71,ValueDate,U71),InTBYTD!$G:$G,"PUAMAC",InTBYTD!$H:$H,"PRAMCB")-SUMIFS(InTBYTD!$F:$F,InTBYTD!$C:$C,FundCodeS,InTBYTD!$A:$A,IF(MONTH(ValueDate)=T71,ValueDate,U71),InTBYTD!$G:$G,"PUAMAC",InTBYTD!$H:$H,"PRDSCB")+IF(YEAR(ValueDate=2016),-SUMIFS(InTran!AC:AC,InTran!D:D,FundCodeS,InTran!AB:AB,T71,InTran!B:B,"BM"),0) -> -344355.76 | AC71: =-SUMIFS(InTBYTD!$F:$F,InTBYTD!$C:$C,FundCodeS,InTBYTD!$A:$A,IF(MONTH(ValueDate)=T71,ValueDate,U71),InTBYTD!$G:$G,"PRINTI",InTBYTD!$H:$H,"PRAMCB")-SUMIFS(InTBYTD!$F:$F,InTBYTD!$C:$C,FundCodeS,InTBYTD!$A:$A,IF(MONTH(ValueDate)=T71,ValueDate,U71),InTBYTD!$G:$G,"PRINTI",InTBYTD!$H:$H,"PRDSCB")+SUMIFS(InTran!AC:AC,InTran!D:D,FundCodeS,InTran!AB:AB,T71,InTran!B:B,"BM") -> -333490.24
A72: Industrial Products | C72: 0 | N72: 6 | O72: =SUMIFS(InPos!$I:$I,InPos!$N:$N,N72,InPos!$B:$B,FundCodeS) -> 0 | P72: Industrial Products | T72: 5 | U72: =EOMONTH(DATE(YEAR(ValueDate),5,1),0) -> 2017-05-31 | V72: =-SUMIFS(InTBYTD!$F:$F,InTBYTD!$C:$C,FundCodeS,InTBYTD!$A:$A,IF(MONTH(ValueDate)=T72,ValueDate,U72),InTBYTD!$G:$G,"PRRGNL",InTBYTD!$H:$H,"PRGNLO") -> 2526764.33 | W72: =-SUMIFS(InTBYTD!$F:$F,InTBYTD!$C:$C,FundCodeS,InTBYTD!$A:$A,IF(MONTH(ValueDate)=T72,ValueDate,U72),InTBYTD!$J:$J,"DI",InTBYTD!$K:$K,"EQT")-SUMIFS(InTBYTD!$F:$F,InTBYTD!$C:$C,FundCodeS,InTBYTD!$A:$A,IF(MONTH(ValueDate)=T72,ValueDate,U72),InTBYTD!$H:$H,"PREWHT") -> 0 | X72: =-SUMIFS(InTBYTD!$F:$F,InTBYTD!$C:$C,FundCodeS,InTBYTD!$A:$A,IF(MONTH(ValueDate)=T72,ValueDate,U72),InTBYTD!$J:$J,"INC",InTBYTD!$K:$K,"CSH") -> 981796.35 | Y72: =-SUMIFS(InTBYTD!$F:$F,InTBYTD!$C:$C,FundCodeS,InTBYTD!$A:$A,IF(MONTH(ValueDate)=T72,ValueDate,U72),InTBYTD!$G:$G,"PRINTI",InTBYTD!$H:$H,"PRINCB") -> 12980807.26 | AA72: =-SUMIFS(InTBYTD!$F:$F,InTBYTD!$C:$C,FundCodeS,InTBYTD!$A:$A,IF(MONTH(ValueDate)=T72,ValueDate,U72),InTBYTD!$J:$J,"DI",InTBYTD!$K:$K,0) -> 2469.99 | AB72: =-SUMIFS(InTBYTD!$F:$F,InTBYTD!$C:$C,FundCodeS,InTBYTD!$A:$A,IF(MONTH(ValueDate)=T72,ValueDate,U72),InTBYTD!$G:$G,"PUAMAC",InTBYTD!$H:$H,"PRAMCB")-SUMIFS(InTBYTD!$F:$F,InTBYTD!$C:$C,FundCodeS,InTBYTD!$A:$A,IF(MONTH(ValueDate)=T72,ValueDate,U72),InTBYTD!$G:$G,"PUAMAC",InTBYTD!$H:$H,"PRDSCB")+IF(YEAR(ValueDate=2016),-SUMIFS(InTran!AC:AC,InTran!D:D,FundCodeS,InTran!AB:AB,T72,InTran!B:B,"BM"),0) -> -328236.19 | AC72: =-SUMIFS(InTBYTD!$F:$F,InTBYTD!$C:$C,FundCodeS,InTBYTD!$A:$A,IF(MONTH(ValueDate)=T72,ValueDate,U72),InTBYTD!$G:$G,"PRINTI",InTBYTD!$H:$H,"PRAMCB")-SUMIFS(InTBYTD!$F:$F,InTBYTD!$C:$C,FundCodeS,InTBYTD!$A:$A,IF(MONTH(ValueDate)=T72,ValueDate,U72),InTBYTD!$G:$G,"PRINTI",InTBYTD!$H:$H,"PRDSCB")+SUMIFS(InTran!AC:AC,InTran!D:D,FundCodeS,InTran!AB:AB,T72,InTran!B:B,"BM") -> -384664.33
A73: Infrastructure Project Company | C73: 0 | N73: 7 | O73: =SUMIFS(InPos!$I:$I,InPos!$N:$N,N73,InPos!$B:$B,FundCodeS) -> 0 | P73: Infrastructure Project Company | T73: 6 | U73: =EOMONTH(DATE(YEAR(ValueDate),6,1),0) -> 2017-06-30 | V73: =-SUMIFS(InTBYTD!$F:$F,InTBYTD!$C:$C,FundCodeS,InTBYTD!$A:$A,IF(MONTH(ValueDate)=T73,ValueDate,U73),InTBYTD!$G:$G,"PRRGNL",InTBYTD!$H:$H,"PRGNLO") -> 2537215.72 | W73: =-SUMIFS(InTBYTD!$F:$F,InTBYTD!$C:$C,FundCodeS,InTBYTD!$A:$A,IF(MONTH(ValueDate)=T73,ValueDate,U73),InTBYTD!$J:$J,"DI",InTBYTD!$K:$K,"EQT")-SUMIFS(InTBYTD!$F:$F,InTBYTD!$C:$C,FundCodeS,InTBYTD!$A:$A,IF(MONTH(ValueDate)=T73,ValueDate,U73),InTBYTD!$H:$H,"PREWHT") -> 0 | X73: =-SUMIFS(InTBYTD!$F:$F,InTBYTD!$C:$C,FundCodeS,InTBYTD!$A:$A,IF(MONTH(ValueDate)=T73,ValueDate,U73),InTBYTD!$J:$J,"INC",InTBYTD!$K:$K,"CSH") -> 1022128.45 | Y73: =-SUMIFS(InTBYTD!$F:$F,InTBYTD!$C:$C,FundCodeS,InTBYTD!$A:$A,IF(MONTH(ValueDate)=T73,ValueDate,U73),InTBYTD!$G:$G,"PRINTI",InTBYTD!$H:$H,"PRINCB") -> 13537794.79 | AA73: =-SUMIFS(InTBYTD!$F:$F,InTBYTD!$C:$C,FundCodeS,InTBYTD!$A:$A,IF(MONTH(ValueDate)=T73,ValueDate,U73),InTBYTD!$J:$J,"DI",InTBYTD!$K:$K,0) -> 2527.54 | AB73: =-SUMIFS(InTBYTD!$F:$F,InTBYTD!$C:$C,FundCodeS,InTBYTD!$A:$A,IF(MONTH(ValueDate)=T73,ValueDate,U73),InTBYTD!$G:$G,"PUAMAC",InTBYTD!$H:$H,"PRAMCB")-SUMIFS(InTBYTD!$F:$F,InTBYTD!$C:$C,FundCodeS,InTBYTD!$A:$A,IF(MONTH(ValueDate)=T73,ValueDate,U73),InTBYTD!$G:$G,"PUAMAC",InTBYTD!$H:$H,"PRDSCB")+IF(YEAR(ValueDate=2016),-SUMIFS(InTran!AC:AC,InTran!D:D,FundCodeS,InTran!AB:AB,T73,InTran!B:B,"BM"),0) -> -324434.66 | AC73: =-SUMIFS(InTBYTD!$F:$F,InTBYTD!$C:$C,FundCodeS,InTBYTD!$A:$A,IF(MONTH(ValueDate)=T73,ValueDate,U73),InTBYTD!$G:$G,"PRINTI",InTBYTD!$H:$H,"PRAMCB")-SUMIFS(InTBYTD!$F:$F,InTBYTD!$C:$C,FundCodeS,InTBYTD!$A:$A,IF(MONTH(ValueDate)=T73,ValueDate,U73),InTBYTD!$G:$G,"PRINTI",InTBYTD!$H:$H,"PRDSCB")+SUMIFS(InTran!AC:AC,InTran!D:D,FundCodeS,InTran!AB:AB,T73,InTran!B:B,"BM") -> -424815.72
A74: Media | C74: 0 | N74: 1000 | O74: =SUMIFS(InPos!$I:$I,InPos!$N:$N,N74,InPos!$B:$B,FundCodeS) -> 0 | P74: Media | T74: 7 | U74: =EOMONTH(DATE(YEAR(ValueDate),7,1),0) -> 2017-07-31 | V74: =-SUMIFS(InTBYTD!$F:$F,InTBYTD!$C:$C,FundCodeS,InTBYTD!$A:$A,IF(MONTH(ValueDate)=T74,ValueDate,U74),InTBYTD!$G:$G,"PRRGNL",InTBYTD!$H:$H,"PRGNLO") -> 2537486.95 | W74: =-SUMIFS(InTBYTD!$F:$F,InTBYTD!$C:$C,FundCodeS,InTBYTD!$A:$A,IF(MONTH(ValueDate)=T74,ValueDate,U74),InTBYTD!$J:$J,"DI",InTBYTD!$K:$K,"EQT")-SUMIFS(InTBYTD!$F:$F,InTBYTD!$C:$C,FundCodeS,InTBYTD!$A:$A,IF(MONTH(ValueDate)=T74,ValueDate,U74),InTBYTD!$H:$H,"PREWHT") -> 0 | X74: =-SUMIFS(InTBYTD!$F:$F,InTBYTD!$C:$C,FundCodeS,InTBYTD!$A:$A,IF(MONTH(ValueDate)=T74,ValueDate,U74),InTBYTD!$J:$J,"INC",InTBYTD!$K:$K,"CSH") -> 1055939.61 | Y74: =-SUMIFS(InTBYTD!$F:$F,InTBYTD!$C:$C,FundCodeS,InTBYTD!$A:$A,IF(MONTH(ValueDate)=T74,ValueDate,U74),InTBYTD!$G:$G,"PRINTI",InTBYTD!$H:$H,"PRINCB") -> 14133222.14 | AA74: =-SUMIFS(InTBYTD!$F:$F,InTBYTD!$C:$C,FundCodeS,InTBYTD!$A:$A,IF(MONTH(ValueDate)=T74,ValueDate,U74),InTBYTD!$J:$J,"DI",InTBYTD!$K:$K,0) -> 2579.45 | AB74: =-SUMIFS(InTBYTD!$F:$F,InTBYTD!$C:$C,FundCodeS,InTBYTD!$A:$A,IF(MONTH(ValueDate)=T74,ValueDate,U74),InTBYTD!$G:$G,"PUAMAC",InTBYTD!$H:$H,"PRAMCB")-SUMIFS(InTBYTD!$F:$F,InTBYTD!$C:$C,FundCodeS,InTBYTD!$A:$A,IF(MONTH(ValueDate)=T74,ValueDate,U74),InTBYTD!$G:$G,"PUAMAC",InTBYTD!$H:$H,"PRDSCB")+IF(YEAR(ValueDate=2016),-SUMIFS(InTran!AC:AC,InTran!D:D,FundCodeS,InTran!AB:AB,T74,InTran!B:B,"BM"),0) -> -348597.06 | AC74: =-SUMIFS(InTBYTD!$F:$F,InTBYTD!$C:$C,FundCodeS,InTBYTD!$A:$A,IF(MONTH(ValueDate)=T74,ValueDate,U74),InTBYTD!$G:$G,"PRINTI",InTBYTD!$H:$H,"PRAMCB")-SUMIFS(InTBYTD!$F:$F,InTBYTD!$C:$C,FundCodeS,InTBYTD!$A:$A,IF(MONTH(ValueDate)=T74,ValueDate,U74),InTBYTD!$G:$G,"PRINTI",InTBYTD!$H:$H,"PRDSCB")+SUMIFS(InTran!AC:AC,InTran!D:D,FundCodeS,InTran!AB:AB,T74,InTran!B:B,"BM") -> -444836.95
A75: Oil & Gas | C75: 0 | N75: 1000 | O75: =SUMIFS(InPos!$I:$I,InPos!$N:$N,N75,InPos!$B:$B,FundCodeS) -> 0 | P75: Oil & Gas | T75: 8 | U75: =EOMONTH(DATE(YEAR(ValueDate),8,1),0) -> 2017-08-31 | V75: =-SUMIFS(InTBYTD!$F:$F,InTBYTD!$C:$C,FundCodeS,InTBYTD!$A:$A,IF(MONTH(ValueDate)=T75,ValueDate,U75),InTBYTD!$G:$G,"PRRGNL",InTBYTD!$H:$H,"PRGNLO") -> 2550474.22 | W75: =-SUMIFS(InTBYTD!$F:$F,InTBYTD!$C:$C,FundCodeS,InTBYTD!$A:$A,IF(MONTH(ValueDate)=T75,ValueDate,U75),InTBYTD!$J:$J,"DI",InTBYTD!$K:$K,"EQT")-SUMIFS(InTBYTD!$F:$F,InTBYTD!$C:$C,FundCodeS,InTBYTD!$A:$A,IF(MONTH(ValueDate)=T75,ValueDate,U75),InTBYTD!$H:$H,"PREWHT") -> 0 | X75: =-SUMIFS(InTBYTD!$F:$F,InTBYTD!$C:$C,FundCodeS,InTBYTD!$A:$A,IF(MONTH(ValueDate)=T75,ValueDate,U75),InTBYTD!$J:$J,"INC",InTBYTD!$K:$K,"CSH") -> 1077931.87 | Y75: =-SUMIFS(InTBYTD!$F:$F,InTBYTD!$C:$C,FundCodeS,InTBYTD!$A:$A,IF(MONTH(ValueDate)=T75,ValueDate,U75),InTBYTD!$G:$G,"PRINTI",InTBYTD!$H:$H,"PRINCB") -> 14748442.64 | AA75: =-SUMIFS(InTBYTD!$F:$F,InTBYTD!$C:$C,FundCodeS,InTBYTD!$A:$A,IF(MONTH(ValueDate)=T75,ValueDate,U75),InTBYTD!$J:$J,"DI",InTBYTD!$K:$K,0) -> 2616.79 | AB75: =-SUMIFS(InTBYTD!$F:$F,InTBYTD!$C:$C,FundCodeS,InTBYTD!$A:$A,IF(MONTH(ValueDate)=T75,ValueDate,U75),InTBYTD!$G:$G,"PUAMAC",InTBYTD!$H:$H,"PRAMCB")-SUMIFS(InTBYTD!$F:$F,InTBYTD!$C:$C,FundCodeS,InTBYTD!$A:$A,IF(MONTH(ValueDate)=T75,ValueDate,U75),InTBYTD!$G:$G,"PUAMAC",InTBYTD!$H:$H,"PRDSCB")+IF(YEAR(ValueDate=2016),-SUMIFS(InTran!AC:AC,InTran!D:D,FundCodeS,InTran!AB:AB,T75,InTran!B:B,"BM"),0) -> -351031.03 | AC75: =-SUMIFS(InTBYTD!$F:$F,InTBYTD!$C:$C,FundCodeS,InTBYTD!$A:$A,IF(MONTH(ValueDate)=T75,ValueDate,U75),InTBYTD!$G:$G,"PRINTI",InTBYTD!$H:$H,"PRAMCB")-SUMIFS(InTBYTD!$F:$F,InTBYTD!$C:$C,FundCodeS,InTBYTD!$A:$A,IF(MONTH(ValueDate)=T75,ValueDate,U75),InTBYTD!$G:$G,"PRINTI",InTBYTD!$H:$H,"PRDSCB")+SUMIFS(InTran!AC:AC,InTran!D:D,FundCodeS,InTran!AB:AB,T75,InTran!B:B,"BM") -> -486824.22
A76: Plantation | C76: 0 | N76: 9 | O76: =SUMIFS(InPos!$I:$I,InPos!$N:$N,N76,InPos!$B:$B,FundCodeS) -> 0 | P76: Plantation | T76: 9 | U76: =EOMONTH(DATE(YEAR(ValueDate),9,1),0) -> 2017-09-30 | V76: =-SUMIFS(InTBYTD!$F:$F,InTBYTD!$C:$C,FundCodeS,InTBYTD!$A:$A,IF(MONTH(ValueDate)=T76,ValueDate,U76),InTBYTD!$G:$G,"PRRGNL",InTBYTD!$H:$H,"PRGNLO") -> 2578428.43 | W76: =-SUMIFS(InTBYTD!$F:$F,InTBYTD!$C:$C,FundCodeS,InTBYTD!$A:$A,IF(MONTH(ValueDate)=T76,ValueDate,U76),InTBYTD!$J:$J,"DI",InTBYTD!$K:$K,"EQT")-SUMIFS(InTBYTD!$F:$F,InTBYTD!$C:$C,FundCodeS,InTBYTD!$A:$A,IF(MONTH(ValueDate)=T76,ValueDate,U76),InTBYTD!$H:$H,"PREWHT") -> 0 | X76: =-SUMIFS(InTBYTD!$F:$F,InTBYTD!$C:$C,FundCodeS,InTBYTD!$A:$A,IF(MONTH(ValueDate)=T76,ValueDate,U76),InTBYTD!$J:$J,"INC",InTBYTD!$K:$K,"CSH") -> 1086065.66 | Y76: =-SUMIFS(InTBYTD!$F:$F,InTBYTD!$C:$C,FundCodeS,InTBYTD!$A:$A,IF(MONTH(ValueDate)=T76,ValueDate,U76),InTBYTD!$G:$G,"PRINTI",InTBYTD!$H:$H,"PRINCB") -> 15047524.71 | AA76: =-SUMIFS(InTBYTD!$F:$F,InTBYTD!$C:$C,FundCodeS,InTBYTD!$A:$A,IF(MONTH(ValueDate)=T76,ValueDate,U76),InTBYTD!$J:$J,"DI",InTBYTD!$K:$K,0) -> 2616.79 | AB76: =-SUMIFS(InTBYTD!$F:$F,InTBYTD!$C:$C,FundCodeS,InTBYTD!$A:$A,IF(MONTH(ValueDate)=T76,ValueDate,U76),InTBYTD!$G:$G,"PUAMAC",InTBYTD!$H:$H,"PRAMCB")-SUMIFS(InTBYTD!$F:$F,InTBYTD!$C:$C,FundCodeS,InTBYTD!$A:$A,IF(MONTH(ValueDate)=T76,ValueDate,U76),InTBYTD!$G:$G,"PUAMAC",InTBYTD!$H:$H,"PRDSCB")+IF(YEAR(ValueDate=2016),-SUMIFS(InTran!AC:AC,InTran!D:D,FundCodeS,InTran!AB:AB,T76,InTran!B:B,"BM"),0) -> -371601.39 | AC76: =-SUMIFS(InTBYTD!$F:$F,InTBYTD!$C:$C,FundCodeS,InTBYTD!$A:$A,IF(MONTH(ValueDate)=T76,ValueDate,U76),InTBYTD!$G:$G,"PRINTI",InTBYTD!$H:$H,"PRAMCB")-SUMIFS(InTBYTD!$F:$F,InTBYTD!$C:$C,FundCodeS,InTBYTD!$A:$A,IF(MONTH(ValueDate)=T76,ValueDate,U76),InTBYTD!$G:$G,"PRINTI",InTBYTD!$H:$H,"PRDSCB")+SUMIFS(InTran!AC:AC,InTran!D:D,FundCodeS,InTran!AB:AB,T76,InTran!B:B,"BM") -> -487278.43
A77: Property | C77: 0 | N77: 11 | O77: =SUMIFS(InPos!$I:$I,InPos!$N:$N,N77,InPos!$B:$B,FundCodeS) -> 0 | P77: Property | T77: 10 | U77: =EOMONTH(DATE(YEAR(ValueDate),10,1),0) -> 2017-10-31 | V77: =-SUMIFS(InTBYTD!$F:$F,InTBYTD!$C:$C,FundCodeS,InTBYTD!$A:$A,IF(MONTH(ValueDate)=T77,ValueDate,U77),InTBYTD!$G:$G,"PRRGNL",InTBYTD!$H:$H,"PRGNLO") -> 0 | W77: =-SUMIFS(InTBYTD!$F:$F,InTBYTD!$C:$C,FundCodeS,InTBYTD!$A:$A,IF(MONTH(ValueDate)=T77,ValueDate,U77),InTBYTD!$J:$J,"DI",InTBYTD!$K:$K,"EQT")-SUMIFS(InTBYTD!$F:$F,InTBYTD!$C:$C,FundCodeS,InTBYTD!$A:$A,IF(MONTH(ValueDate)=T77,ValueDate,U77),InTBYTD!$H:$H,"PREWHT") -> 0 | X77: =-SUMIFS(InTBYTD!$F:$F,InTBYTD!$C:$C,FundCodeS,InTBYTD!$A:$A,IF(MONTH(ValueDate)=T77,ValueDate,U77),InTBYTD!$J:$J,"INC",InTBYTD!$K:$K,"CSH") -> 0 | Y77: =-SUMIFS(InTBYTD!$F:$F,InTBYTD!$C:$C,FundCodeS,InTBYTD!$A:$A,IF(MONTH(ValueDate)=T77,ValueDate,U77),InTBYTD!$G:$G,"PRINTI",InTBYTD!$H:$H,"PRINCB") -> 0 | AA77: =-SUMIFS(InTBYTD!$F:$F,InTBYTD!$C:$C,FundCodeS,InTBYTD!$A:$A,IF(MONTH(ValueDate)=T77,ValueDate,U77),InTBYTD!$J:$J,"DI",InTBYTD!$K:$K,0) -> 0 | AB77: =-SUMIFS(InTBYTD!$F:$F,InTBYTD!$C:$C,FundCodeS,InTBYTD!$A:$A,IF(MONTH(ValueDate)=T77,ValueDate,U77),InTBYTD!$G:$G,"PUAMAC",InTBYTD!$H:$H,"PRAMCB")-SUMIFS(InTBYTD!$F:$F,InTBYTD!$C:$C,FundCodeS,InTBYTD!$A:$A,IF(MONTH(ValueDate)=T77,ValueDate,U77),InTBYTD!$G:$G,"PUAMAC",InTBYTD!$H:$H,"PRDSCB")+IF(YEAR(ValueDate=2016),-SUMIFS(InTran!AC:AC,InTran!D:D,FundCodeS,InTran!AB:AB,T77,InTran!B:B,"BM"),0) -> 0 | AC77: =-SUMIFS(InTBYTD!$F:$F,InTBYTD!$C:$C,FundCodeS,InTBYTD!$A:$A,IF(MONTH(ValueDate)=T77,ValueDate,U77),InTBYTD!$G:$G,"PRINTI",InTBYTD!$H:$H,"PRAMCB")-SUMIFS(InTBYTD!$F:$F,InTBYTD!$C:$C,FundCodeS,InTBYTD!$A:$A,IF(MONTH(ValueDate)=T77,ValueDate,U77),InTBYTD!$G:$G,"PRINTI",InTBYTD!$H:$H,"PRDSCB")+SUMIFS(InTran!AC:AC,InTran!D:D,FundCodeS,InTran!AB:AB,T77,InTran!B:B,"BM") -> 0
A78: Real Estate | C78: 0 | N78: 44 | O78: =SUMIFS(InPos!$I:$I,InPos!$N:$N,N78,InPos!$B:$B,FundCodeS) -> 0 | P78: Real Estate | T78: 11 | U78: =EOMONTH(DATE(YEAR(ValueDate),11,1),0) -> 2017-11-30 | V78: =-SUMIFS(InTBYTD!$F:$F,InTBYTD!$C:$C,FundCodeS,InTBYTD!$A:$A,IF(MONTH(ValueDate)=T78,ValueDate,U78),InTBYTD!$G:$G,"PRRGNL",InTBYTD!$H:$H,"PRGNLO") -> 0 | W78: =-SUMIFS(InTBYTD!$F:$F,InTBYTD!$C:$C,FundCodeS,InTBYTD!$A:$A,IF(MONTH(ValueDate)=T78,ValueDate,U78),InTBYTD!$J:$J,"DI",InTBYTD!$K:$K,"EQT")-SUMIFS(InTBYTD!$F:$F,InTBYTD!$C:$C,FundCodeS,InTBYTD!$A:$A,IF(MONTH(ValueDate)=T78,ValueDate,U78),InTBYTD!$H:$H,"PREWHT") -> 0 | X78: =-SUMIFS(InTBYTD!$F:$F,InTBYTD!$C:$C,FundCodeS,InTBYTD!$A:$A,IF(MONTH(ValueDate)=T78,ValueDate,U78),InTBYTD!$J:$J,"INC",InTBYTD!$K:$K,"CSH") -> 0 | Y78: =-SUMIFS(InTBYTD!$F:$F,InTBYTD!$C:$C,FundCodeS,InTBYTD!$A:$A,IF(MONTH(ValueDate)=T78,ValueDate,U78),InTBYTD!$G:$G,"PRINTI",InTBYTD!$H:$H,"PRINCB") -> 0 | AA78: =-SUMIFS(InTBYTD!$F:$F,InTBYTD!$C:$C,FundCodeS,InTBYTD!$A:$A,IF(MONTH(ValueDate)=T78,ValueDate,U78),InTBYTD!$J:$J,"DI",InTBYTD!$K:$K,0) -> 0 | AB78: =-SUMIFS(InTBYTD!$F:$F,InTBYTD!$C:$C,FundCodeS,InTBYTD!$A:$A,IF(MONTH(ValueDate)=T78,ValueDate,U78),InTBYTD!$G:$G,"PUAMAC",InTBYTD!$H:$H,"PRAMCB")-SUMIFS(InTBYTD!$F:$F,InTBYTD!$C:$C,FundCodeS,InTBYTD!$A:$A,IF(MONTH(ValueDate)=T78,ValueDate,U78),InTBYTD!$G:$G,"PUAMAC",InTBYTD!$H:$H,"PRDSCB")+IF(YEAR(ValueDate=2016),-SUMIFS(InTran!AC:AC,InTran!D:D,FundCodeS,InTran!AB:AB,T78,InTran!B:B,"BM"),0) -> 0 | AC78: =-SUMIFS(InTBYTD!$F:$F,InTBYTD!$C:$C,FundCodeS,InTBYTD!$A:$A,IF(MONTH(ValueDate)=T78,ValueDate,U78),InTBYTD!$G:$G,"PRINTI",InTBYTD!$H:$H,"PRAMCB")-SUMIFS(InTBYTD!$F:$F,InTBYTD!$C:$C,FundCodeS,InTBYTD!$A:$A,IF(MONTH(ValueDate)=T78,ValueDate,U78),InTBYTD!$G:$G,"PRINTI",InTBYTD!$H:$H,"PRDSCB")+SUMIFS(InTran!AC:AC,InTran!D:D,FundCodeS,InTran!AB:AB,T78,InTran!B:B,"BM") -> 0
A79: Technology | C79: 0 | N79: 12 | O79: =SUMIFS(InPos!$I:$I,InPos!$N:$N,N79,InPos!$B:$B,FundCodeS) -> 0 | P79: Technology | T79: 12 | U79: =EOMONTH(DATE(YEAR(ValueDate),12,1),0) -> 2017-12-31 | V79: =-SUMIFS(InTBYTD!$F:$F,InTBYTD!$C:$C,FundCodeS,InTBYTD!$A:$A,IF(MONTH(ValueDate)=T79,ValueDate,U79),InTBYTD!$G:$G,"PRRGNL",InTBYTD!$H:$H,"PRGNLO") -> 0 | W79: =-SUMIFS(InTBYTD!$F:$F,InTBYTD!$C:$C,FundCodeS,InTBYTD!$A:$A,IF(MONTH(ValueDate)=T79,ValueDate,U79),InTBYTD!$J:$J,"DI",InTBYTD!$K:$K,"EQT")-SUMIFS(InTBYTD!$F:$F,InTBYTD!$C:$C,FundCodeS,InTBYTD!$A:$A,IF(MONTH(ValueDate)=T79,ValueDate,U79),InTBYTD!$H:$H,"PREWHT") -> 0 | X79: =-SUMIFS(InTBYTD!$F:$F,InTBYTD!$C:$C,FundCodeS,InTBYTD!$A:$A,IF(MONTH(ValueDate)=T79,ValueDate,U79),InTBYTD!$J:$J,"INC",InTBYTD!$K:$K,"CSH") -> 0 | Y79: =-SUMIFS(InTBYTD!$F:$F,InTBYTD!$C:$C,FundCodeS,InTBYTD!$A:$A,IF(MONTH(ValueDate)=T79,ValueDate,U79),InTBYTD!$G:$G,"PRINTI",InTBYTD!$H:$H,"PRINCB") -> 0 | AA79: =-SUMIFS(InTBYTD!$F:$F,InTBYTD!$C:$C,FundCodeS,InTBYTD!$A:$A,IF(MONTH(ValueDate)=T79,ValueDate,U79),InTBYTD!$J:$J,"DI",InTBYTD!$K:$K,0) -> 0 | AB79: =-SUMIFS(InTBYTD!$F:$F,InTBYTD!$C:$C,FundCodeS,InTBYTD!$A:$A,IF(MONTH(ValueDate)=T79,ValueDate,U79),InTBYTD!$G:$G,"PUAMAC",InTBYTD!$H:$H,"PRAMCB")-SUMIFS(InTBYTD!$F:$F,InTBYTD!$C:$C,FundCodeS,InTBYTD!$A:$A,IF(MONTH(ValueDate)=T79,ValueDate,U79),InTBYTD!$G:$G,"PUAMAC",InTBYTD!$H:$H,"PRDSCB")+IF(YEAR(ValueDate=2016),-SUMIFS(InTran!AC:AC,InTran!D:D,FundCodeS,InTran!AB:AB,T79,InTran!B:B,"BM"),0) -> 0 | AC79: =-SUMIFS(InTBYTD!$F:$F,InTBYTD!$C:$C,FundCodeS,InTBYTD!$A:$A,IF(MONTH(ValueDate)=T79,ValueDate,U79),InTBYTD!$G:$G,"PRINTI",InTBYTD!$H:$H,"PRAMCB")-SUMIFS(InTBYTD!$F:$F,InTBYTD!$C:$C,FundCodeS,InTBYTD!$A:$A,IF(MONTH(ValueDate)=T79,ValueDate,U79),InTBYTD!$G:$G,"PRINTI",InTBYTD!$H:$H,"PRDSCB")+SUMIFS(InTran!AC:AC,InTran!D:D,FundCodeS,InTran!AB:AB,T79,InTran!B:B,"BM") -> 0
A80: Telecommunications | C80: 0 | N80: 37 | O80: =SUMIFS(InPos!$I:$I,InPos!$N:$N,N80,InPos!$B:$B,FundCodeS) -> 0 | P80: Telecommunications
A81: Trading & Service | C81: 0 | N81: 13 | O81: =SUMIFS(InPos!$I:$I,InPos!$N:$N,N81,InPos!$B:$B,FundCodeS) -> 0 | P81: Trdg/Service
A82: Utilities | C82: 0 | N82: 42 | O82: =SUMIFS(InPos!$I:$I,InPos!$N:$N,N82,InPos!$B:$B,FundCodeS) -> 0 | P82: Utilities
A84: Total | B84: =SUM(B65:B83) -> 0 | C84: =SUM(C65:C83) -> 0

Sheet KWAP Summary
A2: ="Asset Allocation and Income Summary for " & FundCodeS & " fund as at " & TEXT(ValueDate,"dd-MMM-yyyy") -> Asset Allocation and Income Summary for KWAP fund as at 15-Sep-2017 | T2: KWAP
A5: Portfolio Status
B6: Cost | D6: Market Value | G6: Unrealized Gain/(Loss)
B7: RM | D7: RM | G7: RM
A9: Equities | B9: =SUMIFS(InPos!H:H,InPos!B:B,FundCodeS) -> 812785622.1 | C9: =IFERROR(B9/$B$11,0) -> 0.972044977 | D9: =SUMIFS(InPos!I:I,InPos!B:B,FundCodeS) -> 678162184 | E9: =IFERROR(D9/$D$11,0) -> 0.9666804689 | G9: =SUMIFS(InPos!O:O,InPos!B:B,FundCodeS) -> -134623438.1
A10: Cash | B10: =SUMIFS(InPosCsh!J:J,InPosCsh!C:C,FundCodeS,InPosCsh!B:B,"CSH")+SUMIFS(InRValuation!F:F,InRValuation!A:A,"TBI",InRValuation!B:B,FundCodeS) -> 23374886.23 | C10: =IFERROR(B10/$B$11,0) -> 0.02795502299 | D10: =SUMIFS(InPosCsh!J:J,InPosCsh!C:C,FundCodeS,InPosCsh!B:B,"CSH")+SUMIFS(InRValuation!F:F,InRValuation!A:A,"TBI",InRValuation!B:B,FundCodeS) -> 23374886.23 | E10: =D10/D11 -> 0.0333195311
A11: Portfolio Value | B11: =B9+B10 -> 836160508.3 | D11: =D9+D10 -> 701537070.2 | G11: =G9 -> -134623438.1 | K11: =SUMIF(InTotalCost!A:A,FundCodeS,InTotalCost!E:E) -> 820081534.6
A14: Market Statistics | I14: ROI
C15: FBMHS | D15: % Movement | F15: FBMKLCI | G15: % Movement | I15: - Current | J15: =E38/(C30) -> 0.03618682683
A16: Start date Fund | B16: 2011-04-01 | C16: 10891.56 | D16: =IF(C$24=0,0,C$24/C16-1) -> 0.2996035462 | E16: 2011-04-01 | F16: 1555.38 | G16: =IF(F$24=0,0,F$24/F16-1) -> 0.1484846147 | I16: - Annualised | J16: =(1+J15)^(365/(ValueDate-EOMONTH(ValueDate,-MONTH(ValueDate))))-1 -> 0.05157602453
A17: End Prior Year | B17: =OFFSET(InIndex!$A$1,MATCH("FBMHS",InIndex!B:B,0)+ROW(A17)-ROW($A$16)-2,0) -> 2016-12-31 | C17: =OFFSET(InIndex!$C$1,MATCH("FBMHS",InIndex!B:B,0)+ROW(A17)-ROW($A$16)-2,0) -> 13427.77 | D17: =IF(C$24=0,0,C$24/C17-1) -> 0.05413706073 | E17: =OFFSET(InIndex!$A$1,MATCH("FBMKLCI",InIndex!B:B,0)+ROW(A17)-ROW($A$16)-2,0) -> 2016-12-31 | F17: =OFFSET(InIndex!$C$1,MATCH("FBMKLCI",InIndex!B:B,0)+ROW(A17)-ROW($A$16)-2,0) -> 1641.73 | G17: =IF(F$24=0,0,F$24/F17-1) -> 0.08807782035 | K17: =+SUMIFS(InLstYTB!F:F,InLstYTB!A:A,EOMONTH(ValueDate,-MONTH(ValueDate)),InLstYTB!C:C,FundCodeS,InLstYTB!B:B,"PLR",InLstYTB!E:E,">=600000",InLstYTB!E:E,"<=699999")+SUMIFS(InLstYTB!F:F,InLstYTB!A:A,EOMONTH(ValueDate,-MONTH(ValueDate)),InLstYTB!C:C,FundCodeS,InLstYTB!B:B,"PLR",InLstYTB!E:E,">=900000",InLstYTB!E:E,"<=999999")+SUMIFS(InLstYTB!F:F,InLstYTB!A:A,EOMONTH(ValueDate,-MONTH(ValueDate)),InLstYTB!C:C,FundCodeS,InLstYTB!H:H,"PREWHT") -> -155687895.7 | L17: Gross Income Last Year End
A18: Beginning Year | B18: =OFFSET(InIndex!$A$1,MATCH("FBMHS",InIndex!B:B,0)+ROW(A18)-ROW($A$16)-2,0) -> 2017-01-03 | C18: =OFFSET(InIndex!$C$1,MATCH("FBMHS",InIndex!B:B,0)+ROW(A18)-ROW($A$16)-2,0) -> 13420.85 | D18: 0.05468059028 | E18: =OFFSET(InIndex!$A$1,MATCH("FBMKLCI",InIndex!B:B,0)+ROW(A18)-ROW($A$16)-2,0) -> 2017-01-03 | F18: =OFFSET(InIndex!$C$1,MATCH("FBMKLCI",InIndex!B:B,0)+ROW(A18)-ROW($A$16)-2,0) -> 1635.53 | G18: 0.09220252762 | I18: TWRR (YTD) | K18: =+SUMIFS(InLstYTB!F:F,InLstYTB!A:A,EOMONTH(ValueDate,-MONTH(ValueDate)-12),InLstYTB!C:C,FundCodeS,InLstYTB!B:B,"PLR",InLstYTB!E:E,">=600000",InLstYTB!E:E,"<=699999")+SUMIFS(InLstYTB!F:F,InLstYTB!A:A,EOMONTH(ValueDate,-MONTH(ValueDate)-12),InLstYTB!C:C,FundCodeS,InLstYTB!B:B,"PLR",InLstYTB!E:E,">=900000",InLstYTB!E:E,"<=999999")+SUMIFS(InLstYTB!F:F,InLstYTB!A:A,EOMONTH(ValueDate,-MONTH(ValueDate)-12),InLstYTB!C:C,FundCodeS,InLstYTB!H:H,"PREWHT") -> -118728296.1 | L18: Gross Income Last Last Year End
A19: Year High | B19: =OFFSET(InIndex!$A$1,MATCH("FBMHS",InIndex!B:B,0)+ROW(A19)-ROW($A$16)-2,0) -> 2017-05-15 | C19: =OFFSET(InIndex!$C$1,MATCH("FBMHS",InIndex!B:B,0)+ROW(A19)-ROW($A$16)-2,0) -> 14342.63 | D19: -0.01310219953 | E19: =OFFSET(InIndex!$A$1,MATCH("FBMKLCI",InIndex!B:B,0)+ROW(A19)-ROW($A$16)-2,0) -> 2017-06-14 | F19: =OFFSET(InIndex!$C$1,MATCH("FBMKLCI",InIndex!B:B,0)+ROW(A19)-ROW($A$16)-2,0) -> 1792.35 | G19: -0.003358719 | I19: Excess Return Target | J19: 0.05 | K19: =K18-K17+SUM(BudgetHistory!E3:G14) -> 36959214.92
A20: Year Low | B20: =OFFSET(InIndex!$A$1,MATCH("FBMHS",InIndex!B:B,0)+ROW(A20)-ROW($A$16)-2,0) -> 2017-01-03 | C20: =OFFSET(InIndex!$C$1,MATCH("FBMHS",InIndex!B:B,0)+ROW(A20)-ROW($A$16)-2,0) -> 13420.85 | D20: 0.05468059028 | E20: =OFFSET(InIndex!$A$1,MATCH("FBMKLCI",InIndex!B:B,0)+ROW(A20)-ROW($A$16)-2,0) -> 2017-01-03 | F20: =OFFSET(InIndex!$C$1,MATCH("FBMKLCI",InIndex!B:B,0)+ROW(A20)-ROW($A$16)-2,0) -> 1635.53 | G20: 0.09220252762 | I20: - Portfolio | J20: =SUMIFS(InTWRR!F:F,InTWRR!B:B,ValueDate,InTWRR!A:A,FundCodeS)/IF(V42>V43,1,SUMIFS(InTWRR!F:F,InTWRR!B:B,EndOfYear,InTWRR!A:A,FundCodeS))-1 -> 0.06345797808
A21: 52 Week High | B21: =OFFSET(InIndex!$A$1,MATCH("FBMHS",InIndex!B:B,0)+ROW(A21)-ROW($A$16)-2,0) -> 2017-05-15 | C21: =OFFSET(InIndex!$C$1,MATCH("FBMHS",InIndex!B:B,0)+ROW(A21)-ROW($A$16)-2,0) -> 14342.63 | D21: =IF(C$24=0,0,C$24/C21-1) -> -0.01310219953 | E21: =OFFSET(InIndex!$A$1,MATCH("FBMKLCI",InIndex!B:B,0)+ROW(A21)-ROW($A$16)-2,0) -> 2017-06-14 | F21: =OFFSET(InIndex!$C$1,MATCH("FBMKLCI",InIndex!B:B,0)+ROW(A21)-ROW($A$16)-2,0) -> 1792.35 | G21: =IF(F$24=0,0,F$24/F21-1) -> -0.003358719 | I21: - Benchmark | J21: =D17 -> 0.05413706073
A22: 52 Week Low | B22: =OFFSET(InIndex!$A$1,MATCH("FBMHS",InIndex!B:B,0)+ROW(A22)-ROW($A$16)-2,0) -> 2017-01-03 | C22: =OFFSET(InIndex!$C$1,MATCH("FBMHS",InIndex!B:B,0)+ROW(A22)-ROW($A$16)-2,0) -> 13420.85 | D22: =IF(C$24=0,0,C$24/C22-1) -> 0.05468059028 | E22: =OFFSET(InIndex!$A$1,MATCH("FBMKLCI",InIndex!B:B,0)+ROW(A22)-ROW($A$16)-2,0) -> 2017-01-03 | F22: =OFFSET(InIndex!$C$1,MATCH("FBMKLCI",InIndex!B:B,0)+ROW(A22)-ROW($A$16)-2,0) -> 1635.53 | G22: =IF(F$24=0,0,F$24/F22-1) -> 0.09220252762 | I22: Excess Return | J22: =J20-J21 -> 0.009320917345
A23: Previous Week | B23: =OFFSET(InIndex!$A$1,MATCH("FBMHS",InIndex!B:B,0)+ROW(A23)-ROW($A$16)-2,0) -> 2017-09-08 | C23: =OFFSET(InIndex!$C$1,MATCH("FBMHS",InIndex!B:B,0)+ROW(A23)-ROW($A$16)-2,0) -> 14107.48 | D23: 0.003347869357 | E23: =OFFSET(InIndex!$A$1,MATCH("FBMKLCI",InIndex!B:B,0)+ROW(A23)-ROW($A$16)-2,0) -> 2017-09-08 | F23: =OFFSET(InIndex!$C$1,MATCH("FBMKLCI",InIndex!B:B,0)+ROW(A23)-ROW($A$16)-2,0) -> 1779.9 | G23: 0.003612562504
A24: Current Date | B24: =OFFSET(InIndex!$A$1,MATCH("FBMHS",InIndex!B:B,0)+ROW(A24)-ROW($A$16)-2,0) -> 2017-09-15 | C24: =OFFSET(InIndex!$C$1,MATCH("FBMHS",InIndex!B:B,0)+ROW(A24)-ROW($A$16)-2,0) -> 14154.71 | E24: =OFFSET(InIndex!$A$1,MATCH("FBMKLCI",InIndex!B:B,0)+ROW(A24)-ROW($A$16)-2,0) -> 2017-09-15 | F24: =OFFSET(InIndex!$C$1,MATCH("FBMKLCI",InIndex!B:B,0)+ROW(A24)-ROW($A$16)-2,0) -> 1786.33 | I24: - Equity | J24: =IFERROR((PRODUCT(OFFSET(InEQTTWRR!A:A,,MATCH(FundCodeS,InEQTTWRR!3:3,0)+4))-1),0) -> 0.04485221695
I25: - Benchmark | J25: =D17 -> 0.05413706073
I26: Excess Return | J26: =J24-J25 -> -0.009284843782
A28: Income Status (YTD) | I28: Purchase & Sales (YTD)
C29: (RM) | J29: RM
A30: Ave Capital (RM m) | C30: =-SUMIFS(InTBYTD!F:F,InTBYTD!C:C,FundCodeS,InTBYTD!E:E,800000,InTBYTD!I:I,TEXT(ValueDate,"MMM-yy"))+IFERROR(ABS(K17-K18),0)+IFERROR(SUM(OFFSET(BudgetHistory!$E$1:$G$12,MATCH(YEAR(EOMONTH(ValueDate,-MONTH(ValueDate))),BudgetHistory!A:A,0),0)),0) -> 806959214.9 | I30: Purchase | J30: =-SUMIFS(InTran!V:V,InTran!B:B,"*P",InTran!D:D,FundCodeS,InTran!C:C,"EQT") -> 349877871.1
A31: ROI Target (RM m) | C31: =C30*D31 -> 56487145.04 | D31: =VLOOKUP(FundCodeS,Reference!A:D,4,0) -> 0.07 | I31: Sales | J31: =SUMIFS(InTran!V:V,InTran!B:B,"*S",InTran!D:D,FundCodeS,InTran!C:C,"EQT") -> 318939308.7
I32: Turnover | J32: =J30+J31 -> 668817179.8
C33: Budget | E33: Actual
C34: (RM) | E34: (RM) | I34: Portfolio Turnover (x) | J34: =(J32)/(2*AveCost) -> 0.4144058135
A35: Capital Gain | C35: =+B61 -> 37667837 | E35: =Y47-(1-VLOOKUP(FundCodeS,Reference!$A:$E,5,0))*Y46+SUM(M45:M50,M53:M58) -> 15022969.82
A36: Dividend Income | C36: =+C61 -> 16756700.05 | E36: =Y49-(1-VLOOKUP(FundCodeS,Reference!$A:$E,5,0))*Y48+SUM(N45:N50,N53:N58) -> 12625124.21
A37: Profit Income | C37: =+D61 -> 2062602.616 | E37: =Y52-(1-VLOOKUP(FundCodeS,Reference!$A:$E,5,0))*Y51+W58-(1-VLOOKUP(FundCodeS,Reference!$A:$E,5,0))*W57+SUM(O45:O50,O53:O58) -> 1553199.34
A38: Gross Income | C38: =SUM(C35:C37) -> 56487139.66 | E38: =SUM(E35:E37) -> 29201293.37 | F38: =IFERROR(E38/C30,0) -> 0.03618682683 | U38: =VLOOKUP(FundCodeS,Reference!A:F,6,0) -> 12 | W38: =-SUMIFS(InTBYTD!F:F,InTBYTD!C:C,FundCodeS,InTBYTD!J:J,"CAP",InTBYTD!I:I,TEXT(ValueDate,"MMM-yy"))/1000000 -> 669.4737817 | X38: =-SUMIFS(InTBYTD!F:F,InTBYTD!C:C,FundCodeS,InTBYTD!E:E,800000,InTBYTD!I:I,TEXT(ValueDate,"MMM-yy"))/1000000 -> 770
U40: =IF(AND(FundCodeS="YH-AUR-VCAM",U42=DATE(2014,12,31)),SUMIFS(InTBYTD!F:F,InTBYTD!C:C,"KHAZANAH",InTBYTD!A:A,$U$42,InTBYTD!E:E,">=100000",InTBYTD!E:E,"<=105000")+SUMIFS(InTBYTD!F:F,InTBYTD!C:C,"KHAZANAH",InTBYTD!A:A,$U$42,InTBYTD!J:J,"CSH")+SUMIFS(InTBYTD!F:F,InTBYTD!C:C,"KHAZANAH",InTBYTD!A:A,$U$42,InTBYTD!J:J,"DR")+SUMIFS(InTBYTD!F:F,InTBYTD!C:C,"KHAZANAH",InTBYTD!A:A,$U$42,InTBYTD!E:E,">=139000",InTBYTD!E:E,"<=139999"),0) -> 0 | V40: EOY or Earliest
U41: =SUMIFS(InTBYTD!F:F,InTBYTD!C:C,FundCodeS,InTBYTD!A:A,$V$41,InTBYTD!E:E,">=100000",InTBYTD!E:E,"<=105000")+SUMIFS(InTBYTD!F:F,InTBYTD!C:C,FundCodeS,InTBYTD!A:A,$V$41,InTBYTD!J:J,"CSH")+SUMIFS(InTBYTD!F:F,InTBYTD!C:C,FundCodeS,InTBYTD!A:A,$V$41,InTBYTD!J:J,"DR")+SUMIFS(InTBYTD!F:F,InTBYTD!C:C,FundCodeS,InTBYTD!A:A,$V$41,InTBYTD!E:E,">=139000",InTBYTD!E:E,"<=139999") -> 806966563.7 | V41: =IF(U42>=V42,U42,V42) -> 2016-12-31
U42: =EOMONTH(ValueDate,-MONTH(ValueDate)) -> 2016-12-31 | V42: =VLOOKUP(FundCodeS,Reference!A:C,3,0) -> 2011-03-31 | W42: =OFFSET(InTWRR!$B$1,MATCH(EOMONTH(ValueDate,-MONTH(ValueDate)),InTWRR!C:C,0),0) -> 2017-01-03
B43: BUDGET | F43: ACTUAL | M43: Extra Figures | U43: =MAX(V42,V43) -> 2016-12-31 | V43: =IF(U38=12,EOMONTH(ValueDate,-MONTH(ValueDate)),IF(U38=6,IF(MONTH(ValueDate)>6,EOMONTH(ValueDate,-MONTH(ValueDate)+6),EOMONTH(ValueDate,-MONTH(ValueDate)-6)))) -> 2016-12-31
B44: CG | C44: DI | D44: Pro Inc | E44: Total | F44: CG | G44: DI | I44: Pro Inc | J44: Total | M44: CG | N44: DI | O44: Pro Inc | U44: =IF(YEAR(ValueDate)=2015,IF(FundCodeS="KWAP",1.00707916420754,IF(FundCodeS="KHAZANAH",1.00107186680052,1)),1) -> 1
A45: =TEXT(EOMONTH(DATE(YEAR(ValueDate),1,1),0),"MMM-yy") -> Jan-17 | B45: =IFERROR(OFFSET(BudgetHistory!$A$1,MATCH(YEAR(ValueDate),BudgetHistory!$A:$A,0)+MONTH($A45)-1,1),0) -> 3056618 | C45: =IFERROR(OFFSET(BudgetHistory!$A$1,MATCH(YEAR(ValueDate),BudgetHistory!$A:$A,0)+MONTH($A45)-1,2),0) -> 444796.6 | D45: =IFERROR(OFFSET(BudgetHistory!$A$1,MATCH(YEAR(ValueDate),BudgetHistory!$A:$A,0)+MONTH($A45)-1,3),0) -> 190618.0677 | E45: =SUM(B45:D45) -> 3692032.668 | F45: =IF(MONTH(ValueDate)>=MONTH(A45),V64-(1-VLOOKUP(FundCodeS,Reference!$A:$E,5,0))*V63+M45,0) -> 603915.53 | G45: =IF(MONTH(ValueDate)>=MONTH(A45),W64-(1-VLOOKUP(FundCodeS,Reference!$A:$E,5,0))*W63+N45,0) -> 733300.51 | I45: =IF(MONTH(ValueDate)>=MONTH(A45),X64-(1-VLOOKUP(FundCodeS,Reference!$A:$E,5,0))*X63+(AA64-(1-VLOOKUP(FundCodeS,Reference!$A:$E,5,0))*AA63)+O45,0) -> 124746.62 | J45: =SUM(F45:I45) -> 1461962.66 | L45: x | M45: =IFERROR(OFFSET(BudgetHistory!$A$1,MATCH(YEAR(ValueDate),BudgetHistory!$A:$A,0)+MONTH($A45)-1,4),0) -> 0 | N45: =IFERROR(OFFSET(BudgetHistory!$A$1,MATCH(YEAR(ValueDate),BudgetHistory!$A:$A,0)+MONTH($A45)-1,5),0) -> 0 | O45: =IFERROR(OFFSET(BudgetHistory!$A$1,MATCH(YEAR(ValueDate),BudgetHistory!$A:$A,0)+MONTH($A45)-1,6),0) -> 0 | V45: Equity | W45: Fixed Income | X45: Cash | Y45: Total
A46: =TEXT(EOMONTH(DATE(YEAR(ValueDate),2,1),0),"MMM-yy") -> Feb-17 | B46: =IFERROR(OFFSET(BudgetHistory!$A$1,MATCH(YEAR(ValueDate),BudgetHistory!$A:$A,0)+MONTH($A46)-1,1),0) -> 3046836 | C46: =IFERROR(OFFSET(BudgetHistory!$A$1,MATCH(YEAR(ValueDate),BudgetHistory!$A:$A,0)+MONTH($A46)-1,2),0) -> 1482821.36 | D46: =IFERROR(OFFSET(BudgetHistory!$A$1,MATCH(YEAR(ValueDate),BudgetHistory!$A:$A,0)+MONTH($A46)-1,3),0) -> 124502.5353 | E46: 4654159.895 | F46: =IF(MONTH(ValueDate)>=MONTH(A46),V65-(1-VLOOKUP(FundCodeS,Reference!$A:$E,5,0))*V64+M46,0) -> 2522642.19 | G46: =IF(MONTH(ValueDate)>=MONTH(A46),W65-(1-VLOOKUP(FundCodeS,Reference!$A:$E,5,0))*W64+N46,0) -> 1344538.3 | I46: =IF(MONTH(ValueDate)>=MONTH(A46),X65-(1-VLOOKUP(FundCodeS,Reference!$A:$E,5,0))*X64+(AA65-(1-VLOOKUP(FundCodeS,Reference!$A:$E,5,0))*AA64)+O46,0) -> 147877.54 | J46: 4015058.03 | L46: x | M46: =IFERROR(OFFSET(BudgetHistory!$A$1,MATCH(YEAR(ValueDate),BudgetHistory!$A:$A,0)+MONTH($A46)-1,4),0) -> 0 | N46: =IFERROR(OFFSET(BudgetHistory!$A$1,MATCH(YEAR(ValueDate),BudgetHistory!$A:$A,0)+MONTH($A46)-1,5),0) -> 0 | O46: =IFERROR(OFFSET(BudgetHistory!$A$1,MATCH(YEAR(ValueDate),BudgetHistory!$A:$A,0)+MONTH($A46)-1,6),0) -> 0 | U46: RGEnd | V46: =-SUMIFS(InTBYTD!$F:$F,InTBYTD!$C:$C,FundCodeS,InTBYTD!$A:$A,EOMONTH(ValueDate,-MONTH(ValueDate)),InTBYTD!$J:$J,"RG",InTBYTD!$K:$K,"EQT") -> 89772892.94 | W46: =-SUMIFS(InTBYTD!$F:$F,InTBYTD!$C:$C,FundCodeS,InTBYTD!$A:$A,EOMONTH(ValueDate,-MONTH(ValueDate)),InTBYTD!$J:$J,"RG",InTBYTD!$K:$K,"BND") -> 0 | X46: =-SUMIFS(InTBYTD!$F:$F,InTBYTD!$C:$C,FundCodeS,InTBYTD!$A:$A,EOMONTH(ValueDate,-MONTH(ValueDate)),InTBYTD!$J:$J,"RG",InTBYTD!$K:$K,"CSH") -> 0 | Y46: =SUM(V46:X46) -> 89772892.94
A47: =TEXT(EOMONTH(DATE(YEAR(ValueDate),3,1),0),"MMM-yy") -> Mar-17 | B47: =IFERROR(OFFSET(BudgetHistory!$A$1,MATCH(YEAR(ValueDate),BudgetHistory!$A:$A,0)+MONTH($A47)-1,1),0) -> 3061462 | C47: =IFERROR(OFFSET(BudgetHistory!$A$1,MATCH(YEAR(ValueDate),BudgetHistory!$A:$A,0)+MONTH($A47)-1,2),0) -> 1230949.4 | D47: =IFERROR(OFFSET(BudgetHistory!$A$1,MATCH(YEAR(ValueDate),BudgetHistory!$A:$A,0)+MONTH($A47)-1,3),0) -> 133395.5735 | E47: 4425806.974 | F47: =IF(MONTH(ValueDate)>=MONTH(A47),V66-(1-VLOOKUP(FundCodeS,Reference!$A:$E,5,0))*V65+M47,0) -> 2566656.87 | G47: =IF(MONTH(ValueDate)>=MONTH(A47),W66-(1-VLOOKUP(FundCodeS,Reference!$A:$E,5,0))*W65+N47,0) -> 2074627.2 | I47: =IF(MONTH(ValueDate)>=MONTH(A47),X66-(1-VLOOKUP(FundCodeS,Reference!$A:$E,5,0))*X65+(AA66-(1-VLOOKUP(FundCodeS,Reference!$A:$E,5,0))*AA65)+O47,0) -> 213964.53 | J47: 4855248.6 | L47: x | M47: =IFERROR(OFFSET(BudgetHistory!$A$1,MATCH(YEAR(ValueDate),BudgetHistory!$A:$A,0)+MONTH($A47)-1,4),0) -> 0 | N47: =IFERROR(OFFSET(BudgetHistory!$A$1,MATCH(YEAR(ValueDate),BudgetHistory!$A:$A,0)+MONTH($A47)-1,5),0) -> 0 | O47: =IFERROR(OFFSET(BudgetHistory!$A$1,MATCH(YEAR(ValueDate),BudgetHistory!$A:$A,0)+MONTH($A47)-1,6),0) -> 0 | U47: RGValD | V47: =-SUMIFS(InTBYTD!$F:$F,InTBYTD!$C:$C,FundCodeS,InTBYTD!$A:$A,ValueDate,InTBYTD!$J:$J,"RG",InTBYTD!$K:$K,"EQT") -> 104795862.8 | W47: =-SUMIFS(InTBYTD!$F:$F,InTBYTD!$C:$C,FundCodeS,InTBYTD!$A:$A,ValueDate,InTBYTD!$J:$J,"RG",InTBYTD!$K:$K,"BND") -> 0 | X47: =-SUMIFS(InTBYTD!$F:$F,InTBYTD!$C:$C,FundCodeS,InTBYTD!$A:$A,ValueDate,InTBYTD!$J:$J,"RG",InTBYTD!$K:$K,"CSH") -> 0 | Y47: =SUM(V47:X47) -> 104795862.8
A48: =TEXT(EOMONTH(DATE(YEAR(ValueDate),4,1),0),"MMM-yy") -> Apr-17 | B48: =IFERROR(OFFSET(BudgetHistory!$A$1,MATCH(YEAR(ValueDate),BudgetHistory!$A:$A,0)+MONTH($A48)-1,1),0) -> 3093607 | C48: =IFERROR(OFFSET(BudgetHistory!$A$1,MATCH(YEAR(ValueDate),BudgetHistory!$A:$A,0)+MONTH($A48)-1,2),0) -> 721450 | D48: =IFERROR(OFFSET(BudgetHistory!$A$1,MATCH(YEAR(ValueDate),BudgetHistory!$A:$A,0)+MONTH($A48)-1,3),0) -> 151181.65 | E48: 3966238.65 | F48: =IF(MONTH(ValueDate)>=MONTH(A48),V67-(1-VLOOKUP(FundCodeS,Reference!$A:$E,5,0))*V66+M48,0) -> 982639.81 | G48: =IF(MONTH(ValueDate)>=MONTH(A48),W67-(1-VLOOKUP(FundCodeS,Reference!$A:$E,5,0))*W66+N48,0) -> 540478 | I48: =IF(MONTH(ValueDate)>=MONTH(A48),X67-(1-VLOOKUP(FundCodeS,Reference!$A:$E,5,0))*X66+(AA67-(1-VLOOKUP(FundCodeS,Reference!$A:$E,5,0))*AA66)+O48,0) -> 226766.43 | J48: 1749884.24 | L48: x | M48: =IFERROR(OFFSET(BudgetHistory!$A$1,MATCH(YEAR(ValueDate),BudgetHistory!$A:$A,0)+MONTH($A48)-1,4),0) -> 0 | N48: =IFERROR(OFFSET(BudgetHistory!$A$1,MATCH(YEAR(ValueDate),BudgetHistory!$A:$A,0)+MONTH($A48)-1,5),0) -> 0 | O48: =IFERROR(OFFSET(BudgetHistory!$A$1,MATCH(YEAR(ValueDate),BudgetHistory!$A:$A,0)+MONTH($A48)-1,6),0) -> 0 | U48: DIEnd | V48: =-SUMIFS(InTBYTD!$F:$F,InTBYTD!$C:$C,FundCodeS,InTBYTD!$A:$A,EOMONTH(ValueDate,-MONTH(ValueDate)),InTBYTD!$J:$J,"DI",InTBYTD!$K:$K,"EQT")-SUMIFS(InTBYTD!$F:$F,InTBYTD!$C:$C,FundCodeS,InTBYTD!$A:$A,EOMONTH(ValueDate,-MONTH(ValueDate)),InTBYTD!$H:$H,"PREWHT") -> 53644288.93 | W48: =-SUMIFS(InTBYTD!$F:$F,InTBYTD!$C:$C,FundCodeS,InTBYTD!$A:$A,EOMONTH(ValueDate,-MONTH(ValueDate)),InTBYTD!$J:$J,"DI",InTBYTD!$K:$K,"BND") -> 0 | X48: =-SUMIFS(InTBYTD!$F:$F,InTBYTD!$C:$C,FundCodeS,InTBYTD!$A:$A,EOMONTH(ValueDate,-MONTH(ValueDate)),InTBYTD!$J:$J,"DI",InTBYTD!$K:$K,"CSH") -> 0 | Y48: 53644288.93
A49: =TEXT(EOMONTH(DATE(YEAR(ValueDate),5,1),0),"MMM-yy") -> May-17 | B49: =IFERROR(OFFSET(BudgetHistory!$A$1,MATCH(YEAR(ValueDate),BudgetHistory!$A:$A,0)+MONTH($A49)-1,1),0) -> 3163212 | C49: =IFERROR(OFFSET(BudgetHistory!$A$1,MATCH(YEAR(ValueDate),BudgetHistory!$A:$A,0)+MONTH($A49)-1,2),0) -> 1725548.41 | D49: =IFERROR(OFFSET(BudgetHistory!$A$1,MATCH(YEAR(ValueDate),BudgetHistory!$A:$A,0)+MONTH($A49)-1,3),0) -> 177860.7647 | E49: 5066621.175 | F49: =IF(MONTH(ValueDate)>=MONTH(A49),V68-(1-VLOOKUP(FundCodeS,Reference!$A:$E,5,0))*V67+M49,0) -> 2430618.58 | G49: =IF(MONTH(ValueDate)>=MONTH(A49),W68-(1-VLOOKUP(FundCodeS,Reference!$A:$E,5,0))*W67+N49,0) -> 2288189.53 | I49: =IF(MONTH(ValueDate)>=MONTH(A49),X68-(1-VLOOKUP(FundCodeS,Reference!$A:$E,5,0))*X67+(AA68-(1-VLOOKUP(FundCodeS,Reference!$A:$E,5,0))*AA67)+O49,0) -> 245022.48 | J49: 4963830.59 | L49: x | M49: =IFERROR(OFFSET(BudgetHistory!$A$1,MATCH(YEAR(ValueDate),BudgetHistory!$A:$A,0)+MONTH($A49)-1,4),0) -> 0 | N49: =IFERROR(OFFSET(BudgetHistory!$A$1,MATCH(YEAR(ValueDate),BudgetHistory!$A:$A,0)+MONTH($A49)-1,5),0) -> 0 | O49: =IFERROR(OFFSET(BudgetHistory!$A$1,MATCH(YEAR(ValueDate),BudgetHistory!$A:$A,0)+MONTH($A49)-1,6),0) -> 0 | U49: DIValD | V49: =-SUMIFS(InTBYTD!$F:$F,InTBYTD!$C:$C,FundCodeS,InTBYTD!$A:$A,ValueDate,InTBYTD!$J:$J,"DI",InTBYTD!$K:$K,"EQT")-SUMIFS(InTBYTD!$F:$F,InTBYTD!$C:$C,FundCodeS,InTBYTD!$A:$A,ValueDate,InTBYTD!$H:$H,"PREWHT") -> 66269413.14 | W49: =-SUMIFS(InTBYTD!$F:$F,InTBYTD!$C:$C,FundCodeS,InTBYTD!$A:$A,ValueDate,InTBYTD!$J:$J,"DI",InTBYTD!$K:$K,"BND") -> 0 | X49: =-SUMIFS(InTBYTD!$F:$F,InTBYTD!$C:$C,FundCodeS,InTBYTD!$A:$A,ValueDate,InTBYTD!$J:$J,"DI",InTBYTD!$K:$K,"CSH") -> 0 | Y49: 66269413.14
A50: =TEXT(EOMONTH(DATE(YEAR(ValueDate),6,1),0),"MMM-yy") -> Jun-17 | B50: =IFERROR(OFFSET(BudgetHistory!$A$1,MATCH(YEAR(ValueDate),BudgetHistory!$A:$A,0)+MONTH($A50)-1,1),0) -> 3166376 | C50: =IFERROR(OFFSET(BudgetHistory!$A$1,MATCH(YEAR(ValueDate),BudgetHistory!$A:$A,0)+MONTH($A50)-1,2),0) -> 2678584.68 | D50: =IFERROR(OFFSET(BudgetHistory!$A$1,MATCH(YEAR(ValueDate),BudgetHistory!$A:$A,0)+MONTH($A50)-1,3),0) -> 182307.2838 | E50: 6027267.964 | F50: =IF(MONTH(ValueDate)>=MONTH(A50),V69-(1-VLOOKUP(FundCodeS,Reference!$A:$E,5,0))*V68+M50,0) -> 2153620.28 | G50: =IF(MONTH(ValueDate)>=MONTH(A50),W69-(1-VLOOKUP(FundCodeS,Reference!$A:$E,5,0))*W68+N50,0) -> 1232491.39 | I50: =IF(MONTH(ValueDate)>=MONTH(A50),X69-(1-VLOOKUP(FundCodeS,Reference!$A:$E,5,0))*X68+(AA69-(1-VLOOKUP(FundCodeS,Reference!$A:$E,5,0))*AA68)+O50,0) -> 247777.73 | J50: 3633889.4 | L50: x | M50: =IFERROR(OFFSET(BudgetHistory!$A$1,MATCH(YEAR(ValueDate),BudgetHistory!$A:$A,0)+MONTH($A50)-1,4),0) -> 0 | N50: =IFERROR(OFFSET(BudgetHistory!$A$1,MATCH(YEAR(ValueDate),BudgetHistory!$A:$A,0)+MONTH($A50)-1,5),0) -> 0 | O50: =IFERROR(OFFSET(BudgetHistory!$A$1,MATCH(YEAR(ValueDate),BudgetHistory!$A:$A,0)+MONTH($A50)-1,6),0) -> 0 | Y50: 0
A51: 1H | B51: =SUM(B45:B50) -> 18588111 | C51: =SUM(C45:C50) -> 8284150.45 | D51: =SUM(D45:D50) -> 959865.8748 | E51: =SUM(B51:D51) -> 27832127.32 | F51: =SUM(F45:F50) -> 11260093.26 | G51: =SUM(G45:G50) -> 8213624.93 | I51: =SUM(I45:I50) -> 1206155.33 | J51: =SUM(J45:J50) -> 20679873.52 | U51: INCEnd | V51: =-SUMIFS(InTBYTD!$F:$F,InTBYTD!$C:$C,FundCodeS,InTBYTD!$A:$A,EOMONTH(ValueDate,-MONTH(ValueDate)),InTBYTD!$J:$J,"INC",InTBYTD!$K:$K,"EQT") -> 0 | W51: 0 | X51: =-SUMIFS(InTBYTD!$F:$F,InTBYTD!$C:$C,FundCodeS,InTBYTD!$A:$A,EOMONTH(ValueDate,-MONTH(ValueDate)),InTBYTD!$J:$J,"INC",InTBYTD!$K:$K,"CSH") -> 12293882.19 | Y51: 12293882.19
U52: INCValD | V52: =-SUMIFS(InTBYTD!$F:$F,InTBYTD!$C:$C,FundCodeS,InTBYTD!$A:$A,ValueDate,InTBYTD!$J:$J,"INC",InTBYTD!$K:$K,"EQT") -> 0 | W52: 0 | X52: =-SUMIFS(InTBYTD!$F:$F,InTBYTD!$C:$C,FundCodeS,InTBYTD!$A:$A,ValueDate,InTBYTD!$J:$J,"INC",InTBYTD!$K:$K,"CSH") -> 13845327.88 | Y52: 13845327.88
A53: =TEXT(EOMONTH(DATE(YEAR(ValueDate),7,1),0),"MMM-yy") -> Jul-17 | B53: =IFERROR(OFFSET(BudgetHistory!$A$1,MATCH(YEAR(ValueDate),BudgetHistory!$A:$A,0)+MONTH($A53)-1,1),0) -> 3170809 | C53: =IFERROR(OFFSET(BudgetHistory!$A$1,MATCH(YEAR(ValueDate),BudgetHistory!$A:$A,0)+MONTH($A53)-1,2),0) -> 372504 | D53: =IFERROR(OFFSET(BudgetHistory!$A$1,MATCH(YEAR(ValueDate),BudgetHistory!$A:$A,0)+MONTH($A53)-1,3),0) -> 186753.8029 | E53: =SUM(B53:D53) -> 3730066.803 | F53: =IF(MONTH(ValueDate)>=MONTH(A53),V70-(1-VLOOKUP(FundCodeS,Reference!$A:$E,5,0))*V69+M53,0) -> 418993.7 | G53: =IF(MONTH(ValueDate)>=MONTH(A53),W70-(1-VLOOKUP(FundCodeS,Reference!$A:$E,5,0))*W69+N53,0) -> 474298.5 | I53: =IF(MONTH(ValueDate)>=MONTH(A53),X70-(1-VLOOKUP(FundCodeS,Reference!$A:$E,5,0))*X69+(AA70-(1-VLOOKUP(FundCodeS,Reference!$A:$E,5,0))*AA69)+O53,0) -> 159612.96 | J53: =SUM(F53:I53) -> 1052905.16 | L53: x | M53: =IFERROR(OFFSET(BudgetHistory!$A$1,MATCH(YEAR(ValueDate),BudgetHistory!$A:$A,0)+MONTH($A53)-1,4),0) -> 0 | N53: =IFERROR(OFFSET(BudgetHistory!$A$1,MATCH(YEAR(ValueDate),BudgetHistory!$A:$A,0)+MONTH($A53)-1,5),0) -> 0 | O53: =IFERROR(OFFSET(BudgetHistory!$A$1,MATCH(YEAR(ValueDate),BudgetHistory!$A:$A,0)+MONTH($A53)-1,6),0) -> 0 | U53: CPayEnd | W53: =-SUMIFS(InTBYTD!$F:$F,InTBYTD!$C:$C,FundCodeS,InTBYTD!$A:$A,EOMONTH(ValueDate,-MONTH(ValueDate)),InTBYTD!$G:$G,"PRINTI",InTBYTD!$H:$H,"PRINCB") -> 0 | Y53: 0
A54: =TEXT(EOMONTH(DATE(YEAR(ValueDate),8,1),0),"MMM-yy") -> Aug-17 | B54: =IFERROR(OFFSET(BudgetHistory!$A$1,MATCH(YEAR(ValueDate),BudgetHistory!$A:$A,0)+MONTH($A54)-1,1),0) -> 3211078 | C54: =IFERROR(OFFSET(BudgetHistory!$A$1,MATCH(YEAR(ValueDate),BudgetHistory!$A:$A,0)+MONTH($A54)-1,2),0) -> 2068740.08 | D54: =IFERROR(OFFSET(BudgetHistory!$A$1,MATCH(YEAR(ValueDate),BudgetHistory!$A:$A,0)+MONTH($A54)-1,3),0) -> 213432.9176 | E54: 5493250.998 | F54: =IF(MONTH(ValueDate)>=MONTH(A54),V71-(1-VLOOKUP(FundCodeS,Reference!$A:$E,5,0))*V70+M54,0) -> 2038379.58 | G54: =IF(MONTH(ValueDate)>=MONTH(A54),W71-(1-VLOOKUP(FundCodeS,Reference!$A:$E,5,0))*W70+N54,0) -> 3013389.88 | I54: =IF(MONTH(ValueDate)>=MONTH(A54),X71-(1-VLOOKUP(FundCodeS,Reference!$A:$E,5,0))*X70+(AA71-(1-VLOOKUP(FundCodeS,Reference!$A:$E,5,0))*AA70)+O54,0) -> 135266.46 | J54: 5187035.92 | L54: x | M54: =IFERROR(OFFSET(BudgetHistory!$A$1,MATCH(YEAR(ValueDate),BudgetHistory!$A:$A,0)+MONTH($A54)-1,4),0) -> 0 | N54: =IFERROR(OFFSET(BudgetHistory!$A$1,MATCH(YEAR(ValueDate),BudgetHistory!$A:$A,0)+MONTH($A54)-1,5),0) -> 0 | O54: =IFERROR(OFFSET(BudgetHistory!$A$1,MATCH(YEAR(ValueDate),BudgetHistory!$A:$A,0)+MONTH($A54)-1,6),0) -> 0 | U54: CPayValD | W54: =-SUMIFS(InTBYTD!$F:$F,InTBYTD!$C:$C,FundCodeS,InTBYTD!$A:$A,ValueDate,InTBYTD!$G:$G,"PRINTI",InTBYTD!$H:$H,"PRINCB") -> 0 | Y54: =SUM(V54:X54) -> 0
A55: =TEXT(EOMONTH(DATE(YEAR(ValueDate),9,1),0),"MMM-yy") -> Sep-17 | B55: =IFERROR(OFFSET(BudgetHistory!$A$1,MATCH(YEAR(ValueDate),BudgetHistory!$A:$A,0)+MONTH($A55)-1,1),0) -> 3141719 | C55: =IFERROR(OFFSET(BudgetHistory!$A$1,MATCH(YEAR(ValueDate),BudgetHistory!$A:$A,0)+MONTH($A55)-1,2),0) -> 637645 | D55: =IFERROR(OFFSET(BudgetHistory!$A$1,MATCH(YEAR(ValueDate),BudgetHistory!$A:$A,0)+MONTH($A55)-1,3),0) -> 160074.6882 | E55: 3939438.688 | F55: =IF(MONTH(ValueDate)>=MONTH(A55),V72-(1-VLOOKUP(FundCodeS,Reference!$A:$E,5,0))*V71+M55,0) -> 1305503.28 | G55: =IF(MONTH(ValueDate)>=MONTH(A55),W72-(1-VLOOKUP(FundCodeS,Reference!$A:$E,5,0))*W71+N55,0) -> 923810.9 | I55: =IF(MONTH(ValueDate)>=MONTH(A55),X72-(1-VLOOKUP(FundCodeS,Reference!$A:$E,5,0))*X71+(AA72-(1-VLOOKUP(FundCodeS,Reference!$A:$E,5,0))*AA71)+O55,0) -> 52164.59 | J55: 2281478.77 | L55: x | M55: =IFERROR(OFFSET(BudgetHistory!$A$1,MATCH(YEAR(ValueDate),BudgetHistory!$A:$A,0)+MONTH($A55)-1,4),0) -> 0 | N55: =IFERROR(OFFSET(BudgetHistory!$A$1,MATCH(YEAR(ValueDate),BudgetHistory!$A:$A,0)+MONTH($A55)-1,5),0) -> 0 | O55: =IFERROR(OFFSET(BudgetHistory!$A$1,MATCH(YEAR(ValueDate),BudgetHistory!$A:$A,0)+MONTH($A55)-1,6),0) -> 0 | U55: CRecEnd | Y55: 0
A56: =TEXT(EOMONTH(DATE(YEAR(ValueDate),10,1),0),"MMM-yy") -> Oct-17 | B56: =IFERROR(OFFSET(BudgetHistory!$A$1,MATCH(YEAR(ValueDate),BudgetHistory!$A:$A,0)+MONTH($A56)-1,1),0) -> 3136378 | C56: =IFERROR(OFFSET(BudgetHistory!$A$1,MATCH(YEAR(ValueDate),BudgetHistory!$A:$A,0)+MONTH($A56)-1,2),0) -> 477630.9 | D56: =IFERROR(OFFSET(BudgetHistory!$A$1,MATCH(YEAR(ValueDate),BudgetHistory!$A:$A,0)+MONTH($A56)-1,3),0) -> 151181.65 | E56: 3765190.55 | F56: =IF(MONTH(ValueDate)>=MONTH(A56),V73-(1-VLOOKUP(FundCodeS,Reference!$A:$E,5,0))*V72+M56,0) -> 0 | G56: =IF(MONTH(ValueDate)>=MONTH(A56),W73-(1-VLOOKUP(FundCodeS,Reference!$A:$E,5,0))*W72+N56,0) -> 0 | I56: =IF(MONTH(ValueDate)>=MONTH(A56),X73-(1-VLOOKUP(FundCodeS,Reference!$A:$E,5,0))*X72+(AA73-(1-VLOOKUP(FundCodeS,Reference!$A:$E,5,0))*AA72)+O56,0) -> 0 | J56: =SUM(F56:I56) -> 0 | L56: x | M56: =IFERROR(OFFSET(BudgetHistory!$A$1,MATCH(YEAR(ValueDate),BudgetHistory!$A:$A,0)+MONTH($A56)-1,4),0) -> 0 | N56: =IFERROR(OFFSET(BudgetHistory!$A$1,MATCH(YEAR(ValueDate),BudgetHistory!$A:$A,0)+MONTH($A56)-1,5),0) -> 0 | O56: =IFERROR(OFFSET(BudgetHistory!$A$1,MATCH(YEAR(ValueDate),BudgetHistory!$A:$A,0)+MONTH($A56)-1,6),0) -> 0 | U56: CRecValD | Y56: 0
A57: =TEXT(EOMONTH(DATE(YEAR(ValueDate),11,1),0),"MMM-yy") -> Nov-17 | B57: =IFERROR(OFFSET(BudgetHistory!$A$1,MATCH(YEAR(ValueDate),BudgetHistory!$A:$A,0)+MONTH($A57)-1,1),0) -> 3178405 | C57: =IFERROR(OFFSET(BudgetHistory!$A$1,MATCH(YEAR(ValueDate),BudgetHistory!$A:$A,0)+MONTH($A57)-1,2),0) -> 1084695.667 | D57: =IFERROR(OFFSET(BudgetHistory!$A$1,MATCH(YEAR(ValueDate),BudgetHistory!$A:$A,0)+MONTH($A57)-1,3),0) -> 177860.7647 | E57: 4440961.432 | F57: =IF(MONTH(ValueDate)>=MONTH(A57),V74-(1-VLOOKUP(FundCodeS,Reference!$A:$E,5,0))*V73+M57,0) -> 0 | G57: =IF(MONTH(ValueDate)>=MONTH(A57),W74-(1-VLOOKUP(FundCodeS,Reference!$A:$E,5,0))*W73+N57,0) -> 0 | I57: =IF(MONTH(ValueDate)>=MONTH(A57),X74-(1-VLOOKUP(FundCodeS,Reference!$A:$E,5,0))*X73+(AA74-(1-VLOOKUP(FundCodeS,Reference!$A:$E,5,0))*AA73)+O57,0) -> 0 | J57: 0 | L57: x | M57: =IFERROR(OFFSET(BudgetHistory!$A$1,MATCH(YEAR(ValueDate),BudgetHistory!$A:$A,0)+MONTH($A57)-1,4),0) -> 0 | N57: =IFERROR(OFFSET(BudgetHistory!$A$1,MATCH(YEAR(ValueDate),BudgetHistory!$A:$A,0)+MONTH($A57)-1,5),0) -> 0 | O57: =IFERROR(OFFSET(BudgetHistory!$A$1,MATCH(YEAR(ValueDate),BudgetHistory!$A:$A,0)+MONTH($A57)-1,6),0) -> 0 | U57: OTHIncomeEnd | W57: =-SUMIFS(InTBYTD!$F:$F,InTBYTD!$C:$C,FundCodeS,InTBYTD!$A:$A,EOMONTH(ValueDate,-MONTH(ValueDate)),InTBYTD!$J:$J,"DI",InTBYTD!$K:$K,0) -> 6257.16 | Y57: 6257.16
A58: =TEXT(EOMONTH(DATE(YEAR(ValueDate),12,1),0),"MMM-yy") -> Dec-17 | B58: =IFERROR(OFFSET(BudgetHistory!$A$1,MATCH(YEAR(ValueDate),BudgetHistory!$A:$A,0)+MONTH($A58)-1,1),0) -> 3241337 | C58: =IFERROR(OFFSET(BudgetHistory!$A$1,MATCH(YEAR(ValueDate),BudgetHistory!$A:$A,0)+MONTH($A58)-1,2),0) -> 3831333.95 | D58: =IFERROR(OFFSET(BudgetHistory!$A$1,MATCH(YEAR(ValueDate),BudgetHistory!$A:$A,0)+MONTH($A58)-1,3),0) -> 213432.9176 | E58: 7286103.868 | F58: =IF(MONTH(ValueDate)>=MONTH(A58),V75-(1-VLOOKUP(FundCodeS,Reference!$A:$E,5,0))*V74+M58,0) -> 0 | G58: =IF(MONTH(ValueDate)>=MONTH(A58),W75-(1-VLOOKUP(FundCodeS,Reference!$A:$E,5,0))*W74+N58,0) -> 0 | I58: =IF(MONTH(ValueDate)>=MONTH(A58),X75-(1-VLOOKUP(FundCodeS,Reference!$A:$E,5,0))*X74+(AA75-(1-VLOOKUP(FundCodeS,Reference!$A:$E,5,0))*AA74)+O58,0) -> 0 | J58: 0 | L58: x | M58: =IFERROR(OFFSET(BudgetHistory!$A$1,MATCH(YEAR(ValueDate),BudgetHistory!$A:$A,0)+MONTH($A58)-1,4),0) -> 0 | N58: =IFERROR(OFFSET(BudgetHistory!$A$1,MATCH(YEAR(ValueDate),BudgetHistory!$A:$A,0)+MONTH($A58)-1,5),0) -> 0 | O58: =IFERROR(OFFSET(BudgetHistory!$A$1,MATCH(YEAR(ValueDate),BudgetHistory!$A:$A,0)+MONTH($A58)-1,6),0) -> 0 | U58: OTHIncomeEVal | W58: =-SUMIFS(InTBYTD!$F:$F,InTBYTD!$C:$C,FundCodeS,InTBYTD!$A:$A,ValueDate,InTBYTD!$J:$J,"DI",InTBYTD!$K:$K,0) -> 8010.81 | Y58: 8010.81
A59: 2H | B59: =SUM(B53:B58) -> 19079726 | C59: =SUM(C53:C58) -> 8472549.597 | D59: =SUM(D53:D58) -> 1102736.741 | E59: 32662986 | F59: =SUM(F53:F58) -> 3762876.56 | G59: =SUM(G53:G58) -> 4411499.28 | I59: =SUM(I53:I58) -> 347044.01 | J59: =SUM(J53:J58) -> 8521419.85 | U59: AmortAcreePLEnd | W59: =SUMIFS(InTBYTD!$F:$F,InTBYTD!$C:$C,FundCodeS,InTBYTD!$A:$A,EOMONTH(ValueDate,-MONTH(ValueDate)),InTBYTD!$G:$G,"PRINTI",InTBYTD!$H:$H,"PRAMCB")+SUMIFS(InTBYTD!$F:$F,InTBYTD!$C:$C,FundCodeS,InTBYTD!$A:$A,EOMONTH(ValueDate,-MONTH(ValueDate)),InTBYTD!$G:$G,"PRINTI",InTBYTD!$H:$H,"PRDSCB") -> 0
U60: AmortAcreePLVal | W60: =SUMIFS(InTBYTD!$F:$F,InTBYTD!$C:$C,FundCodeS,InTBYTD!$A:$A,ValueDate,InTBYTD!$G:$G,"PRINTI",InTBYTD!$H:$H,"PRAMCB")+SUMIFS(InTBYTD!$F:$F,InTBYTD!$C:$C,FundCodeS,InTBYTD!$A:$A,ValueDate,InTBYTD!$G:$G,"PRINTI",InTBYTD!$H:$H,"PRDSCB") -> 0
A61: TOTAL | B61: =+B51+B59 -> 37667837 | C61: =+C51+C59 -> 16756700.05 | D61: =D51+D59 -> 2062602.616 | E61: =SUM(B61:D61) -> 56487139.66 | F61: =F51+F59 -> 15022969.82 | G61: =G51+G59 -> 12625124.21 | I61: =I51+I59 -> 1553199.34 | J61: =J51+J59 -> 29201293.37
V62: RGValD | W62: DIValD | X62: INCValD | Y62: CPayValD | Z62: CRecValD | AA62: OTHIncomeEVal | AC62: qKLSESector | AD62: SectorName
A63: Sector Exposure | B63: FBMHS | C63: Portfolio (Bursa) | D63: Portfolio (Internal) | F63: Stocks on blackout list (NO BUYING) | L63: Sector Name | M63: qKLSESector | N63: qIntSector | O63: KLSEMV | P63: INTMV | U63: =DATE(YEAR(ValueDate)-1,12,31) -> 2016-12-31 | V63: =-SUMIFS(InTBYTD!$F:$F,InTBYTD!$C:$C,FundCodeS,InTBYTD!$A:$A,U63,InTBYTD!$J:$J,"RG",InTBYTD!$K:$K,"EQT") -> 89772892.94 | W63: =-SUMIFS(InTBYTD!$F:$F,InTBYTD!$C:$C,FundCodeS,InTBYTD!$A:$A,U63,InTBYTD!$J:$J,"DI",InTBYTD!$K:$K,"EQT")-SUMIFS(InTBYTD!$F:$F,InTBYTD!$C:$C,FundCodeS,InTBYTD!$A:$A,U63,InTBYTD!$H:$H,"PREWHT") -> 53644288.93 | X63: =-SUMIFS(InTBYTD!$F:$F,InTBYTD!$C:$C,FundCodeS,InTBYTD!$A:$A,U63,InTBYTD!$J:$J,"INC",InTBYTD!$K:$K,"CSH") -> 12293882.19 | Y63: =-SUMIFS(InTBYTD!$F:$F,InTBYTD!$C:$C,FundCodeS,InTBYTD!$A:$A,U63,InTBYTD!$G:$G,"PRINTI",InTBYTD!$H:$H,"PRINCB") -> 0 | AA63: =-SUMIFS(InTBYTD!$F:$F,InTBYTD!$C:$C,FundCodeS,InTBYTD!$A:$A,U63,InTBYTD!$J:$J,"DI",InTBYTD!$K:$K,0) -> 6257.16 | AC63: 1 | AD63: Closed-End Fund
A64: Automobile | B64: 0.0152 | C64: =IFERROR(O64/$D$11,0) -> 0 | D64: =IFERROR(P64/$D$11,0) -> 0.01651283516 | E64: 1 | F64: BURSA MALAYSIA BHD (non Shariah) | L64: Automobile | M64: N/A | N64: 101 | O64: =SUMIFS(InPos!$I:$I,InPos!$J:$J,M64,InPos!$B:$B,FundCodeS) -> 0 | P64: =SUMIFS(InPos!$I:$I,InPos!$L:$L,N64,InPos!$B:$B,FundCodeS) -> 11584366 | T64: 1 | U64: =EOMONTH(DATE(YEAR(ValueDate),1,1),0) -> 2017-01-31 | V64: =-SUMIFS(InTBYTD!$F:$F,InTBYTD!$C:$C,FundCodeS,InTBYTD!$A:$A,IF(MONTH(ValueDate)=T64,ValueDate,U64),InTBYTD!$J:$J,"RG",InTBYTD!$K:$K,"EQT") -> 90376808.47 | W64: =-SUMIFS(InTBYTD!$F:$F,InTBYTD!$C:$C,FundCodeS,InTBYTD!$A:$A,IF(MONTH(ValueDate)=T64,ValueDate,U64),InTBYTD!$J:$J,"DI",InTBYTD!$K:$K,"EQT")-SUMIFS(InTBYTD!$F:$F,InTBYTD!$C:$C,FundCodeS,InTBYTD!$A:$A,IF(MONTH(ValueDate)=T64,ValueDate,U64),InTBYTD!$H:$H,"PREWHT") -> 54377589.44 | X64: =-SUMIFS(InTBYTD!$F:$F,InTBYTD!$C:$C,FundCodeS,InTBYTD!$A:$A,IF(MONTH(ValueDate)=T64,ValueDate,U64),InTBYTD!$J:$J,"INC",InTBYTD!$K:$K,"CSH") -> 12418176.07 | Y64: =-SUMIFS(InTBYTD!$F:$F,InTBYTD!$C:$C,FundCodeS,InTBYTD!$A:$A,IF(MONTH(ValueDate)=T64,ValueDate,U64),InTBYTD!$G:$G,"PRINTI",InTBYTD!$H:$H,"PRINCB") -> 0 | AA64: =-SUMIFS(InTBYTD!$F:$F,InTBYTD!$C:$C,FundCodeS,InTBYTD!$A:$A,IF(MONTH(ValueDate)=T64,ValueDate,U64),InTBYTD!$J:$J,"DI",InTBYTD!$K:$K,0) -> 6709.9 | AC64: 97 | AD64: Collective Investment Scheme
A65: Building Materials | B65: 0.0122 | C65: 0 | D65: 0.01437985308 | E65: 2 | F65: AMWAY (MALAYSIA) HOLDINGS (non Shariah) | L65: Building Materials | M65: N/A | N65: 102 | O65: =SUMIFS(InPos!$I:$I,InPos!$J:$J,M65,InPos!$B:$B,FundCodeS) -> 0 | P65: =SUMIFS(InPos!$I:$I,InPos!$L:$L,N65,InPos!$B:$B,FundCodeS) -> 10088000 | T65: 2 | U65: =EOMONTH(DATE(YEAR(ValueDate),2,1),0) -> 2017-02-28 | V65: =-SUMIFS(InTBYTD!$F:$F,InTBYTD!$C:$C,FundCodeS,InTBYTD!$A:$A,IF(MONTH(ValueDate)=T65,ValueDate,U65),InTBYTD!$J:$J,"RG",InTBYTD!$K:$K,"EQT") -> 92899450.66 | W65: =-SUMIFS(InTBYTD!$F:$F,InTBYTD!$C:$C,FundCodeS,InTBYTD!$A:$A,IF(MONTH(ValueDate)=T65,ValueDate,U65),InTBYTD!$J:$J,"DI",InTBYTD!$K:$K,"EQT")-SUMIFS(InTBYTD!$F:$F,InTBYTD!$C:$C,FundCodeS,InTBYTD!$A:$A,IF(MONTH(ValueDate)=T65,ValueDate,U65),InTBYTD!$H:$H,"PREWHT") -> 55722127.74 | X65: =-SUMIFS(InTBYTD!$F:$F,InTBYTD!$C:$C,FundCodeS,InTBYTD!$A:$A,IF(MONTH(ValueDate)=T65,ValueDate,U65),InTBYTD!$J:$J,"INC",InTBYTD!$K:$K,"CSH") -> 12566053.61 | Y65: =-SUMIFS(InTBYTD!$F:$F,InTBYTD!$C:$C,FundCodeS,InTBYTD!$A:$A,IF(MONTH(ValueDate)=T65,ValueDate,U65),InTBYTD!$G:$G,"PRINTI",InTBYTD!$H:$H,"PRINCB") -> 0 | AA65: =-SUMIFS(InTBYTD!$F:$F,InTBYTD!$C:$C,FundCodeS,InTBYTD!$A:$A,IF(MONTH(ValueDate)=T65,ValueDate,U65),InTBYTD!$J:$J,"DI",InTBYTD!$K:$K,0) -> 6709.9 | AC65: 98 | AD65: Collective Investment Scheme
A66: Construction | B66: 0.0618 | C66: 0.09476351118 | D66: 0.09476351118 | E66: 3 | F66: AL-AQAR REIT | L66: Construction | M66: 2 | N66: 3 | O66: =SUMIFS(InPos!$I:$I,InPos!$J:$J,M66,InPos!$B:$B,FundCodeS) -> 66480116 | P66: =SUMIFS(InPos!$I:$I,InPos!$L:$L,N66,InPos!$B:$B,FundCodeS) -> 66480116 | T66: 3 | U66: =EOMONTH(DATE(YEAR(ValueDate),3,1),0) -> 2017-03-31 | V66: =-SUMIFS(InTBYTD!$F:$F,InTBYTD!$C:$C,FundCodeS,InTBYTD!$A:$A,IF(MONTH(ValueDate)=T66,ValueDate,U66),InTBYTD!$J:$J,"RG",InTBYTD!$K:$K,"EQT") -> 95466107.53 | W66: =-SUMIFS(InTBYTD!$F:$F,InTBYTD!$C:$C,FundCodeS,InTBYTD!$A:$A,IF(MONTH(ValueDate)=T66,ValueDate,U66),InTBYTD!$J:$J,"DI",InTBYTD!$K:$K,"EQT")-SUMIFS(InTBYTD!$F:$F,InTBYTD!$C:$C,FundCodeS,InTBYTD!$A:$A,IF(MONTH(ValueDate)=T66,ValueDate,U66),InTBYTD!$H:$H,"PREWHT") -> 57796754.94 | X66: =-SUMIFS(InTBYTD!$F:$F,InTBYTD!$C:$C,FundCodeS,InTBYTD!$A:$A,IF(MONTH(ValueDate)=T66,ValueDate,U66),InTBYTD!$J:$J,"INC",InTBYTD!$K:$K,"CSH") -> 12779709.97 | Y66: =-SUMIFS(InTBYTD!$F:$F,InTBYTD!$C:$C,FundCodeS,InTBYTD!$A:$A,IF(MONTH(ValueDate)=T66,ValueDate,U66),InTBYTD!$G:$G,"PRINTI",InTBYTD!$H:$H,"PRINCB") -> 0 | AA66: =-SUMIFS(InTBYTD!$F:$F,InTBYTD!$C:$C,FundCodeS,InTBYTD!$A:$A,IF(MONTH(ValueDate)=T66,ValueDate,U66),InTBYTD!$J:$J,"DI",InTBYTD!$K:$K,0) -> 7018.07 | AC66: 99 | AD66: Collective Investment Scheme
A67: Consumer | B67: 0.0088 | C67: 0.01854182274 | D67: 0.002028987577 | E67: 4 | F67: NCB HOLDINGS BHD | L67: Consumer | M67: 3 | N67: 4 | O67: =SUMIFS(InPos!$I:$I,InPos!$J:$J,M67,InPos!$B:$B,FundCodeS) -> 13007776 | P67: =SUMIFS(InPos!$I:$I,InPos!$L:$L,N67,InPos!$B:$B,FundCodeS) -> 1423410 | T67: 4 | U67: =EOMONTH(DATE(YEAR(ValueDate),4,1),0) -> 2017-04-30 | V67: =-SUMIFS(InTBYTD!$F:$F,InTBYTD!$C:$C,FundCodeS,InTBYTD!$A:$A,IF(MONTH(ValueDate)=T67,ValueDate,U67),InTBYTD!$J:$J,"RG",InTBYTD!$K:$K,"EQT") -> 96448747.34 | W67: =-SUMIFS(InTBYTD!$F:$F,InTBYTD!$C:$C,FundCodeS,InTBYTD!$A:$A,IF(MONTH(ValueDate)=T67,ValueDate,U67),InTBYTD!$J:$J,"DI",InTBYTD!$K:$K,"EQT")-SUMIFS(InTBYTD!$F:$F,InTBYTD!$C:$C,FundCodeS,InTBYTD!$A:$A,IF(MONTH(ValueDate)=T67,ValueDate,U67),InTBYTD!$H:$H,"PREWHT") -> 58337232.94 | X67: =-SUMIFS(InTBYTD!$F:$F,InTBYTD!$C:$C,FundCodeS,InTBYTD!$A:$A,IF(MONTH(ValueDate)=T67,ValueDate,U67),InTBYTD!$J:$J,"INC",InTBYTD!$K:$K,"CSH") -> 13006402.19 | Y67: =-SUMIFS(InTBYTD!$F:$F,InTBYTD!$C:$C,FundCodeS,InTBYTD!$A:$A,IF(MONTH(ValueDate)=T67,ValueDate,U67),InTBYTD!$G:$G,"PRINTI",InTBYTD!$H:$H,"PRINCB") -> 0 | AA67: =-SUMIFS(InTBYTD!$F:$F,InTBYTD!$C:$C,FundCodeS,InTBYTD!$A:$A,IF(MONTH(ValueDate)=T67,ValueDate,U67),InTBYTD!$J:$J,"DI",InTBYTD!$K:$K,0) -> 7092.28 | AC67: 2 | AD67: Construction
A68: Education | B68: 0 | C68: 0 | D68: 0 | E68: 5 | F68: BINTULU PORT HOLDINGS BHD | L68: Education | M68: N/A | N68: N/A | O68: =SUMIFS(InPos!$I:$I,InPos!$J:$J,M68,InPos!$B:$B,FundCodeS) -> 0 | P68: =SUMIFS(InPos!$I:$I,InPos!$L:$L,N68,InPos!$B:$B,FundCodeS) -> 0 | T68: 5 | U68: =EOMONTH(DATE(YEAR(ValueDate),5,1),0) -> 2017-05-31 | V68: =-SUMIFS(InTBYTD!$F:$F,InTBYTD!$C:$C,FundCodeS,InTBYTD!$A:$A,IF(MONTH(ValueDate)=T68,ValueDate,U68),InTBYTD!$J:$J,"RG",InTBYTD!$K:$K,"EQT") -> 98879365.92 | W68: =-SUMIFS(InTBYTD!$F:$F,InTBYTD!$C:$C,FundCodeS,InTBYTD!$A:$A,IF(MONTH(ValueDate)=T68,ValueDate,U68),InTBYTD!$J:$J,"DI",InTBYTD!$K:$K,"EQT")-SUMIFS(InTBYTD!$F:$F,InTBYTD!$C:$C,FundCodeS,InTBYTD!$A:$A,IF(MONTH(ValueDate)=T68,ValueDate,U68),InTBYTD!$H:$H,"PREWHT") -> 60625422.47 | X68: =-SUMIFS(InTBYTD!$F:$F,InTBYTD!$C:$C,FundCodeS,InTBYTD!$A:$A,IF(MONTH(ValueDate)=T68,ValueDate,U68),InTBYTD!$J:$J,"INC",InTBYTD!$K:$K,"CSH") -> 13250916.65 | Y68: =-SUMIFS(InTBYTD!$F:$F,InTBYTD!$C:$C,FundCodeS,InTBYTD!$A:$A,IF(MONTH(ValueDate)=T68,ValueDate,U68),InTBYTD!$G:$G,"PRINTI",InTBYTD!$H:$H,"PRINCB") -> 0 | AA68: =-SUMIFS(InTBYTD!$F:$F,InTBYTD!$C:$C,FundCodeS,InTBYTD!$A:$A,IF(MONTH(ValueDate)=T68,ValueDate,U68),InTBYTD!$J:$J,"DI",InTBYTD!$K:$K,0) -> 7600.3 | AC68: 36 | AD68: Consumer Discretionary
A69: Finance | B69: 0.0078 | C69: 0.03935275721 | D69: 0.03935275721 | F69: As at 16 May 2013 | L69: Finance | M69: 4 | N69: 6 | O69: =SUMIFS(InPos!$I:$I,InPos!$J:$J,M69,InPos!$B:$B,FundCodeS) -> 27607418 | P69: =SUMIFS(InPos!$I:$I,InPos!$L:$L,N69,InPos!$B:$B,FundCodeS) -> 27607418 | T69: 6 | U69: =EOMONTH(DATE(YEAR(ValueDate),6,1),0) -> 2017-06-30 | V69: =-SUMIFS(InTBYTD!$F:$F,InTBYTD!$C:$C,FundCodeS,InTBYTD!$A:$A,IF(MONTH(ValueDate)=T69,ValueDate,U69),InTBYTD!$J:$J,"RG",InTBYTD!$K:$K,"EQT") -> 101032986.2 | W69: =-SUMIFS(InTBYTD!$F:$F,InTBYTD!$C:$C,FundCodeS,InTBYTD!$A:$A,IF(MONTH(ValueDate)=T69,ValueDate,U69),InTBYTD!$J:$J,"DI",InTBYTD!$K:$K,"EQT")-SUMIFS(InTBYTD!$F:$F,InTBYTD!$C:$C,FundCodeS,InTBYTD!$A:$A,IF(MONTH(ValueDate)=T69,ValueDate,U69),InTBYTD!$H:$H,"PREWHT") -> 61857913.86 | X69: =-SUMIFS(InTBYTD!$F:$F,InTBYTD!$C:$C,FundCodeS,InTBYTD!$A:$A,IF(MONTH(ValueDate)=T69,ValueDate,U69),InTBYTD!$J:$J,"INC",InTBYTD!$K:$K,"CSH") -> 13498591.69 | Y69: =-SUMIFS(InTBYTD!$F:$F,InTBYTD!$C:$C,FundCodeS,InTBYTD!$A:$A,IF(MONTH(ValueDate)=T69,ValueDate,U69),InTBYTD!$G:$G,"PRINTI",InTBYTD!$H:$H,"PRINCB") -> 0 | AA69: =-SUMIFS(InTBYTD!$F:$F,InTBYTD!$C:$C,FundCodeS,InTBYTD!$A:$A,IF(MONTH(ValueDate)=T69,ValueDate,U69),InTBYTD!$J:$J,"DI",InTBYTD!$K:$K,0) -> 7702.99 | AC69: 3 | AD69: Consumer Prod
A70: Healthcare | B70: 0.0653 | C70: 0 | D70: 0 | L70: Healthcare | M70: 32 | N70: 32 | O70: =SUMIFS(InPos!$I:$I,InPos!$J:$J,M70,InPos!$B:$B,FundCodeS) -> 0 | P70: =SUMIFS(InPos!$I:$I,InPos!$L:$L,N70,InPos!$B:$B,FundCodeS) -> 0 | T70: 7 | U70: =EOMONTH(DATE(YEAR(ValueDate),7,1),0) -> 2017-07-31 | V70: =-SUMIFS(InTBYTD!$F:$F,InTBYTD!$C:$C,FundCodeS,InTBYTD!$A:$A,IF(MONTH(ValueDate)=T70,ValueDate,U70),InTBYTD!$J:$J,"RG",InTBYTD!$K:$K,"EQT") -> 101451979.9 | W70: =-SUMIFS(InTBYTD!$F:$F,InTBYTD!$C:$C,FundCodeS,InTBYTD!$A:$A,IF(MONTH(ValueDate)=T70,ValueDate,U70),InTBYTD!$J:$J,"DI",InTBYTD!$K:$K,"EQT")-SUMIFS(InTBYTD!$F:$F,InTBYTD!$C:$C,FundCodeS,InTBYTD!$A:$A,IF(MONTH(ValueDate)=T70,ValueDate,U70),InTBYTD!$H:$H,"PREWHT") -> 62332212.36 | X70: =-SUMIFS(InTBYTD!$F:$F,InTBYTD!$C:$C,FundCodeS,InTBYTD!$A:$A,IF(MONTH(ValueDate)=T70,ValueDate,U70),InTBYTD!$J:$J,"INC",InTBYTD!$K:$K,"CSH") -> 13657964.89 | Y70: =-SUMIFS(InTBYTD!$F:$F,InTBYTD!$C:$C,FundCodeS,InTBYTD!$A:$A,IF(MONTH(ValueDate)=T70,ValueDate,U70),InTBYTD!$G:$G,"PRINTI",InTBYTD!$H:$H,"PRINCB") -> 0 | AA70: =-SUMIFS(InTBYTD!$F:$F,InTBYTD!$C:$C,FundCodeS,InTBYTD!$A:$A,IF(MONTH(ValueDate)=T70,ValueDate,U70),InTBYTD!$J:$J,"DI",InTBYTD!$K:$K,0) -> 7942.75 | AC70: 30 | AD70: Consumer Staples
A71: Industrial Products | B71: 0 | C71: 0.1565916024 | D71: 0.05913955479 | E71: 6 | F71: BIMB HOLDINGS BHD | L71: Industrial Products | M71: 6 | N71: 103 | O71: =SUMIFS(InPos!$I:$I,InPos!$J:$J,M71,InPos!$B:$B,FundCodeS) -> 109854814 | P71: =SUMIFS(InPos!$I:$I,InPos!$L:$L,N71,InPos!$B:$B,FundCodeS) -> 41488590 | T71: 8 | U71: =EOMONTH(DATE(YEAR(ValueDate),8,1),0) -> 2017-08-31 | V71: =-SUMIFS(InTBYTD!$F:$F,InTBYTD!$C:$C,FundCodeS,InTBYTD!$A:$A,IF(MONTH(ValueDate)=T71,ValueDate,U71),InTBYTD!$J:$J,"RG",InTBYTD!$K:$K,"EQT") -> 103490359.5 | W71: =-SUMIFS(InTBYTD!$F:$F,InTBYTD!$C:$C,FundCodeS,InTBYTD!$A:$A,IF(MONTH(ValueDate)=T71,ValueDate,U71),InTBYTD!$J:$J,"DI",InTBYTD!$K:$K,"EQT")-SUMIFS(InTBYTD!$F:$F,InTBYTD!$C:$C,FundCodeS,InTBYTD!$A:$A,IF(MONTH(ValueDate)=T71,ValueDate,U71),InTBYTD!$H:$H,"PREWHT") -> 65345602.24 | X71: =-SUMIFS(InTBYTD!$F:$F,InTBYTD!$C:$C,FundCodeS,InTBYTD!$A:$A,IF(MONTH(ValueDate)=T71,ValueDate,U71),InTBYTD!$J:$J,"INC",InTBYTD!$K:$K,"CSH") -> 13793163.29 | Y71: =-SUMIFS(InTBYTD!$F:$F,InTBYTD!$C:$C,FundCodeS,InTBYTD!$A:$A,IF(MONTH(ValueDate)=T71,ValueDate,U71),InTBYTD!$G:$G,"PRINTI",InTBYTD!$H:$H,"PRINCB") -> 0 | AA71: =-SUMIFS(InTBYTD!$F:$F,InTBYTD!$C:$C,FundCodeS,InTBYTD!$A:$A,IF(MONTH(ValueDate)=T71,ValueDate,U71),InTBYTD!$J:$J,"DI",InTBYTD!$K:$K,0) -> 8010.81 | AC71: 39 | AD71: Consumer, Cyclical
A72: Infrastructure Project Company | B72: 0 | C72: 0.05874443811 | D72: 0 | F72: As at 4 Nov 2015 | L72: Infrastructure Project Company | M72: 7 | N72: N/A | O72: =SUMIFS(InPos!$I:$I,InPos!$J:$J,M72,InPos!$B:$B,FundCodeS) -> 41211401 | P72: =SUMIFS(InPos!$I:$I,InPos!$L:$L,N72,InPos!$B:$B,FundCodeS) -> 0 | T72: 9 | U72: =EOMONTH(DATE(YEAR(ValueDate),9,1),0) -> 2017-09-30 | V72: =-SUMIFS(InTBYTD!$F:$F,InTBYTD!$C:$C,FundCodeS,InTBYTD!$A:$A,IF(MONTH(ValueDate)=T72,ValueDate,U72),InTBYTD!$J:$J,"RG",InTBYTD!$K:$K,"EQT") -> 104795862.8 | W72: =-SUMIFS(InTBYTD!$F:$F,InTBYTD!$C:$C,FundCodeS,InTBYTD!$A:$A,IF(MONTH(ValueDate)=T72,ValueDate,U72),InTBYTD!$J:$J,"DI",InTBYTD!$K:$K,"EQT")-SUMIFS(InTBYTD!$F:$F,InTBYTD!$C:$C,FundCodeS,InTBYTD!$A:$A,IF(MONTH(ValueDate)=T72,ValueDate,U72),InTBYTD!$H:$H,"PREWHT") -> 66269413.14 | X72: =-SUMIFS(InTBYTD!$F:$F,InTBYTD!$C:$C,FundCodeS,InTBYTD!$A:$A,IF(MONTH(ValueDate)=T72,ValueDate,U72),InTBYTD!$J:$J,"INC",InTBYTD!$K:$K,"CSH") -> 13845327.88 | Y72: =-SUMIFS(InTBYTD!$F:$F,InTBYTD!$C:$C,FundCodeS,InTBYTD!$A:$A,IF(MONTH(ValueDate)=T72,ValueDate,U72),InTBYTD!$G:$G,"PRINTI",InTBYTD!$H:$H,"PRINCB") -> 0 | AA72: =-SUMIFS(InTBYTD!$F:$F,InTBYTD!$C:$C,FundCodeS,InTBYTD!$A:$A,IF(MONTH(ValueDate)=T72,ValueDate,U72),InTBYTD!$J:$J,"DI",InTBYTD!$K:$K,0) -> 8010.81 | AC72: 40 | AD72: Consumer, Non-cyclical
A73: Media | B73: 0 | C73: 0 | D73: 0 | L73: Media | M73: N/A | N73: 11 | O73: =SUMIFS(InPos!$I:$I,InPos!$J:$J,M73,InPos!$B:$B,FundCodeS) -> 0 | P73: =SUMIFS(InPos!$I:$I,InPos!$L:$L,N73,InPos!$B:$B,FundCodeS) -> 0 | T73: 10 | U73: =EOMONTH(DATE(YEAR(ValueDate),10,1),0) -> 2017-10-31 | V73: =-SUMIFS(InTBYTD!$F:$F,InTBYTD!$C:$C,FundCodeS,InTBYTD!$A:$A,IF(MONTH(ValueDate)=T73,ValueDate,U73),InTBYTD!$J:$J,"RG",InTBYTD!$K:$K,"EQT") -> 0 | W73: =-SUMIFS(InTBYTD!$F:$F,InTBYTD!$C:$C,FundCodeS,InTBYTD!$A:$A,IF(MONTH(ValueDate)=T73,ValueDate,U73),InTBYTD!$J:$J,"DI",InTBYTD!$K:$K,"EQT")-SUMIFS(InTBYTD!$F:$F,InTBYTD!$C:$C,FundCodeS,InTBYTD!$A:$A,IF(MONTH(ValueDate)=T73,ValueDate,U73),InTBYTD!$H:$H,"PREWHT") -> 0 | X73: =-SUMIFS(InTBYTD!$F:$F,InTBYTD!$C:$C,FundCodeS,InTBYTD!$A:$A,IF(MONTH(ValueDate)=T73,ValueDate,U73),InTBYTD!$J:$J,"INC",InTBYTD!$K:$K,"CSH") -> 0 | Y73: =-SUMIFS(InTBYTD!$F:$F,InTBYTD!$C:$C,FundCodeS,InTBYTD!$A:$A,IF(MONTH(ValueDate)=T73,ValueDate,U73),InTBYTD!$G:$G,"PRINTI",InTBYTD!$H:$H,"PRINCB") -> 0 | AA73: =-SUMIFS(InTBYTD!$F:$F,InTBYTD!$C:$C,FundCodeS,InTBYTD!$A:$A,IF(MONTH(ValueDate)=T73,ValueDate,U73),InTBYTD!$J:$J,"DI",InTBYTD!$K:$K,0) -> 0 | AC73: 80 | AD73: Currency Forward
A74: Oil & Gas | B74: 0.1202 | C74: 0 | D74: 0.1014159011 | E74: 7 | F74: PERISAI PETROLEUM TECHNOLOGY BHD | L74: Oil & Gas | M74: N/A | N74: 12 | O74: =SUMIFS(InPos!$I:$I,InPos!$J:$J,M74,InPos!$B:$B,FundCodeS) -> 0 | P74: =SUMIFS(InPos!$I:$I,InPos!$L:$L,N74,InPos!$B:$B,FundCodeS) -> 71147014.13 | T74: 11 | U74: =EOMONTH(DATE(YEAR(ValueDate),11,1),0) -> 2017-11-30 | V74: =-SUMIFS(InTBYTD!$F:$F,InTBYTD!$C:$C,FundCodeS,InTBYTD!$A:$A,IF(MONTH(ValueDate)=T74,ValueDate,U74),InTBYTD!$J:$J,"RG",InTBYTD!$K:$K,"EQT") -> 0 | W74: =-SUMIFS(InTBYTD!$F:$F,InTBYTD!$C:$C,FundCodeS,InTBYTD!$A:$A,IF(MONTH(ValueDate)=T74,ValueDate,U74),InTBYTD!$J:$J,"DI",InTBYTD!$K:$K,"EQT")-SUMIFS(InTBYTD!$F:$F,InTBYTD!$C:$C,FundCodeS,InTBYTD!$A:$A,IF(MONTH(ValueDate)=T74,ValueDate,U74),InTBYTD!$H:$H,"PREWHT") -> 0 | X74: =-SUMIFS(InTBYTD!$F:$F,InTBYTD!$C:$C,FundCodeS,InTBYTD!$A:$A,IF(MONTH(ValueDate)=T74,ValueDate,U74),InTBYTD!$J:$J,"INC",InTBYTD!$K:$K,"CSH") -> 0 | Y74: =-SUMIFS(InTBYTD!$F:$F,InTBYTD!$C:$C,FundCodeS,InTBYTD!$A:$A,IF(MONTH(ValueDate)=T74,ValueDate,U74),InTBYTD!$G:$G,"PRINTI",InTBYTD!$H:$H,"PRINCB") -> 0 | AA74: =-SUMIFS(InTBYTD!$F:$F,InTBYTD!$C:$C,FundCodeS,InTBYTD!$A:$A,IF(MONTH(ValueDate)=T74,ValueDate,U74),InTBYTD!$J:$J,"DI",InTBYTD!$K:$K,0) -> 0 | AC74: 41 | AD74: Diversified
A75: Plantation | B75: 0.1607 | C75: 0.06099597272 | D75: 0.1548585536 | F75: As at 5 Oct 2016 | L75: Plantation | M75: 9 | N75: 13 | O75: =SUMIFS(InPos!$I:$I,InPos!$J:$J,M75,InPos!$B:$B,FundCodeS) -> 42790936 | P75: =SUMIFS(InPos!$I:$I,InPos!$L:$L,N75,InPos!$B:$B,FundCodeS) -> 108639016 | T75: 12 | U75: =EOMONTH(DATE(YEAR(ValueDate),12,1),0) -> 2017-12-31 | V75: =-SUMIFS(InTBYTD!$F:$F,InTBYTD!$C:$C,FundCodeS,InTBYTD!$A:$A,IF(MONTH(ValueDate)=T75,ValueDate,U75),InTBYTD!$J:$J,"RG",InTBYTD!$K:$K,"EQT") -> 0 | W75: =-SUMIFS(InTBYTD!$F:$F,InTBYTD!$C:$C,FundCodeS,InTBYTD!$A:$A,IF(MONTH(ValueDate)=T75,ValueDate,U75),InTBYTD!$J:$J,"DI",InTBYTD!$K:$K,"EQT")-SUMIFS(InTBYTD!$F:$F,InTBYTD!$C:$C,FundCodeS,InTBYTD!$A:$A,IF(MONTH(ValueDate)=T75,ValueDate,U75),InTBYTD!$H:$H,"PREWHT") -> 0 | X75: =-SUMIFS(InTBYTD!$F:$F,InTBYTD!$C:$C,FundCodeS,InTBYTD!$A:$A,IF(MONTH(ValueDate)=T75,ValueDate,U75),InTBYTD!$J:$J,"INC",InTBYTD!$K:$K,"CSH") -> 0 | Y75: =-SUMIFS(InTBYTD!$F:$F,InTBYTD!$C:$C,FundCodeS,InTBYTD!$A:$A,IF(MONTH(ValueDate)=T75,ValueDate,U75),InTBYTD!$G:$G,"PRINTI",InTBYTD!$H:$H,"PRINCB") -> 0 | AA75: =-SUMIFS(InTBYTD!$F:$F,InTBYTD!$C:$C,FundCodeS,InTBYTD!$A:$A,IF(MONTH(ValueDate)=T75,ValueDate,U75),InTBYTD!$J:$J,"DI",InTBYTD!$K:$K,0) -> 0 | AC75: 34 | AD75: Energy
A76: Properties | B76: 0.0396 | C76: 0.0341161248 | D76: 0.05398251332 | L76: Properties | M76: 11 | N76: 16 | O76: =SUMIFS(InPos!$I:$I,InPos!$J:$J,M76,InPos!$B:$B,FundCodeS) -> 23933726.24 | P76: =SUMIFS(InPos!$I:$I,InPos!$L:$L,N76,InPos!$B:$B,FundCodeS) -> 37870734.24 | AC76: 4 | AD76: Finance
A77: Real Estate | B77: 0.0054 | C77: 0.01986638852 | D77: 0 | L77: Real Estate | M77: 44 | N77: 44 | O77: =SUMIFS(InPos!$I:$I,InPos!$J:$J,M77,InPos!$B:$B,FundCodeS) -> 13937008 | P77: =SUMIFS(InPos!$I:$I,InPos!$L:$L,N77,InPos!$B:$B,FundCodeS) -> 0 | AC77: 31 | AD77: Financials
A78: Rubber Gloves | B78: 0 | C78: 0 | D78: 0.02607680731 | L78: Rubber Gloves | M78: N/A | N78: 104 | O78: =SUMIFS(InPos!$I:$I,InPos!$J:$J,M78,InPos!$B:$B,FundCodeS) -> 0 | P78: =SUMIFS(InPos!$I:$I,InPos!$L:$L,N78,InPos!$B:$B,FundCodeS) -> 18293847 | AC78: 95 | AD78: Fixed Deposits
A79: Technology | B79: 0 | C79: 0 | D79: 0 | L79: Technology | M79: 12 | N79: 46 | O79: =SUMIFS(InPos!$I:$I,InPos!$J:$J,M79,InPos!$B:$B,FundCodeS) -> 0 | P79: =SUMIFS(InPos!$I:$I,InPos!$L:$L,N79,InPos!$B:$B,FundCodeS) -> 0 | AC79: 45 | AD79: Food, Beverage & Tobacco
A80: Transportations & Logistics | B80: 0 | C80: 0 | D80: 0.08373196299 | L80: Transportations & Logistics | M80: N/A | N80: 105 | O80: =SUMIFS(InPos!$I:$I,InPos!$J:$J,M80,InPos!$B:$B,FundCodeS) -> 0 | P80: =SUMIFS(InPos!$I:$I,InPos!$L:$L,N80,InPos!$B:$B,FundCodeS) -> 58741076 | AC80: 43 | AD80: Funds
A81: Telecommunications | B81: 0.2649 | C81: 0 | D81: 0.229777743 | L81: Telecommunications | M81: 37 | N81: 106 | O81: =SUMIFS(InPos!$I:$I,InPos!$J:$J,M81,InPos!$B:$B,FundCodeS) -> 0 | P81: =SUMIFS(InPos!$I:$I,InPos!$L:$L,N81,InPos!$B:$B,FundCodeS) -> 161197604.6 | AC81: 32 | AD81: Health Care
A82: Trading & Service | B82: 0.0565 | C82: 0.4837078512 | D82: 0 | L82: Trdg/Service | M82: 13 | N82: 21 | O82: =SUMIFS(InPos!$I:$I,InPos!$J:$J,M82,InPos!$B:$B,FundCodeS) -> 339338988.8 | P82: =SUMIFS(InPos!$I:$I,InPos!$L:$L,N82,InPos!$B:$B,FundCodeS) -> 0 | AC82: 47 | AD82: Highway
A83: Utilities | B83: 0.1816 | C83: 0 | D83: 0.09065948857 | L83: Utilities | M83: 42 | N83: 42 | O83: =SUMIFS(InPos!$I:$I,InPos!$J:$J,M83,InPos!$B:$B,FundCodeS) -> 0 | P83: =SUMIFS(InPos!$I:$I,InPos!$L:$L,N83,InPos!$B:$B,FundCodeS) -> 63600992 | AC83: 5 | AD83: Hotels
AC84: 6 | AD84: Industrial Prod
A85: Total | B85: =SUM(B64:B84) -> 1 | C85: =SUM(C64:C84) -> 0.9666804689 | D85: =SUM(D64:D84) -> 0.9666804689 | AC85: 38 | AD85: Industrials
AC86: 35 | AD86: Information Technology
AC87: 7 | AD87: Infrastructure Project Company
AC88: 18 | AD88: Loan
AC89: 33 | AD89: Materials
AC90: 16 | AD90: Mesdaq
AC91: 8 | AD91: Mining
AC92: 96 | AD92: Money Market Placement
AC93: 0 | AD93: Others
AC94: 9 | AD94: Plantation
AC95: 10 | AD95: PN4-Condition
AC96: 46 | AD96: Power
AC97: 11 | AD97: Properties
AC98: 44 | AD98: Real Estate
AC99: 12 | AD99: Technology
AC100: 37 | AD100: Telecommunication Services
AC101: 13 | AD101: Trdg/Service
AC102: 14 | AD102: Trust
AC103: 15 | AD103: Unlisted Stock
AC104: 42 | AD104: Utilities
AC105: 17 | AD105: Warrant

Sheet KWAP Portfolio Valuation
A2: ="PORTFOLIO VALUATION REPORT - KWAP AS AT " & TEXT(ValueDate,"dd-mmm-yy") -> PORTFOLIO VALUATION REPORT - KWAP AS AT 15-Sep-17
A4: qFundCode | B4: KWAP
A6: Row Labels | B6: Stock | C6: Quantity | D6: Cost Per Share | E6: Total Cost | F6: Price | G6: Total Market Value | H6: Unrealised Gain/(Loss) | I6: % Gain/(Loss) | J6: % Port NAV | K6: Div Yield (Cost) | L6: Div Yield (Mkt) | M6: Beta | N6: Fwd P/E | O6: Fwd P/B | P6: RSI_14D
A7: Automobile
A8: 1 | B8: UMW HOLDINGS BHD | C8: 2117800 | D8: 11.6983 | E8: 24774626.05 | F8: 5.47 | G8: 11584366 | H8: -13190260.05 | I8: -53.24100563 | J8: 1.651283516 | K8: 1.025790072 | L8: 2.193784278 | M8: 1.190747 | N8: 30.45226131 | O8: 1.499417603 | P8: 68.29014
A9: BUILDING MATERIALS
A10: 2 | B10: LAFARGE MALAYSIA BHD | C10: 1552000 | D10: 9.3961 | E10: 14582781.97 | F10: 6.5 | G10: 10088000 | H10: -4494781.97 | I10: -30.82252741 | J10: 1.437985308 | K10: 1.883760284 | L10: 2.723076923 | M10: 0.9728875 | N10: 34.13612565 | O10: 1.811230714 | P10: 42.68958
A11: Construction
A12: 3 | B12: GAMUDA BHD | C12: 7456700 | D12: 5.3231 | E12: 39693062.4 | F12: 5.38 | G12: 40117046 | H12: 423983.6 | I12: 1.068155427 | J12: 5.718449916 | K12: 2.273111533 | L12: 2.249070632 | M12: 1.025594 | N12: 17.94964029 | O12: 1.689133219 | P12: 55.5685
A13: 4 | B13: IJM CORPORATION BHD | C13: 7708500 | D13: 3.4409 | E13: 26523815.8 | F13: 3.42 | G13: 26363070 | H13: -160745.8 | I13: -0.6060432677 | J13: 3.757901203 | K13: 2.499346101 | L13: 2.514619883 | M13: 1.074726 | N13: 20.18072289 | O13: 1.319974312 | P13: 54.06523
A14: Consumer
A15: 5 | B15: ZHULIAN CORPORATION BHD | C15: 837300 | D15: 1.7027 | E15: 1425656.63 | F15: 1.7 | G15: 1423410 | H15: -2246.63 | I15: -0.1575856313 | J15: 0.2028987577 | K15: 0 | L15: 0 | M15: 0 | N15: 0 | O15: 0 | P15: 0
A16: Finance
A17: 6 | B17: BIMB HOLDINGS BHD | C17: 4176200 | D17: 4.261 | E17: 17794978.64 | F17: 4.29 | G17: 17915898 | H17: 120919.36 | I17: 0.6795139373 | J17: 2.553806315 | K17: 3.262145036 | L17: 3.24009324 | M17: 0.4749835 | N17: 11.60949868 | O17: 1.800272622 | P17: 46.74493
A18: 7 | B18: SYARIKAT TAKAFUL MALAYSIA BHD | C18: 2550400 | D18: 4.0255 | E18: 10266583.65 | F18: 3.8 | G18: 9691520 | H18: -575063.65 | I18: -5.601314611 | J18: 1.381469406 | K18: 2.732579804 | L18: 2.894736842 | M18: 0.6142833 | N18: 16.59663866 | O18: 4.453532478 | P18: 49.69296
A19: INDUSTRIAL PRODUCTS
A20: 8 | B20: CB INDUSTRIAL PRODUCT HOLDING BHD | C20: 6472000 | D20: 2.1492 | E20: 13909672.4 | F20: 1.93 | G20: 12490960 | H20: -1418712.4 | I20: -10.19946667 | J20: 1.78051318 | K20: 3.675786339 | L20: 4.093264249 | M20: 0.555746 | N20: 11.38297872 | O20: 1.553698898 | P20: 55.00502
A21: 9 | B21: LOTTE CHEMICAL TITAN HOLDING BERHAD | C21: 1550000 | D21: 6.1676 | E21: 9559809.13 | F21: 5.66 | G21: 8773000 | H21: -786809.13 | I21: -8.230385349 | J21: 1.250539761 | K21: 0 | L21: 0 | M21: 0 | N21: 0 | O21: 0 | P21: 0
A22: 10 | B22: SERBA DINAMIK HOLDINGS BERHAD | C22: 4824600 | D22: 2.073 | E22: 10001489.07 | F22: 2.25 | G22: 10855350 | H22: 853860.93 | I22: 8.537338031 | J22: 1.547366556 | K22: 2.556681138 | L22: 2.355555556 | M22: 0 | N22: 9.444444444 | O22: 0 | P22: 0
A23: 11 | B23: TA ANN HOLDINGS BHD | C23: 2546000 | D23: 3.853 | E23: 9809714.5 | F23: 3.68 | G23: 9369280 | H23: -440434.5 | I23: -4.489778984 | J23: 1.335535982 | K23: 3.789255126 | L23: 3.967391304 | M23: 0.3534782 | N23: 11.75159236 | O23: 1.29128265 | P23: 29.41634
A24: OIL & GAS
A25: 12 | B25: DAYANG ENTERPRISE HOLDINGS BERHAD | C25: 5747300 | D25: 2.9701 | E25: 17070108.03 | F25: 0.99 | G25: 5689827 | H25: -11380281.03 | I25: -66.66789109 | J25: 0.8110515098 | K25: 0 | L25: 0 | M25: 1.829535 | N25: 13.46666667 | O25: 0.7553013005 | P25: 46.721
A26: 13 | B26: DIALOG GROUP BHD | C26: 3444096 | D26: 1.8975 | E26: 6535081.37 | F26: 2.03 | G26: 6991514.88 | H26: 456433.51 | I26: 6.984358482 | J26: 0.9965994923 | K26: 1.212121212 | L26: 1.133004926 | M26: 0.8455953 | N26: 28.13559322 | O26: 3.287836162 | P26: 60.33117
A27: 14 | B27: GAS MALAYSIA BHD | C27: 2970300 | D27: 3.2517 | E27: 9658418.74 | F27: 2.97 | G27: 8821791 | H27: -836627.74 | I27: -8.662160572 | J27: 1.257494632 | K27: 3.659624197 | L27: 4.006734007 | M27: 0.6678543 | N27: 23.125 | O27: 3.725525994 | P27: 60.54285
A28: 15 | B28: PETRONAS CHEMICALS GROUP BHD | C28: 2235300 | D28: 7.2781 | E28: 16268702.37 | F28: 7.33 | G28: 16384749 | H28: 116046.63 | I28: 0.713312146 | J28: 2.335549994 | K28: 2.885368434 | L28: 2.864938608 | M28: 1.149077 | N28: 17.67554479 | O28: 2.159603636 | P28: 49.30454
A29: 16 | B29: PETRONAS DAGANGAN BHD | C29: 4400 | D29: 23.8928 | E29: 105128.4 | F29: 24.22 | G29: 106568 | H29: 1439.6 | I29: 1.369373071 | J29: 0.01519064416 | K29: 0 | L29: 0 | M29: 0 | N29: 0 | O29: 0 | P29: 0
A30: 17 | B30: PETRONAS GAS BHD | C30: 901600 | D30: 20.7663 | E30: 18722851.18 | F30: 18.58 | G30: 16751728 | H30: -1971123.18 | I30: -10.5279007 | J30: 2.387860701 | K30: 3.048207914 | L30: 3.406889128 | M30: 0.7750341 | N30: 22.02672606 | O30: 3.270664316 | P30: 35.71591
A31: 18 | B31: SAPURA ENERGY BERHAD | C31: 8441100 | D31: 4.1439 | E31: 34979453.13 | F31: 1.63 | G31: 13758993 | H31: -21220460.13 | I31: -60.66549998 | J31: 1.961263857 | K31: 0.2413185646 | L31: 0.6134969325 | M31: 2.41367 | N31: 41.36363636 | O31: 0.8614427657 | P31: 47.01674
A32: 19 | B32: UMW OIL & GAS CORPORATION BHD | C32: 8522075 | D32: 2.614 | E32: 22277113.62 | F32: 0.31 | G32: 2641843.25 | H32: -19635270.37 | I32: -88.14099845 | J32: 0.3765792803 | K32: 0 | L32: 0 | M32: 1.949794 | N32: -25.70909091 | O32: 0.6062793844 | P32: 32.43101
A33: Plantation
A34: 20 | B34: FELDA GLOBAL VENTURES HOLDINGS BHD | C34: 3060600 | D34: 4.3422 | E34: 13289665.95 | F34: 1.73 | G34: 5294838 | H34: -7994827.95 | I34: -60.15823107 | J34: 0.7547481416 | K34: 0.7830132191 | L34: 1.965317919 | M34: 1.72594 | N34: 0 | O34: 1.173279428 | P34: 61.25655
A35: 21 | B35: HAP SENG PLANTATIONS HOLDING BHD | C35: 4509500 | D35: 2.613 | E35: 11783472.7 | F35: 2.65 | G35: 11950175 | H35: 166702.3 | I35: 1.414712829 | J35: 1.703427446 | K35: 4.17145044 | L35: 4.113207547 | M35: 0.5421156 | N35: 14.97109827 | O35: 1.015229835 | P35: 40.31647
A36: 22 | B36: IOI CORPORATION BHD | C36: 1420000 | D36: 4.5418 | E36: 6449359.78 | F36: 4.66 | G36: 6617200 | H36: 167840.22 | I36: 2.602432268 | J36: 0.9432430987 | K36: 0 | L36: 0 | M36: 0 | N36: 0 | O36: 0 | P36: 0
A37: 23 | B37: KUALA LUMPUR KEPONG BHD | C37: 367700 | D37: 23.8625 | E37: 8774242.29 | F37: 24.6 | G37: 9045420 | H37: 271177.71 | I37: 3.090611144 | J37: 1.289371636 | K37: 2.41382923 | L37: 2.341463415 | M37: 0.9346795 | N37: 21.49122807 | O37: 2.338805209 | P37: 51.76749
A38: 24 | B38: SIME DARBY BHD | C38: 7157400 | D38: 9.3813 | E38: 67145466.81 | F38: 9.2 | G38: 65848080 | H38: -1297386.81 | I38: -1.932203128 | J38: 9.386258089 | K38: 2.66487587 | L38: 2.717391304 | M38: 1.245413 | N38: 26.46376812 | O38: 1.678944258 | P38: 57.54497
A39: 25 | B39: SARAWAK OIL PALMS BERHAD | C39: 2239900 | D39: 3.7669 | E39: 8437464.12 | F39: 3.97 | G39: 8892403 | H39: 454938.88 | I39: 5.391891136 | J39: 1.267559959 | K39: 1.460086543 | L39: 1.385390428 | M39: 0.8427175 | N39: 14.65587045 | O39: 1.101385646 | P39: 36.46883
A40: 26 | B40: UNITED PLANTATIONS BHD | C40: 36700 | D40: 18.5878 | E40: 682171.12 | F40: 27 | G40: 990900 | H40: 308728.88 | I40: 45.25680888 | J40: 0.1412469907 | K40: 0 | L40: 0 | M40: 0.3747009 | N40: 0 | O40: 2.445419492 | P40: 62.81808
A41: Property
A42: 27 | B42: AXIS REAL ESTATE INVESTMENT TRUST | C42: 8710630 | D42: 1.6448 | E42: 14327639.27 | F42: 1.6 | G42: 13937008 | H42: -390631.27 | I42: -2.726417539 | J42: 1.986638852 | K42: 5.289396887 | L42: 5.4375 | M42: 0.5912741 | N42: 18.63636364 | O42: 1.301164686 | P42: 43.25517
A43: 28 | B43: MAH SING GROUP BHD | C43: 11801962 | D43: 1.6173 | E43: 19087894.6 | F43: 1.52 | G43: 17938982.24 | H43: -1148912.36 | I43: -6.019062783 | J43: 2.557096838 | K43: 3.895381191 | L43: 4.144736842 | M43: 0.6388163 | N43: 9.586206897 | O43: 1.018547289 | P43: 30.50273
A44: 29 | B44: NAIM HOLDINGS BERHAD | C44: 5037600 | D44: 2.2919 | E44: 11545425.23 | F44: 1.19 | G44: 5994744 | H44: -5550681.23 | I44: -48.07688863 | J44: 0.8545156421 | K44: 2.617915267 | L44: 5.042016807 | M44: 1.058645 | N44: 6.652173913 | O44: 0.2781672983 | P44: 41.85653
A45: RUBBER GLOVES
A46: 30 | B46: HARTALEGA HOLDINGS BHD | C46: 339300 | D46: 6.8358 | E46: 2319391.42 | F46: 6.49 | G46: 2202057 | H46: -117334.42 | I46: -5.058845134 | J46: 0.3138903265 | K46: 0 | L46: 0 | M46: 0 | N46: 0 | O46: 0 | P46: 0
A47: 31 | B47: KOSSAN RUBBER INDUSTRIES BERHAD | C47: 871000 | D47: 6.8965 | E47: 6006853.98 | F47: 6.78 | G47: 5905380 | H47: -101473.98 | I47: -1.689303258 | J47: 0.8417773273 | K47: 0 | L47: 0 | M47: 0 | N47: 0 | O47: 0 | P47: 0
A48: 32 | B48: SUPERMAX CORPORATION BHD | C48: 3313500 | D48: 2.1725 | E48: 7198643.88 | F48: 1.81 | G48: 5997435 | H48: -1201208.88 | I48: -16.68659959 | J48: 0.8548992284 | K48: 2.623705409 | L48: 3.149171271 | M48: 0.3690404 | N48: 12.5 | O48: 1.255425335 | P48: 35.2367
A49: 33 | B49: TOP GLOVE CORPORATION BHD | C49: 757500 | D49: 5.5491 | E49: 4203414.56 | F49: 5.53 | G49: 4188975 | H49: -14439.56 | I49: -0.3435197693 | J49: 0.5971138487 | K49: 0 | L49: 0 | M49: 0 | N49: 0 | O49: 0 | P49: 0
A50: TELECOMMUNICATIONS
A51: 34 | B51: AXIATA GROUP BERHAD | C51: 9552618 | D51: 6.6051 | E51: 63095802.56 | F51: 5.09 | G51: 48622825.62 | H51: -14472976.94 | I51: -22.93809787 | J51: 6.930898977 | K51: 1.63510015 | L51: 2.121807466 | M51: 1.245617 | N51: 24.57894737 | O51: 1.776732413 | P51: 50.51622
A52: 35 | B52: DIGI.COM BHD | C52: 8462300 | D52: 5.5784 | E52: 47206000.74 | F52: 4.87 | G52: 41211401 | H52: -5994599.74 | I52: -12.69880872 | J52: 5.874443811 | K52: 3.746594005 | L52: 4.291581109 | M52: 0.9663154 | N52: 24.19811321 | O52: 76.8111982 | P52: 65.59618
A53: 36 | B53: MAXIS BHD | C53: 7797200 | D53: 6.5397 | E53: 50991081.04 | F53: 5.76 | G53: 44911872 | H53: -6079209.04 | I53: -11.92210268 | J53: 6.401924275 | K53: 3.088826705 | L53: 3.506944444 | M53: 0.7333532 | N53: 25.72 | O53: 10.22861655 | P53: 64.6093
A54: 37 | B54: TELEKOM MALAYSIA BHD | C54: 4126600 | D54: 6.3319 | E54: 26129296.52 | F54: 6.41 | G54: 26451506 | H54: 322209.48 | I54: 1.233134921 | J54: 3.770507237 | K54: 3.269160915 | L54: 3.229329173 | M54: 0.6997919 | N54: 27.97356828 | O54: 3.102232056 | P54: 70.6131
A55: TRANSPORTATIONS & LOGISTICS
A56: 38 | B56: BINTULU PORT HOLDINGS BHD | C56: 468000 | D56: 6.7953 | E56: 3180207.84 | F56: 6.01 | G56: 2812680 | H56: -367527.84 | I56: -11.55672392 | J56: 0.4009310583 | K56: 3.826173973 | L56: 4.326123128 | M56: 0 | N56: 18.3030303 | O56: 2.40205553 | P56: 38.54703
A57: 39 | B57: COASTAL CONTRACTS BHD | C57: 5522500 | D57: 3.7417 | E57: 20663720.6 | F57: 1.24 | G57: 6847900 | H57: -13815820.6 | I57: -66.86027588 | J57: 0.9761280324 | K57: 0.2672581981 | L57: 0.8064516129 | M57: 1.329127 | N57: 26.66666667 | O57: 0.4223022908 | P57: 31.81481
A58: 40 | B58: MALAYSIAN BULK CARRIERS BERHAD | C58: 1665600 | D58: 1.4171 | E58: 2360280.47 | F58: 0.815 | G58: 1357464 | H58: -1002816.47 | I58: -42.48717399 | J58: 0.1934985416 | K58: 0 | L58: 0 | M58: 1.247262 | N58: 42.35294118 | O58: 0.7063200224 | P58: 48.61525
A59: 41 | B59: MISC BHD | C59: 2867800 | D59: 7.8936 | E59: 22637164.86 | F59: 7.36 | G59: 21107008 | H59: -1530156.86 | I59: -6.759489845 | J59: 3.008680353 | K59: 3.078443296 | L59: 3.301630435 | M59: 0.8668554 | N59: 15.93548387 | O59: 0.8689382182 | P59: 46.8539
A60: 42 | B60: WESTPORTS HOLDINGS BHD | C60: 6859800 | D60: 4.1345 | E60: 28361608.82 | F60: 3.88 | G60: 26616024 | H60: -1745584.82 | I60: -6.15474542 | J60: 3.793958314 | K60: 3.458701173 | L60: 3.68556701 | M60: 0.7094789 | N60: 19.94845361 | O60: 6.378529724 | P60: 31.82097
A61: Utilities
A62: 43 | B62: TENAGA NASIONAL BHD | C62: 4368200 | D62: 14.411 | E62: 62950305.82 | F62: 14.56 | G62: 63600992 | H62: 650686.18 | I62: 1.033650546 | J62: 9.065948857 | K62: 3.30997155 | L62: 3.276098901 | M62: 1.022462 | N62: 10.31531532 | O62: 1.429510708 | P62: 62.93771
B200: TOTAL | E200: =SUM(E1:E199) -> 812785622.1 | G200: =SUM(G1:G199) -> 678162184 | H200: =SUM(H1:H199) -> -134623438.1 | I200: =IFERROR(H200/E200*100,0) -> -16.56321598 | J200: =SUM(J1:J199) -> 96.66804689 | K200: =IFERROR(SUMPRODUCT(K1:K199,E1:E199)/E200,0) -> 2.403011147 | L200: =IFERROR(SUMPRODUCT(L1:L199,G1:G199)/G200,0) -> 2.880035076 | M200: =IFERROR(SUMPRODUCT(M1:M199,$J$1:$J$199)/100,0) -> 0.8798272582 | N200: =IFERROR(SUMPRODUCT(N1:N199,$G$1:$G$199)/$G$200,0) -> 19.17706614 | O200: =IFERROR(SUMPRODUCT(O1:O199,$G$1:$G$199)/$G$200,0) -> 6.93012137
B202: CASH | G202: =SUMIFS(InPosCsh!J:J,InPosCsh!C:C,B4,InPosCsh!B:B,"CSH")+SUMIFS(InRValuation!F:F,InRValuation!A:A,"TBI",InRValuation!B:B,FundCodeS) -> 23374886.23
B203: Profit on Sales of Shares | G203: ='KWAP Summary'!Y47-(1-VLOOKUP(B4,Reference!$A:$E,5,0))*'KWAP Summary'!Y46+SUM('KWAP Summary'!M45:M50,'KWAP Summary'!M53:M58) -> 15022969.82
B204: Dividend Received | G204: ='KWAP Summary'!Y49-(1-VLOOKUP(B4,Reference!$A:$E,5,0))*'KWAP Summary'!Y48+SUM('KWAP Summary'!N45:N50,'KWAP Summary'!N53:N58) -> 12625124.21
B205: Profit Income | G205: ='KWAP Summary'!Y52-(1-VLOOKUP(B4,Reference!$A:$E,5,0))*'KWAP Summary'!Y51+'KWAP Summary'!W58-(1-VLOOKUP(B4,Reference!$A:$E,5,0))*'KWAP Summary'!W57+SUM('KWAP Summary'!O45:O50,'KWAP Summary'!O53:O58) -> 1553199.34
B206: Total Realised Income | G206: =SUM(G203:G205) -> 29201293.37
B209: GRAND TOTAL | E209: =E200+G202 -> 836160508.3 | G209: =G200+G202 -> 701537070.2 | H209: =H200 -> -134623438.1 | I209: =IFERROR(H209/E209*100,0) -> -16.1001909

Sheet TAWAS Summary
A2: ="Asset Allocation and Income Summary for " & FundCodeS & " fund as at " & TEXT(ValueDate,"dd-MMM-yyyy") -> Asset Allocation and Income Summary for IVCAPTAWAS fund as at 15-Sep-2017 | T2: IVCAPTAWAS
A5: Portfolio Status
B6: Cost | D6: Market Value | G6: Unrealized Gain/(Loss)
B7: RM | D7: RM | G7: RM
A9: Equities | B9: =SUMIFS(InPos!H:H,InPos!B:B,FundCodeS) -> 3169542.67 | C9: =IFERROR(B9/$B$11,0) -> 0.7783245763 | D9: =SUMIFS(InPos!I:I,InPos!B:B,FundCodeS) -> 3188513.5 | E9: =IFERROR(D9/$D$11,0) -> 0.7793524732 | G9: =SUMIFS(InPos!O:O,InPos!B:B,FundCodeS) -> 18970.83
A10: Cash | B10: =(SUMIFS(InPosCsh!J:J,InPosCsh!C:C,FundCodeS,InPosCsh!B:B,"CSH")+SUMIFS(InRValuation!F:F,InRValuation!A:A,"TBI",InRValuation!B:B,FundCodeS)) -> 902720.71 | C10: =IFERROR(B10/$B$11,0) -> 0.2216754237 | D10: =(SUMIFS(InPosCsh!J:J,InPosCsh!C:C,FundCodeS,InPosCsh!B:B,"CSH")+SUMIFS(InRValuation!F:F,InRValuation!A:A,"TBI",InRValuation!B:B,FundCodeS)) -> 902720.71 | E10: =D10/D11 -> 0.2206475268
A11: Portfolio Value | B11: =B9+B10 -> 4072263.38 | D11: =D9+D10 -> 4091234.21 | G11: =G9 -> 18970.83 | K11: =SUMIF(InTotalCost!A:A,FundCodeS,InTotalCost!E:E) -> 4203437.148
A14: Market Statistics | I14: ROI
C15: FBMS | D15: % Movement | F15: FBMKLCI | G15: % Movement | I15: - Current | J15: =E38/(C30) -> 0.018337805
A16: Start date Fund | B16: 2017-07-06 | C16: 12852.33 | D16: =IF(C$24=0,0,C$24/C16-1) -> 0.005886092249 | E16: 2011-04-01 | F16: 1555.38 | G16: =IF(F$24=0,0,F$24/F16-1) -> 0.1484846147 | I16: - Annualised | J16: =(1+J15)^(365/(ValueDate-EOMONTH(ValueDate,-MONTH(ValueDate))))-1 -> 0.02604131942
A17: End Prior Year | B17: =OFFSET(InIndex!$A$1,MATCH("FBMS",InIndex!B:B,0)+ROW(A17)-ROW($A$16)-2,0) -> 2016-12-31 | C17: =OFFSET(InIndex!$C$1,MATCH("FBMS",InIndex!B:B,0)+ROW(A17)-ROW($A$16)-2,0) -> 12014.42 | D17: =IF(C$24=0,0,C$24/C17-1) -> 0.07603862692 | E17: =OFFSET(InIndex!$A$1,MATCH("FBMKLCI",InIndex!B:B,0)+ROW(A17)-ROW($A$16)-2,0) -> 2016-12-31 | F17: =OFFSET(InIndex!$C$1,MATCH("FBMKLCI",InIndex!B:B,0)+ROW(A17)-ROW($A$16)-2,0) -> 1641.73 | G17: =IF(F$24=0,0,F$24/F17-1) -> 0.08807782035 | K17: =+SUMIFS(InLstYTB!F:F,InLstYTB!A:A,EOMONTH(ValueDate,-MONTH(ValueDate)),InLstYTB!C:C,FundCodeS,InLstYTB!B:B,"PLR",InLstYTB!E:E,">=600000",InLstYTB!E:E,"<=699999")+SUMIFS(InLstYTB!F:F,InLstYTB!A:A,EOMONTH(ValueDate,-MONTH(ValueDate)),InLstYTB!C:C,FundCodeS,InLstYTB!B:B,"PLR",InLstYTB!E:E,">=900000",InLstYTB!E:E,"<=999999")+SUMIFS(InLstYTB!F:F,InLstYTB!A:A,EOMONTH(ValueDate,-MONTH(ValueDate)),InLstYTB!C:C,FundCodeS,InLstYTB!H:H,"PREWHT") -> 0 | L17: Gross Income Last Year End
A18: Beginning Year | B18: =OFFSET(InIndex!$A$1,MATCH("FBMS",InIndex!B:B,0)+ROW(A18)-ROW($A$16)-2,0) -> 2017-01-03 | C18: =OFFSET(InIndex!$C$1,MATCH("FBMS",InIndex!B:B,0)+ROW(A18)-ROW($A$16)-2,0) -> 12021.61 | D18: 0.0753950594 | E18: =OFFSET(InIndex!$A$1,MATCH("FBMKLCI",InIndex!B:B,0)+ROW(A18)-ROW($A$16)-2,0) -> 2017-01-03 | F18: =OFFSET(InIndex!$C$1,MATCH("FBMKLCI",InIndex!B:B,0)+ROW(A18)-ROW($A$16)-2,0) -> 1635.53 | G18: 0.09220252762 | I18: TWRR (YTD) | K18: =+SUMIFS(InLstYTB!F:F,InLstYTB!A:A,EOMONTH(ValueDate,-MONTH(ValueDate)-12),InLstYTB!C:C,FundCodeS,InLstYTB!B:B,"PLR",InLstYTB!E:E,">=600000",InLstYTB!E:E,"<=699999")+SUMIFS(InLstYTB!F:F,InLstYTB!A:A,EOMONTH(ValueDate,-MONTH(ValueDate)-12),InLstYTB!C:C,FundCodeS,InLstYTB!B:B,"PLR",InLstYTB!E:E,">=900000",InLstYTB!E:E,"<=999999")+SUMIFS(InLstYTB!F:F,InLstYTB!A:A,EOMONTH(ValueDate,-MONTH(ValueDate)-12),InLstYTB!C:C,FundCodeS,InLstYTB!H:H,"PREWHT") -> 0 | L18: Gross Income Last Last Year End
A19: Year High | B19: =OFFSET(InIndex!$A$1,MATCH("FBMS",InIndex!B:B,0)+ROW(A19)-ROW($A$16)-2,0) -> 2017-05-15 | C19: =OFFSET(InIndex!$C$1,MATCH("FBMS",InIndex!B:B,0)+ROW(A19)-ROW($A$16)-2,0) -> 13099.07 | D19: -0.01306123259 | E19: =OFFSET(InIndex!$A$1,MATCH("FBMKLCI",InIndex!B:B,0)+ROW(A19)-ROW($A$16)-2,0) -> 2017-06-14 | F19: =OFFSET(InIndex!$C$1,MATCH("FBMKLCI",InIndex!B:B,0)+ROW(A19)-ROW($A$16)-2,0) -> 1792.35 | G19: -0.003358719 | I19: Excess Return Target | J19: 0.05
A20: Year Low | B20: =OFFSET(InIndex!$A$1,MATCH("FBMS",InIndex!B:B,0)+ROW(A20)-ROW($A$16)-2,0) -> 2017-01-03 | C20: =OFFSET(InIndex!$C$1,MATCH("FBMS",InIndex!B:B,0)+ROW(A20)-ROW($A$16)-2,0) -> 12021.61 | D20: 0.0753950594 | E20: =OFFSET(InIndex!$A$1,MATCH("FBMKLCI",InIndex!B:B,0)+ROW(A20)-ROW($A$16)-2,0) -> 2017-01-03 | F20: =OFFSET(InIndex!$C$1,MATCH("FBMKLCI",InIndex!B:B,0)+ROW(A20)-ROW($A$16)-2,0) -> 1635.53 | G20: 0.09220252762 | I20: - Portfolio | J20: =SUMIFS(InTWRR!F:F,InTWRR!B:B,ValueDate,InTWRR!A:A,FundCodeS)/IF(V42>V43,1,SUMIFS(InTWRR!F:F,InTWRR!B:B,EndOfYear,InTWRR!A:A,FundCodeS))-1 -> -1.681878684
A21: 52 Week High | B21: =OFFSET(InIndex!$A$1,MATCH("FBMS",InIndex!B:B,0)+ROW(A21)-ROW($A$16)-2,0) -> 2017-05-15 | C21: =OFFSET(InIndex!$C$1,MATCH("FBMS",InIndex!B:B,0)+ROW(A21)-ROW($A$16)-2,0) -> 13099.07 | D21: =IF(C$24=0,0,C$24/C21-1) -> -0.01306123259 | E21: =OFFSET(InIndex!$A$1,MATCH("FBMKLCI",InIndex!B:B,0)+ROW(A21)-ROW($A$16)-2,0) -> 2017-06-14 | F21: =OFFSET(InIndex!$C$1,MATCH("FBMKLCI",InIndex!B:B,0)+ROW(A21)-ROW($A$16)-2,0) -> 1792.35 | G21: =IF(F$24=0,0,F$24/F21-1) -> -0.003358719 | I21: - Benchmark | J21: =D17 -> 0.07603862692
A22: 52 Week Low | B22: =OFFSET(InIndex!$A$1,MATCH("FBMS",InIndex!B:B,0)+ROW(A22)-ROW($A$16)-2,0) -> 2016-12-30 | C22: =OFFSET(InIndex!$C$1,MATCH("FBMS",InIndex!B:B,0)+ROW(A22)-ROW($A$16)-2,0) -> 12014.42 | D22: =IF(C$24=0,0,C$24/C22-1) -> 0.07603862692 | E22: =OFFSET(InIndex!$A$1,MATCH("FBMKLCI",InIndex!B:B,0)+ROW(A22)-ROW($A$16)-2,0) -> 2017-01-03 | F22: =OFFSET(InIndex!$C$1,MATCH("FBMKLCI",InIndex!B:B,0)+ROW(A22)-ROW($A$16)-2,0) -> 1635.53 | G22: =IF(F$24=0,0,F$24/F22-1) -> 0.09220252762 | I22: Excess Return | J22: =J20-J21 -> -1.757917311
A23: Previous Week | B23: =OFFSET(InIndex!$A$1,MATCH("FBMS",InIndex!B:B,0)+ROW(A23)-ROW($A$16)-2,0) -> 2017-09-08 | C23: =OFFSET(InIndex!$C$1,MATCH("FBMS",InIndex!B:B,0)+ROW(A23)-ROW($A$16)-2,0) -> 12886.14 | D23: 0.003246899382 | E23: =OFFSET(InIndex!$A$1,MATCH("FBMKLCI",InIndex!B:B,0)+ROW(A23)-ROW($A$16)-2,0) -> 2017-09-08 | F23: =OFFSET(InIndex!$C$1,MATCH("FBMKLCI",InIndex!B:B,0)+ROW(A23)-ROW($A$16)-2,0) -> 1779.9 | G23: 0.003612562504
A24: Current Date | B24: =OFFSET(InIndex!$A$1,MATCH("FBMS",InIndex!B:B,0)+ROW(A24)-ROW($A$16)-2,0) -> 2017-09-15 | C24: =OFFSET(InIndex!$C$1,MATCH("FBMS",InIndex!B:B,0)+ROW(A24)-ROW($A$16)-2,0) -> 12927.98 | E24: =OFFSET(InIndex!$A$1,MATCH("FBMKLCI",InIndex!B:B,0)+ROW(A24)-ROW($A$16)-2,0) -> 2017-09-15 | F24: =OFFSET(InIndex!$C$1,MATCH("FBMKLCI",InIndex!B:B,0)+ROW(A24)-ROW($A$16)-2,0) -> 1786.33 | I24: - Equity | J24: =IFERROR((PRODUCT(OFFSET(InEQTTWRR!A:A,,MATCH(FundCodeS,InEQTTWRR!3:3,0)+4))-1),0) -> 0.02844933888
I25: - Benchmark | J25: =D17 -> 0.07603862692
I26: Excess Return | J26: =J24-J25 -> -0.04758928803
A28: Income Status (YTD) | I28: Purchase & Sales (YTD)
C29: (RM) | J29: RM
A30: Ave Capital (RM m) | C30: =4000000+IFERROR(ABS(K17-K18),0)+IFERROR(SUM(OFFSET(BudgetHistory!$U$1:$W$12,MATCH(YEAR(EOMONTH(ValueDate,-MONTH(ValueDate))),BudgetHistory!A:A,0),0)),0) -> 4000000 | I30: Purchase | J30: =-SUMIFS(InTran!V:V,InTran!B:B,"*P",InTran!D:D,FundCodeS,InTran!C:C,"EQT") -> 4679985.89
A31: ROI Target (RM m) | C31: =AveCost*D31 -> 160000 | D31: =VLOOKUP(FundCodeS,Reference!A:D,4,0) -> 0.04 | I31: Sales | J31: =SUMIFS(InTran!V:V,InTran!B:B,"*S",InTran!D:D,FundCodeS,InTran!C:C,"EQT") -> 1551838.8
I32: Turnover | J32: =J30+J31 -> 6231824.69
C33: Budget | E33: Actual
C34: (RM) | E34: (RM) | I34: Portfolio Turnover (x) | J34: =(J32)/(2*AveCost) -> 0.7789780863
A35: Capital Gain | C35: =+B61 -> 122424.4183 | E35: =Y47-(1-VLOOKUP(FundCodeS,Reference!$A:$E,5,0))*Y46+SUM(M45:M50,M53:M58) -> 41395.58
A36: Dividend Income | C36: =+C61 -> 33937.24841 | E36: =Y49-(1-VLOOKUP(FundCodeS,Reference!$A:$E,5,0))*Y48+SUM(N45:N50,N53:N58) -> 18160
A37: Profit Income | C37: =+D61 -> 3638.333333 | E37: =Y52-(1-VLOOKUP(FundCodeS,Reference!$A:$E,5,0))*Y51+W58-(1-VLOOKUP(FundCodeS,Reference!$A:$E,5,0))*W57+SUM(O45:O50,O53:O58) -> 13795.64
A38: Gross Income | C38: =SUM(C35:C37) -> 160000 | E38: =SUM(E35:E37) -> 73351.22 | F38: =IFERROR(E38/C30,0) -> 0.018337805 | U38: =VLOOKUP(FundCodeS,Reference!A:F,6,0) -> 12 | W38: =-SUMIFS(InTBYTD!F:F,InTBYTD!C:C,FundCodeS,InTBYTD!J:J,"CAP",InTBYTD!I:I,TEXT(ValueDate,"MMM-yy"))/1000000 -> 3.9999629 | X38: =-SUMIFS(InTBYTD!F:F,InTBYTD!C:C,FundCodeS,InTBYTD!E:E,800000,InTBYTD!I:I,TEXT(ValueDate,"MMM-yy"))/1000000 -> 3.9999629
U40: =IF(AND(FundCodeS="YH-AUR-VCAM",U42=DATE(2014,12,31)),SUMIFS(InTBYTD!F:F,InTBYTD!C:C,"KHAZANAH",InTBYTD!A:A,$U$42,InTBYTD!E:E,">=100000",InTBYTD!E:E,"<=105000")+SUMIFS(InTBYTD!F:F,InTBYTD!C:C,"KHAZANAH",InTBYTD!A:A,$U$42,InTBYTD!J:J,"CSH")+SUMIFS(InTBYTD!F:F,InTBYTD!C:C,"KHAZANAH",InTBYTD!A:A,$U$42,InTBYTD!J:J,"DR")+SUMIFS(InTBYTD!F:F,InTBYTD!C:C,"KHAZANAH",InTBYTD!A:A,$U$42,InTBYTD!E:E,">=139000",InTBYTD!E:E,"<=139999"),0) -> 0 | V40: EOY or Earliest
U41: =SUMIFS(InTBYTD!F:F,InTBYTD!C:C,FundCodeS,InTBYTD!A:A,$V$41,InTBYTD!E:E,">=100000",InTBYTD!E:E,"<=105000")+SUMIFS(InTBYTD!F:F,InTBYTD!C:C,FundCodeS,InTBYTD!A:A,$V$41,InTBYTD!J:J,"CSH")+SUMIFS(InTBYTD!F:F,InTBYTD!C:C,FundCodeS,InTBYTD!A:A,$V$41,InTBYTD!J:J,"DR")+SUMIFS(InTBYTD!F:F,InTBYTD!C:C,FundCodeS,InTBYTD!A:A,$V$41,InTBYTD!E:E,">=139000",InTBYTD!E:E,"<=139999") -> 3999989.4 | V41: =IF(U42>=V42,U42,V42) -> 2017-07-06
U42: =EOMONTH(ValueDate,-MONTH(ValueDate)) -> 2016-12-31 | V42: =VLOOKUP(FundCodeS,Reference!A:C,3,0) -> 2017-07-06 | W42: =OFFSET(InTWRR!$B$1,MATCH(EOMONTH(ValueDate,-MONTH(ValueDate)),InTWRR!C:C,0),0) -> 2017-01-03
B43: BUDGET | F43: ACTUAL | M43: Extra Figures | U43: =MAX(V42,V43) -> 2017-07-06 | V43: =IF(U38=12,EOMONTH(ValueDate,-MONTH(ValueDate)),IF(U38=6,IF(MONTH(ValueDate)>6,EOMONTH(ValueDate,-MONTH(ValueDate)+6),EOMONTH(ValueDate,-MONTH(ValueDate)-6)))) -> 2016-12-31
B44: CG | C44: DI | D44: Pro Inc | E44: Total | F44: CG | G44: DI | I44: Pro Inc | J44: Total | M44: CG | N44: DI | O44: Pro Inc | U44: =IF(YEAR(ValueDate)=2015,IF(FundCodeS="KWAP",1.00707916420754,IF(FundCodeS="KHAZANAH",1.00107186680052,1)),1) -> 1
A45: =TEXT(EOMONTH(DATE(YEAR(ValueDate),1,1),0),"MMM-yy") -> Jan-17 | B45: =IFERROR(OFFSET(BudgetHistory!$Q$1,MATCH(YEAR(ValueDate),BudgetHistory!$A:$A,0)+MONTH($A45)-1,1),0) -> 0 | C45: =IFERROR(OFFSET(BudgetHistory!$Q$1,MATCH(YEAR(ValueDate),BudgetHistory!$A:$A,0)+MONTH($A45)-1,2),0) -> 0 | D45: =IFERROR(OFFSET(BudgetHistory!$Q$1,MATCH(YEAR(ValueDate),BudgetHistory!$A:$A,0)+MONTH($A45)-1,3),0) -> 0 | E45: =SUM(B45:D45) -> 0 | F45: =IF(MONTH(ValueDate)>=MONTH(A45),V64-(1-VLOOKUP(FundCodeS,Reference!$A:$E,5,0))*V63+M45,0) -> 0 | G45: =IF(MONTH(ValueDate)>=MONTH(A45),W64-(1-VLOOKUP(FundCodeS,Reference!$A:$E,5,0))*W63+N45,0) -> 0 | I45: =IF(MONTH(ValueDate)>=MONTH(A45),X64-(1-VLOOKUP(FundCodeS,Reference!$A:$E,5,0))*X63+(AA64-(1-VLOOKUP(FundCodeS,Reference!$A:$E,5,0))*AA63)+O45,0) -> 0 | J45: =SUM(F45:I45) -> 0 | L45: x | M45: =IFERROR(OFFSET(BudgetHistory!$Q$1,MATCH(YEAR(ValueDate),BudgetHistory!$A:$A,0)+MONTH($A45)-1,4),0) -> 0 | N45: =IFERROR(OFFSET(BudgetHistory!$Q$1,MATCH(YEAR(ValueDate),BudgetHistory!$A:$A,0)+MONTH($A45)-1,5),0) -> 0 | O45: =IFERROR(OFFSET(BudgetHistory!$Q$1,MATCH(YEAR(ValueDate),BudgetHistory!$A:$A,0)+MONTH($A45)-1,6),0) -> 0 | V45: Equity | W45: Fixed Income | X45: Cash | Y45: Total
A46: =TEXT(EOMONTH(DATE(YEAR(ValueDate),2,1),0),"MMM-yy") -> Feb-17 | B46: =IFERROR(OFFSET(BudgetHistory!$Q$1,MATCH(YEAR(ValueDate),BudgetHistory!$A:$A,0)+MONTH($A46)-1,1),0) -> 0 | C46: =IFERROR(OFFSET(BudgetHistory!$Q$1,MATCH(YEAR(ValueDate),BudgetHistory!$A:$A,0)+MONTH($A46)-1,2),0) -> 0 | D46: =IFERROR(OFFSET(BudgetHistory!$Q$1,MATCH(YEAR(ValueDate),BudgetHistory!$A:$A,0)+MONTH($A46)-1,3),0) -> 0 | E46: 0 | F46: =IF(MONTH(ValueDate)>=MONTH(A46),V65-(1-VLOOKUP(FundCodeS,Reference!$A:$E,5,0))*V64+M46,0) -> 0 | G46: =IF(MONTH(ValueDate)>=MONTH(A46),W65-(1-VLOOKUP(FundCodeS,Reference!$A:$E,5,0))*W64+N46,0) -> 0 | I46: =IF(MONTH(ValueDate)>=MONTH(A46),X65-(1-VLOOKUP(FundCodeS,Reference!$A:$E,5,0))*X64+(AA65-(1-VLOOKUP(FundCodeS,Reference!$A:$E,5,0))*AA64)+O46,0) -> 0 | J46: 0 | L46: x | M46: =IFERROR(OFFSET(BudgetHistory!$Q$1,MATCH(YEAR(ValueDate),BudgetHistory!$A:$A,0)+MONTH($A46)-1,4),0) -> 0 | N46: =IFERROR(OFFSET(BudgetHistory!$Q$1,MATCH(YEAR(ValueDate),BudgetHistory!$A:$A,0)+MONTH($A46)-1,5),0) -> 0 | O46: =IFERROR(OFFSET(BudgetHistory!$Q$1,MATCH(YEAR(ValueDate),BudgetHistory!$A:$A,0)+MONTH($A46)-1,6),0) -> 0 | U46: RGEnd | V46: =-SUMIFS(InTBYTD!$F:$F,InTBYTD!$C:$C,FundCodeS,InTBYTD!$A:$A,EOMONTH(ValueDate,-MONTH(ValueDate)),InTBYTD!$J:$J,"RG",InTBYTD!$K:$K,"EQT") -> 0 | W46: =-SUMIFS(InTBYTD!$F:$F,InTBYTD!$C:$C,FundCodeS,InTBYTD!$A:$A,EOMONTH(ValueDate,-MONTH(ValueDate)),InTBYTD!$J:$J,"RG",InTBYTD!$K:$K,"BND") -> 0 | X46: =-SUMIFS(InTBYTD!$F:$F,InTBYTD!$C:$C,FundCodeS,InTBYTD!$A:$A,EOMONTH(ValueDate,-MONTH(ValueDate)),InTBYTD!$J:$J,"RG",InTBYTD!$K:$K,"CSH") -> 0 | Y46: =SUM(V46:X46) -> 0
A47: =TEXT(EOMONTH(DATE(YEAR(ValueDate),3,1),0),"MMM-yy") -> Mar-17 | B47: =IFERROR(OFFSET(BudgetHistory!$Q$1,MATCH(YEAR(ValueDate),BudgetHistory!$A:$A,0)+MONTH($A47)-1,1),0) -> 0 | C47: =IFERROR(OFFSET(BudgetHistory!$Q$1,MATCH(YEAR(ValueDate),BudgetHistory!$A:$A,0)+MONTH($A47)-1,2),0) -> 0 | D47: =IFERROR(OFFSET(BudgetHistory!$Q$1,MATCH(YEAR(ValueDate),BudgetHistory!$A:$A,0)+MONTH($A47)-1,3),0) -> 0 | E47: 0 | F47: =IF(MONTH(ValueDate)>=MONTH(A47),V66-(1-VLOOKUP(FundCodeS,Reference!$A:$E,5,0))*V65+M47,0) -> 0 | G47: =IF(MONTH(ValueDate)>=MONTH(A47),W66-(1-VLOOKUP(FundCodeS,Reference!$A:$E,5,0))*W65+N47,0) -> 0 | I47: =IF(MONTH(ValueDate)>=MONTH(A47),X66-(1-VLOOKUP(FundCodeS,Reference!$A:$E,5,0))*X65+(AA66-(1-VLOOKUP(FundCodeS,Reference!$A:$E,5,0))*AA65)+O47,0) -> 0 | J47: 0 | L47: x | M47: =IFERROR(OFFSET(BudgetHistory!$Q$1,MATCH(YEAR(ValueDate),BudgetHistory!$A:$A,0)+MONTH($A47)-1,4),0) -> 0 | N47: =IFERROR(OFFSET(BudgetHistory!$Q$1,MATCH(YEAR(ValueDate),BudgetHistory!$A:$A,0)+MONTH($A47)-1,5),0) -> 0 | O47: =IFERROR(OFFSET(BudgetHistory!$Q$1,MATCH(YEAR(ValueDate),BudgetHistory!$A:$A,0)+MONTH($A47)-1,6),0) -> 0 | U47: RGValD | V47: =-SUMIFS(InTBYTD!$F:$F,InTBYTD!$C:$C,FundCodeS,InTBYTD!$A:$A,ValueDate,InTBYTD!$J:$J,"RG",InTBYTD!$K:$K,"EQT") -> 41395.58 | W47: =-SUMIFS(InTBYTD!$F:$F,InTBYTD!$C:$C,FundCodeS,InTBYTD!$A:$A,ValueDate,InTBYTD!$J:$J,"RG",InTBYTD!$K:$K,"BND") -> 0 | X47: =-SUMIFS(InTBYTD!$F:$F,InTBYTD!$C:$C,FundCodeS,InTBYTD!$A:$A,ValueDate,InTBYTD!$J:$J,"RG",InTBYTD!$K:$K,"CSH") -> 0 | Y47: =SUM(V47:X47) -> 41395.58
A48: =TEXT(EOMONTH(DATE(YEAR(ValueDate),4,1),0),"MMM-yy") -> Apr-17 | B48: =IFERROR(OFFSET(BudgetHistory!$Q$1,MATCH(YEAR(ValueDate),BudgetHistory!$A:$A,0)+MONTH($A48)-1,1),0) -> 0 | C48: =IFERROR(OFFSET(BudgetHistory!$Q$1,MATCH(YEAR(ValueDate),BudgetHistory!$A:$A,0)+MONTH($A48)-1,2),0) -> 0 | D48: =IFERROR(OFFSET(BudgetHistory!$Q$1,MATCH(YEAR(ValueDate),BudgetHistory!$A:$A,0)+MONTH($A48)-1,3),0) -> 0 | E48: 0 | F48: =IF(MONTH(ValueDate)>=MONTH(A48),V67-(1-VLOOKUP(FundCodeS,Reference!$A:$E,5,0))*V66+M48,0) -> 0 | G48: =IF(MONTH(ValueDate)>=MONTH(A48),W67-(1-VLOOKUP(FundCodeS,Reference!$A:$E,5,0))*W66+N48,0) -> 0 | I48: =IF(MONTH(ValueDate)>=MONTH(A48),X67-(1-VLOOKUP(FundCodeS,Reference!$A:$E,5,0))*X66+(AA67-(1-VLOOKUP(FundCodeS,Reference!$A:$E,5,0))*AA66)+O48,0) -> 0 | J48: 0 | L48: x | M48: =IFERROR(OFFSET(BudgetHistory!$Q$1,MATCH(YEAR(ValueDate),BudgetHistory!$A:$A,0)+MONTH($A48)-1,4),0) -> 0 | N48: =IFERROR(OFFSET(BudgetHistory!$Q$1,MATCH(YEAR(ValueDate),BudgetHistory!$A:$A,0)+MONTH($A48)-1,5),0) -> 0 | O48: =IFERROR(OFFSET(BudgetHistory!$Q$1,MATCH(YEAR(ValueDate),BudgetHistory!$A:$A,0)+MONTH($A48)-1,6),0) -> 0 | U48: DIEnd | V48: =-SUMIFS(InTBYTD!$F:$F,InTBYTD!$C:$C,FundCodeS,InTBYTD!$A:$A,EOMONTH(ValueDate,-MONTH(ValueDate)),InTBYTD!$J:$J,"DI",InTBYTD!$K:$K,"EQT")-SUMIFS(InTBYTD!$F:$F,InTBYTD!$C:$C,FundCodeS,InTBYTD!$A:$A,EOMONTH(ValueDate,-MONTH(ValueDate)),InTBYTD!$H:$H,"PREWHT") -> 0 | W48: =-SUMIFS(InTBYTD!$F:$F,InTBYTD!$C:$C,FundCodeS,InTBYTD!$A:$A,EOMONTH(ValueDate,-MONTH(ValueDate)),InTBYTD!$J:$J,"DI",InTBYTD!$K:$K,"BND") -> 0 | X48: =-SUMIFS(InTBYTD!$F:$F,InTBYTD!$C:$C,FundCodeS,InTBYTD!$A:$A,EOMONTH(ValueDate,-MONTH(ValueDate)),InTBYTD!$J:$J,"DI",InTBYTD!$K:$K,"CSH") -> 0 | Y48: 0
A49: =TEXT(EOMONTH(DATE(YEAR(ValueDate),5,1),0),"MMM-yy") -> May-17 | B49: =IFERROR(OFFSET(BudgetHistory!$Q$1,MATCH(YEAR(ValueDate),BudgetHistory!$A:$A,0)+MONTH($A49)-1,1),0) -> 0 | C49: =IFERROR(OFFSET(BudgetHistory!$Q$1,MATCH(YEAR(ValueDate),BudgetHistory!$A:$A,0)+MONTH($A49)-1,2),0) -> 0 | D49: =IFERROR(OFFSET(BudgetHistory!$Q$1,MATCH(YEAR(ValueDate),BudgetHistory!$A:$A,0)+MONTH($A49)-1,3),0) -> 0 | E49: 0 | F49: =IF(MONTH(ValueDate)>=MONTH(A49),V68-(1-VLOOKUP(FundCodeS,Reference!$A:$E,5,0))*V67+M49,0) -> 0 | G49: =IF(MONTH(ValueDate)>=MONTH(A49),W68-(1-VLOOKUP(FundCodeS,Reference!$A:$E,5,0))*W67+N49,0) -> 0 | I49: =IF(MONTH(ValueDate)>=MONTH(A49),X68-(1-VLOOKUP(FundCodeS,Reference!$A:$E,5,0))*X67+(AA68-(1-VLOOKUP(FundCodeS,Reference!$A:$E,5,0))*AA67)+O49,0) -> 0 | J49: 0 | L49: x | M49: =IFERROR(OFFSET(BudgetHistory!$Q$1,MATCH(YEAR(ValueDate),BudgetHistory!$A:$A,0)+MONTH($A49)-1,4),0) -> 0 | N49: =IFERROR(OFFSET(BudgetHistory!$Q$1,MATCH(YEAR(ValueDate),BudgetHistory!$A:$A,0)+MONTH($A49)-1,5),0) -> 0 | O49: =IFERROR(OFFSET(BudgetHistory!$Q$1,MATCH(YEAR(ValueDate),BudgetHistory!$A:$A,0)+MONTH($A49)-1,6),0) -> 0 | U49: DIValD | V49: =-SUMIFS(InTBYTD!$F:$F,InTBYTD!$C:$C,FundCodeS,InTBYTD!$A:$A,ValueDate,InTBYTD!$J:$J,"DI",InTBYTD!$K:$K,"EQT")-SUMIFS(InTBYTD!$F:$F,InTBYTD!$C:$C,FundCodeS,InTBYTD!$A:$A,ValueDate,InTBYTD!$H:$H,"PREWHT") -> 18160 | W49: =-SUMIFS(InTBYTD!$F:$F,InTBYTD!$C:$C,FundCodeS,InTBYTD!$A:$A,ValueDate,InTBYTD!$J:$J,"DI",InTBYTD!$K:$K,"BND") -> 0 | X49: =-SUMIFS(InTBYTD!$F:$F,InTBYTD!$C:$C,FundCodeS,InTBYTD!$A:$A,ValueDate,InTBYTD!$J:$J,"DI",InTBYTD!$K:$K,"CSH") -> 0 | Y49: 18160
A50: =TEXT(EOMONTH(DATE(YEAR(ValueDate),6,1),0),"MMM-yy") -> Jun-17 | B50: =IFERROR(OFFSET(BudgetHistory!$Q$1,MATCH(YEAR(ValueDate),BudgetHistory!$A:$A,0)+MONTH($A50)-1,1),0) -> 0 | C50: =IFERROR(OFFSET(BudgetHistory!$Q$1,MATCH(YEAR(ValueDate),BudgetHistory!$A:$A,0)+MONTH($A50)-1,2),0) -> 0 | D50: =IFERROR(OFFSET(BudgetHistory!$Q$1,MATCH(YEAR(ValueDate),BudgetHistory!$A:$A,0)+MONTH($A50)-1,3),0) -> 0 | E50: 0 | F50: =IF(MONTH(ValueDate)>=MONTH(A50),V69-(1-VLOOKUP(FundCodeS,Reference!$A:$E,5,0))*V68+M50,0) -> 0 | G50: =IF(MONTH(ValueDate)>=MONTH(A50),W69-(1-VLOOKUP(FundCodeS,Reference!$A:$E,5,0))*W68+N50,0) -> 0 | I50: =IF(MONTH(ValueDate)>=MONTH(A50),X69-(1-VLOOKUP(FundCodeS,Reference!$A:$E,5,0))*X68+(AA69-(1-VLOOKUP(FundCodeS,Reference!$A:$E,5,0))*AA68)+O50,0) -> 0 | J50: 0 | L50: x | M50: =IFERROR(OFFSET(BudgetHistory!$Q$1,MATCH(YEAR(ValueDate),BudgetHistory!$A:$A,0)+MONTH($A50)-1,4),0) -> 0 | N50: =IFERROR(OFFSET(BudgetHistory!$Q$1,MATCH(YEAR(ValueDate),BudgetHistory!$A:$A,0)+MONTH($A50)-1,5),0) -> 0 | O50: =IFERROR(OFFSET(BudgetHistory!$Q$1,MATCH(YEAR(ValueDate),BudgetHistory!$A:$A,0)+MONTH($A50)-1,6),0) -> 0 | Y50: 0
A51: 1H | B51: =SUM(B45:B50) -> 0 | C51: =SUM(C45:C50) -> 0 | D51: =SUM(D45:D50) -> 0 | E51: =SUM(B51:D51) -> 0 | F51: =SUM(F45:F50) -> 0 | G51: =SUM(G45:G50) -> 0 | I51: =SUM(I45:I50) -> 0 | J51: =SUM(J45:J50) -> 0 | U51: INCEnd | V51: =-SUMIFS(InTBYTD!$F:$F,InTBYTD!$C:$C,FundCodeS,InTBYTD!$A:$A,EOMONTH(ValueDate,-MONTH(ValueDate)),InTBYTD!$J:$J,"INC",InTBYTD!$K:$K,"EQT") -> 0 | W51: 0 | X51: =-SUMIFS(InTBYTD!$F:$F,InTBYTD!$C:$C,FundCodeS,InTBYTD!$A:$A,EOMONTH(ValueDate,-MONTH(ValueDate)),InTBYTD!$J:$J,"INC",InTBYTD!$K:$K,"CSH") -> 0 | Y51: 0
U52: INCValD | V52: =-SUMIFS(InTBYTD!$F:$F,InTBYTD!$C:$C,FundCodeS,InTBYTD!$A:$A,ValueDate,InTBYTD!$J:$J,"INC",InTBYTD!$K:$K,"EQT") -> 0 | W52: 0 | X52: =-SUMIFS(InTBYTD!$F:$F,InTBYTD!$C:$C,FundCodeS,InTBYTD!$A:$A,ValueDate,InTBYTD!$J:$J,"INC",InTBYTD!$K:$K,"CSH") -> 13759.99 | Y52: 13759.99
A53: =TEXT(EOMONTH(DATE(YEAR(ValueDate),7,1),0),"MMM-yy") -> Jul-17 | B53: =IFERROR(OFFSET(BudgetHistory!$Q$1,MATCH(YEAR(ValueDate),BudgetHistory!$A:$A,0)+MONTH($A53)-1,1),0) -> 20431.43984 | C53: =IFERROR(OFFSET(BudgetHistory!$Q$1,MATCH(YEAR(ValueDate),BudgetHistory!$A:$A,0)+MONTH($A53)-1,2),0) -> 13144.59665 | D53: =IFERROR(OFFSET(BudgetHistory!$Q$1,MATCH(YEAR(ValueDate),BudgetHistory!$A:$A,0)+MONTH($A53)-1,3),0) -> 491.6666667 | E53: =SUM(B53:D53) -> 34067.70316 | F53: =IF(MONTH(ValueDate)>=MONTH(A53),V70-(1-VLOOKUP(FundCodeS,Reference!$A:$E,5,0))*V69+M53,0) -> 0 | G53: =IF(MONTH(ValueDate)>=MONTH(A53),W70-(1-VLOOKUP(FundCodeS,Reference!$A:$E,5,0))*W69+N53,0) -> 0 | I53: =IF(MONTH(ValueDate)>=MONTH(A53),X70-(1-VLOOKUP(FundCodeS,Reference!$A:$E,5,0))*X69+(AA70-(1-VLOOKUP(FundCodeS,Reference!$A:$E,5,0))*AA69)+O53,0) -> 7615.2 | J53: =SUM(F53:I53) -> 7615.2 | L53: x | M53: =IFERROR(OFFSET(BudgetHistory!$Q$1,MATCH(YEAR(ValueDate),BudgetHistory!$A:$A,0)+MONTH($A53)-1,4),0) -> 0 | N53: =IFERROR(OFFSET(BudgetHistory!$Q$1,MATCH(YEAR(ValueDate),BudgetHistory!$A:$A,0)+MONTH($A53)-1,5),0) -> 0 | O53: =IFERROR(OFFSET(BudgetHistory!$Q$1,MATCH(YEAR(ValueDate),BudgetHistory!$A:$A,0)+MONTH($A53)-1,6),0) -> 0 | U53: CPayEnd | W53: =-SUMIFS(InTBYTD!$F:$F,InTBYTD!$C:$C,FundCodeS,InTBYTD!$A:$A,EOMONTH(ValueDate,-MONTH(ValueDate)),InTBYTD!$G:$G,"PRINTI",InTBYTD!$H:$H,"PRINCB") -> 0 | Y53: 0
A54: =TEXT(EOMONTH(DATE(YEAR(ValueDate),8,1),0),"MMM-yy") -> Aug-17 | B54: =IFERROR(OFFSET(BudgetHistory!$Q$1,MATCH(YEAR(ValueDate),BudgetHistory!$A:$A,0)+MONTH($A54)-1,1),0) -> 19990.12074 | C54: =IFERROR(OFFSET(BudgetHistory!$Q$1,MATCH(YEAR(ValueDate),BudgetHistory!$A:$A,0)+MONTH($A54)-1,2),0) -> 10593.36682 | D54: =IFERROR(OFFSET(BudgetHistory!$Q$1,MATCH(YEAR(ValueDate),BudgetHistory!$A:$A,0)+MONTH($A54)-1,3),0) -> 983.3333333 | E54: 31566.82089 | F54: =IF(MONTH(ValueDate)>=MONTH(A54),V71-(1-VLOOKUP(FundCodeS,Reference!$A:$E,5,0))*V70+M54,0) -> 31268.88 | G54: =IF(MONTH(ValueDate)>=MONTH(A54),W71-(1-VLOOKUP(FundCodeS,Reference!$A:$E,5,0))*W70+N54,0) -> 18160 | I54: =IF(MONTH(ValueDate)>=MONTH(A54),X71-(1-VLOOKUP(FundCodeS,Reference!$A:$E,5,0))*X70+(AA71-(1-VLOOKUP(FundCodeS,Reference!$A:$E,5,0))*AA70)+O54,0) -> 5327.07 | J54: 54755.95 | L54: x | M54: =IFERROR(OFFSET(BudgetHistory!$Q$1,MATCH(YEAR(ValueDate),BudgetHistory!$A:$A,0)+MONTH($A54)-1,4),0) -> 0 | N54: =IFERROR(OFFSET(BudgetHistory!$Q$1,MATCH(YEAR(ValueDate),BudgetHistory!$A:$A,0)+MONTH($A54)-1,5),0) -> 0 | O54: =IFERROR(OFFSET(BudgetHistory!$Q$1,MATCH(YEAR(ValueDate),BudgetHistory!$A:$A,0)+MONTH($A54)-1,6),0) -> 0 | U54: CPayValD | W54: =-SUMIFS(InTBYTD!$F:$F,InTBYTD!$C:$C,FundCodeS,InTBYTD!$A:$A,ValueDate,InTBYTD!$G:$G,"PRINTI",InTBYTD!$H:$H,"PRINCB") -> 0 | Y54: =SUM(V54:X54) -> 0
A55: =TEXT(EOMONTH(DATE(YEAR(ValueDate),9,1),0),"MMM-yy") -> Sep-17 | B55: =IFERROR(OFFSET(BudgetHistory!$Q$1,MATCH(YEAR(ValueDate),BudgetHistory!$A:$A,0)+MONTH($A55)-1,1),0) -> 20024.10394 | C55: =IFERROR(OFFSET(BudgetHistory!$Q$1,MATCH(YEAR(ValueDate),BudgetHistory!$A:$A,0)+MONTH($A55)-1,2),0) -> 4613.953488 | D55: =IFERROR(OFFSET(BudgetHistory!$Q$1,MATCH(YEAR(ValueDate),BudgetHistory!$A:$A,0)+MONTH($A55)-1,3),0) -> 393.3333333 | E55: 25031.39076 | F55: =IF(MONTH(ValueDate)>=MONTH(A55),V72-(1-VLOOKUP(FundCodeS,Reference!$A:$E,5,0))*V71+M55,0) -> 10126.7 | G55: =IF(MONTH(ValueDate)>=MONTH(A55),W72-(1-VLOOKUP(FundCodeS,Reference!$A:$E,5,0))*W71+N55,0) -> 0 | I55: =IF(MONTH(ValueDate)>=MONTH(A55),X72-(1-VLOOKUP(FundCodeS,Reference!$A:$E,5,0))*X71+(AA72-(1-VLOOKUP(FundCodeS,Reference!$A:$E,5,0))*AA71)+O55,0) -> 853.37 | J55: 10980.07 | L55: x | M55: =IFERROR(OFFSET(BudgetHistory!$Q$1,MATCH(YEAR(ValueDate),BudgetHistory!$A:$A,0)+MONTH($A55)-1,4),0) -> 0 | N55: =IFERROR(OFFSET(BudgetHistory!$Q$1,MATCH(YEAR(ValueDate),BudgetHistory!$A:$A,0)+MONTH($A55)-1,5),0) -> 0 | O55: =IFERROR(OFFSET(BudgetHistory!$Q$1,MATCH(YEAR(ValueDate),BudgetHistory!$A:$A,0)+MONTH($A55)-1,6),0) -> 0 | U55: CRecEnd | Y55: 0
A56: =TEXT(EOMONTH(DATE(YEAR(ValueDate),10,1),0),"MMM-yy") -> Oct-17 | B56: =IFERROR(OFFSET(BudgetHistory!$Q$1,MATCH(YEAR(ValueDate),BudgetHistory!$A:$A,0)+MONTH($A56)-1,1),0) -> 20292.42694 | C56: =IFERROR(OFFSET(BudgetHistory!$Q$1,MATCH(YEAR(ValueDate),BudgetHistory!$A:$A,0)+MONTH($A56)-1,2),0) -> 0 | D56: =IFERROR(OFFSET(BudgetHistory!$Q$1,MATCH(YEAR(ValueDate),BudgetHistory!$A:$A,0)+MONTH($A56)-1,3),0) -> 590 | E56: 20882.42694 | F56: =IF(MONTH(ValueDate)>=MONTH(A56),V73-(1-VLOOKUP(FundCodeS,Reference!$A:$E,5,0))*V72+M56,0) -> 0 | G56: =IF(MONTH(ValueDate)>=MONTH(A56),W73-(1-VLOOKUP(FundCodeS,Reference!$A:$E,5,0))*W72+N56,0) -> 0 | I56: =IF(MONTH(ValueDate)>=MONTH(A56),X73-(1-VLOOKUP(FundCodeS,Reference!$A:$E,5,0))*X72+(AA73-(1-VLOOKUP(FundCodeS,Reference!$A:$E,5,0))*AA72)+O56,0) -> 0 | J56: =SUM(F56:I56) -> 0 | L56: x | M56: =IFERROR(OFFSET(BudgetHistory!$Q$1,MATCH(YEAR(ValueDate),BudgetHistory!$A:$A,0)+MONTH($A56)-1,4),0) -> 0 | N56: =IFERROR(OFFSET(BudgetHistory!$Q$1,MATCH(YEAR(ValueDate),BudgetHistory!$A:$A,0)+MONTH($A56)-1,5),0) -> 0 | O56: =IFERROR(OFFSET(BudgetHistory!$Q$1,MATCH(YEAR(ValueDate),BudgetHistory!$A:$A,0)+MONTH($A56)-1,6),0) -> 0 | U56: CRecValD | Y56: 0
A57: =TEXT(EOMONTH(DATE(YEAR(ValueDate),11,1),0),"MMM-yy") -> Nov-17 | B57: =IFERROR(OFFSET(BudgetHistory!$Q$1,MATCH(YEAR(ValueDate),BudgetHistory!$A:$A,0)+MONTH($A57)-1,1),0) -> 20698.27547 | C57: =IFERROR(OFFSET(BudgetHistory!$Q$1,MATCH(YEAR(ValueDate),BudgetHistory!$A:$A,0)+MONTH($A57)-1,2),0) -> 0 | D57: =IFERROR(OFFSET(BudgetHistory!$Q$1,MATCH(YEAR(ValueDate),BudgetHistory!$A:$A,0)+MONTH($A57)-1,3),0) -> 393.3333333 | E57: 21091.60881 | F57: =IF(MONTH(ValueDate)>=MONTH(A57),V74-(1-VLOOKUP(FundCodeS,Reference!$A:$E,5,0))*V73+M57,0) -> 0 | G57: =IF(MONTH(ValueDate)>=MONTH(A57),W74-(1-VLOOKUP(FundCodeS,Reference!$A:$E,5,0))*W73+N57,0) -> 0 | I57: =IF(MONTH(ValueDate)>=MONTH(A57),X74-(1-VLOOKUP(FundCodeS,Reference!$A:$E,5,0))*X73+(AA74-(1-VLOOKUP(FundCodeS,Reference!$A:$E,5,0))*AA73)+O57,0) -> 0 | J57: 0 | L57: x | M57: =IFERROR(OFFSET(BudgetHistory!$Q$1,MATCH(YEAR(ValueDate),BudgetHistory!$A:$A,0)+MONTH($A57)-1,4),0) -> 0 | N57: =IFERROR(OFFSET(BudgetHistory!$Q$1,MATCH(YEAR(ValueDate),BudgetHistory!$A:$A,0)+MONTH($A57)-1,5),0) -> 0 | O57: =IFERROR(OFFSET(BudgetHistory!$Q$1,MATCH(YEAR(ValueDate),BudgetHistory!$A:$A,0)+MONTH($A57)-1,6),0) -> 0 | U57: OTHIncomeEnd | W57: =-SUMIFS(InTBYTD!$F:$F,InTBYTD!$C:$C,FundCodeS,InTBYTD!$A:$A,EOMONTH(ValueDate,-MONTH(ValueDate)),InTBYTD!$J:$J,"DI",InTBYTD!$K:$K,0) -> 0 | Y57: 0
A58: =TEXT(EOMONTH(DATE(YEAR(ValueDate),12,1),0),"MMM-yy") -> Dec-17 | B58: =IFERROR(OFFSET(BudgetHistory!$Q$1,MATCH(YEAR(ValueDate),BudgetHistory!$A:$A,0)+MONTH($A58)-1,1),0) -> 20988.05133 | C58: =IFERROR(OFFSET(BudgetHistory!$Q$1,MATCH(YEAR(ValueDate),BudgetHistory!$A:$A,0)+MONTH($A58)-1,2),0) -> 5585.331453 | D58: =IFERROR(OFFSET(BudgetHistory!$Q$1,MATCH(YEAR(ValueDate),BudgetHistory!$A:$A,0)+MONTH($A58)-1,3),0) -> 786.6666667 | E58: 27360.04945 | F58: =IF(MONTH(ValueDate)>=MONTH(A58),V75-(1-VLOOKUP(FundCodeS,Reference!$A:$E,5,0))*V74+M58,0) -> 0 | G58: =IF(MONTH(ValueDate)>=MONTH(A58),W75-(1-VLOOKUP(FundCodeS,Reference!$A:$E,5,0))*W74+N58,0) -> 0 | I58: =IF(MONTH(ValueDate)>=MONTH(A58),X75-(1-VLOOKUP(FundCodeS,Reference!$A:$E,5,0))*X74+(AA75-(1-VLOOKUP(FundCodeS,Reference!$A:$E,5,0))*AA74)+O58,0) -> 0 | J58: 0 | L58: x | M58: =IFERROR(OFFSET(BudgetHistory!$Q$1,MATCH(YEAR(ValueDate),BudgetHistory!$A:$A,0)+MONTH($A58)-1,4),0) -> 0 | N58: =IFERROR(OFFSET(BudgetHistory!$Q$1,MATCH(YEAR(ValueDate),BudgetHistory!$A:$A,0)+MONTH($A58)-1,5),0) -> 0 | O58: =IFERROR(OFFSET(BudgetHistory!$Q$1,MATCH(YEAR(ValueDate),BudgetHistory!$A:$A,0)+MONTH($A58)-1,6),0) -> 0 | U58: OTHIncomeEVal | W58: =-SUMIFS(InTBYTD!$F:$F,InTBYTD!$C:$C,FundCodeS,InTBYTD!$A:$A,ValueDate,InTBYTD!$J:$J,"DI",InTBYTD!$K:$K,0) -> 35.65 | Y58: 35.65
A59: 2H | B59: =SUM(B53:B58) -> 122424.4183 | C59: =SUM(C53:C58) -> 33937.24841 | D59: =SUM(D53:D58) -> 3638.333333 | E59: 32662986 | F59: =SUM(F53:F58) -> 41395.58 | G59: =SUM(G53:G58) -> 18160 | I59: =SUM(I53:I58) -> 13795.64 | J59: =SUM(J53:J58) -> 73351.22 | U59: AmortAcreePLEnd | W59: =SUMIFS(InTBYTD!$F:$F,InTBYTD!$C:$C,FundCodeS,InTBYTD!$A:$A,EOMONTH(ValueDate,-MONTH(ValueDate)),InTBYTD!$G:$G,"PRINTI",InTBYTD!$H:$H,"PRAMCB")+SUMIFS(InTBYTD!$F:$F,InTBYTD!$C:$C,FundCodeS,InTBYTD!$A:$A,EOMONTH(ValueDate,-MONTH(ValueDate)),InTBYTD!$G:$G,"PRINTI",InTBYTD!$H:$H,"PRDSCB") -> 0
U60: AmortAcreePLVal | W60: =SUMIFS(InTBYTD!$F:$F,InTBYTD!$C:$C,FundCodeS,InTBYTD!$A:$A,ValueDate,InTBYTD!$G:$G,"PRINTI",InTBYTD!$H:$H,"PRAMCB")+SUMIFS(InTBYTD!$F:$F,InTBYTD!$C:$C,FundCodeS,InTBYTD!$A:$A,ValueDate,InTBYTD!$G:$G,"PRINTI",InTBYTD!$H:$H,"PRDSCB") -> 0
A61: TOTAL | B61: =+B51+B59 -> 122424.4183 | C61: =+C51+C59 -> 33937.24841 | D61: =D51+D59 -> 3638.333333 | E61: =SUM(B61:D61) -> 160000 | F61: =F51+F59 -> 41395.58 | G61: =G51+G59 -> 18160 | I61: =I51+I59 -> 13795.64 | J61: =J51+J59 -> 73351.22
V62: RGValD | W62: DIValD | X62: INCValD | Y62: CPayValD | Z62: CRecValD | AA62: OTHIncomeEVal | AC62: qKLSESector | AD62: SectorName
A63: Sector Exposure | B63: FBMS | C63: Portfolio (Bursa) | D63: Portfolio (Internal) | L63: Sector Name | M63: qKLSESector | N63: qIntSector | O63: KLSEMV | P63: INTMV | U63: =DATE(YEAR(ValueDate)-1,12,31) -> 2016-12-31 | V63: =-SUMIFS(InTBYTD!$F:$F,InTBYTD!$C:$C,FundCodeS,InTBYTD!$A:$A,U63,InTBYTD!$J:$J,"RG",InTBYTD!$K:$K,"EQT") -> 0 | W63: =-SUMIFS(InTBYTD!$F:$F,InTBYTD!$C:$C,FundCodeS,InTBYTD!$A:$A,U63,InTBYTD!$J:$J,"DI",InTBYTD!$K:$K,"EQT")-SUMIFS(InTBYTD!$F:$F,InTBYTD!$C:$C,FundCodeS,InTBYTD!$A:$A,U63,InTBYTD!$H:$H,"PREWHT") -> 0 | X63: =-SUMIFS(InTBYTD!$F:$F,InTBYTD!$C:$C,FundCodeS,InTBYTD!$A:$A,U63,InTBYTD!$J:$J,"INC",InTBYTD!$K:$K,"CSH") -> 0 | Y63: =-SUMIFS(InTBYTD!$F:$F,InTBYTD!$C:$C,FundCodeS,InTBYTD!$A:$A,U63,InTBYTD!$G:$G,"PRINTI",InTBYTD!$H:$H,"PRINCB") -> 0 | AA63: =-SUMIFS(InTBYTD!$F:$F,InTBYTD!$C:$C,FundCodeS,InTBYTD!$A:$A,U63,InTBYTD!$J:$J,"DI",InTBYTD!$K:$K,0) -> 0 | AC63: 1 | AD63: Closed-End Fund
A64: Automobile | B64: 0.0152 | C64: =IFERROR(O64/$D$11,0) -> 0 | D64: 0 | L64: Automobile | M64: N/A | N64: 101 | O64: =SUMIFS(InPos!$I:$I,InPos!$J:$J,M64,InPos!$B:$B,FundCodeS) -> 0 | P64: =SUMIFS(InPos!$I:$I,InPos!$L:$L,N64,InPos!$B:$B,FundCodeS) -> 0 | T64: 1 | U64: =EOMONTH(DATE(YEAR(ValueDate),1,1),0) -> 2017-01-31 | V64: =-SUMIFS(InTBYTD!$F:$F,InTBYTD!$C:$C,FundCodeS,InTBYTD!$A:$A,IF(MONTH(ValueDate)=T64,ValueDate,U64),InTBYTD!$J:$J,"RG",InTBYTD!$K:$K,"EQT") -> 0 | W64: =-SUMIFS(InTBYTD!$F:$F,InTBYTD!$C:$C,FundCodeS,InTBYTD!$A:$A,IF(MONTH(ValueDate)=T64,ValueDate,U64),InTBYTD!$J:$J,"DI",InTBYTD!$K:$K,"EQT")-SUMIFS(InTBYTD!$F:$F,InTBYTD!$C:$C,FundCodeS,InTBYTD!$A:$A,IF(MONTH(ValueDate)=T64,ValueDate,U64),InTBYTD!$H:$H,"PREWHT") -> 0 | X64: =-SUMIFS(InTBYTD!$F:$F,InTBYTD!$C:$C,FundCodeS,InTBYTD!$A:$A,IF(MONTH(ValueDate)=T64,ValueDate,U64),InTBYTD!$J:$J,"INC",InTBYTD!$K:$K,"CSH") -> 0 | Y64: =-SUMIFS(InTBYTD!$F:$F,InTBYTD!$C:$C,FundCodeS,InTBYTD!$A:$A,IF(MONTH(ValueDate)=T64,ValueDate,U64),InTBYTD!$G:$G,"PRINTI",InTBYTD!$H:$H,"PRINCB") -> 0 | AA64: =-SUMIFS(InTBYTD!$F:$F,InTBYTD!$C:$C,FundCodeS,InTBYTD!$A:$A,IF(MONTH(ValueDate)=T64,ValueDate,U64),InTBYTD!$J:$J,"DI",InTBYTD!$K:$K,0) -> 0 | AC64: 97 | AD64: Collective Investment Scheme
A65: Building Materials | B65: 0.0122 | C65: 0 | D65: 0 | L65: Building Materials | M65: N/A | N65: 102 | O65: =SUMIFS(InPos!$I:$I,InPos!$J:$J,M65,InPos!$B:$B,FundCodeS) -> 0 | P65: =SUMIFS(InPos!$I:$I,InPos!$L:$L,N65,InPos!$B:$B,FundCodeS) -> 0 | T65: 2 | U65: =EOMONTH(DATE(YEAR(ValueDate),2,1),0) -> 2017-02-28 | V65: =-SUMIFS(InTBYTD!$F:$F,InTBYTD!$C:$C,FundCodeS,InTBYTD!$A:$A,IF(MONTH(ValueDate)=T65,ValueDate,U65),InTBYTD!$J:$J,"RG",InTBYTD!$K:$K,"EQT") -> 0 | W65: =-SUMIFS(InTBYTD!$F:$F,InTBYTD!$C:$C,FundCodeS,InTBYTD!$A:$A,IF(MONTH(ValueDate)=T65,ValueDate,U65),InTBYTD!$J:$J,"DI",InTBYTD!$K:$K,"EQT")-SUMIFS(InTBYTD!$F:$F,InTBYTD!$C:$C,FundCodeS,InTBYTD!$A:$A,IF(MONTH(ValueDate)=T65,ValueDate,U65),InTBYTD!$H:$H,"PREWHT") -> 0 | X65: =-SUMIFS(InTBYTD!$F:$F,InTBYTD!$C:$C,FundCodeS,InTBYTD!$A:$A,IF(MONTH(ValueDate)=T65,ValueDate,U65),InTBYTD!$J:$J,"INC",InTBYTD!$K:$K,"CSH") -> 0 | Y65: =-SUMIFS(InTBYTD!$F:$F,InTBYTD!$C:$C,FundCodeS,InTBYTD!$A:$A,IF(MONTH(ValueDate)=T65,ValueDate,U65),InTBYTD!$G:$G,"PRINTI",InTBYTD!$H:$H,"PRINCB") -> 0 | AA65: =-SUMIFS(InTBYTD!$F:$F,InTBYTD!$C:$C,FundCodeS,InTBYTD!$A:$A,IF(MONTH(ValueDate)=T65,ValueDate,U65),InTBYTD!$J:$J,"DI",InTBYTD!$K:$K,0) -> 0 | AC65: 98 | AD65: Collective Investment Scheme
A66: Construction | B66: 0.0618 | C66: 0.09815864343 | D66: 0.09815864343 | L66: Construction | M66: 2 | N66: 3 | O66: =SUMIFS(InPos!$I:$I,InPos!$J:$J,M66,InPos!$B:$B,FundCodeS) -> 401590 | P66: =SUMIFS(InPos!$I:$I,InPos!$L:$L,N66,InPos!$B:$B,FundCodeS) -> 401590 | T66: 3 | U66: =EOMONTH(DATE(YEAR(ValueDate),3,1),0) -> 2017-03-31 | V66: =-SUMIFS(InTBYTD!$F:$F,InTBYTD!$C:$C,FundCodeS,InTBYTD!$A:$A,IF(MONTH(ValueDate)=T66,ValueDate,U66),InTBYTD!$J:$J,"RG",InTBYTD!$K:$K,"EQT") -> 0 | W66: =-SUMIFS(InTBYTD!$F:$F,InTBYTD!$C:$C,FundCodeS,InTBYTD!$A:$A,IF(MONTH(ValueDate)=T66,ValueDate,U66),InTBYTD!$J:$J,"DI",InTBYTD!$K:$K,"EQT")-SUMIFS(InTBYTD!$F:$F,InTBYTD!$C:$C,FundCodeS,InTBYTD!$A:$A,IF(MONTH(ValueDate)=T66,ValueDate,U66),InTBYTD!$H:$H,"PREWHT") -> 0 | X66: =-SUMIFS(InTBYTD!$F:$F,InTBYTD!$C:$C,FundCodeS,InTBYTD!$A:$A,IF(MONTH(ValueDate)=T66,ValueDate,U66),InTBYTD!$J:$J,"INC",InTBYTD!$K:$K,"CSH") -> 0 | Y66: =-SUMIFS(InTBYTD!$F:$F,InTBYTD!$C:$C,FundCodeS,InTBYTD!$A:$A,IF(MONTH(ValueDate)=T66,ValueDate,U66),InTBYTD!$G:$G,"PRINTI",InTBYTD!$H:$H,"PRINCB") -> 0 | AA66: =-SUMIFS(InTBYTD!$F:$F,InTBYTD!$C:$C,FundCodeS,InTBYTD!$A:$A,IF(MONTH(ValueDate)=T66,ValueDate,U66),InTBYTD!$J:$J,"DI",InTBYTD!$K:$K,0) -> 0 | AC66: 99 | AD66: Collective Investment Scheme
A67: Consumer | B67: 0.0088 | C67: 0 | D67: 0 | L67: Consumer | M67: 3 | N67: 4 | O67: =SUMIFS(InPos!$I:$I,InPos!$J:$J,M67,InPos!$B:$B,FundCodeS) -> 0 | P67: =SUMIFS(InPos!$I:$I,InPos!$L:$L,N67,InPos!$B:$B,FundCodeS) -> 0 | T67: 4 | U67: =EOMONTH(DATE(YEAR(ValueDate),4,1),0) -> 2017-04-30 | V67: =-SUMIFS(InTBYTD!$F:$F,InTBYTD!$C:$C,FundCodeS,InTBYTD!$A:$A,IF(MONTH(ValueDate)=T67,ValueDate,U67),InTBYTD!$J:$J,"RG",InTBYTD!$K:$K,"EQT") -> 0 | W67: =-SUMIFS(InTBYTD!$F:$F,InTBYTD!$C:$C,FundCodeS,InTBYTD!$A:$A,IF(MONTH(ValueDate)=T67,ValueDate,U67),InTBYTD!$J:$J,"DI",InTBYTD!$K:$K,"EQT")-SUMIFS(InTBYTD!$F:$F,InTBYTD!$C:$C,FundCodeS,InTBYTD!$A:$A,IF(MONTH(ValueDate)=T67,ValueDate,U67),InTBYTD!$H:$H,"PREWHT") -> 0 | X67: =-SUMIFS(InTBYTD!$F:$F,InTBYTD!$C:$C,FundCodeS,InTBYTD!$A:$A,IF(MONTH(ValueDate)=T67,ValueDate,U67),InTBYTD!$J:$J,"INC",InTBYTD!$K:$K,"CSH") -> 0 | Y67: =-SUMIFS(InTBYTD!$F:$F,InTBYTD!$C:$C,FundCodeS,InTBYTD!$A:$A,IF(MONTH(ValueDate)=T67,ValueDate,U67),InTBYTD!$G:$G,"PRINTI",InTBYTD!$H:$H,"PRINCB") -> 0 | AA67: =-SUMIFS(InTBYTD!$F:$F,InTBYTD!$C:$C,FundCodeS,InTBYTD!$A:$A,IF(MONTH(ValueDate)=T67,ValueDate,U67),InTBYTD!$J:$J,"DI",InTBYTD!$K:$K,0) -> 0 | AC67: 2 | AD67: Construction
A68: Education | B68: 0 | C68: 0 | D68: 0 | L68: Education | M68: N/A | N68: N/A | O68: =SUMIFS(InPos!$I:$I,InPos!$J:$J,M68,InPos!$B:$B,FundCodeS) -> 0 | P68: =SUMIFS(InPos!$I:$I,InPos!$L:$L,N68,InPos!$B:$B,FundCodeS) -> 0 | T68: 5 | U68: =EOMONTH(DATE(YEAR(ValueDate),5,1),0) -> 2017-05-31 | V68: =-SUMIFS(InTBYTD!$F:$F,InTBYTD!$C:$C,FundCodeS,InTBYTD!$A:$A,IF(MONTH(ValueDate)=T68,ValueDate,U68),InTBYTD!$J:$J,"RG",InTBYTD!$K:$K,"EQT") -> 0 | W68: =-SUMIFS(InTBYTD!$F:$F,InTBYTD!$C:$C,FundCodeS,InTBYTD!$A:$A,IF(MONTH(ValueDate)=T68,ValueDate,U68),InTBYTD!$J:$J,"DI",InTBYTD!$K:$K,"EQT")-SUMIFS(InTBYTD!$F:$F,InTBYTD!$C:$C,FundCodeS,InTBYTD!$A:$A,IF(MONTH(ValueDate)=T68,ValueDate,U68),InTBYTD!$H:$H,"PREWHT") -> 0 | X68: =-SUMIFS(InTBYTD!$F:$F,InTBYTD!$C:$C,FundCodeS,InTBYTD!$A:$A,IF(MONTH(ValueDate)=T68,ValueDate,U68),InTBYTD!$J:$J,"INC",InTBYTD!$K:$K,"CSH") -> 0 | Y68: =-SUMIFS(InTBYTD!$F:$F,InTBYTD!$C:$C,FundCodeS,InTBYTD!$A:$A,IF(MONTH(ValueDate)=T68,ValueDate,U68),InTBYTD!$G:$G,"PRINTI",InTBYTD!$H:$H,"PRINCB") -> 0 | AA68: =-SUMIFS(InTBYTD!$F:$F,InTBYTD!$C:$C,FundCodeS,InTBYTD!$A:$A,IF(MONTH(ValueDate)=T68,ValueDate,U68),InTBYTD!$J:$J,"DI",InTBYTD!$K:$K,0) -> 0 | AC68: 36 | AD68: Consumer Discretionary
A69: ETF | B69: 0 | C69: =IFERROR(O69/$D$11,0) -> 0 | D69: =IFERROR(P69/$D$11,0) -> 0 | L69: ETF | M69: N/A | N69: N/A | O69: =SUMIFS(InPos!$I:$I,InPos!$J:$J,M69,InPos!$B:$B,FundCodeS) -> 0 | P69: =SUMIFS(InPos!$I:$I,InPos!$L:$L,N69,InPos!$B:$B,FundCodeS) -> 0 | T69: 6 | U69: =EOMONTH(DATE(YEAR(ValueDate),6,1),0) -> 2017-06-30 | V69: =-SUMIFS(InTBYTD!$F:$F,InTBYTD!$C:$C,FundCodeS,InTBYTD!$A:$A,IF(MONTH(ValueDate)=T69,ValueDate,U69),InTBYTD!$J:$J,"RG",InTBYTD!$K:$K,"EQT") -> 0 | W69: =-SUMIFS(InTBYTD!$F:$F,InTBYTD!$C:$C,FundCodeS,InTBYTD!$A:$A,IF(MONTH(ValueDate)=T69,ValueDate,U69),InTBYTD!$J:$J,"DI",InTBYTD!$K:$K,"EQT")-SUMIFS(InTBYTD!$F:$F,InTBYTD!$C:$C,FundCodeS,InTBYTD!$A:$A,IF(MONTH(ValueDate)=T69,ValueDate,U69),InTBYTD!$H:$H,"PREWHT") -> 0 | X69: =-SUMIFS(InTBYTD!$F:$F,InTBYTD!$C:$C,FundCodeS,InTBYTD!$A:$A,IF(MONTH(ValueDate)=T69,ValueDate,U69),InTBYTD!$J:$J,"INC",InTBYTD!$K:$K,"CSH") -> 0 | Y69: =-SUMIFS(InTBYTD!$F:$F,InTBYTD!$C:$C,FundCodeS,InTBYTD!$A:$A,IF(MONTH(ValueDate)=T69,ValueDate,U69),InTBYTD!$G:$G,"PRINTI",InTBYTD!$H:$H,"PRINCB") -> 0 | AA69: =-SUMIFS(InTBYTD!$F:$F,InTBYTD!$C:$C,FundCodeS,InTBYTD!$A:$A,IF(MONTH(ValueDate)=T69,ValueDate,U69),InTBYTD!$J:$J,"DI",InTBYTD!$K:$K,0) -> 0 | AC69: 3 | AD69: Consumer Prod
A70: Finance | B70: 0.0078 | C70: 0.4919917552 | D70: =IFERROR(P70/$D$11,0) -> 0 | L70: Finance | M70: 4 | N70: 6 | O70: =SUMIFS(InPos!$I:$I,InPos!$J:$J,M70,InPos!$B:$B,FundCodeS) -> 2012853.5 | P70: =SUMIFS(InPos!$I:$I,InPos!$L:$L,N70,InPos!$B:$B,FundCodeS) -> 0 | T70: 7 | U70: =EOMONTH(DATE(YEAR(ValueDate),7,1),0) -> 2017-07-31 | V70: =-SUMIFS(InTBYTD!$F:$F,InTBYTD!$C:$C,FundCodeS,InTBYTD!$A:$A,IF(MONTH(ValueDate)=T70,ValueDate,U70),InTBYTD!$J:$J,"RG",InTBYTD!$K:$K,"EQT") -> 0 | W70: =-SUMIFS(InTBYTD!$F:$F,InTBYTD!$C:$C,FundCodeS,InTBYTD!$A:$A,IF(MONTH(ValueDate)=T70,ValueDate,U70),InTBYTD!$J:$J,"DI",InTBYTD!$K:$K,"EQT")-SUMIFS(InTBYTD!$F:$F,InTBYTD!$C:$C,FundCodeS,InTBYTD!$A:$A,IF(MONTH(ValueDate)=T70,ValueDate,U70),InTBYTD!$H:$H,"PREWHT") -> 0 | X70: =-SUMIFS(InTBYTD!$F:$F,InTBYTD!$C:$C,FundCodeS,InTBYTD!$A:$A,IF(MONTH(ValueDate)=T70,ValueDate,U70),InTBYTD!$J:$J,"INC",InTBYTD!$K:$K,"CSH") -> 7582.3 | Y70: =-SUMIFS(InTBYTD!$F:$F,InTBYTD!$C:$C,FundCodeS,InTBYTD!$A:$A,IF(MONTH(ValueDate)=T70,ValueDate,U70),InTBYTD!$G:$G,"PRINTI",InTBYTD!$H:$H,"PRINCB") -> 0 | AA70: =-SUMIFS(InTBYTD!$F:$F,InTBYTD!$C:$C,FundCodeS,InTBYTD!$A:$A,IF(MONTH(ValueDate)=T70,ValueDate,U70),InTBYTD!$J:$J,"DI",InTBYTD!$K:$K,0) -> 32.9 | AC70: 30 | AD70: Consumer Staples
A71: Healthcare | B71: 0.0653 | C71: 0 | D71: 0 | L71: Healthcare | M71: 32 | N71: 32 | O71: =SUMIFS(InPos!$I:$I,InPos!$J:$J,M71,InPos!$B:$B,FundCodeS) -> 0 | P71: =SUMIFS(InPos!$I:$I,InPos!$L:$L,N71,InPos!$B:$B,FundCodeS) -> 0 | T71: 8 | U71: =EOMONTH(DATE(YEAR(ValueDate),8,1),0) -> 2017-08-31 | V71: =-SUMIFS(InTBYTD!$F:$F,InTBYTD!$C:$C,FundCodeS,InTBYTD!$A:$A,IF(MONTH(ValueDate)=T71,ValueDate,U71),InTBYTD!$J:$J,"RG",InTBYTD!$K:$K,"EQT") -> 31268.88 | W71: =-SUMIFS(InTBYTD!$F:$F,InTBYTD!$C:$C,FundCodeS,InTBYTD!$A:$A,IF(MONTH(ValueDate)=T71,ValueDate,U71),InTBYTD!$J:$J,"DI",InTBYTD!$K:$K,"EQT")-SUMIFS(InTBYTD!$F:$F,InTBYTD!$C:$C,FundCodeS,InTBYTD!$A:$A,IF(MONTH(ValueDate)=T71,ValueDate,U71),InTBYTD!$H:$H,"PREWHT") -> 18160 | X71: =-SUMIFS(InTBYTD!$F:$F,InTBYTD!$C:$C,FundCodeS,InTBYTD!$A:$A,IF(MONTH(ValueDate)=T71,ValueDate,U71),InTBYTD!$J:$J,"INC",InTBYTD!$K:$K,"CSH") -> 12906.62 | Y71: =-SUMIFS(InTBYTD!$F:$F,InTBYTD!$C:$C,FundCodeS,InTBYTD!$A:$A,IF(MONTH(ValueDate)=T71,ValueDate,U71),InTBYTD!$G:$G,"PRINTI",InTBYTD!$H:$H,"PRINCB") -> 0 | AA71: =-SUMIFS(InTBYTD!$F:$F,InTBYTD!$C:$C,FundCodeS,InTBYTD!$A:$A,IF(MONTH(ValueDate)=T71,ValueDate,U71),InTBYTD!$J:$J,"DI",InTBYTD!$K:$K,0) -> 35.65 | AC71: 39 | AD71: Consumer, Cyclical
A72: Industrial Products | B72: 0 | C72: 0.1148968687 | D72: 0.05026600518 | L72: Industrial Products | M72: 6 | N72: 103 | O72: =SUMIFS(InPos!$I:$I,InPos!$J:$J,M72,InPos!$B:$B,FundCodeS) -> 470070 | P72: =SUMIFS(InPos!$I:$I,InPos!$L:$L,N72,InPos!$B:$B,FundCodeS) -> 205650 | T72: 9 | U72: =EOMONTH(DATE(YEAR(ValueDate),9,1),0) -> 2017-09-30 | V72: =-SUMIFS(InTBYTD!$F:$F,InTBYTD!$C:$C,FundCodeS,InTBYTD!$A:$A,IF(MONTH(ValueDate)=T72,ValueDate,U72),InTBYTD!$J:$J,"RG",InTBYTD!$K:$K,"EQT") -> 41395.58 | W72: =-SUMIFS(InTBYTD!$F:$F,InTBYTD!$C:$C,FundCodeS,InTBYTD!$A:$A,IF(MONTH(ValueDate)=T72,ValueDate,U72),InTBYTD!$J:$J,"DI",InTBYTD!$K:$K,"EQT")-SUMIFS(InTBYTD!$F:$F,InTBYTD!$C:$C,FundCodeS,InTBYTD!$A:$A,IF(MONTH(ValueDate)=T72,ValueDate,U72),InTBYTD!$H:$H,"PREWHT") -> 18160 | X72: =-SUMIFS(InTBYTD!$F:$F,InTBYTD!$C:$C,FundCodeS,InTBYTD!$A:$A,IF(MONTH(ValueDate)=T72,ValueDate,U72),InTBYTD!$J:$J,"INC",InTBYTD!$K:$K,"CSH") -> 13759.99 | Y72: =-SUMIFS(InTBYTD!$F:$F,InTBYTD!$C:$C,FundCodeS,InTBYTD!$A:$A,IF(MONTH(ValueDate)=T72,ValueDate,U72),InTBYTD!$G:$G,"PRINTI",InTBYTD!$H:$H,"PRINCB") -> 0 | AA72: =-SUMIFS(InTBYTD!$F:$F,InTBYTD!$C:$C,FundCodeS,InTBYTD!$A:$A,IF(MONTH(ValueDate)=T72,ValueDate,U72),InTBYTD!$J:$J,"DI",InTBYTD!$K:$K,0) -> 35.65 | AC72: 40 | AD72: Consumer, Non-cyclical
A73: Infrastructure Project Company | B73: 0 | C73: 0 | D73: 0 | L73: Infrastructure Project Company | M73: 7 | N73: N/A | O73: =SUMIFS(InPos!$I:$I,InPos!$J:$J,M73,InPos!$B:$B,FundCodeS) -> 0 | P73: =SUMIFS(InPos!$I:$I,InPos!$L:$L,N73,InPos!$B:$B,FundCodeS) -> 0 | T73: 10 | U73: =EOMONTH(DATE(YEAR(ValueDate),10,1),0) -> 2017-10-31 | V73: =-SUMIFS(InTBYTD!$F:$F,InTBYTD!$C:$C,FundCodeS,InTBYTD!$A:$A,IF(MONTH(ValueDate)=T73,ValueDate,U73),InTBYTD!$J:$J,"RG",InTBYTD!$K:$K,"EQT") -> 0 | W73: =-SUMIFS(InTBYTD!$F:$F,InTBYTD!$C:$C,FundCodeS,InTBYTD!$A:$A,IF(MONTH(ValueDate)=T73,ValueDate,U73),InTBYTD!$J:$J,"DI",InTBYTD!$K:$K,"EQT")-SUMIFS(InTBYTD!$F:$F,InTBYTD!$C:$C,FundCodeS,InTBYTD!$A:$A,IF(MONTH(ValueDate)=T73,ValueDate,U73),InTBYTD!$H:$H,"PREWHT") -> 0 | X73: =-SUMIFS(InTBYTD!$F:$F,InTBYTD!$C:$C,FundCodeS,InTBYTD!$A:$A,IF(MONTH(ValueDate)=T73,ValueDate,U73),InTBYTD!$J:$J,"INC",InTBYTD!$K:$K,"CSH") -> 0 | Y73: =-SUMIFS(InTBYTD!$F:$F,InTBYTD!$C:$C,FundCodeS,InTBYTD!$A:$A,IF(MONTH(ValueDate)=T73,ValueDate,U73),InTBYTD!$G:$G,"PRINTI",InTBYTD!$H:$H,"PRINCB") -> 0 | AA73: =-SUMIFS(InTBYTD!$F:$F,InTBYTD!$C:$C,FundCodeS,InTBYTD!$A:$A,IF(MONTH(ValueDate)=T73,ValueDate,U73),InTBYTD!$J:$J,"DI",InTBYTD!$K:$K,0) -> 0 | AC73: 80 | AD73: Currency Forward
A74: Media | B74: 0 | C74: 0 | D74: 0 | L74: Media | M74: N/A | N74: 11 | O74: =SUMIFS(InPos!$I:$I,InPos!$J:$J,M74,InPos!$B:$B,FundCodeS) -> 0 | P74: =SUMIFS(InPos!$I:$I,InPos!$L:$L,N74,InPos!$B:$B,FundCodeS) -> 0 | T74: 11 | U74: =EOMONTH(DATE(YEAR(ValueDate),11,1),0) -> 2017-11-30 | V74: =-SUMIFS(InTBYTD!$F:$F,InTBYTD!$C:$C,FundCodeS,InTBYTD!$A:$A,IF(MONTH(ValueDate)=T74,ValueDate,U74),InTBYTD!$J:$J,"RG",InTBYTD!$K:$K,"EQT") -> 0 | W74: =-SUMIFS(InTBYTD!$F:$F,InTBYTD!$C:$C,FundCodeS,InTBYTD!$A:$A,IF(MONTH(ValueDate)=T74,ValueDate,U74),InTBYTD!$J:$J,"DI",InTBYTD!$K:$K,"EQT")-SUMIFS(InTBYTD!$F:$F,InTBYTD!$C:$C,FundCodeS,InTBYTD!$A:$A,IF(MONTH(ValueDate)=T74,ValueDate,U74),InTBYTD!$H:$H,"PREWHT") -> 0 | X74: =-SUMIFS(InTBYTD!$F:$F,InTBYTD!$C:$C,FundCodeS,InTBYTD!$A:$A,IF(MONTH(ValueDate)=T74,ValueDate,U74),InTBYTD!$J:$J,"INC",InTBYTD!$K:$K,"CSH") -> 0 | Y74: =-SUMIFS(InTBYTD!$F:$F,InTBYTD!$C:$C,FundCodeS,InTBYTD!$A:$A,IF(MONTH(ValueDate)=T74,ValueDate,U74),InTBYTD!$G:$G,"PRINTI",InTBYTD!$H:$H,"PRINCB") -> 0 | AA74: =-SUMIFS(InTBYTD!$F:$F,InTBYTD!$C:$C,FundCodeS,InTBYTD!$A:$A,IF(MONTH(ValueDate)=T74,ValueDate,U74),InTBYTD!$J:$J,"DI",InTBYTD!$K:$K,0) -> 0 | AC74: 41 | AD74: Diversified
A75: Oil & Gas | B75: 0.1202 | C75: 0 | D75: 0 | L75: Oil & Gas | M75: N/A | N75: 12 | O75: =SUMIFS(InPos!$I:$I,InPos!$J:$J,M75,InPos!$B:$B,FundCodeS) -> 0 | P75: =SUMIFS(InPos!$I:$I,InPos!$L:$L,N75,InPos!$B:$B,FundCodeS) -> 0 | T75: 12 | U75: =EOMONTH(DATE(YEAR(ValueDate),12,1),0) -> 2017-12-31 | V75: =-SUMIFS(InTBYTD!$F:$F,InTBYTD!$C:$C,FundCodeS,InTBYTD!$A:$A,IF(MONTH(ValueDate)=T75,ValueDate,U75),InTBYTD!$J:$J,"RG",InTBYTD!$K:$K,"EQT") -> 0 | W75: =-SUMIFS(InTBYTD!$F:$F,InTBYTD!$C:$C,FundCodeS,InTBYTD!$A:$A,IF(MONTH(ValueDate)=T75,ValueDate,U75),InTBYTD!$J:$J,"DI",InTBYTD!$K:$K,"EQT")-SUMIFS(InTBYTD!$F:$F,InTBYTD!$C:$C,FundCodeS,InTBYTD!$A:$A,IF(MONTH(ValueDate)=T75,ValueDate,U75),InTBYTD!$H:$H,"PREWHT") -> 0 | X75: =-SUMIFS(InTBYTD!$F:$F,InTBYTD!$C:$C,FundCodeS,InTBYTD!$A:$A,IF(MONTH(ValueDate)=T75,ValueDate,U75),InTBYTD!$J:$J,"INC",InTBYTD!$K:$K,"CSH") -> 0 | Y75: =-SUMIFS(InTBYTD!$F:$F,InTBYTD!$C:$C,FundCodeS,InTBYTD!$A:$A,IF(MONTH(ValueDate)=T75,ValueDate,U75),InTBYTD!$G:$G,"PRINTI",InTBYTD!$H:$H,"PRINCB") -> 0 | AA75: =-SUMIFS(InTBYTD!$F:$F,InTBYTD!$C:$C,FundCodeS,InTBYTD!$A:$A,IF(MONTH(ValueDate)=T75,ValueDate,U75),InTBYTD!$J:$J,"DI",InTBYTD!$K:$K,0) -> 0 | AC75: 34 | AD75: Energy
A76: Plantation | B76: 0.1607 | C76: 0 | D76: 0 | L76: Plantation | M76: 9 | N76: 13 | O76: =SUMIFS(InPos!$I:$I,InPos!$J:$J,M76,InPos!$B:$B,FundCodeS) -> 0 | P76: =SUMIFS(InPos!$I:$I,InPos!$L:$L,N76,InPos!$B:$B,FundCodeS) -> 0 | AC76: 4 | AD76: Finance
A77: Properties | B77: 0.0396 | C77: 0.07430520581 | D77: 0.07430520581 | L77: Properties | M77: 11 | N77: 16 | O77: =SUMIFS(InPos!$I:$I,InPos!$J:$J,M77,InPos!$B:$B,FundCodeS) -> 304000 | P77: =SUMIFS(InPos!$I:$I,InPos!$L:$L,N77,InPos!$B:$B,FundCodeS) -> 304000 | AC77: 31 | AD77: Financials
A78: Real Estate | B78: 0.0054 | C78: 0 | D78: 0 | L78: Real Estate | M78: 44 | N78: 44 | O78: =SUMIFS(InPos!$I:$I,InPos!$J:$J,M78,InPos!$B:$B,FundCodeS) -> 0 | P78: =SUMIFS(InPos!$I:$I,InPos!$L:$L,N78,InPos!$B:$B,FundCodeS) -> 0 | AC78: 95 | AD78: Fixed Deposits
A79: Rubber Gloves | B79: 0 | C79: 0 | D79: 0.06463086356 | L79: Rubber Gloves | M79: N/A | N79: 104 | O79: =SUMIFS(InPos!$I:$I,InPos!$J:$J,M79,InPos!$B:$B,FundCodeS) -> 0 | P79: =SUMIFS(InPos!$I:$I,InPos!$L:$L,N79,InPos!$B:$B,FundCodeS) -> 264420 | AC79: 45 | AD79: Food, Beverage & Tobacco
A80: Technology | B80: 0 | C80: 0 | D80: 0 | L80: Technology | M80: 12 | N80: 46 | O80: =SUMIFS(InPos!$I:$I,InPos!$J:$J,M80,InPos!$B:$B,FundCodeS) -> 0 | P80: =SUMIFS(InPos!$I:$I,InPos!$L:$L,N80,InPos!$B:$B,FundCodeS) -> 0 | AC80: 43 | AD80: Funds
A81: Transportations & Logistics | B81: 0 | C81: 0 | D81: 0 | L81: Transportations & Logistics | M81: N/A | N81: 105 | O81: =SUMIFS(InPos!$I:$I,InPos!$J:$J,M81,InPos!$B:$B,FundCodeS) -> 0 | P81: =SUMIFS(InPos!$I:$I,InPos!$L:$L,N81,InPos!$B:$B,FundCodeS) -> 0 | AC81: 32 | AD81: Health Care
A82: Telecommunications | B82: 0.2649 | C82: 0 | D82: 0 | L82: Telecommunications | M82: 37 | N82: 106 | O82: =SUMIFS(InPos!$I:$I,InPos!$J:$J,M82,InPos!$B:$B,FundCodeS) -> 0 | P82: =SUMIFS(InPos!$I:$I,InPos!$L:$L,N82,InPos!$B:$B,FundCodeS) -> 0 | AC82: 47 | AD82: Highway
A83: Trading & Service | B83: 0.0565 | C83: 0 | D83: 0 | L83: Trdg/Service | M83: 13 | N83: 21 | O83: =SUMIFS(InPos!$I:$I,InPos!$J:$J,M83,InPos!$B:$B,FundCodeS) -> 0 | P83: =SUMIFS(InPos!$I:$I,InPos!$L:$L,N83,InPos!$B:$B,FundCodeS) -> 0 | AC83: 5 | AD83: Hotels
A84: Utilities | B84: 0.1816 | C84: 0 | D84: 0 | L84: Utilities | M84: 42 | N84: 42 | O84: =SUMIFS(InPos!$I:$I,InPos!$J:$J,M84,InPos!$B:$B,FundCodeS) -> 0 | P84: =SUMIFS(InPos!$I:$I,InPos!$L:$L,N84,InPos!$B:$B,FundCodeS) -> 0
AC85: 6 | AD85: Industrial Prod
A86: Total | B86: =SUM(B64:B85) -> 1 | C86: =SUM(C64:C85) -> 0.7793524732 | D86: =SUM(D64:D85) -> 0.287360718 | AC86: 38 | AD86: Industrials
AC87: 35 | AD87: Information Technology
AC88: 7 | AD88: Infrastructure Project Company
AC89: 18 | AD89: Loan
AC90: 33 | AD90: Materials
AC91: 16 | AD91: Mesdaq
AC92: 8 | AD92: Mining
AC93: 96 | AD93: Money Market Placement
AC94: 0 | AD94: Others
AC95: 9 | AD95: Plantation
AC96: 10 | AD96: PN4-Condition
AC97: 46 | AD97: Power
AC98: 11 | AD98: Properties
AC99: 44 | AD99: Real Estate
AC100: 12 | AD100: Technology
AC101: 37 | AD101: Telecommunication Services
AC102: 13 | AD102: Trdg/Service
AC103: 14 | AD103: Trust
AC104: 15 | AD104: Unlisted Stock
AC105: 42 | AD105: Utilities
AC106: 17 | AD106: Warrant

Sheet TAWAS Portfolio Valuation
A2: ="PORTFOLIO VALUATION REPORT - TAWAS AS AT " & TEXT(ValueDate,"dd-mmm-yy") -> PORTFOLIO VALUATION REPORT - TAWAS AS AT 15-Sep-17
A4: qFundCode | B4: IVCAPTAWAS
A6: Row Labels | B6: Stock | C6: Quantity | D6: Cost Per Share | E6: Total Cost | F6: Price | G6: Total Market Value | H6: Unrealised Gain/(Loss) | I6: % Gain/(Loss) | J6: % Port NAV | K6: Div Yield (Cost) | L6: Div Yield (Mkt) | M6: Beta | N6: Fwd P/E | O6: Fwd P/B | P6: RSI_14D
A7: Construction
A8: 1 | B8: GAMUDA BHD | C8: 40000 | D8: 5.3742 | E8: 214966.35 | F8: 5.38 | G8: 215200 | H8: 233.65 | I8: 0.1086914301 | J8: 5.260026411 | K8: 2.251497897 | L8: 2.249070632 | M8: 1.025594 | N8: 17.94964029 | O8: 1.689133219 | P8: 55.5685
A9: 2 | B9: IJM CORPORATION BHD | C9: 54500 | D9: 3.369 | E9: 183612.08 | F9: 3.42 | G9: 186390 | H9: 2777.92 | I9: 1.512928779 | J9: 4.555837931 | K9: 2.552686257 | L9: 2.514619883 | M9: 1.074726 | N9: 20.18072289 | O9: 1.319974312 | P9: 54.06523
A10: INDUSTRIAL PRODUCTS
A11: 3 | B11: SERBA DINAMIK HOLDINGS BERHAD | C11: 91400 | D11: 2.2256 | E11: 203419.09 | F11: 2.25 | G11: 205650 | H11: 2230.91 | I11: 1.096706312 | J11: 5.026600518 | K11: 2.381380302 | L11: 2.355555556 | M11: 0 | N11: 9.444444444 | O11: 0 | P11: 0
A12: Others
A13: 4 | B13: MYETF DOW JONES ISLAMIC MARKET MALAYSIA | C13: 894700 | D13: 1.0955 | E13: 980137.63 | F13: 1.105 | G13: 988643.5 | H13: 8505.87 | I13: 0.8678240422 | J13: 24.16492064 | K13: 0 | L13: 0 | M13: 0 | N13: 0 | O13: 0 | P13: 0
A14: 5 | B14: MyETF MSCI Malaysia Islamic Dividend | C14: 931100 | D14: 1.0789 | E14: 1004519.57 | F14: 1.1 | G14: 1024210 | H14: 19690.43 | I14: 1.960183812 | J14: 25.03425488 | K14: 0 | L14: 0 | M14: 0 | N14: 0 | O14: 0 | P14: 0
A15: Property
A16: 6 | B16: MAH SING GROUP BHD | C16: 200000 | D16: 1.5612 | E16: 312247.94 | F16: 1.52 | G16: 304000 | H16: -8247.94 | I16: -2.64147139 | J16: 7.430520581 | K16: 4.035357417 | L16: 4.144736842 | M16: 0.6388163 | N16: 9.586206897 | O16: 1.018547289 | P16: 30.50273
A17: RUBBER GLOVES
A18: 7 | B18: KOSSAN RUBBER INDUSTRIES BERHAD | C18: 39000 | D18: 6.9395 | E18: 270640.01 | F18: 6.78 | G18: 264420 | H18: -6220.01 | I18: -2.298259596 | J18: 6.463086356 | K18: 0 | L18: 0 | M18: 0 | N18: 0 | O18: 0 | P18: 0
B200: TOTAL | E200: =SUM(E1:E199) -> 3169542.67 | G200: =SUM(G1:G199) -> 3188513.5 | H200: =SUM(H1:H199) -> 18970.83 | I200: =IFERROR(H200/E200*100,0) -> 0.5985352455 | J200: =SUM(J1:J199) -> 77.93524732 | K200: =IFERROR(SUMPRODUCT(K1:K199,E1:E199)/E200,0) -> 0.8509589092 | L200: =IFERROR(SUMPRODUCT(L1:L199,G1:G199)/G200,0) -> 0.8458863354 | M200: =IFERROR(SUMPRODUCT(M1:M199,$J$1:$J$199)/100,0) -> 0.1503766667 | N200: =IFERROR(SUMPRODUCT(N1:N199,$G$1:$G$199)/$G$200,0) -> 3.91427053 | O200: =IFERROR(SUMPRODUCT(O1:O199,$G$1:$G$199)/$G$200,0) -> 0.2882753536
B202: CASH | G202: =SUMIFS(InPosCsh!J:J,InPosCsh!C:C,B4,InPosCsh!B:B,"CSH")+SUMIFS(InRValuation!F:F,InRValuation!A:A,"TBI",InRValuation!B:B,B4) -> 902720.71
B203: Profit on Sales of Shares | G203: ='TAWAS Summary'!Y47-(1-VLOOKUP(B4,Reference!$A:$E,5,0))*'TAWAS Summary'!Y46+SUM('TAWAS Summary'!M45:M50,'TAWAS Summary'!M53:M58) -> 41395.58
B204: Dividend Received | G204: ='TAWAS Summary'!Y49-(1-VLOOKUP(B4,Reference!$A:$E,5,0))*'TAWAS Summary'!Y48+SUM('TAWAS Summary'!N45:N50,'TAWAS Summary'!N53:N58) -> 18160
B205: Profit Income | G205: ='TAWAS Summary'!Y52-(1-VLOOKUP(B4,Reference!$A:$E,5,0))*'TAWAS Summary'!Y51+'TAWAS Summary'!W58-(1-VLOOKUP(B4,Reference!$A:$E,5,0))*'TAWAS Summary'!W57+SUM('TAWAS Summary'!O45:O50,'TAWAS Summary'!O53:O58) -> 13795.64
B206: Total Realised Income | G206: =SUM(G203:G205) -> 73351.22
B209: GRAND TOTAL | E209: =E200+G202 -> 4072263.38 | G209: =G200+G202 -> 4091234.21 | H209: =H200 -> 18970.83 | I209: =IFERROR(H209/E209*100,0) -> 0.4658546914

Sheet BudgetHistory
B1: KWAP Equity | I1: KWAP Sukuk | R1: TAWAS Equity
A2: 2016 | B2: CG | C2: DI | D2: Pro Inc | E2: CG(Extra) | F2: DI(Extra) | G2: Pro Inc(Extra) | I2: CG | J2: Cpn Inc | K2: Pro Inc | L2: (Amortisation)/ Accretion | M2: CG(Extra) | N2: Cpn Inc(Extra) | O2: Pro Inc(Extra) | P2: (Amortisation)/ Accretion(Extra) | R2: CG | S2: DI | T2: Pro Inc | U2: CG(Extra) | V2: DI(Extra) | W2: Pro Inc(Extra)
A3: 1 | B3: 3513195 | C3: 928615 | D3: 95451 | G3: 673.55 | I3: 201775.2685 | J3: 567588.7671 | K3: 3944.760346 | L3: -24584.53856 | N3: 1850.95
A4: 2 | B4: 3545523 | C4: 1352893 | D4: 114541 | G4: -673.57 | I4: 198754.764 | J4: 530970.137 | K4: 3944.760346 | L4: -24216.5167
A5: 3 | B5: 3630957 | C5: 1534547 | D5: 171811 | F5: -0.01 | I5: 200633.8797 | J5: 567588.7671 | K5: 31876.85128 | L5: -24445.47039
A6: 4 | B6: 3657453 | C6: 1223552 | D6: 248172 | I6: 196430.2283 | J6: 549279.4521 | K6: 3984.60641 | L6: -23933.2925
A7: 5 | B7: 3662560 | C7: 2671339 | D7: 190901 | E7: -384.73 | I7: 196068.3245 | J7: 567588.7671 | K7: 3984.60641 | L7: -23889.19772
A8: 6 | B8: 3702846 | C8: 2313578 | D8: 229082 | I8: 196430.2283 | J8: 549279.4521 | K8: 19923.03205 | L8: -23933.2925
A9: 7 | B9: 3725420 | C9: 556232 | D9: 248172 | I9: 197850.0046 | J9: 567588.7671 | K9: 35861.45769 | L9: -24106.27974
A10: 8 | B10: 3695982 | C10: 1678427 | D10: 267262 | I10: 194189.2088 | J10: 567588.7671 | K10: 19923.03205 | L10: -23660.24403
A11: 9 | B11: 3691896 | C11: 2670759 | D11: 209992 | E11: 0.02 | I11: 191669.8019 | J11: 549279.4521 | K11: 3984.60641 | L11: -23353.27649
A12: 10 | B12: 3804867 | C12: 130900 | D12: 267262 | I12: 191419.2531 | J12: 567588.7671 | K12: 3984.60641 | L12: -23322.74933
A13: 11 | B13: 3744357 | C13: 734076 | D13: 190901 | I13: 196611.1802 | J13: 549279.4521 | K13: 39846.0641 | L13: -23955.3399
A14: 12 | B14: 3825235 | C14: 2992167 | D14: 229082 | I14: 201900.5429 | J14: 567588.7671 | K14: 51799.88334 | L14: -24599.80214
A16: 2017
A17: 1 | B17: 3056618 | C17: 444796.6 | D17: 190618.0677 | I17: 167305.356 | J17: 519568.4932 | K17: 7375 | L17: -24001.9639
A18: 2 | B18: 3046836 | C18: 1482821.36 | D18: 124502.5353 | I18: 167286.0362 | J18: 469287.6712 | K18: 51625 | L18: -23999.19224
A19: 3 | B19: 3061462 | C19: 1230949.4 | D19: 133395.5735 | I19: 167276.5382 | J19: 519568.4932 | K19: 62687.5 | L19: -23997.82964
A20: 4 | B20: 3093607 | C20: 721450 | D20: 151181.65 | I20: 167289.2742 | J20: 502808.2192 | K20: 11062.5 | L20: -23999.65677
A21: 5 | B21: 3163212 | C21: 1725548.41 | D21: 177860.7647 | I21: 167271.7892 | J21: 519568.4932 | K21: 55312.5 | L21: -23997.14834
A22: 6 | B22: 3166376 | C22: 2678584.68 | D22: 182307.2838 | I22: 167270.7099 | J22: 502808.2192 | K22: 62687.5 | L22: -23996.9935
A23: 7 | B23: 3170809 | C23: 372504 | D23: 186753.8029 | I23: 167289.8138 | J23: 519568.4932 | K23: 44250 | L23: -23999.73419 | R23: 20431.43984 | S23: 13144.59665 | T23: 491.6666667
A24: 8 | B24: 3211078 | C24: 2068740.08 | D24: 213432.9176 | I24: 167293.1597 | J24: 519568.4932 | K24: 25812.5 | L24: -24000.2142 | R24: 19990.12074 | S24: 10593.36682 | T24: 983.3333333
A25: 9 | B25: 3141719 | C25: 637645 | D25: 160074.6882 | I25: 167303.5212 | J25: 502808.2192 | K25: 14750 | L25: -24001.70067 | R25: 20024.10394 | S25: 4613.953488 | T25: 393.3333333
A26: 10 | B26: 3136378 | C26: 477630.9 | D26: 151181.65 | I26: 167303.9529 | J26: 519568.4932 | K26: 7375 | L26: -24001.76261 | R26: 20292.42694 | S26: 0 | T26: 590
A27: 11 | B27: 3178405 | C27: 1084695.667 | D27: 177860.7647 | I27: 167288.4107 | J27: 502808.2192 | K27: 62687.5 | L27: -23999.5329 | R27: 20698.27547 | S27: 0 | T27: 393.3333333
A28: 12 | B28: 3241337 | C28: 3831333.95 | D28: 213432.9176 | I28: 167321.4379 | J28: 519568.4932 | K28: 7375 | L28: -24004.27104 | R28: 20988.05133 | S28: 5585.331453 | T28: 786.6666667
A30: 2018
A31: 1
A32: 2
A33: 3
A34: 4
A35: 5
A36: 6
A37: 7
A38: 8
A39: 9
A40: 10
A41: 11
A42: 12
A44: 2019
A45: 1
A46: 2
A47: 3
A48: 4
A49: 5
A50: 6
A51: 7
A52: 8
A53: 9
A54: 10
A55: 11
A56: 12
A58: 2020
A59: 1
A60: 2
A61: 3
A62: 4
A63: 5
A64: 6
A65: 7
A66: 8
A67: 9
A68: 10
A69: 11
A70: 12

Sheet InRValuation
CV1: =IF(AND(A1="BND",B1="KWAPSUKUK"),IFERROR(MDURATION(CG1,AE1,AD1,CE1,AB1,AC1),0),0) -> 0 | CW1: =IFERROR(D1/SUMIFS(D:D,B:B,"KWAPSUKUK",A:A,"BND"),0) -> 0 | CX1: =IF(CW1=0,0,CV1*CW1) -> 0 | CY1: =IF(CW1=0,0,CE1*CW1) -> 0
A2: qProductType | B2: qFundCode | C2: qStockCode | D2: UnitFaceValue | E2: MarketValueSC | F2: MarketValueFC | G2: qFundGrpCode | H2: ExchangeRate | I2: LCD | J2: NCD | K2: MaturityDateCSH | L2: CostFC | M2: CostSC | N2: AccruedInterestFC | O2: AccruedInterestSC | P2: UnrealisedGainsStock | Q2: UnrealisedGainsExchg | R2: PriceCurr | S2: FundName | T2: FundCurrency | U2: MaxTenor | V2: qCompanyID | W2: StockName | X2: StockCurrency | Y2: qAssetClass | Z2: AssetClassDesc | AA2: SectorName | AB2: Frequency | AC2: ExcelBasis | AD2: Coupon | AE2: MaturityDateBND | AF2: Term | AG2: qCPCode | AH2: CPName | AI2: CurrencyName | AJ2: ProductTypeDesc | AK2: EQTSource | AL2: AmortAccreation | AM2: SecDesc | AN2: ExPreAcq | AO2: ExPreAcqSC | AP2: IssuedSize | AQ2: Exchange | AR2: IslamicFlag | AS2: IssuerName | AT2: IssuerGrpName | AU2: qStockType | AV2: Board | AW2: BoardDesc | AX2: qBondType | AY2: BndDesc | AZ2: StockTypeDesc | BA2: qManagerCode | BB2: qCountryID | BC2: FreezeUnit | BD2: FundDesc | BE2: Rating | BF2: NAV | BG2: ExchgName | BH2: qCshType | BI2: CshTypeDesc | BJ2: CashFlag | BK2: DebitAmtSC | BL2: CreditAmtSC | BM2: ConsoTotalSC | BN2: DebitAmtFC | BO2: CreditAmtFC | BP2: ConsoTotalFC | BQ2: qRptGrpID | BR2: RptGrpDesc | BS2: qRptGrp1ID | BT2: RptGrp1Desc | BU2: qRptGrp2ID | BV2: RptGrp2Desc | BW2: ShortGL | BX2: GLCode | BY2: ValuationGL | BZ2: UTFlag | CA2: qKLSESector | CB2: ValuationMethod | CC2: qRptSequence | CD2: fPercNAV | CE2: PurchaseYTM | CF2: PurchaseDate | CG2: MarketValueDate | CH2: BookValue | CI2: ValueYTM | CJ2: ValGains | CK2: PreAcqSC | CL2: PreAcqFC | CM2: FundGrpName | CN2: InternalSectorName | CO2: LastMarketValue | CP2: Basis | CQ2: fRefPrice | CR2: Diminution | CS2: qAccType | CT2: Islamic | CU2: TradeDate | CV2: Mdf Dur | CW2: Weighted Average | CX2: Mdf Dur WA (KSUKUK) | CY2: Purchase YTM WA (KSUKUK)
A3: EQT | B3: KWAP | C3: 1961 | D3: 1420000 | E3: 6617200 | F3: 6617200 | G3: KWAP | H3: 1 | I3: 3000-01-01 | J3: 3000-01-01 | K3: 3000-01-01 | L3: 6449359.78 | M3: 6449359.78 | N3: 0 | O3: 0 | P3: 167840.22 | Q3: 0 | R3: 4.66 | S3: KWAP (i-VCAP Syariah) | T3: MYR | U3: 365 | V3: IV | W3: IOICORP | X3: MYR | Y3: EQT | Z3: Equity | AA3: Plantation | AI3: Ringgit Malaysia | AJ3: EQUITY | AK3: 1 | AL3: 0 | AM3: IOI CORPORATION BHD | AN3: 0 | AO3: 0 | AP3: 6436152504 | AQ3: KLSE | AR3: 1 | AS3: IOI Corporation Berhad | AT3: IOI Corporation Berhad | AU3: ORD | AV3: MB | AW3: Main Board | AZ3: Listed Shares | BA3: N/A | BB3: MY | BD3: KWAP (i-VCAP Syariah) | BF3: 701537070.2 | BG3: KUALA LUMPUR STOCK EXCHANGE | BK3: 0 | BL3: 0 | BM3: 0 | BN3: 0 | BO3: 0 | BP3: 0 | BY3: FALSE | BZ3: 0 | CA3: 9 | CB3: 0 | CC3: 1 | CD3: 0.9432430987 | CE3: 0 | CF3: 2017-03-31 | CG3: 2017-09-15 | CH3: 6449359.78 | CI3: 0 | CJ3: 28400 | CK3: 0 | CL3: 0 | CM3: KWAP | CN3: Plantation | CO3: 0 | CQ3: 0 | CR3: 0 | CS3: SHLI | CT3: 0 | CU3: 2017-03-31 | CV3: 0 | CW3: 0.01014285714 | CX3: 0 | CY3: 0
A4: EQT | B4: KWAP | C4: 2089 | D4: 36700 | E4: 990900 | F4: 990900 | G4: KWAP | H4: 1 | I4: 3000-01-01 | J4: 3000-01-01 | K4: 3000-01-01 | L4: 682171.12 | M4: 682171.12 | N4: 0 | O4: 0 | P4: 308728.88 | Q4: 0 | R4: 27 | S4: KWAP (i-VCAP Syariah) | T4: MYR | U4: 365 | V4: IV | W4: UTDPLT | X4: MYR | Y4: EQT | Z4: Equity | AA4: Plantation | AI4: Ringgit Malaysia | AJ4: EQUITY | AK4: 1 | AL4: 0 | AM4: UNITED PLANTATIONS BHD | AN4: 0 | AO4: 0 | AP4: 208134266 | AQ4: KLSE | AR4: 1 | AS4: United Plantations Bhd | AT4: United Plantations Bhd | AU4: ORD | AV4: MB | AW4: Main Board | AZ4: Listed Shares | BA4: N/A | BB4: MY | BD4: KWAP (i-VCAP Syariah) | BF4: 701537070.2 | BG4: KUALA LUMPUR STOCK EXCHANGE | BK4: 0 | BL4: 0 | BM4: 0 | BN4: 0 | BO4: 0 | BP4: 0 | BY4: FALSE | BZ4: 0 | CA4: 9 | CB4: 0 | CC4: 1 | CD4: 0.1412469907 | CE4: 0 | CF4: 2014-04-04 | CG4: 2017-09-15 | CH4: 682171.12 | CI4: 0 | CJ4: 14680 | CK4: 0 | CL4: 0 | CM4: KWAP | CN4: Plantation | CO4: 0 | CQ4: 0 | CR4: 0 | CS4: SHLI | CT4: 0 | CU4: 2014-04-04 | CV4: 0 | CW4: 0.0002621428571 | CX4: 0 | CY4: 0
A5: EQT | B5: KWAP | C5: 2445 | D5: 367700 | E5: 9045420 | F5: 9045420 | G5: KWAP | H5: 1 | I5: 3000-01-01 | J5: 3000-01-01 | K5: 3000-01-01 | L5: 8774242.29 | M5: 8774242.29 | N5: 0 | O5: 0 | P5: 271177.71 | Q5: 0 | R5: 24.6 | S5: KWAP (i-VCAP Syariah) | T5: MYR | U5: 365 | V5: IV | W5: KLK | X5: MYR | Y5: EQT | Z5: Equity | AA5: Plantation | AI5: Ringgit Malaysia | AJ5: EQUITY | AK5: 1 | AL5: 0 | AM5: KUALA LUMPUR KEPONG BHD | AN5: 0 | AO5: 0 | AP5: 1067504692 | AQ5: KLSE | AR5: 1 | AS5: Kuala Lumpur Kepong Berhad | AT5: Kuala Lumpur Kepong Berhad | AU5: ORD | AV5: MB | AW5: Main Board | AZ5: Listed Shares | BA5: N/A | BB5: MY | BD5: KWAP (i-VCAP Syariah) | BF5: 701537070.2 | BG5: KUALA LUMPUR STOCK EXCHANGE | BK5: 0 | BL5: 0 | BM5: 0 | BN5: 0 | BO5: 0 | BP5: 0 | BY5: FALSE | BZ5: 0 | CA5: 9 | CB5: 0 | CC5: 1 | CD5: 1.289371636 | CE5: 0 | CF5: 2014-04-04 | CG5: 2017-09-15 | CH5: 8774242.29 | CI5: 0 | CJ5: 0 | CK5: 0 | CL5: 0 | CM5: KWAP | CN5: Plantation | CO5: 0 | CQ5: 0 | CR5: 0 | CS5: SHLI | CT5: 0 | CU5: 2014-04-04 | CV5: 0 | CW5: 0.002626428571 | CX5: 0 | CY5: 0
A6: EQT | B6: KWAP | C6: 3336 | D6: 7708500 | E6: 26363070 | F6: 26363070 | G6: KWAP | H6: 1 | I6: 3000-01-01 | J6: 3000-01-01 | K6: 3000-01-01 | L6: 26523815.8 | M6: 26523815.8 | N6: 0 | O6: 0 | P6: -160745.8 | Q6: 0 | R6: 3.42 | S6: KWAP (i-VCAP Syariah) | T6: MYR | U6: 365 | V6: IV | W6: IJM | X6: MYR | Y6: EQT | Z6: Equity | AA6: Construction | AI6: Ringgit Malaysia | AJ6: EQUITY | AK6: 1 | AL6: 0 | AM6: IJM CORPORATION BHD | AN6: 0 | AO6: 0 | AP6: 1403709377 | AQ6: KLSE | AR6: 1 | AS6: IJM Corp Bhd | AT6: IJM Corp Bhd | AU6: ORD | AV6: MB | AW6: Main Board | AZ6: Listed Shares | BA6: N/A | BB6: MY | BD6: KWAP (i-VCAP Syariah) | BF6: 701537070.2 | BG6: KUALA LUMPUR STOCK EXCHANGE | BK6: 0 | BL6: 0 | BM6: 0 | BN6: 0 | BO6: 0 | BP6: 0 | BY6: FALSE | BZ6: 0 | CA6: 2 | CB6: 0 | CC6: 1 | CD6: 3.757901203 | CE6: 0 | CF6: 2014-04-04 | CG6: 2017-09-15 | CH6: 26523815.8 | CI6: 0 | CJ6: -308340 | CK6: 0 | CL6: 0 | CM6: KWAP | CN6: Construction | CO6: 0 | CQ6: 0 | CR6: 0 | CS6: SHLI | CT6: 0 | CU6: 2014-04-04 | CV6: 0 | CW6: 0.05506071429 | CX6: 0 | CY6: 0
A7: EQT | B7: KWAP | C7: 3794 | D7: 1552000 | E7: 10088000 | F7: 10088000 | G7: KWAP | H7: 1 | I7: 3000-01-01 | J7: 3000-01-01 | K7: 3000-01-01 | L7: 14582781.97 | M7: 14582781.97 | N7: 0 | O7: 0 | P7: -4494781.97 | Q7: 0 | R7: 6.5 | S7: KWAP (i-VCAP Syariah) | T7: MYR | U7: 365 | V7: IV | W7: LMCEMNT | X7: MYR | Y7: EQT | Z7: Equity | AA7: Industrial Prod | AI7: Ringgit Malaysia | AJ7: EQUITY | AK7: 1 | AL7: 0 | AM7: LAFARGE MALAYSIA BHD | AN7: 0 | AO7: 0 | AP7: 849695476 | AQ7: KLSE | AR7: 1 | AS7: Lafarge Malayan Cement Berhad | AT7: Lafarge Malayan Cement Berhad | AU7: ORD | AV7: MB | AW7: Main Board | AZ7: Listed Shares | BA7: N/A | BB7: MY | BD7: KWAP (i-VCAP Syariah) | BF7: 701537070.2 | BG7: KUALA LUMPUR STOCK EXCHANGE | BK7: 0 | BL7: 0 | BM7: 0 | BN7: 0 | BO7: 0 | BP7: 0 | BY7: FALSE | BZ7: 0 | CA7: 6 | CB7: 0 | CC7: 1 | CD7: 1.437985308 | CE7: 0 | CF7: 2014-04-04 | CG7: 2017-09-15 | CH7: 14582781.97 | CI7: 0 | CJ7: 310206.5 | CK7: 0 | CL7: 0 | CM7: KWAP | CN7: BUILDING MATERIALS | CO7: 0 | CQ7: 0 | CR7: 0 | CS7: SHLI | CT7: 0 | CU7: 2014-04-04 | CV7: 0 | CW7: 0.01108571429 | CX7: 0 | CY7: 0
A8: EQT | B8: KWAP | C8: 3816 | D8: 2867800 | E8: 21107008 | F8: 21107008 | G8: KWAP | H8: 1 | I8: 3000-01-01 | J8: 3000-01-01 | K8: 3000-01-01 | L8: 22637164.86 | M8: 22637164.86 | N8: 0 | O8: 0 | P8: -1530156.86 | Q8: 0 | R8: 7.36 | S8: KWAP (i-VCAP Syariah) | T8: MYR | U8: 365 | V8: IV | W8: MISC | X8: MYR | Y8: EQT | Z8: Equity | AA8: Trdg/Service | AI8: Ringgit Malaysia | AJ8: EQUITY | AK8: 1 | AL8: 0 | AM8: MISC BHD | AN8: 0 | AO8: 0 | AP8: 4463793103 | AQ8: KLSE | AR8: 1 | AS8: MISC Berhad | AT8: MISC Berhad | AU8: ORD | AV8: MB | AW8: Main Board | AZ8: Listed Shares | BA8: N/A | BB8: MY | BD8: KWAP (i-VCAP Syariah) | BF8: 701537070.2 | BG8: KUALA LUMPUR STOCK EXCHANGE | BK8: 0 | BL8: 0 | BM8: 0 | BN8: 0 | BO8: 0 | BP8: 0 | BY8: FALSE | BZ8: 0 | CA8: 13 | CB8: 0 | CC8: 1 | CD8: 3.008680353 | CE8: 0 | CF8: 2016-03-30 | CG8: 2017-09-15 | CH8: 22637164.86 | CI8: 0 | CJ8: 28678 | CK8: 0 | CL8: 0 | CM8: KWAP | CN8: TRANSPORTATIONS & LOGISTICS | CO8: 0 | CQ8: 0 | CR8: 0 | CS8: SHLI | CT8: 0 | CU8: 2016-03-30 | CV8: 0 | CW8: 0.02048428571 | CX8: 0 | CY8: 0
A9: EQT | B9: KWAP | C9: 4197 | D9: 7157400 | E9: 65848080 | F9: 65848080 | G9: KWAP | H9: 1 | I9: 3000-01-01 | J9: 3000-01-01 | K9: 3000-01-01 | L9: 67145466.81 | M9: 67145466.81 | N9: 0 | O9: 0 | P9: -1297386.81 | Q9: 0 | R9: 9.2 | S9: KWAP (i-VCAP Syariah) | T9: MYR | U9: 365 | V9: IV | W9: SIME | X9: MYR | Y9: EQT | Z9: Equity | AA9: Trdg/Service | AI9: Ringgit Malaysia | AJ9: EQUITY | AK9: 1 | AL9: 0 | AM9: SIME DARBY BHD | AN9: 0 | AO9: 0 | AP9: 6009463832 | AQ9: KLSE | AR9: 1 | AS9: Sime Darby Berhad | AT9: Sime Darby Berhad | AU9: ORD | AV9: MB | AW9: Main Board | AZ9: Listed Shares | BA9: N/A | BB9: MY | BD9: KWAP (i-VCAP Syariah) | BF9: 701537070.2 | BG9: KUALA LUMPUR STOCK EXCHANGE | BK9: 0 | BL9: 0 | BM9: 0 | BN9: 0 | BO9: 0 | BP9: 0 | BY9: FALSE | BZ9: 0 | CA9: 13 | CB9: 0 | CC9: 1 | CD9: 9.386258089 | CE9: 0 | CF9: 2014-04-04 | CG9: 2017-09-15 | CH9: 67145466.81 | CI9: 0 | CJ9: -71574 | CK9: 0 | CL9: 0 | CM9: KWAP | CN9: Plantation | CO9: 0 | CQ9: 0 | CR9: 0 | CS9: SHLI | CT9: 0 | CU9: 2014-04-04 | CV9: 0 | CW9: 0.05112428571 | CX9: 0 | CY9: 0
A10: EQT | B10: KWAP | C10: 4588 | D10: 2117800 | E10: 11584366 | F10: 11584366 | G10: KWAP | H10: 1 | I10: 3000-01-01 | J10: 3000-01-01 | K10: 3000-01-01 | L10: 24774626.05 | M10: 24774626.05 | N10: 0 | O10: 0 | P10: -13190260.05 | Q10: 0 | R10: 5.47 | S10: KWAP (i-VCAP Syariah) | T10: MYR | U10: 365 | V10: IV | W10: UMW | X10: MYR | Y10: EQT | Z10: Equity | AA10: Consumer Prod | AI10: Ringgit Malaysia | AJ10: EQUITY | AK10: 1 | AL10: 0 | AM10: UMW HOLDINGS BHD | AN10: 0 | AO10: 0 | AP10: 1168293932 | AQ10: KLSE | AR10: 1 | AS10: UMW Holdings Berhad | AT10: UMW Holdings Berhad | AU10: ORD | AV10: MB | AW10: Main Board | AZ10: Listed Shares | BA10: N/A | BB10: MY | BD10: KWAP (i-VCAP Syariah) | BF10: 701537070.2 | BG10: KUALA LUMPUR STOCK EXCHANGE | BK10: 0 | BL10: 0 | BM10: 0 | BN10: 0 | BO10: 0 | BP10: 0 | BY10: FALSE | BZ10: 0 | CA10: 3 | CB10: 0 | CC10: 1 | CD10: 1.651283516 | CE10: 0 | CF10: 2014-04-04 | CG10: 2017-09-15 | CH10: 24774626.05 | CI10: 0 | CJ10: -169424 | CK10: 0 | CL10: 0 | CM10: KWAP | CN10: Automobile | CO10: 0 | CQ10: 0 | CR10: 0 | CS10: SHLI | CT10: 0 | CU10: 2014-04-04 | CV10: 0 | CW10: 0.01512714286 | CX10: 0 | CY10: 0
A11: EQT | B11: KWAP | C11: 4863 | D11: 4126600 | E11: 26451506 | F11: 26451506 | G11: KWAP | H11: 1 | I11: 3000-01-01 | J11: 3000-01-01 | K11: 3000-01-01 | L11: 26129296.52 | M11: 26129296.52 | N11: 0 | O11: 0 | P11: 322209.48 | Q11: 0 | R11: 6.41 | S11: KWAP (i-VCAP Syariah) | T11: MYR | U11: 365 | V11: IV | W11: TELEKOM | X11: MYR | Y11: EQT | Z11: Equity | AA11: Trdg/Service | AI11: Ringgit Malaysia | AJ11: EQUITY | AK11: 1 | AL11: 0 | AM11: TELEKOM MALAYSIA BHD | AN11: 0 | AO11: 0 | AP11: 3577402041 | AQ11: KLSE | AR11: 1 | AS11: Telekom Malaysisa Berhad | AT11: Telekom Malaysisa Berhad | AU11: ORD | AV11: MB | AW11: Main Board | AZ11: Listed Shares | BA11: N/A | BB11: MY | BD11: KWAP (i-VCAP Syariah) | BF11: 701537070.2 | BG11: KUALA LUMPUR STOCK EXCHANGE | BK11: 0 | BL11: 0 | BM11: 0 | BN11: 0 | BO11: 0 | BP11: 0 | BY11: FALSE | BZ11: 0 | CA11: 13 | CB11: 0 | CC11: 1 | CD11: 3.770507237 | CE11: 0 | CF11: 2016-08-09 | CG11: 2017-09-15 | CH11: 26129296.52 | CI11: 0 | CJ11: -41266 | CK11: 0 | CL11: 0 | CM11: KWAP | CN11: TELECOMMUNICATIONS | CO11: 0 | CQ11: 0 | CR11: 0 | CS11: SHLI | CT11: 0 | CU11: 2016-08-09 | CV11: 0 | CW11: 0.02947571429 | CX11: 0 | CY11: 0
A12: EQT | B12: KWAP | C12: 5012 | D12: 2546000 | E12: 9369280 | F12: 9369280 | G12: KWAP | H12: 1 | I12: 3000-01-01 | J12: 3000-01-01 | K12: 3000-01-01 | L12: 9809714.5 | M12: 9809714.5 | N12: 0 | O12: 0 | P12: -440434.5 | Q12: 0 | R12: 3.68 | S12: KWAP (i-VCAP Syariah) | T12: MYR | U12: 365 | V12: IV | W12: TAANN | X12: MYR | Y12: EQT | Z12: Equity | AA12: Industrial Prod | AI12: Ringgit Malaysia | AJ12: EQUITY | AK12: 1 | AL12: 0 | AM12: TA ANN HOLDINGS BHD | AN12: 0 | AO12: 0 | AP12: 214631118 | AQ12: KLSE | AR12: 1 | AS12: TA ANN HOLDINGS | AT12: TA ANN HOLDINGS | AU12: ORD | AV12: MB | AW12: Main Board | AZ12: Listed Shares | BA12: N/A | BB12: MY | BD12: KWAP (i-VCAP Syariah) | BF12: 701537070.2 | BG12: KUALA LUMPUR STOCK EXCHANGE | BK12: 0 | BL12: 0 | BM12: 0 | BN12: 0 | BO12: 0 | BP12: 0 | BY12: FALSE | BZ12: 0 | CA12: 6 | CB12: 0 | CC12: 1 | CD12: 1.335535982 | CE12: 0 | CF12: 2016-05-10 | CG12: 2017-09-15 | CH12: 9809714.5 | CI12: 0 | CJ12: 50920 | CK12: 0 | CL12: 0 | CM12: KWAP | CN12: INDUSTRIAL PRODUCTS | CO12: 0 | CQ12: 0 | CR12: 0 | CS12: SHLI | CT12: 0 | CU12: 2016-05-10 | CV12: 0 | CW12: 0.01818571429 | CX12: 0 | CY12: 0
A13: EQT | B13: KWAP | C13: 5032 | D13: 468000 | E13: 2812680 | F13: 2812680 | G13: KWAP | H13: 1 | I13: 3000-01-01 | J13: 3000-01-01 | K13: 3000-01-01 | L13: 3180207.84 | M13: 3180207.84 | N13: 0 | O13: 0 | P13: -367527.84 | Q13: 0 | R13: 6.01 | S13: KWAP (i-VCAP Syariah) | T13: MYR | U13: 365 | V13: IV | W13: BIPORT | X13: MYR | Y13: EQT | Z13: Equity | AA13: Trdg/Service | AI13: Ringgit Malaysia | AJ13: EQUITY | AK13: 1 | AL13: 0 | AM13: BINTULU PORT HOLDINGS BHD | AN13: 0 | AO13: 0 | AP13: 400000000 | AQ13: KLSE | AR13: 1 | AS13: Bintulu Port Bhd | AT13: Bintulu Port Bhd | AU13: ORD | AV13: MB | AW13: Main Board | AZ13: Listed Shares | BA13: N/A | BB13: MY | BD13: KWAP (i-VCAP Syariah) | BF13: 701537070.2 | BG13: KUALA LUMPUR STOCK EXCHANGE | BK13: 0 | BL13: 0 | BM13: 0 | BN13: 0 | BO13: 0 | BP13: 0 | BY13: FALSE | BZ13: 0 | CA13: 13 | CB13: 0 | CC13: 1 | CD13: 0.4009310583 | CE13: 0 | CF13: 2014-04-04 | CG13: 2017-09-15 | CH13: 3180207.84 | CI13: 0 | CJ13: -74880 | CK13: 0 | CL13: 0 | CM13: KWAP | CN13: TRANSPORTATIONS & LOGISTICS | CO13: 0 | CQ13: 0 | CR13: 0 | CS13: SHLI | CT13: 0 | CU13: 2014-04-04 | CV13: 0 | CW13: 0.003342857143 | CX13: 0 | CY13: 0
A14: EQT | B14: KWAP | C14: 5071 | D14: 5522500 | E14: 6847900 | F14: 6847900 | G14: KWAP | H14: 1 | I14: 3000-01-01 | J14: 3000-01-01 | K14: 3000-01-01 | L14: 20663720.6 | M14: 20663720.6 | N14: 0 | O14: 0 | P14: -13815820.6 | Q14: 0 | R14: 1.24 | S14: KWAP (i-VCAP Syariah) | T14: MYR | U14: 365 | V14: IV | W14: COASTAL CONTRACTS BHD | X14: MYR | Y14: EQT | Z14: Equity | AA14: Industrial Prod | AI14: Ringgit Malaysia | AJ14: EQUITY | AK14: 1 | AL14: 0 | AM14: COASTAL CONTRACTS BHD | AN14: 0 | AO14: 0 | AP14: 100000000000 | AQ14: KLSE | AR14: 1 | AS14: Coastal Contracts Bhd | AT14: Coastal Contracts Bhd | AU14: ORD | AV14: MB | AW14: Main Board | AZ14: Listed Shares | BA14: N/A | BB14: MY | BD14: KWAP (i-VCAP Syariah) | BF14: 701537070.2 | BG14: KUALA LUMPUR STOCK EXCHANGE | BK14: 0 | BL14: 0 | BM14: 0 | BN14: 0 | BO14: 0 | BP14: 0 | BY14: FALSE | BZ14: 0 | CA14: 6 | CB14: 0 | CC14: 1 | CD14: 0.9761280324 | CE14: 0 | CF14: 2014-06-05 | CG14: 2017-09-15 | CH14: 20663720.6 | CI14: 0 | CJ14: 220900 | CK14: 0 | CL14: 0 | CM14: KWAP | CN14: TRANSPORTATIONS & LOGISTICS | CO14: 0 | CQ14: 0 | CR14: 0 | CS14: SHLI | CT14: 0 | CU14: 2014-06-05 | CV14: 0 | CW14: 0.03944642857 | CX14: 0 | CY14: 0
A15: EQT | B15: KWAP | C15: 5073 | D15: 5037600 | E15: 5994744 | F15: 5994744 | G15: KWAP | H15: 1 | I15: 3000-01-01 | J15: 3000-01-01 | K15: 3000-01-01 | L15: 11545425.23 | M15: 11545425.23 | N15: 0 | O15: 0 | P15: -5550681.23 | Q15: 0 | R15: 1.19 | S15: KWAP (i-VCAP Syariah) | T15: MYR | U15: 365 | V15: IV | W15: NAIM | X15: MYR | Y15: EQT | Z15: Equity | AA15: Properties | AI15: Ringgit Malaysia | AJ15: EQUITY | AK15: 1 | AL15: 0 | AM15: NAIM HOLDINGS BERHAD | AN15: 0 | AO15: 0 | AP15: 100000000 | AQ15: KLSE | AR15: 1 | AS15: Naim Holdings Bhd | AT15: Naim Holdings Bhd | AU15: ORD | AV15: MB | AW15: Main Board | AZ15: Listed Shares | BA15: N/A | BB15: MY | BD15: KWAP (i-VCAP Syariah) | BF15: 701537070.2 | BG15: KUALA LUMPUR STOCK EXCHANGE | BK15: 0 | BL15: 0 | BM15: 0 | BN15: 0 | BO15: 0 | BP15: 0 | BY15: FALSE | BZ15: 0 | CA15: 11 | CB15: 0 | CC15: 1 | CD15: 0.8545156421 | CE15: 0 | CF15: 2015-05-27 | CG15: 2017-09-15 | CH15: 11545425.23 | CI15: 0 | CJ15: 50376 | CK15: 0 | CL15: 0 | CM15: KWAP | CN15: Property | CO15: 0 | CQ15: 0 | CR15: 0 | CS15: SHLI | CT15: 0 | CU15: 2015-05-27 | CV15: 0 | CW15: 0.03598285714 | CX15: 0 | CY15: 0
A16: EQT | B16: KWAP | C16: 5077 | D16: 1665600 | E16: 1357464 | F16: 1357464 | G16: KWAP | H16: 1 | I16: 3000-01-01 | J16: 3000-01-01 | K16: 3000-01-01 | L16: 2360280.47 | M16: 2360280.47 | N16: 0 | O16: 0 | P16: -1002816.47 | Q16: 0 | R16: 0.815 | S16: KWAP (i-VCAP Syariah) | T16: MYR | U16: 365 | V16: IV | W16: MAYBULK | X16: MYR | Y16: EQT | Z16: Equity | AA16: Trdg/Service | AI16: Ringgit Malaysia | AJ16: EQUITY | AK16: 1 | AL16: 0 | AM16: MALAYSIAN BULK CARRIERS BERHAD | AN16: 0 | AO16: 0 | AP16: 1000000000000 | AQ16: KLSE | AR16: 1 | AS16: Malaysian Bulk Carriers | AT16: Malaysian Bulk Carriers | AU16: ORD | AV16: MB | AW16: Main Board | AZ16: Listed Shares | BA16: N/A | BB16: MY | BD16: KWAP (i-VCAP Syariah) | BF16: 701537070.2 | BG16: KUALA LUMPUR STOCK EXCHANGE | BK16: 0 | BL16: 0 | BM16: 0 | BN16: 0 | BO16: 0 | BP16: 0 | BY16: FALSE | BZ16: 0 | CA16: 13 | CB16: 0 | CC16: 1 | CD16: 0.1934985416 | CE16: 0 | CF16: 2014-10-31 | CG16: 2017-09-15 | CH16: 2360280.47 | CI16: 0 | CJ16: 33312 | CK16: 0 | CL16: 0 | CM16: KWAP | CN16: TRANSPORTATIONS & LOGISTICS | CO16: 0 | CQ16: 0 | CR16: 0 | CS16: SHLI | CT16: 0 | CU16: 2014-10-31 | CV16: 0 | CW16: 0.01189714286 | CX16: 0 | CY16: 0
A17: EQT | B17: KWAP | C17: 5106 | D17: 8710630 | E17: 13937008 | F17: 13937008 | G17: KWAP | H17: 1 | I17: 3000-01-01 | J17: 3000-01-01 | K17: 3000-01-01 | L17: 14327639.27 | M17: 14327639.27 | N17: 0 | O17: 0 | P17: -390631.27 | Q17: 0 | R17: 1.6 | S17: KWAP (i-VCAP Syariah) | T17: MYR | U17: 365 | V17: IV | W17: AXREIT | X17: MYR | Y17: CIS | Z17: Collective Investment | AA17: Real Estate | AI17: Ringgit Malaysia | AJ17: EQUITY | AK17: 1 | AL17: 0 | AM17: AXIS REAL ESTATE INVESTMENT TRUST | AN17: 0 | AO17: 0 | AP17: 205901000 | AQ17: KLSE | AR17: 1 | AS17: Axis REIT Bhd | AT17: Axis REIT Bhd | AU17: ORD | AV17: MB | AW17: Main Board | AZ17: Listed Shares | BA17: N/A | BB17: MY | BD17: KWAP (i-VCAP Syariah) | BF17: 701537070.2 | BG17: KUALA LUMPUR STOCK EXCHANGE | BK17: 0 | BL17: 0 | BM17: 0 | BN17: 0 | BO17: 0 | BP17: 0 | BY17: FALSE | BZ17: 0 | CA17: 44 | CB17: 0 | CC17: 1 | CD17: 1.986638852 | CE17: 0 | CF17: 2014-04-04 | CG17: 2017-09-15 | CH17: 14327639.27 | CI17: 0 | CJ17: -435531.5 | CK17: 0 | CL17: 0 | CM17: KWAP | CN17: Property | CO17: 0 | CQ17: 0 | CR17: 0 | CS17: REIT | CT17: 0 | CU17: 2014-04-04 | CV17: 0 | CW17: 0.06221878571 | CX17: 0 | CY17: 0
A18: EQT | B18: KWAP | C18: 5126 | D18: 2239900 | E18: 8892403 | F18: 8892403 | G18: KWAP | H18: 1 | I18: 3000-01-01 | J18: 3000-01-01 | K18: 3000-01-01 | L18: 8437464.12 | M18: 8437464.12 | N18: 0 | O18: 0 | P18: 454938.88 | Q18: 0 | R18: 3.97 | S18: KWAP (i-VCAP Syariah) | T18: MYR | U18: 365 | V18: IV | W18: SOP | X18: MYR | Y18: EQT | Z18: Equity | AA18: Plantation | AI18: Ringgit Malaysia | AJ18: EQUITY | AK18: 1 | AL18: 0 | AM18: SARAWAK OIL PALMS BERHAD | AN18: 0 | AO18: 0 | AP18: 442400000 | AQ18: KLSE | AR18: 1 | AS18: Sarawak Oil Palms Berhad | AT18: Sarawak Oil Palms Berhad | AU18: ORD | AV18: MB | AW18: Main Board | AZ18: Listed Shares | BA18: N/A | BB18: MY | BD18: KWAP (i-VCAP Syariah) | BF18: 701537070.2 | BG18: KUALA LUMPUR STOCK EXCHANGE | BK18: 0 | BL18: 0 | BM18: 0 | BN18: 0 | BO18: 0 | BP18: 0 | BY18: FALSE | BZ18: 0 | CA18: 9 | CB18: 0 | CC18: 1 | CD18: 1.267559959 | CE18: 0 | CF18: 2016-10-20 | CG18: 2017-09-15 | CH18: 8437464.12 | CI18: 0 | CJ18: 20258.35 | CK18: 0 | CL18: 0 | CM18: KWAP | CN18: Plantation | CO18: 0 | CQ18: 0 | CR18: 0 | CS18: SHLI | CT18: 0 | CU18: 2016-10-20 | CV18: 0 | CW18: 0.01599928571 | CX18: 0 | CY18: 0
A19: EQT | B19: KWAP | C19: 5131 | D19: 837300 | E19: 1423410 | F19: 1423410 | G19: KWAP | H19: 1 | I19: 3000-01-01 | J19: 3000-01-01 | K19: 3000-01-01 | L19: 1425656.63 | M19: 1425656.63 | N19: 0 | O19: 0 | P19: -2246.63 | Q19: 0 | R19: 1.7 | S19: KWAP (i-VCAP Syariah) | T19: MYR | U19: 365 | V19: IV | W19: ZHULIAN | X19: MYR | Y19: EQT | Z19: Equity | AA19: Consumer Prod | AI19: Ringgit Malaysia | AJ19: EQUITY | AK19: 1 | AL19: 0 | AM19: ZHULIAN CORPORATION BHD | AN19: 0 | AO19: 0 | AP19: 460000000 | AQ19: KLSE | AR19: 1 | AS19: Zhulian Corp. Bhd | AT19: Zhulian Corp. Bhd | AU19: ORD | AV19: MB | AW19: Main Board | AZ19: Listed Shares | BA19: N/A | BB19: MY | BD19: KWAP (i-VCAP Syariah) | BF19: 701537070.2 | BG19: KUALA LUMPUR STOCK EXCHANGE | BK19: 0 | BL19: 0 | BM19: 0 | BN19: 0 | BO19: 0 | BP19: 0 | BY19: FALSE | BZ19: 0 | CA19: 3 | CB19: 0 | CC19: 1 | CD19: 0.2028987577 | CE19: 0 | CF19: 2017-08-21 | CG19: 2017-09-15 | CH19: 1425656.63 | CI19: 0 | CJ19: -25119 | CK19: 0 | CL19: 0 | CM19: KWAP | CN19: Consumer | CO19: 0 | CQ19: 0 | CR19: 0 | CS19: SHLI | CT19: 0 | CU19: 2017-08-21 | CV19: 0 | CW19: 0.005980714286 | CX19: 0 | CY19: 0
A20: EQT | B20: KWAP | C20: 5138 | D20: 4509500 | E20: 11950175 | F20: 11950175 | G20: KWAP | H20: 1 | I20: 3000-01-01 | J20: 3000-01-01 | K20: 3000-01-01 | L20: 11783472.7 | M20: 11783472.7 | N20: 0 | O20: 0 | P20: 166702.3 | Q20: 0 | R20: 2.65 | S20: KWAP (i-VCAP Syariah) | T20: MYR | U20: 365 | V20: IV | W20: HSPLANT | X20: MYR | Y20: EQT | Z20: Equity | AA20: Plantation | AI20: Ringgit Malaysia | AJ20: EQUITY | AK20: 1 | AL20: 0 | AM20: HAP SENG PLANTATIONS HOLDING BHD | AN20: 0 | AO20: 0 | AP20: 800000000 | AQ20: KLSE | AR20: 1 | AS20: Hap Seng Plantations Holdings Bhd | AT20: Hap Seng Plantations Holdings Bhd | AU20: ORD | AV20: MB | AW20: Main Board | AZ20: Listed Shares | BA20: N/A | BB20: MY | BD20: KWAP (i-VCAP Syariah) | BF20: 701537070.2 | BG20: KUALA LUMPUR STOCK EXCHANGE | BK20: 0 | BL20: 0 | BM20: 0 | BN20: 0 | BO20: 0 | BP20: 0 | BY20: FALSE | BZ20: 0 | CA20: 9 | CB20: 0 | CC20: 1 | CD20: 1.703427446 | CE20: 0 | CF20: 2014-04-04 | CG20: 2017-09-15 | CH20: 11783472.7 | CI20: 0 | CJ20: 0 | CK20: 0 | CL20: 0 | CM20: KWAP | CN20: Plantation | CO20: 0 | CQ20: 0 | CR20: 0 | CS20: SHLI | CT20: 0 | CU20: 2014-04-04 | CV20: 0 | CW20: 0.03221071429 | CX20: 0 | CY20: 0
A21: EQT | B21: KWAP | C21: 5141 | D21: 5747300 | E21: 5689827 | F21: 5689827 | G21: KWAP | H21: 1 | I21: 3000-01-01 | J21: 3000-01-01 | K21: 3000-01-01 | L21: 17070108.03 | M21: 17070108.03 | N21: 0 | O21: 0 | P21: -11380281.03 | Q21: 0 | R21: 0.99 | S21: KWAP (i-VCAP Syariah) | T21: MYR | U21: 365 | V21: IV | W21: DAYANG | X21: MYR | Y21: EQT | Z21: Equity | AA21: Trdg/Service | AI21: Ringgit Malaysia | AJ21: EQUITY | AK21: 1 | AL21: 0 | AM21: DAYANG ENTERPRISE HOLDINGS BERHAD | AN21: 0 | AO21: 0 | AP21: 100000000000 | AQ21: KLSE | AR21: 1 | AS21: Dayang Enterprise Holdings Bhd | AT21: Dayang Enterprise Holdings Bhd | AU21: ORD | AV21: MB | AW21: Main Board | AZ21: Listed Shares | BA21: N/A | BB21: MY | BD21: KWAP (i-VCAP Syariah) | BF21: 701537070.2 | BG21: KUALA LUMPUR STOCK EXCHANGE | BK21: 0 | BL21: 0 | BM21: 0 | BN21: 0 | BO21: 0 | BP21: 0 | BY21: FALSE | BZ21: 0 | CA21: 13 | CB21: 0 | CC21: 1 | CD21: 0.8110515098 | CE21: 0 | CF21: 2014-09-09 | CG21: 2017-09-15 | CH21: 17070108.03 | CI21: 0 | CJ21: 287365 | CK21: 0 | CL21: 0 | CM21: KWAP | CN21: OIL & GAS | CO21: 0 | CQ21: 0 | CR21: 0 | CS21: SHLI | CT21: 0 | CU21: 2014-09-09 | CV21: 0 | CW21: 0.04105214286 | CX21: 0 | CY21: 0
A22: EQT | B22: KWAP | C22: 5168 | D22: 339300 | E22: 2202057 | F22: 2202057 | G22: KWAP | H22: 1 | I22: 3000-01-01 | J22: 3000-01-01 | K22: 3000-01-01 | L22: 2319391.42 | M22: 2319391.42 | N22: 0 | O22: 0 | P22: -117334.42 | Q22: 0 | R22: 6.49 | S22: KWAP (i-VCAP Syariah) | T22: MYR | U22: 365 | V22: IV | W22: HARTA | X22: MYR | Y22: EQT | Z22: Equity | AA22: Industrial Prod | AI22: Ringgit Malaysia | AJ22: EQUITY | AK22: 1 | AL22: 0 | AM22: HARTALEGA HOLDINGS BHD | AN22: 0 | AO22: 0 | AP22: 242312000 | AQ22: KLSE | AR22: 1 | AS22: Hartalega Holdings Bhd | AT22: Hartalega Holdings Bhd | AU22: ORD | AV22: MB | AW22: Main Board | AZ22: Listed Shares | BA22: N/A | BB22: MY | BD22: KWAP (i-VCAP Syariah) | BF22: 701537070.2 | BG22: KUALA LUMPUR STOCK EXCHANGE | BK22: 0 | BL22: 0 | BM22: 0 | BN22: 0 | BO22: 0 | BP22: 0 | BY22: FALSE | BZ22: 0 | CA22: 6 | CB22: 0 | CC22: 1 | CD22: 0.3138903265 | CE22: 0 | CF22: 2017-08-30 | CG22: 2017-09-15 | CH22: 2319391.42 | CI22: 0 | CJ22: 10179 | CK22: 0 | CL22: 0 | CM22: KWAP | CN22: RUBBER GLOVES | CO22: 0 | CQ22: 0 | CR22: 0 | CS22: SHLI | CT22: 0 | CU22: 2017-08-30 | CV22: 0 | CW22: 0.002423571429 | CX22: 0 | CY22: 0
A23: EQT | B23: KWAP | C23: 5183 | D23: 2235300 | E23: 16384749 | F23: 16384749 | G23: KWAP | H23: 1 | I23: 3000-01-01 | J23: 3000-01-01 | K23: 3000-01-01 | L23: 16268702.37 | M23: 16268702.37 | N23: 0 | O23: 0 | P23: 116046.63 | Q23: 0 | R23: 7.33 | S23: KWAP (i-VCAP Syariah) | T23: MYR | U23: 365 | V23: IV | W23: PCHEM | X23: MYR | Y23: EQT | Z23: Equity | AA23: Industrial Prod | AI23: Ringgit Malaysia | AJ23: EQUITY | AK23: 1 | AL23: 0 | AM23: PETRONAS CHEMICALS GROUP BHD | AN23: 0 | AO23: 0 | AP23: 8000000000 | AQ23: KLSE | AR23: 1 | AS23: Petronas Chemicals Group Berhad | AT23: Petroliam Nasional Berhad | AU23: ORD | AV23: MB | AW23: Main Board | AZ23: Listed Shares | BA23: N/A | BB23: MY | BD23: KWAP (i-VCAP Syariah) | BF23: 701537070.2 | BG23: KUALA LUMPUR STOCK EXCHANGE | BK23: 0 | BL23: 0 | BM23: 0 | BN23: 0 | BO23: 0 | BP23: 0 | BY23: FALSE | BZ23: 0 | CA23: 6 | CB23: 0 | CC23: 1 | CD23: 2.335549994 | CE23: 0 | CF23: 2016-01-08 | CG23: 2017-09-15 | CH23: 16268702.37 | CI23: 0 | CJ23: 44706 | CK23: 0 | CL23: 0 | CM23: KWAP | CN23: OIL & GAS | CO23: 0 | CQ23: 0 | CR23: 0 | CS23: SHLI | CT23: 0 | CU23: 2016-01-08 | CV23: 0 | CW23: 0.01596642857 | CX23: 0 | CY23: 0
A24: EQT | B24: KWAP | C24: 5209 | D24: 2970300 | E24: 8821791 | F24: 8821791 | G24: KWAP | H24: 1 | I24: 3000-01-01 | J24: 3000-01-01 | K24: 3000-01-01 | L24: 9658418.74 | M24: 9658418.74 | N24: 0 | O24: 0 | P24: -836627.74 | Q24: 0 | R24: 2.97 | S24: KWAP (i-VCAP Syariah) | T24: MYR | U24: 365 | V24: IV | W24: GASMSIA | X24: MYR | Y24: EQT | Z24: Equity | AA24: Trdg/Service | AI24: Ringgit Malaysia | AJ24: EQUITY | AK24: 1 | AL24: 0 | AM24: GAS MALAYSIA BHD | AN24: 0 | AO24: 0 | AP24: 1284000000 | AQ24: KLSE | AR24: 1 | AS24: Gas Malaysia Berhad | AT24: Gas Malaysia Berhad | AU24: ORD | AV24: MB | AW24: Main Board | AZ24: Listed Shares | BA24: N/A | BB24: MY | BD24: KWAP (i-VCAP Syariah) | BF24: 701537070.2 | BG24: KUALA LUMPUR STOCK EXCHANGE | BK24: 0 | BL24: 0 | BM24: 0 | BN24: 0 | BO24: 0 | BP24: 0 | BY24: FALSE | BZ24: 0 | CA24: 13 | CB24: 0 | CC24: 1 | CD24: 1.257494632 | CE24: 0 | CF24: 2014-04-04 | CG24: 2017-09-15 | CH24: 9658418.74 | CI24: 0 | CJ24: -59406 | CK24: 0 | CL24: 0 | CM24: KWAP | CN24: OIL & GAS | CO24: 0 | CQ24: 0 | CR24: 0 | CS24: SHLI | CT24: 0 | CU24: 2014-04-04 | CV24: 0 | CW24: 0.02121642857 | CX24: 0 | CY24: 0
A25: EQT | B25: KWAP | C25: 5218 | D25: 8441100 | E25: 13758993 | F25: 13758993 | G25: KWAP | H25: 1 | I25: 3000-01-01 | J25: 3000-01-01 | K25: 3000-01-01 | L25: 34979453.13 | M25: 34979453.13 | N25: 0 | O25: 0 | P25: -21220460.13 | Q25: 0 | R25: 1.63 | S25: KWAP (i-VCAP Syariah) | T25: MYR | U25: 365 | V25: IV | W25: SAPURA ENERGY BERHAD | X25: MYR | Y25: EQT | Z25: Equity | AA25: Trdg/Service | AI25: Ringgit Malaysia | AJ25: EQUITY | AK25: 1 | AL25: 0 | AM25: SAPURA ENERGY BERHAD | AN25: 0 | AO25: 0 | AP25: 5992155087 | AQ25: KLSE | AR25: 1 | AS25: SAPURA ENERGY BERHAD | AT25: SAPURA ENERGY BERHAD | AU25: ORD | AV25: MB | AW25: Main Board | AZ25: Listed Shares | BA25: N/A | BB25: MY | BD25: KWAP (i-VCAP Syariah) | BF25: 701537070.2 | BG25: KUALA LUMPUR STOCK EXCHANGE | BK25: 0 | BL25: 0 | BM25: 0 | BN25: 0 | BO25: 0 | BP25: 0 | BY25: FALSE | BZ25: 0 | CA25: 13 | CB25: 0 | CC25: 1 | CD25: 1.961263857 | CE25: 0 | CF25: 2014-04-04 | CG25: 2017-09-15 | CH25: 34979453.13 | CI25: 0 | CJ25: 0 | CK25: 0 | CL25: 0 | CM25: KWAP | CN25: OIL & GAS | CO25: 0 | CQ25: 0 | CR25: 0 | CS25: SHLI | CT25: 0 | CU25: 2014-04-04 | CV25: 0 | CW25: 0.06029357143 | CX25: 0 | CY25: 0
A26: EQT | B26: KWAP | C26: 5222 | D26: 3060600 | E26: 5294838 | F26: 5294838 | G26: KWAP | H26: 1 | I26: 3000-01-01 | J26: 3000-01-01 | K26: 3000-01-01 | L26: 13289665.95 | M26: 13289665.95 | N26: 0 | O26: 0 | P26: -7994827.95 | Q26: 0 | R26: 1.73 | S26: KWAP (i-VCAP Syariah) | T26: MYR | U26: 365 | V26: IV | W26: FGV | X26: MYR | Y26: EQT | Z26: Equity | AA26: Plantation | AI26: Ringgit Malaysia | AJ26: EQUITY | AK26: 1 | AL26: 0 | AM26: FELDA GLOBAL VENTURES HOLDINGS BHD | AN26: 0 | AO26: 0 | AP26: 3648151500 | AQ26: KLSE | AR26: 1 | AS26: Felda Global Ventures Holdings | AT26: Federal Land Development Authority (FELDA) | AU26: ORD | AV26: MB | AW26: Main Board | AZ26: Listed Shares | BA26: N/A | BB26: MY | BD26: KWAP (i-VCAP Syariah) | BF26: 701537070.2 | BG26: KUALA LUMPUR STOCK EXCHANGE | BK26: 0 | BL26: 0 | BM26: 0 | BN26: 0 | BO26: 0 | BP26: 0 | BY26: FALSE | BZ26: 0 | CA26: 9 | CB26: 0 | CC26: 1 | CD26: 0.7547481416 | CE26: 0 | CF26: 2014-04-04 | CG26: 2017-09-15 | CH26: 13289665.95 | CI26: 0 | CJ26: -91818 | CK26: 0 | CL26: 0 | CM26: KWAP | CN26: Plantation | CO26: 0 | CQ26: 0 | CR26: 0 | CS26: SHLI | CT26: 0 | CU26: 2014-04-04 | CV26: 0 | CW26: 0.02186142857 | CX26: 0 | CY26: 0
A27: EQT | B27: KWAP | C27: 5243 | D27: 8522075 | E27: 2641843.25 | F27: 2641843.25 | G27: KWAP | H27: 1 | I27: 3000-01-01 | J27: 3000-01-01 | K27: 3000-01-01 | L27: 22277113.62 | M27: 22277113.62 | N27: 0 | O27: 0 | P27: -19635270.37 | Q27: 0 | R27: 0.31 | S27: KWAP (i-VCAP Syariah) | T27: MYR | U27: 365 | V27: IV | W27: UMWOG | X27: MYR | Y27: EQT | Z27: Equity | AA27: Trdg/Service | AI27: Ringgit Malaysia | AJ27: EQUITY | AK27: 1 | AL27: 0 | AM27: UMW OIL & GAS CORPORATION BHD | AN27: 0 | AO27: 0 | AP27: 21620000000 | AQ27: KLSE | AR27: 1 | AS27: UMW Holdings Berhad | AT27: UMW Holdings Berhad | AU27: ORD | AV27: MB | AW27: Main Board | AZ27: Listed Shares | BA27: N/A | BB27: MY | BD27: KWAP (i-VCAP Syariah) | BF27: 701537070.2 | BG27: KUALA LUMPUR STOCK EXCHANGE | BK27: 0 | BL27: 0 | BM27: 0 | BN27: 0 | BO27: 0 | BP27: 0 | BY27: FALSE | BZ27: 0 | CA27: 13 | CB27: 0 | CC27: 1 | CD27: 0.3765792803 | CE27: 0 | CF27: 2014-04-04 | CG27: 2017-09-15 | CH27: 22277113.62 | CI27: 0 | CJ27: -42610.37 | CK27: 0 | CL27: 0 | CM27: KWAP | CN27: OIL & GAS | CO27: 0 | CQ27: 0 | CR27: 0 | CS27: SHLI | CT27: 0 | CU27: 2014-04-04 | CV27: 0 | CW27: 0.06087196429 | CX27: 0 | CY27: 0
A28: EQT | B28: KWAP | C28: 5246 | D28: 6859800 | E28: 26616024 | F28: 26616024 | G28: KWAP | H28: 1 | I28: 3000-01-01 | J28: 3000-01-01 | K28: 3000-01-01 | L28: 28361608.82 | M28: 28361608.82 | N28: 0 | O28: 0 | P28: -1745584.82 | Q28: 0 | R28: 3.88 | S28: KWAP (i-VCAP Syariah) | T28: MYR | U28: 365 | V28: IV | W28: WPRTS | X28: MYR | Y28: EQT | Z28: Equity | AA28: Trdg/Service | AI28: Ringgit Malaysia | AJ28: EQUITY | AK28: 1 | AL28: 0 | AM28: WESTPORTS HOLDINGS BHD | AN28: 0 | AO28: 0 | AP28: 3410000000 | AQ28: KLSE | AR28: 1 | AS28: WESTPORTS HOLDINGS BERHAD | AT28: WESTPORTS HOLDINGS BERHAD | AU28: ORD | AV28: MB | AW28: Main Board | AZ28: Listed Shares | BA28: N/A | BB28: MY | BD28: KWAP (i-VCAP Syariah) | BF28: 701537070.2 | BG28: KUALA LUMPUR STOCK EXCHANGE | BK28: 0 | BL28: 0 | BM28: 0 | BN28: 0 | BO28: 0 | BP28: 0 | BY28: FALSE | BZ28: 0 | CA28: 13 | CB28: 0 | CC28: 1 | CD28: 3.793958314 | CE28: 0 | CF28: 2016-07-08 | CG28: 2017-09-15 | CH28: 28361608.82 | CI28: 0 | CJ28: 0 | CK28: 0 | CL28: 0 | CM28: KWAP | CN28: TRANSPORTATIONS & LOGISTICS | CO28: 0 | CQ28: 0 | CR28: 0 | CS28: SHLI | CT28: 0 | CU28: 2016-07-08 | CV28: 0 | CW28: 0.04899857143 | CX28: 0 | CY28: 0
A29: EQT | B29: KWAP | C29: 5258 | D29: 4176200 | E29: 17915898 | F29: 17915898 | G29: KWAP | H29: 1 | I29: 3000-01-01 | J29: 3000-01-01 | K29: 3000-01-01 | L29: 17794978.64 | M29: 17794978.64 | N29: 0 | O29: 0 | P29: 120919.36 | Q29: 0 | R29: 4.29 | S29: KWAP (i-VCAP Syariah) | T29: MYR | U29: 365 | V29: IV | W29: BIMB | X29: MYR | Y29: EQT | Z29: Equity | AA29: Finance | AI29: Ringgit Malaysia | AJ29: EQUITY | AK29: 1 | AL29: 0 | AM29: BIMB HOLDINGS BHD | AN29: 0 | AO29: 0 | AP29: 1066789897 | AQ29: KLSE | AR29: 1 | AS29: BIMB HOLDINGS BERHAD | AT29: BIMB HOLDINGS BERHAD | AU29: ORD | AV29: MB | AW29: Main Board | AZ29: Listed Shares | BA29: N/A | BB29: MY | BD29: KWAP (i-VCAP Syariah) | BF29: 701537070.2 | BG29: KUALA LUMPUR STOCK EXCHANGE | BK29: 0 | BL29: 0 | BM29: 0 | BN29: 0 | BO29: 0 | BP29: 0 | BY29: FALSE | BZ29: 0 | CA29: 4 | CB29: 0 | CC29: 1 | CD29: 2.553806315 | CE29: 0 | CF29: 2014-04-04 | CG29: 2017-09-15 | CH29: 17794978.64 | CI29: 0 | CJ29: -125286 | CK29: 0 | CL29: 0 | CM29: KWAP | CN29: Finance | CO29: 0 | CQ29: 0 | CR29: 0 | CS29: SHLI | CT29: 0 | CU29: 2014-04-04 | CV29: 0 | CW29: 0.02983 | CX29: 0 | CY29: 0
A30: EQT | B30: KWAP | C30: 5279 | D30: 4824600 | E30: 10855350 | F30: 10855350 | G30: KWAP | H30: 1 | I30: 3000-01-01 | J30: 3000-01-01 | K30: 3000-01-01 | L30: 10001489.07 | M30: 10001489.07 | N30: 0 | O30: 0 | P30: 853860.93 | Q30: 0 | R30: 2.25 | S30: KWAP (i-VCAP Syariah) | T30: MYR | U30: 365 | V30: IV | W30: SERBA DINAMIK HOLDINGS BERHAD | X30: MYR | Y30: EQT | Z30: Equity | AA30: Industrial Prod | AI30: Ringgit Malaysia | AJ30: EQUITY | AK30: 1 | AL30: 0 | AM30: SERBA DINAMIK HOLDINGS BERHAD | AN30: 0 | AO30: 0 | AP30: 341300000 | AQ30: KLSE | AR30: 1 | AS30: SERBA DINAMIK HOLDINGS BERHAD | AT30: SERBA DINAMIK HOLDINGS BERHAD | AU30: ORD | AV30: MB | AW30: Main Board | AZ30: Listed Shares | BA30: N/A | BB30: MY | BD30: KWAP (i-VCAP Syariah) | BF30: 701537070.2 | BG30: KUALA LUMPUR STOCK EXCHANGE | BK30: 0 | BL30: 0 | BM30: 0 | BN30: 0 | BO30: 0 | BP30: 0 | BY30: FALSE | BZ30: 0 | CA30: 6 | CB30: 0 | CC30: 1 | CD30: 1.547366556 | CE30: 0 | CF30: 2017-01-25 | CG30: 2017-09-15 | CH30: 10001489.07 | CI30: 0 | CJ30: -192984 | CK30: 0 | CL30: 0 | CM30: KWAP | CN30: INDUSTRIAL PRODUCTS | CO30: 0 | CQ30: 0 | CR30: 0 | CS30: SHLI | CT30: 0 | CU30: 2017-01-25 | CV30: 0 | CW30: 0.03446142857 | CX30: 0 | CY30: 0
A31: EQT | B31: KWAP | C31: 5284 | D31: 1550000 | E31: 8773000 | F31: 8773000 | G31: KWAP | H31: 1 | I31: 3000-01-01 | J31: 3000-01-01 | K31: 3000-01-01 | L31: 9559809.13 | M31: 9559809.13 | N31: 0 | O31: 0 | P31: -786809.13 | Q31: 0 | R31: 5.66 | S31: KWAP (i-VCAP Syariah) | T31: MYR | U31: 365 | V31: IV | W31: LCTITAN | X31: MYR | Y31: EQT | Z31: Equity | AA31: Industrial Prod | AI31: Ringgit Malaysia | AJ31: EQUITY | AK31: 1 | AL31: 0 | AM31: LOTTE CHEMICAL TITAN HOLDING BERHAD | AN31: 0 | AO31: 0 | AP31: 580000000 | AQ31: KLSE | AR31: 1 | AS31: LOTTE CHEMICAL TITAN HOLDING BERHAD | AT31: LOTTE CHEMICAL TITAN HOLDING BERHAD | AU31: ORD | AV31: MB | AW31: Main Board | AZ31: Listed Shares | BA31: N/A | BB31: MY | BD31: KWAP (i-VCAP Syariah) | BF31: 701537070.2 | BG31: KUALA LUMPUR STOCK EXCHANGE | BK31: 0 | BL31: 0 | BM31: 0 | BN31: 0 | BO31: 0 | BP31: 0 | BY31: FALSE | BZ31: 0 | CA31: 6 | CB31: 0 | CC31: 1 | CD31: 1.250539761 | CE31: 0 | CF31: 2017-07-06 | CG31: 2017-09-15 | CH31: 9559809.13 | CI31: 0 | CJ31: -263500 | CK31: 0 | CL31: 0 | CM31: KWAP | CN31: INDUSTRIAL PRODUCTS | CO31: 0 | CQ31: 0 | CR31: 0 | CS31: SHLI | CT31: 0 | CU31: 2017-07-06 | CV31: 0 | CW31: 0.01107142857 | CX31: 0 | CY31: 0
A32: EQT | B32: KWAP | C32: 5347 | D32: 4368200 | E32: 63600992 | F32: 63600992 | G32: KWAP | H32: 1 | I32: 3000-01-01 | J32: 3000-01-01 | K32: 3000-01-01 | L32: 62950305.82 | M32: 62950305.82 | N32: 0 | O32: 0 | P32: 650686.18 | Q32: 0 | R32: 14.56 | S32: KWAP (i-VCAP Syariah) | T32: MYR | U32: 365 | V32: IV | W32: TENAGA | X32: MYR | Y32: EQT | Z32: Equity | AA32: Trdg/Service | AI32: Ringgit Malaysia | AJ32: EQUITY | AK32: 1 | AL32: 0 | AM32: TENAGA NASIONAL BHD | AN32: 0 | AO32: 0 | AP32: 5643611171 | AQ32: KLSE | AR32: 1 | AS32: Tenaga Nasional Berhad | AT32: Tenaga Nasional Berhad | AU32: ORD | AV32: MB | AW32: Main Board | AZ32: Listed Shares | BA32: N/A | BB32: MY | BD32: KWAP (i-VCAP Syariah) | BF32: 701537070.2 | BG32: KUALA LUMPUR STOCK EXCHANGE | BK32: 0 | BL32: 0 | BM32: 0 | BN32: 0 | BO32: 0 | BP32: 0 | BY32: FALSE | BZ32: 0 | CA32: 13 | CB32: 0 | CC32: 1 | CD32: 9.065948857 | CE32: 0 | CF32: 2014-04-04 | CG32: 2017-09-15 | CH32: 62950305.82 | CI32: 0 | CJ32: 87364 | CK32: 0 | CL32: 0 | CM32: KWAP | CN32: Utilities | CO32: 0 | CQ32: 0 | CR32: 0 | CS32: SHLI | CT32: 0 | CU32: 2014-04-04 | CV32: 0 | CW32: 0.03120142857 | CX32: 0 | CY32: 0
A33: EQT | B33: KWAP | C33: 5398 | D33: 7456700 | E33: 40117046 | F33: 40117046 | G33: KWAP | H33: 1 | I33: 3000-01-01 | J33: 3000-01-01 | K33: 3000-01-01 | L33: 39693062.4 | M33: 39693062.4 | N33: 0 | O33: 0 | P33: 423983.6 | Q33: 0 | R33: 5.38 | S33: KWAP (i-VCAP Syariah) | T33: MYR | U33: 365 | V33: IV | W33: GAMUDA | X33: MYR | Y33: EQT | Z33: Equity | AA33: Construction | AI33: Ringgit Malaysia | AJ33: EQUITY | AK33: 1 | AL33: 0 | AM33: GAMUDA BHD | AN33: 0 | AO33: 0 | AP33: 2278041353 | AQ33: KLSE | AR33: 1 | AS33: Gamuda Berhad | AT33: Gamuda Berhad | AU33: ORD | AV33: MB | AW33: Main Board | AZ33: Listed Shares | BA33: N/A | BB33: MY | BD33: KWAP (i-VCAP Syariah) | BF33: 701537070.2 | BG33: KUALA LUMPUR STOCK EXCHANGE | BK33: 0 | BL33: 0 | BM33: 0 | BN33: 0 | BO33: 0 | BP33: 0 | BY33: FALSE | BZ33: 0 | CA33: 2 | CB33: 0 | CC33: 1 | CD33: 5.718449916 | CE33: 0 | CF33: 2014-04-04 | CG33: 2017-09-15 | CH33: 39693062.4 | CI33: 0 | CJ33: -74567 | CK33: 0 | CL33: 0 | CM33: KWAP | CN33: Construction | CO33: 0 | CQ33: 0 | CR33: 0 | CS33: SHLI | CT33: 0 | CU33: 2014-04-04 | CV33: 0 | CW33: 0.05326214286 | CX33: 0 | CY33: 0
A34: EQT | B34: KWAP | C34: 5681 | D34: 4400 | E34: 106568 | F34: 106568 | G34: KWAP | H34: 1 | I34: 3000-01-01 | J34: 3000-01-01 | K34: 3000-01-01 | L34: 105128.4 | M34: 105128.4 | N34: 0 | O34: 0 | P34: 1439.6 | Q34: 0 | R34: 24.22 | S34: KWAP (i-VCAP Syariah) | T34: MYR | U34: 365 | V34: IV | W34: PETDAG | X34: MYR | Y34: EQT | Z34: Equity | AA34: Trdg/Service | AI34: Ringgit Malaysia | AJ34: EQUITY | AK34: 1 | AL34: 0 | AM34: PETRONAS DAGANGAN BHD | AN34: 0 | AO34: 0 | AP34: 993454000 | AQ34: KLSE | AR34: 1 | AS34: Petronas Dagangan Berhad | AT34: Petroliam Nasional Berhad | AU34: ORD | AV34: MB | AW34: Main Board | AZ34: Listed Shares | BA34: N/A | BB34: MY | BD34: KWAP (i-VCAP Syariah) | BF34: 701537070.2 | BG34: KUALA LUMPUR STOCK EXCHANGE | BK34: 0 | BL34: 0 | BM34: 0 | BN34: 0 | BO34: 0 | BP34: 0 | BY34: FALSE | BZ34: 0 | CA34: 13 | CB34: 0 | CC34: 1 | CD34: 0.01519064416 | CE34: 0 | CF34: 2017-04-10 | CG34: 2017-09-15 | CH34: 105128.4 | CI34: 0 | CJ34: 176 | CK34: 0 | CL34: 0 | CM34: KWAP | CN34: OIL & GAS | CO34: 0 | CQ34: 0 | CR34: 0 | CS34: SHLI | CT34: 0 | CU34: 2017-04-10 | CV34: 0 | CW34: 3.142857143e-05 | CX34: 0 | CY34: 0
A35: EQT | B35: KWAP | C35: 6012 | D35: 7797200 | E35: 44911872 | F35: 44911872 | G35: KWAP | H35: 1 | I35: 3000-01-01 | J35: 3000-01-01 | K35: 3000-01-01 | L35: 50991081.04 | M35: 50991081.04 | N35: 0 | O35: 0 | P35: -6079209.04 | Q35: 0 | R35: 5.76 | S35: KWAP (i-VCAP Syariah) | T35: MYR | U35: 365 | V35: IV | W35: MAXIS | X35: MYR | Y35: EQT | Z35: Equity | AA35: Trdg/Service | AI35: Ringgit Malaysia | AJ35: EQUITY | AK35: 1 | AL35: 0 | AM35: MAXIS BHD | AN35: 0 | AO35: 0 | AP35: 7502236188 | AQ35: KLSE | AR35: 1 | AS35: Maxis Berhad | AT35: Maxis | AU35: ORD | AV35: MB | AW35: Main Board | AZ35: Listed Shares | BA35: N/A | BB35: MY | BD35: KWAP (i-VCAP Syariah) | BF35: 701537070.2 | BG35: KUALA LUMPUR STOCK EXCHANGE | BK35: 0 | BL35: 0 | BM35: 0 | BN35: 0 | BO35: 0 | BP35: 0 | BY35: FALSE | BZ35: 0 | CA35: 13 | CB35: 0 | CC35: 1 | CD35: 6.401924275 | CE35: 0 | CF35: 2014-04-04 | CG35: 2017-09-15 | CH35: 50991081.04 | CI35: 0 | CJ35: -155944 | CK35: 0 | CL35: 0 | CM35: KWAP | CN35: TELECOMMUNICATIONS | CO35: 0 | CQ35: 0 | CR35: 0 | CS35: SHLI | CT35: 0 | CU35: 2014-04-04 | CV35: 0 | CW35: 0.05569428571 | CX35: 0 | CY35: 0
A36: EQT | B36: KWAP | C36: 6033 | D36: 901600 | E36: 16751728 | F36: 16751728 | G36: KWAP | H36: 1 | I36: 3000-01-01 | J36: 3000-01-01 | K36: 3000-01-01 | L36: 18722851.18 | M36: 18722851.18 | N36: 0 | O36: 0 | P36: -1971123.18 | Q36: 0 | R36: 18.58 | S36: KWAP (i-VCAP Syariah) | T36: MYR | U36: 365 | V36: IV | W36: PETGAS | X36: MYR | Y36: EQT | Z36: Equity | AA36: Industrial Prod | AI36: Ringgit Malaysia | AJ36: EQUITY | AK36: 1 | AL36: 0 | AM36: PETRONAS GAS BHD | AN36: 0 | AO36: 0 | AP36: 1978732915 | AQ36: KLSE | AR36: 1 | AS36: Petronas Gas Berhad | AT36: Petroliam Nasional Berhad | AU36: ORD | AV36: MB | AW36: Main Board | AZ36: Listed Shares | BA36: N/A | BB36: MY | BD36: KWAP (i-VCAP Syariah) | BF36: 701537070.2 | BG36: KUALA LUMPUR STOCK EXCHANGE | BK36: 0 | BL36: 0 | BM36: 0 | BN36: 0 | BO36: 0 | BP36: 0 | BY36: FALSE | BZ36: 0 | CA36: 6 | CB36: 0 | CC36: 1 | CD36: 2.387860701 | CE36: 0 | CF36: 2016-03-22 | CG36: 2017-09-15 | CH36: 18722851.18 | CI36: 0 | CJ36: -216384 | CK36: 0 | CL36: 0 | CM36: KWAP | CN36: OIL & GAS | CO36: 0 | CQ36: 0 | CR36: 0 | CS36: SHLI | CT36: 0 | CU36: 2016-03-22 | CV36: 0 | CW36: 0.00644 | CX36: 0 | CY36: 0
A37: EQT | B37: KWAP | C37: 6139 | D37: 2550400 | E37: 9691520 | F37: 9691520 | G37: KWAP | H37: 1 | I37: 3000-01-01 | J37: 3000-01-01 | K37: 3000-01-01 | L37: 10266583.65 | M37: 10266583.65 | N37: 0 | O37: 0 | P37: -575063.65 | Q37: 0 | R37: 3.8 | S37: KWAP (i-VCAP Syariah) | T37: MYR | U37: 365 | V37: IV | W37: TAKAFUL | X37: MYR | Y37: EQT | Z37: Equity | AA37: Finance | AI37: Ringgit Malaysia | AJ37: EQUITY | AK37: 1 | AL37: 0 | AM37: SYARIKAT TAKAFUL MALAYSIA BHD | AN37: 0 | AO37: 0 | AP37: 162817000 | AQ37: KLSE | AR37: 1 | AS37: SYARIKAT TAKAFUL MALAYSIA BERHAD | AT37: SYARIKAT TAKAFUL MALAYSIA BERHAD | AU37: ORD | AV37: MB | AW37: Main Board | AZ37: Listed Shares | BA37: N/A | BB37: MY | BD37: KWAP (i-VCAP Syariah) | BF37: 701537070.2 | BG37: KUALA LUMPUR STOCK EXCHANGE | BK37: 0 | BL37: 0 | BM37: 0 | BN37: 0 | BO37: 0 | BP37: 0 | BY37: FALSE | BZ37: 0 | CA37: 4 | CB37: 0 | CC37: 1 | CD37: 1.381469406 | CE37: 0 | CF37: 2017-02-13 | CG37: 2017-09-15 | CH37: 10266583.65 | CI37: 0 | CJ37: 0 | CK37: 0 | CL37: 0 | CM37: KWAP | CN37: Finance | CO37: 0 | CQ37: 0 | CR37: 0 | CS37: SHLI | CT37: 0 | CU37: 2017-02-13 | CV37: 0 | CW37: 0.01821714286 | CX37: 0 | CY37: 0
A38: EQT | B38: KWAP | C38: 6888 | D38: 9552618 | E38: 48622825.62 | F38: 48622825.62 | G38: KWAP | H38: 1 | I38: 3000-01-01 | J38: 3000-01-01 | K38: 3000-01-01 | L38: 63095802.56 | M38: 63095802.56 | N38: 0 | O38: 0 | P38: -14472976.94 | Q38: 0 | R38: 5.09 | S38: KWAP (i-VCAP Syariah) | T38: MYR | U38: 365 | V38: IV | W38: AXIATA | X38: MYR | Y38: EQT | Z38: Equity | AA38: Trdg/Service | AI38: Ringgit Malaysia | AJ38: EQUITY | AK38: 1 | AL38: 0 | AM38: AXIATA GROUP BERHAD | AN38: 0 | AO38: 0 | AP38: 8534695402 | AQ38: KLSE | AR38: 1 | AS38: Axiata Group Bhd | AT38: Axiata Group Bhd | AU38: ORD | AV38: MB | AW38: Main Board | AZ38: Listed Shares | BA38: N/A | BB38: MY | BD38: KWAP (i-VCAP Syariah) | BF38: 701537070.2 | BG38: KUALA LUMPUR STOCK EXCHANGE | BK38: 0 | BL38: 0 | BM38: 0 | BN38: 0 | BO38: 0 | BP38: 0 | BY38: FALSE | BZ38: 0 | CA38: 13 | CB38: 0 | CC38: 1 | CD38: 6.930898977 | CE38: 0 | CF38: 2014-04-04 | CG38: 2017-09-15 | CH38: 63095802.56 | CI38: 0 | CJ38: -382104.72 | CK38: 0 | CL38: 0 | CM38: KWAP | CN38: TELECOMMUNICATIONS | CO38: 0 | CQ38: 0 | CR38: 0 | CS38: SHLI | CT38: 0 | CU38: 2014-04-04 | CV38: 0 | CW38: 0.06823298571 | CX38: 0 | CY38: 0
A39: EQT | B39: KWAP | C39: 6947 | D39: 8462300 | E39: 41211401 | F39: 41211401 | G39: KWAP | H39: 1 | I39: 3000-01-01 | J39: 3000-01-01 | K39: 3000-01-01 | L39: 47206000.74 | M39: 47206000.74 | N39: 0 | O39: 0 | P39: -5994599.74 | Q39: 0 | R39: 4.87 | S39: KWAP (i-VCAP Syariah) | T39: MYR | U39: 365 | V39: IV | W39: DIGI | X39: MYR | Y39: EQT | Z39: Equity | AA39: Infrastructure Project Company | AI39: Ringgit Malaysia | AJ39: EQUITY | AK39: 1 | AL39: 0 | AM39: DIGI.COM BHD | AN39: 0 | AO39: 0 | AP39: 7775000174 | AQ39: KLSE | AR39: 1 | AS39: Digi.Com Berhad | AT39: Digi.Com Berhad | AU39: ORD | AV39: MB | AW39: Main Board | AZ39: Listed Shares | BA39: N/A | BB39: MY | BD39: KWAP (i-VCAP Syariah) | BF39: 701537070.2 | BG39: KUALA LUMPUR STOCK EXCHANGE | BK39: 0 | BL39: 0 | BM39: 0 | BN39: 0 | BO39: 0 | BP39: 0 | BY39: FALSE | BZ39: 0 | CA39: 7 | CB39: 0 | CC39: 1 | CD39: 5.874443811 | CE39: 0 | CF39: 2014-04-04 | CG39: 2017-09-15 | CH39: 47206000.74 | CI39: 0 | CJ39: 0 | CK39: 0 | CL39: 0 | CM39: KWAP | CN39: TELECOMMUNICATIONS | CO39: 0 | CQ39: 0 | CR39: 0 | CS39: SHLI | CT39: 0 | CU39: 2014-04-04 | CV39: 0 | CW39: 0.060445 | CX39: 0 | CY39: 0
A40: EQT | B40: KWAP | C40: 7076 | D40: 6472000 | E40: 12490960 | F40: 12490960 | G40: KWAP | H40: 1 | I40: 3000-01-01 | J40: 3000-01-01 | K40: 3000-01-01 | L40: 13909672.4 | M40: 13909672.4 | N40: 0 | O40: 0 | P40: -1418712.4 | Q40: 0 | R40: 1.93 | S40: KWAP (i-VCAP Syariah) | T40: MYR | U40: 365 | V40: IV | W40: CBIP | X40: MYR | Y40: EQT | Z40: Equity | AA40: Industrial Prod | AI40: Ringgit Malaysia | AJ40: EQUITY | AK40: 1 | AL40: 0 | AM40: CB INDUSTRIAL PRODUCT HOLDING BHD | AN40: 0 | AO40: 0 | AP40: 275125000 | AQ40: KLSE | AR40: 1 | AS40: CB Industrial Product Holdings Bhd | AT40: CB Industrial Product Holdings Bhd | AU40: ORD | AV40: MB | AW40: Main Board | AZ40: Listed Shares | BA40: N/A | BB40: MY | BD40: KWAP (i-VCAP Syariah) | BF40: 701537070.2 | BG40: KUALA LUMPUR STOCK EXCHANGE | BK40: 0 | BL40: 0 | BM40: 0 | BN40: 0 | BO40: 0 | BP40: 0 | BY40: FALSE | BZ40: 0 | CA40: 6 | CB40: 0 | CC40: 1 | CD40: 1.78051318 | CE40: 0 | CF40: 2014-04-04 | CG40: 2017-09-15 | CH40: 13909672.4 | CI40: 0 | CJ40: 258880 | CK40: 0 | CL40: 0 | CM40: KWAP | CN40: INDUSTRIAL PRODUCTS | CO40: 0 | CQ40: 0 | CR40: 0 | CS40: SHLI | CT40: 0 | CU40: 2014-04-04 | CV40: 0 | CW40: 0.04622857143 | CX40: 0 | CY40: 0
A41: EQT | B41: KWAP | C41: 7106 | D41: 3313500 | E41: 5997435 | F41: 5997435 | G41: KWAP | H41: 1 | I41: 3000-01-01 | J41: 3000-01-01 | K41: 3000-01-01 | L41: 7198643.88 | M41: 7198643.88 | N41: 0 | O41: 0 | P41: -1201208.88 | Q41: 0 | R41: 1.81 | S41: KWAP (i-VCAP Syariah) | T41: MYR | U41: 365 | V41: IV | W41: SUPERMX | X41: MYR | Y41: EQT | Z41: Equity | AA41: Industrial Prod | AI41: Ringgit Malaysia | AJ41: EQUITY | AK41: 1 | AL41: 0 | AM41: SUPERMAX CORPORATION BHD | AN41: 0 | AO41: 0 | AP41: 680154880 | AQ41: KLSE | AR41: 1 | AS41: Supermax Corp Bhd | AT41: Supermax Corp Bhd | AU41: ORD | AV41: MB | AW41: Main Board | AZ41: Listed Shares | BA41: N/A | BB41: MY | BD41: KWAP (i-VCAP Syariah) | BF41: 701537070.2 | BG41: KUALA LUMPUR STOCK EXCHANGE | BK41: 0 | BL41: 0 | BM41: 0 | BN41: 0 | BO41: 0 | BP41: 0 | BY41: FALSE | BZ41: 0 | CA41: 6 | CB41: 0 | CC41: 1 | CD41: 0.8548992284 | CE41: 0 | CF41: 2016-06-07 | CG41: 2017-09-15 | CH41: 7198643.88 | CI41: 0 | CJ41: -132540 | CK41: 0 | CL41: 0 | CM41: KWAP | CN41: RUBBER GLOVES | CO41: 0 | CQ41: 0 | CR41: 0 | CS41: SHLI | CT41: 0 | CU41: 2016-06-07 | CV41: 0 | CW41: 0.02366785714 | CX41: 0 | CY41: 0
A42: EQT | B42: KWAP | C42: 7113 | D42: 757500 | E42: 4188975 | F42: 4188975 | G42: KWAP | H42: 1 | I42: 3000-01-01 | J42: 3000-01-01 | K42: 3000-01-01 | L42: 4203414.56 | M42: 4203414.56 | N42: 0 | O42: 0 | P42: -14439.56 | Q42: 0 | R42: 5.53 | S42: KWAP (i-VCAP Syariah) | T42: MYR | U42: 365 | V42: IV | W42: TOPGLOV | X42: MYR | Y42: EQT | Z42: Equity | AA42: Industrial Prod | AI42: Ringgit Malaysia | AJ42: EQUITY | AK42: 1 | AL42: 0 | AM42: TOP GLOVE CORPORATION BHD | AN42: 0 | AO42: 0 | AP42: 618660662 | AQ42: KLSE | AR42: 1 | AS42: Top Glove Corporation Berhad | AT42: Top Glove Corporation Berhad | AU42: ORD | AV42: MB | AW42: Main Board | AZ42: Listed Shares | BA42: N/A | BB42: MY | BD42: KWAP (i-VCAP Syariah) | BF42: 701537070.2 | BG42: KUALA LUMPUR STOCK EXCHANGE | BK42: 0 | BL42: 0 | BM42: 0 | BN42: 0 | BO42: 0 | BP42: 0 | BY42: FALSE | BZ42: 0 | CA42: 6 | CB42: 0 | CC42: 1 | CD42: 0.5971138487 | CE42: 0 | CF42: 2017-08-30 | CG42: 2017-09-15 | CH42: 4203414.56 | CI42: 0 | CJ42: -60600 | CK42: 0 | CL42: 0 | CM42: KWAP | CN42: RUBBER GLOVES | CO42: 0 | CQ42: 0 | CR42: 0 | CS42: SHLI | CT42: 0 | CU42: 2017-08-30 | CV42: 0 | CW42: 0.005410714286 | CX42: 0 | CY42: 0
A43: EQT | B43: KWAP | C43: 7153 | D43: 871000 | E43: 5905380 | F43: 5905380 | G43: KWAP | H43: 1 | I43: 3000-01-01 | J43: 3000-01-01 | K43: 3000-01-01 | L43: 6006853.98 | M43: 6006853.98 | N43: 0 | O43: 0 | P43: -101473.98 | Q43: 0 | R43: 6.78 | S43: KWAP (i-VCAP Syariah) | T43: MYR | U43: 365 | V43: IV | W43: KOSSAN | X43: MYR | Y43: EQT | Z43: Equity | AA43: Industrial Prod | AI43: Ringgit Malaysia | AJ43: EQUITY | AK43: 1 | AL43: 0 | AM43: KOSSAN RUBBER INDUSTRIES BERHAD | AN43: 0 | AO43: 0 | AP43: 639467000 | AQ43: KLSE | AR43: 1 | AS43: Kossan Rubber Industries Bhd | AT43: Kossan Rubber Industries Bhd | AU43: ORD | AV43: MB | AW43: Main Board | AZ43: Listed Shares | BA43: N/A | BB43: MY | BD43: KWAP (i-VCAP Syariah) | BF43: 701537070.2 | BG43: KUALA LUMPUR STOCK EXCHANGE | BK43: 0 | BL43: 0 | BM43: 0 | BN43: 0 | BO43: 0 | BP43: 0 | BY43: FALSE | BZ43: 0 | CA43: 6 | CB43: 0 | CC43: 1 | CD43: 0.8417773273 | CE43: 0 | CF43: 2017-09-08 | CG43: 2017-09-15 | CH43: 6006853.98 | CI43: 0 | CJ43: -156780 | CK43: 0 | CL43: 0 | CM43: KWAP | CN43: RUBBER GLOVES | CO43: 0 | CQ43: 0 | CR43: 0 | CS43: SHLI | CT43: 0 | CU43: 2017-09-08 | CV43: 0 | CW43: 0.006221428571 | CX43: 0 | CY43: 0
A44: EQT | B44: KWAP | C44: 7277 | D44: 3444096 | E44: 6991514.88 | F44: 6991514.88 | G44: KWAP | H44: 1 | I44: 3000-01-01 | J44: 3000-01-01 | K44: 3000-01-01 | L44: 6535081.37 | M44: 6535081.37 | N44: 0 | O44: 0 | P44: 456433.51 | Q44: 0 | R44: 2.03 | S44: KWAP (i-VCAP Syariah) | T44: MYR | U44: 365 | V44: IV | W44: DIALOG | X44: MYR | Y44: EQT | Z44: Equity | AA44: Trdg/Service | AI44: Ringgit Malaysia | AJ44: EQUITY | AK44: 1 | AL44: 0 | AM44: DIALOG GROUP BHD | AN44: 0 | AO44: 0 | AP44: 2431261524 | AQ44: KLSE | AR44: 1 | AS44: Dialog Group Berhad | AT44: Dialog Group Berhad | AU44: ORD | AV44: MB | AW44: Main Board | AZ44: Listed Shares | BA44: N/A | BB44: MY | BD44: KWAP (i-VCAP Syariah) | BF44: 701537070.2 | BG44: KUALA LUMPUR STOCK EXCHANGE | BK44: 0 | BL44: 0 | BM44: 0 | BN44: 0 | BO44: 0 | BP44: 0 | BY44: FALSE | BZ44: 0 | CA44: 13 | CB44: 0 | CC44: 1 | CD44: 0.9965994923 | CE44: 0 | CF44: 2014-04-04 | CG44: 2017-09-15 | CH44: 6535081.37 | CI44: 0 | CJ44: -103322.88 | CK44: 0 | CL44: 0 | CM44: KWAP | CN44: OIL & GAS | CO44: 0 | CQ44: 0 | CR44: 0 | CS44: SHLI | CT44: 0 | CU44: 2014-04-04 | CV44: 0 | CW44: 0.02460068571 | CX44: 0 | CY44: 0
A45: EQT | B45: KWAP | C45: 8583 | D45: 11801962 | E45: 17938982.24 | F45: 17938982.24 | G45: KWAP | H45: 1 | I45: 3000-01-01 | J45: 3000-01-01 | K45: 3000-01-01 | L45: 19087894.6 | M45: 19087894.6 | N45: 0 | O45: 0 | P45: -1148912.36 | Q45: 0 | R45: 1.52 | S45: KWAP (i-VCAP Syariah) | T45: MYR | U45: 365 | V45: IV | W45: MAHSING | X45: MYR | Y45: EQT | Z45: Equity | AA45: Properties | AI45: Ringgit Malaysia | AJ45: EQUITY | AK45: 1 | AL45: 0 | AM45: MAH SING GROUP BHD | AN45: 0 | AO45: 0 | AP45: 1358847602 | AQ45: KLSE | AR45: 1 | AS45: Mah Sing Group Bhd | AT45: Mah Sing Group Bhd | AU45: ORD | AV45: MB | AW45: Main Board | AZ45: Listed Shares | BA45: N/A | BB45: MY | BD45: KWAP (i-VCAP Syariah) | BF45: 701537070.2 | BG45: KUALA LUMPUR STOCK EXCHANGE | BK45: 0 | BL45: 0 | BM45: 0 | BN45: 0 | BO45: 0 | BP45: 0 | BY45: FALSE | BZ45: 0 | CA45: 11 | CB45: 0 | CC45: 1 | CD45: 2.557096838 | CE45: 0 | CF45: 2014-04-04 | CG45: 2017-09-15 | CH45: 19087894.6 | CI45: 0 | CJ45: -236039.24 | CK45: 0 | CL45: 0 | CM45: KWAP | CN45: Property | CO45: 0 | CQ45: 0 | CR45: 0 | CS45: SHLI | CT45: 0 | CU45: 2014-04-04 | CV45: 0 | CW45: 0.08429972857 | CX45: 0 | CY45: 0
A46: CSH | B46: KWAP | C46: RPF*MYR*RAJHI | D46: 919460.39 | E46: 927773.32 | F46: 927773.32 | G46: KWAP | H46: 1 | I46: 3000-01-01 | J46: 3000-01-01 | K46: 2017-10-23 | L46: 919460.39 | M46: 919460.39 | N46: 8312.93 | O46: 8312.93 | P46: 0 | Q46: 0 | R46: 0 | S46: KWAP (i-VCAP Syariah) | T46: MYR | U46: 365 | V46: IV | W46: RPF*MYR*RAJHI | X46: MYR | Y46: CSH | Z46: Cash | AA46: Money Market Placement | AG46: F_RAJHI | AH46: Al Rajhi Bank | AI46: Ringgit Malaysia | AJ46: MONEY MARKET | AK46: 1 | AL46: 0 | AM46: Al Rajhi Bank - COMMODITY MURABAHAH | AN46: 0 | AO46: 0 | AP46: 0 | AR46: 1 | AS46: Al Rajhi Bank | AT46: Al Rajhi Bank | AW46: COMMODITY MURABAHAH | AZ46: COMMODITY MURABAHAH | BA46: N/A | BB46: MY | BD46: KWAP (i-VCAP Syariah) | BF46: 701537070.2 | BH46: RPF | BI46: COMMODITY MURABAHAH | BK46: 0 | BL46: 0 | BM46: 0 | BN46: 0 | BO46: 0 | BP46: 0 | BY46: FALSE | BZ46: 0 | CA46: 96 | CB46: 0 | CC46: 4 | CD46: 0.1322486522 | CE46: 0.0375 | CF46: 2017-06-20 | CG46: 2017-09-15 | CH46: 927773.32 | CI46: 0 | CJ46: 283.39 | CK46: 0 | CL46: 0 | CM46: KWAP | CN46: Others | CO46: 0 | CP46: 365 | CQ46: 0 | CR46: 0 | CS46: CSMM | CT46: 0 | CU46: 2017-06-20 | CV46: 0 | CW46: 0.006567574214 | CX46: 0 | CY46: 0.000246284033
A47: CSH | B47: KWAP | C47: RPF*MYR*BIMB | D47: 1068238.57 | E47: 1073579.76 | F47: 1073579.76 | G47: KWAP | H47: 1 | I47: 3000-01-01 | J47: 3000-01-01 | K47: 2017-11-28 | L47: 1068238.57 | M47: 1068238.57 | N47: 5341.19 | O47: 5341.19 | P47: 0 | Q47: 0 | R47: 0 | S47: KWAP (i-VCAP Syariah) | T47: MYR | U47: 365 | V47: IV | W47: RPF*MYR*BIMB | X47: MYR | Y47: CSH | Z47: Cash | AA47: Money Market Placement | AG47: F_BIMB | AH47: Bank Islam Malaysia Berhad | AI47: Ringgit Malaysia | AJ47: MONEY MARKET | AK47: 1 | AL47: 0 | AM47: Bank Islam Malaysia Berhad - COMMODITY MURABAHAH | AN47: 0 | AO47: 0 | AP47: 0 | AR47: 1 | AS47: BIMB HOLDINGS BERHAD | AT47: BIMB HOLDINGS BERHAD | AW47: COMMODITY MURABAHAH | AZ47: COMMODITY MURABAHAH | BA47: N/A | BB47: MY | BD47: KWAP (i-VCAP Syariah) | BF47: 701537070.2 | BH47: RPF | BI47: COMMODITY MURABAHAH | BK47: 0 | BL47: 0 | BM47: 0 | BN47: 0 | BO47: 0 | BP47: 0 | BY47: FALSE | BZ47: 0 | CA47: 96 | CB47: 0 | CC47: 4 | CD47: 0.1530325061 | CE47: 0.0365 | CF47: 2017-07-28 | CG47: 2017-09-15 | CH47: 1073579.76 | CI47: 0 | CJ47: 320.47 | CK47: 0 | CL47: 0 | CM47: KWAP | CN47: Others | CO47: 0 | CP47: 365 | CQ47: 0 | CR47: 0 | CS47: CSMM | CT47: 0 | CU47: 2017-07-28 | CV47: 0 | CW47: 0.0076302755 | CX47: 0 | CY47: 0.0002785050558
A48: CSH | B48: KWAP | C48: RPF*MYR*BIMB | D48: 3350697.69 | E48: 3365798.78 | F48: 3365798.78 | G48: KWAP | H48: 1 | I48: 3000-01-01 | J48: 3000-01-01 | K48: 2017-09-29 | L48: 3350697.69 | M48: 3350697.69 | N48: 15101.09 | O48: 15101.09 | P48: 0 | Q48: 0 | R48: 0 | S48: KWAP (i-VCAP Syariah) | T48: MYR | U48: 365 | V48: IV | W48: RPF*MYR*BIMB | X48: MYR | Y48: CSH | Z48: Cash | AA48: Money Market Placement | AG48: F_BIMB | AH48: Bank Islam Malaysia Berhad | AI48: Ringgit Malaysia | AJ48: MONEY MARKET | AK48: 1 | AL48: 0 | AM48: Bank Islam Malaysia Berhad - COMMODITY MURABAHAH | AN48: 0 | AO48: 0 | AP48: 0 | AR48: 1 | AS48: BIMB HOLDINGS BERHAD | AT48: BIMB HOLDINGS BERHAD | AW48: COMMODITY MURABAHAH | AZ48: COMMODITY MURABAHAH | BA48: N/A | BB48: MY | BD48: KWAP (i-VCAP Syariah) | BF48: 701537070.2 | BH48: RPF | BI48: COMMODITY MURABAHAH | BK48: 0 | BL48: 0 | BM48: 0 | BN48: 0 | BO48: 0 | BP48: 0 | BY48: FALSE | BZ48: 0 | CA48: 96 | CB48: 0 | CC48: 4 | CD48: 0.4797749004 | CE48: 0.035 | CF48: 2017-07-31 | CG48: 2017-09-15 | CH48: 3365798.78 | CI48: 0 | CJ48: 963.9 | CK48: 0 | CL48: 0 | CM48: KWAP | CN48: Others | CO48: 0 | CP48: 365 | CQ48: 0 | CR48: 0 | CS48: CSMM | CT48: 0 | CU48: 2017-07-31 | CV48: 0 | CW48: 0.02393355493 | CX48: 0 | CY48: 0.0008376744225
A49: CSH | B49: KWAP | C49: RPF*MYR*RAJHI | D49: 10000000 | E49: 10046882.19 | F49: 10046882.19 | G49: KWAP | H49: 1 | I49: 3000-01-01 | J49: 3000-01-01 | K49: 2017-12-04 | L49: 10000000 | M49: 10000000 | N49: 46882.19 | O49: 46882.19 | P49: 0 | Q49: 0 | R49: 0 | S49: KWAP (i-VCAP Syariah) | T49: MYR | U49: 365 | V49: IV | W49: RPF*MYR*RAJHI | X49: MYR | Y49: CSH | Z49: Cash | AA49: Money Market Placement | AG49: F_RAJHI | AH49: Al Rajhi Bank | AI49: Ringgit Malaysia | AJ49: MONEY MARKET | AK49: 1 | AL49: 0 | AM49: Al Rajhi Bank - COMMODITY MURABAHAH | AN49: 0 | AO49: 0 | AP49: 0 | AR49: 1 | AS49: Al Rajhi Bank | AT49: Al Rajhi Bank | AW49: COMMODITY MURABAHAH | AZ49: COMMODITY MURABAHAH | BA49: N/A | BB49: MY | BD49: KWAP (i-VCAP Syariah) | BF49: 701537070.2 | BH49: RPF | BI49: COMMODITY MURABAHAH | BK49: 0 | BL49: 0 | BM49: 0 | BN49: 0 | BO49: 0 | BP49: 0 | BY49: FALSE | BZ49: 0 | CA49: 96 | CB49: 0 | CC49: 4 | CD49: 1.432124205 | CE49: 0.0372 | CF49: 2017-08-01 | CG49: 2017-09-15 | CH49: 10046882.19 | CI49: 0 | CJ49: 3057.54 | CK49: 0 | CL49: 0 | CM49: KWAP | CN49: Others | CO49: 0 | CP49: 365 | CQ49: 0 | CR49: 0 | CS49: CSMM | CT49: 0 | CU49: 2017-08-01 | CV49: 0 | CW49: 0.07142857143 | CX49: 0 | CY49: 0.002657142857
A50: CSH | B50: KWAP | C50: RPF*MYR*RAJHI | D50: 928773.66 | E50: 931692.3 | F50: 931692.3 | G50: KWAP | H50: 1 | I50: 3000-01-01 | J50: 3000-01-01 | K50: 2017-12-18 | L50: 928773.66 | M50: 928773.66 | N50: 2918.64 | O50: 2918.64 | P50: 0 | Q50: 0 | R50: 0 | S50: KWAP (i-VCAP Syariah) | T50: MYR | U50: 365 | V50: IV | W50: RPF*MYR*RAJHI | X50: MYR | Y50: CSH | Z50: Cash | AA50: Money Market Placement | AG50: F_RAJHI | AH50: Al Rajhi Bank | AI50: Ringgit Malaysia | AJ50: MONEY MARKET | AK50: 1 | AL50: 0 | AM50: Al Rajhi Bank - COMMODITY MURABAHAH | AN50: 0 | AO50: 0 | AP50: 0 | AR50: 1 | AS50: Al Rajhi Bank | AT50: Al Rajhi Bank | AW50: COMMODITY MURABAHAH | AZ50: COMMODITY MURABAHAH | BA50: N/A | BB50: MY | BD50: KWAP (i-VCAP Syariah) | BF50: 701537070.2 | BH50: RPF | BI50: COMMODITY MURABAHAH | BK50: 0 | BL50: 0 | BM50: 0 | BN50: 0 | BO50: 0 | BP50: 0 | BY50: FALSE | BZ50: 0 | CA50: 96 | CB50: 0 | CC50: 4 | CD50: 0.1328072798 | CE50: 0.037 | CF50: 2017-08-16 | CG50: 2017-09-15 | CH50: 931692.3 | CI50: 0 | CJ50: 282.45 | CK50: 0 | CL50: 0 | CM50: KWAP | CN50: Others | CO50: 0 | CP50: 365 | CQ50: 0 | CR50: 0 | CS50: CSMM | CT50: 0 | CU50: 2017-08-16 | CV50: 0 | CW50: 0.006634097571 | CX50: 0 | CY50: 0.0002454616101
A51: CSH | B51: KWAP | C51: RPF*MYR*MIB | D51: 4288315.6 | E51: 4288671.59 | F51: 4288671.59 | G51: KWAP | H51: 1 | I51: 3000-01-01 | J51: 3000-01-01 | K51: 2017-09-20 | L51: 4288315.6 | M51: 4288315.6 | N51: 355.99 | O51: 355.99 | P51: 0 | Q51: 0 | R51: 0 | S51: KWAP (i-VCAP Syariah) | T51: MYR | U51: 365 | V51: IV | W51: RPF*MYR*MIB | X51: MYR | Y51: CSH | Z51: Cash | AA51: Money Market Placement | AG51: F_MIB | AH51: Maybank Islamic Berhad | AI51: Ringgit Malaysia | AJ51: MONEY MARKET | AK51: 1 | AL51: 0 | AM51: Maybank Islamic Bank - COMMODITY MURABAHAH | AN51: 0 | AO51: 0 | AP51: 0 | AR51: 1 | AS51: Maybank Islamic Berhad | AT51: Maybank Berhad | AW51: COMMODITY MURABAHAH | AZ51: COMMODITY MURABAHAH | BA51: N/A | BB51: MY | BD51: KWAP (i-VCAP Syariah) | BF51: 701537070.2 | BH51: RPF | BI51: COMMODITY MURABAHAH | BK51: 0 | BL51: 0 | BM51: 0 | BN51: 0 | BO51: 0 | BP51: 0 | BY51: FALSE | BZ51: 0 | CA51: 96 | CB51: 0 | CC51: 4 | CD51: 0.6113250136 | CE51: 0.0303 | CF51: 2017-09-15 | CG51: 2017-09-15 | CH51: 4288671.59 | CI51: 0 | CJ51: 1423.96 | CK51: 0 | CL51: 0 | CM51: KWAP | CN51: Others | CO51: 0 | CP51: 365 | CQ51: 0 | CR51: 0 | CS51: CSMM | CT51: 0 | CU51: 2017-09-15 | CV51: 0 | CW51: 0.03063082571 | CX51: 0 | CY51: 0.0009281140191
A52: TBI | B52: KWAP | C52: TradeDrVal | D52: 0 | E52: 932171.59 | F52: 932171.59 | G52: KWAP | H52: 1 | I52: 3000-01-01 | J52: 3000-01-01 | K52: 3000-01-01 | L52: 932171.59 | M52: 0 | N52: 0 | O52: 0 | P52: 0 | Q52: 0 | R52: 0 | S52: KWAP (i-VCAP Syariah) | T52: MYR | U52: 365 | V52: IV | X52: MYR | Y52: TBI | Z52: Cash And Equivalent | AJ52: CASH AND EQUIVALENT | AK52: 1 | AL52: 0 | AM52: Debtor Broker | AN52: 0 | AO52: 0 | BA52: N/A | BD52: KWAP (i-VCAP Syariah) | BF52: 701537070.2 | BK52: 0 | BL52: 0 | BM52: 0 | BN52: 0 | BO52: 0 | BP52: 0 | BY52: FALSE | BZ52: 0 | CB52: 0 | CC52: 9 | CD52: 0.1328755998 | CE52: 0 | CF52: 3000-01-01 | CG52: 3000-01-01 | CH52: 0 | CI52: 0 | CJ52: 0 | CK52: 0 | CL52: 0 | CM52: KWAP | CN52: Not Classified | CO52: 0 | CQ52: 0 | CR52: 0 | CT52: 0 | CU52: 3000-01-01 | CV52: 0 | CW52: 0 | CX52: 0 | CY52: 0
A53: TBI | B53: KWAP | C53: TradeCrVal | D53: 0 | E53: 0 | F53: 0 | G53: KWAP | H53: 1 | I53: 3000-01-01 | J53: 3000-01-01 | K53: 3000-01-01 | L53: 0 | M53: 0 | N53: 0 | O53: 0 | P53: 0 | Q53: 0 | R53: 0 | S53: KWAP (i-VCAP Syariah) | T53: MYR | U53: 365 | V53: IV | X53: MYR | Y53: TBI | Z53: Cash And Equivalent | AJ53: CASH AND EQUIVALENT | AK53: 1 | AL53: 0 | AM53: Creditor Broker | AN53: 0 | AO53: 0 | BA53: N/A | BD53: KWAP (i-VCAP Syariah) | BF53: 701537070.2 | BK53: 0 | BL53: 0 | BM53: 0 | BN53: 0 | BO53: 0 | BP53: 0 | BY53: FALSE | BZ53: 0 | CB53: 0 | CC53: 9 | CD53: 0 | CE53: 0 | CF53: 3000-01-01 | CG53: 3000-01-01 | CH53: 0 | CI53: 0 | CJ53: 0 | CK53: 0 | CL53: 0 | CM53: KWAP | CN53: Not Classified | CO53: 0 | CQ53: 0 | CR53: 0 | CT53: 0 | CU53: 3000-01-01 | CV53: 0 | CW53: 0 | CX53: 0 | CY53: 0
A54: TBI | B54: KWAP | C54: MngDb | D54: 0 | E54: 0 | F54: 0 | G54: KWAP | H54: 1 | I54: 3000-01-01 | J54: 3000-01-01 | K54: 3000-01-01 | L54: 0 | M54: 0 | N54: 0 | O54: 0 | P54: 0 | Q54: 0 | R54: 0 | S54: KWAP (i-VCAP Syariah) | T54: MYR | U54: 365 | V54: IV | X54: MYR | Y54: TBI | Z54: Cash And Equivalent | AJ54: CASH AND EQUIVALENT | AK54: 1 | AL54: 0 | AM54: Others | AN54: 0 | AO54: 0 | BA54: N/A | BD54: KWAP (i-VCAP Syariah) | BF54: 701537070.2 | BK54: 0 | BL54: 0 | BM54: 0 | BN54: 0 | BO54: 0 | BP54: 0 | BY54: FALSE | BZ54: 0 | CB54: 0 | CC54: 9 | CD54: 0 | CE54: 0 | CF54: 3000-01-01 | CG54: 3000-01-01 | CH54: 0 | CI54: 0 | CJ54: 0 | CK54: 0 | CL54: 0 | CM54: KWAP | CN54: Not Classified | CO54: 0 | CQ54: 0 | CR54: 0 | CT54: 0 | CU54: 3000-01-01 | CV54: 0 | CW54: 0 | CX54: 0 | CY54: 0
A55: TBI | B55: KWAP | C55: MngCr | D55: 0 | E55: 0 | F55: 0 | G55: KWAP | H55: 1 | I55: 3000-01-01 | J55: 3000-01-01 | K55: 3000-01-01 | L55: 0 | M55: 0 | N55: 0 | O55: 0 | P55: 0 | Q55: 0 | R55: 0 | S55: KWAP (i-VCAP Syariah) | T55: MYR | U55: 365 | V55: IV | X55: MYR | Y55: TBI | Z55: Cash And Equivalent | AJ55: CASH AND EQUIVALENT | AK55: 1 | AL55: 0 | AM55: Others | AN55: 0 | AO55: 0 | BA55: N/A | BD55: KWAP (i-VCAP Syariah) | BF55: 701537070.2 | BK55: 0 | BL55: 0 | BM55: 0 | BN55: 0 | BO55: 0 | BP55: 0 | BY55: FALSE | BZ55: 0 | CB55: 0 | CC55: 9 | CD55: 0 | CE55: 0 | CF55: 3000-01-01 | CG55: 3000-01-01 | CH55: 0 | CI55: 0 | CJ55: 0 | CK55: 0 | CL55: 0 | CM55: KWAP | CN55: Not Classified | CO55: 0 | CQ55: 0 | CR55: 0 | CT55: 0 | CU55: 3000-01-01 | CV55: 0 | CW55: 0 | CX55: 0 | CY55: 0
A56: TBI | B56: KWAP | C56: DivVal | D56: 0 | E56: 1736266.7 | F56: 1736266.7 | G56: KWAP | H56: 1 | I56: 3000-01-01 | J56: 3000-01-01 | K56: 3000-01-01 | L56: 1736266.7 | M56: 0 | N56: 0 | O56: 0 | P56: 0 | Q56: 0 | R56: 0 | S56: KWAP (i-VCAP Syariah) | T56: MYR | U56: 365 | V56: IV | X56: MYR | Y56: TBI | Z56: Cash And Equivalent | AJ56: CASH AND EQUIVALENT | AK56: 1 | AL56: 0 | AM56: Dividend Receivable | AN56: 0 | AO56: 0 | BA56: N/A | BD56: KWAP (i-VCAP Syariah) | BF56: 701537070.2 | BK56: 0 | BL56: 0 | BM56: 0 | BN56: 0 | BO56: 0 | BP56: 0 | BY56: FALSE | BZ56: 0 | CB56: 0 | CC56: 9 | CD56: 0.2474946476 | CE56: 0 | CF56: 3000-01-01 | CG56: 3000-01-01 | CH56: 0 | CI56: 0 | CJ56: 0 | CK56: 0 | CL56: 0 | CM56: KWAP | CN56: Not Classified | CO56: 0 | CQ56: 0 | CR56: 0 | CT56: 0 | CU56: 3000-01-01 | CV56: 0 | CW56: 0 | CX56: 0 | CY56: 0
A57: TBI | B57: KWAP | C57: OtherDbVal | D57: 0 | E57: 0 | F57: 0 | G57: KWAP | H57: 1 | I57: 3000-01-01 | J57: 3000-01-01 | K57: 3000-01-01 | L57: 0 | M57: 0 | N57: 0 | O57: 0 | P57: 0 | Q57: 0 | R57: 0 | S57: KWAP (i-VCAP Syariah) | T57: MYR | U57: 365 | V57: IV | X57: MYR | Y57: TBI | Z57: Cash And Equivalent | AJ57: CASH AND EQUIVALENT | AK57: 1 | AL57: 0 | AM57: Others | AN57: 0 | AO57: 0 | BA57: N/A | BD57: KWAP (i-VCAP Syariah) | BF57: 701537070.2 | BK57: 0 | BL57: 0 | BM57: 0 | BN57: 0 | BO57: 0 | BP57: 0 | BY57: FALSE | BZ57: 0 | CB57: 0 | CC57: 9 | CD57: 0 | CE57: 0 | CF57: 3000-01-01 | CG57: 3000-01-01 | CH57: 0 | CI57: 0 | CJ57: 0 | CK57: 0 | CL57: 0 | CM57: KWAP | CN57: Not Classified | CO57: 0 | CQ57: 0 | CR57: 0 | CT57: 0 | CU57: 3000-01-01 | CV57: 0 | CW57: 0 | CX57: 0 | CY57: 0
A58: TBI | B58: KWAP | C58: OtherCrVal | D58: 0 | E58: 0 | F58: 0 | G58: KWAP | H58: 1 | I58: 3000-01-01 | J58: 3000-01-01 | K58: 3000-01-01 | L58: 0 | M58: 0 | N58: 0 | O58: 0 | P58: 0 | Q58: 0 | R58: 0 | S58: KWAP (i-VCAP Syariah) | T58: MYR | U58: 365 | V58: IV | X58: MYR | Y58: TBI | Z58: Cash And Equivalent | AJ58: CASH AND EQUIVALENT | AK58: 1 | AL58: 0 | AM58: Others | AN58: 0 | AO58: 0 | BA58: N/A | BD58: KWAP (i-VCAP Syariah) | BF58: 701537070.2 | BK58: 0 | BL58: 0 | BM58: 0 | BN58: 0 | BO58: 0 | BP58: 0 | BY58: FALSE | BZ58: 0 | CB58: 0 | CC58: 9 | CD58: 0 | CE58: 0 | CF58: 3000-01-01 | CG58: 3000-01-01 | CH58: 0 | CI58: 0 | CJ58: 0 | CK58: 0 | CL58: 0 | CM58: KWAP | CN58: Not Classified | CO58: 0 | CQ58: 0 | CR58: 0 | CT58: 0 | CU58: 3000-01-01 | CV58: 0 | CW58: 0 | CX58: 0 | CY58: 0
A59: TBI | B59: KWAP | C59: TaxProvVal | D59: 0 | E59: 0 | F59: 0 | G59: KWAP | H59: 1 | I59: 3000-01-01 | J59: 3000-01-01 | K59: 3000-01-01 | L59: 0 | M59: 0 | N59: 0 | O59: 0 | P59: 0 | Q59: 0 | R59: 0 | S59: KWAP (i-VCAP Syariah) | T59: MYR | U59: 365 | V59: IV | X59: MYR | Y59: TBI | Z59: Cash And Equivalent | AJ59: CASH AND EQUIVALENT | AK59: 1 | AL59: 0 | AM59: Tax Payable | AN59: 0 | AO59: 0 | BA59: N/A | BD59: KWAP (i-VCAP Syariah) | BF59: 701537070.2 | BK59: 0 | BL59: 0 | BM59: 0 | BN59: 0 | BO59: 0 | BP59: 0 | BY59: FALSE | BZ59: 0 | CB59: 0 | CC59: 9 | CD59: 0 | CE59: 0 | CF59: 3000-01-01 | CG59: 3000-01-01 | CH59: 0 | CI59: 0 | CJ59: 0 | CK59: 0 | CL59: 0 | CM59: KWAP | CN59: Not Classified | CO59: 0 | CQ59: 0 | CR59: 0 | CT59: 0 | CU59: 3000-01-01 | CV59: 0 | CW59: 0 | CX59: 0 | CY59: 0
A60: TBI | B60: KWAP | C60: DefTaxProvVal | D60: 0 | E60: 0 | F60: 0 | G60: KWAP | H60: 1 | I60: 3000-01-01 | J60: 3000-01-01 | K60: 3000-01-01 | L60: 0 | M60: 0 | N60: 0 | O60: 0 | P60: 0 | Q60: 0 | R60: 0 | S60: KWAP (i-VCAP Syariah) | T60: MYR | U60: 365 | V60: IV | X60: MYR | Y60: TBI | Z60: Cash And Equivalent | AJ60: CASH AND EQUIVALENT | AK60: 1 | AL60: 0 | AM60: Tax Payable | AN60: 0 | AO60: 0 | BA60: N/A | BD60: KWAP (i-VCAP Syariah) | BF60: 701537070.2 | BK60: 0 | BL60: 0 | BM60: 0 | BN60: 0 | BO60: 0 | BP60: 0 | BY60: FALSE | BZ60: 0 | CB60: 0 | CC60: 9 | CD60: 0 | CE60: 0 | CF60: 3000-01-01 | CG60: 3000-01-01 | CH60: 0 | CI60: 0 | CJ60: 0 | CK60: 0 | CL60: 0 | CM60: KWAP | CN60: Not Classified | CO60: 0 | CQ60: 0 | CR60: 0 | CT60: 0 | CU60: 3000-01-01 | CV60: 0 | CW60: 0 | CX60: 0 | CY60: 0
A61: TBI | B61: KWAP | C61: ProvDistVal | D61: 0 | E61: 0 | F61: 0 | G61: KWAP | H61: 1 | I61: 3000-01-01 | J61: 3000-01-01 | K61: 3000-01-01 | L61: 0 | M61: 0 | N61: 0 | O61: 0 | P61: 0 | Q61: 0 | R61: 0 | S61: KWAP (i-VCAP Syariah) | T61: MYR | U61: 365 | V61: IV | X61: MYR | Y61: TBI | Z61: Cash And Equivalent | AJ61: CASH AND EQUIVALENT | AK61: 1 | AL61: 0 | AM61: Others | AN61: 0 | AO61: 0 | BA61: N/A | BD61: KWAP (i-VCAP Syariah) | BF61: 701537070.2 | BK61: 0 | BL61: 0 | BM61: 0 | BN61: 0 | BO61: 0 | BP61: 0 | BY61: FALSE | BZ61: 0 | CB61: 0 | CC61: 9 | CD61: 0 | CE61: 0 | CF61: 3000-01-01 | CG61: 3000-01-01 | CH61: 0 | CI61: 0 | CJ61: 0 | CK61: 0 | CL61: 0 | CM61: KWAP | CN61: Not Classified | CO61: 0 | CQ61: 0 | CR61: 0 | CT61: 0 | CU61: 3000-01-01 | CV61: 0 | CW61: 0 | CX61: 0 | CY61: 0
A62: TBI | B62: KWAP | C62: MngFee_BF | D62: 0 | E62: 0 | F62: 0 | G62: KWAP | H62: 1 | I62: 3000-01-01 | J62: 3000-01-01 | K62: 3000-01-01 | L62: 0 | M62: 0 | N62: 0 | O62: 0 | P62: 0 | Q62: 0 | R62: 0 | S62: KWAP (i-VCAP Syariah) | T62: MYR | U62: 365 | V62: IV | X62: MYR | Y62: TBI | Z62: Cash And Equivalent | AJ62: CASH AND EQUIVALENT | AK62: 1 | AL62: 0 | AM62: Others | AN62: 0 | AO62: 0 | BA62: N/A | BD62: KWAP (i-VCAP Syariah) | BF62: 701537070.2 | BK62: 0 | BL62: 0 | BM62: 0 | BN62: 0 | BO62: 0 | BP62: 0 | BY62: FALSE | BZ62: 0 | CB62: 0 | CC62: 9 | CD62: 0 | CE62: 0 | CF62: 3000-01-01 | CG62: 3000-01-01 | CH62: 0 | CI62: 0 | CJ62: 0 | CK62: 0 | CL62: 0 | CM62: KWAP | CN62: Not Classified | CO62: 0 | CQ62: 0 | CR62: 0 | CT62: 0 | CU62: 3000-01-01 | CV62: 0 | CW62: 0 | CX62: 0 | CY62: 0
A63: TBI | B63: KWAP | C63: MngFeeRebate_BF | D63: 0 | E63: 0 | F63: 0 | G63: KWAP | H63: 1 | I63: 3000-01-01 | J63: 3000-01-01 | K63: 3000-01-01 | L63: 0 | M63: 0 | N63: 0 | O63: 0 | P63: 0 | Q63: 0 | R63: 0 | S63: KWAP (i-VCAP Syariah) | T63: MYR | U63: 365 | V63: IV | X63: MYR | Y63: TBI | Z63: Cash And Equivalent | AJ63: CASH AND EQUIVALENT | AK63: 1 | AL63: 0 | AM63: Others | AN63: 0 | AO63: 0 | BA63: N/A | BD63: KWAP (i-VCAP Syariah) | BF63: 701537070.2 | BK63: 0 | BL63: 0 | BM63: 0 | BN63: 0 | BO63: 0 | BP63: 0 | BY63: FALSE | BZ63: 0 | CB63: 0 | CC63: 9 | CD63: 0 | CE63: 0 | CF63: 3000-01-01 | CG63: 3000-01-01 | CH63: 0 | CI63: 0 | CJ63: 0 | CK63: 0 | CL63: 0 | CM63: KWAP | CN63: Not Classified | CO63: 0 | CQ63: 0 | CR63: 0 | CT63: 0 | CU63: 3000-01-01 | CV63: 0 | CW63: 0 | CX63: 0 | CY63: 0
A64: TBI | B64: KWAP | C64: TrusteeFee_BF | D64: 0 | E64: 0 | F64: 0 | G64: KWAP | H64: 1 | I64: 3000-01-01 | J64: 3000-01-01 | K64: 3000-01-01 | L64: 0 | M64: 0 | N64: 0 | O64: 0 | P64: 0 | Q64: 0 | R64: 0 | S64: KWAP (i-VCAP Syariah) | T64: MYR | U64: 365 | V64: IV | X64: MYR | Y64: TBI | Z64: Cash And Equivalent | AJ64: CASH AND EQUIVALENT | AK64: 1 | AL64: 0 | AM64: Others | AN64: 0 | AO64: 0 | BA64: N/A | BD64: KWAP (i-VCAP Syariah) | BF64: 701537070.2 | BK64: 0 | BL64: 0 | BM64: 0 | BN64: 0 | BO64: 0 | BP64: 0 | BY64: FALSE | BZ64: 0 | CB64: 0 | CC64: 9 | CD64: 0 | CE64: 0 | CF64: 3000-01-01 | CG64: 3000-01-01 | CH64: 0 | CI64: 0 | CJ64: 0 | CK64: 0 | CL64: 0 | CM64: KWAP | CN64: Not Classified | CO64: 0 | CQ64: 0 | CR64: 0 | CT64: 0 | CU64: 3000-01-01 | CV64: 0 | CW64: 0 | CX64: 0 | CY64: 0
A65: TBI | B65: KWAP | C65: AuditorFee_BF | D65: 0 | E65: 0 | F65: 0 | G65: KWAP | H65: 1 | I65: 3000-01-01 | J65: 3000-01-01 | K65: 3000-01-01 | L65: 0 | M65: 0 | N65: 0 | O65: 0 | P65: 0 | Q65: 0 | R65: 0 | S65: KWAP (i-VCAP Syariah) | T65: MYR | U65: 365 | V65: IV | X65: MYR | Y65: TBI | Z65: Cash And Equivalent | AJ65: CASH AND EQUIVALENT | AK65: 1 | AL65: 0 | AM65: Others | AN65: 0 | AO65: 0 | BA65: N/A | BD65: KWAP (i-VCAP Syariah) | BF65: 701537070.2 | BK65: 0 | BL65: 0 | BM65: 0 | BN65: 0 | BO65: 0 | BP65: 0 | BY65: FALSE | BZ65: 0 | CB65: 0 | CC65: 9 | CD65: 0 | CE65: 0 | CF65: 3000-01-01 | CG65: 3000-01-01 | CH65: 0 | CI65: 0 | CJ65: 0 | CK65: 0 | CL65: 0 | CM65: KWAP | CN65: Not Classified | CO65: 0 | CQ65: 0 | CR65: 0 | CT65: 0 | CU65: 3000-01-01 | CV65: 0 | CW65: 0 | CX65: 0 | CY65: 0
A66: TBI | B66: KWAP | C66: CustodianFee_BF | D66: 0 | E66: 0 | F66: 0 | G66: KWAP | H66: 1 | I66: 3000-01-01 | J66: 3000-01-01 | K66: 3000-01-01 | L66: 0 | M66: 0 | N66: 0 | O66: 0 | P66: 0 | Q66: 0 | R66: 0 | S66: KWAP (i-VCAP Syariah) | T66: MYR | U66: 365 | V66: IV | X66: MYR | Y66: TBI | Z66: Cash And Equivalent | AJ66: CASH AND EQUIVALENT | AK66: 1 | AL66: 0 | AM66: Others | AN66: 0 | AO66: 0 | BA66: N/A | BD66: KWAP (i-VCAP Syariah) | BF66: 701537070.2 | BK66: 0 | BL66: 0 | BM66: 0 | BN66: 0 | BO66: 0 | BP66: 0 | BY66: FALSE | BZ66: 0 | CB66: 0 | CC66: 9 | CD66: 0 | CE66: 0 | CF66: 3000-01-01 | CG66: 3000-01-01 | CH66: 0 | CI66: 0 | CJ66: 0 | CK66: 0 | CL66: 0 | CM66: KWAP | CN66: Not Classified | CO66: 0 | CQ66: 0 | CR66: 0 | CT66: 0 | CU66: 3000-01-01 | CV66: 0 | CW66: 0 | CX66: 0 | CY66: 0
A67: TBI | B67: KWAP | C67: BrokerageFee_BF | D67: 0 | E67: 0 | F67: 0 | G67: KWAP | H67: 1 | I67: 3000-01-01 | J67: 3000-01-01 | K67: 3000-01-01 | L67: 0 | M67: 0 | N67: 0 | O67: 0 | P67: 0 | Q67: 0 | R67: 0 | S67: KWAP (i-VCAP Syariah) | T67: MYR | U67: 365 | V67: IV | X67: MYR | Y67: TBI | Z67: Cash And Equivalent | AJ67: CASH AND EQUIVALENT | AK67: 1 | AL67: 0 | AM67: Others | AN67: 0 | AO67: 0 | BA67: N/A | BD67: KWAP (i-VCAP Syariah) | BF67: 701537070.2 | BK67: 0 | BL67: 0 | BM67: 0 | BN67: 0 | BO67: 0 | BP67: 0 | BY67: FALSE | BZ67: 0 | CB67: 0 | CC67: 9 | CD67: 0 | CE67: 0 | CF67: 3000-01-01 | CG67: 3000-01-01 | CH67: 0 | CI67: 0 | CJ67: 0 | CK67: 0 | CL67: 0 | CM67: KWAP | CN67: Not Classified | CO67: 0 | CQ67: 0 | CR67: 0 | CT67: 0 | CU67: 3000-01-01 | CV67: 0 | CW67: 0 | CX67: 0 | CY67: 0
A68: TBI | B68: KWAP | C68: OthVal | D68: 0 | E68: 0 | F68: 0 | G68: KWAP | H68: 1 | I68: 3000-01-01 | J68: 3000-01-01 | K68: 3000-01-01 | L68: 0 | M68: 0 | N68: 0 | O68: 0 | P68: 0 | Q68: 0 | R68: 0 | S68: KWAP (i-VCAP Syariah) | T68: MYR | U68: 365 | V68: IV | X68: MYR | Y68: TBI | Z68: Cash And Equivalent | AJ68: CASH AND EQUIVALENT | AK68: 1 | AL68: 0 | AM68: Others | AN68: 0 | AO68: 0 | BA68: N/A | BD68: KWAP (i-VCAP Syariah) | BF68: 701537070.2 | BK68: 0 | BL68: 0 | BM68: 0 | BN68: 0 | BO68: 0 | BP68: 0 | BY68: FALSE | BZ68: 0 | CB68: 0 | CC68: 9 | CD68: 0 | CE68: 0 | CF68: 3000-01-01 | CG68: 3000-01-01 | CH68: 0 | CI68: 0 | CJ68: 0 | CK68: 0 | CL68: 0 | CM68: KWAP | CN68: Not Classified | CO68: 0 | CQ68: 0 | CR68: 0 | CT68: 0 | CU68: 3000-01-01 | CV68: 0 | CW68: 0 | CX68: 0 | CY68: 0
A69: TBI | B69: KWAP | C69: TaxVal | D69: 0 | E69: 0 | F69: 0 | G69: KWAP | H69: 1 | I69: 3000-01-01 | J69: 3000-01-01 | K69: 3000-01-01 | L69: 0 | M69: 0 | N69: 0 | O69: 0 | P69: 0 | Q69: 0 | R69: 0 | S69: KWAP (i-VCAP Syariah) | T69: MYR | U69: 365 | V69: IV | X69: MYR | Y69: TBI | Z69: Cash And Equivalent | AJ69: CASH AND EQUIVALENT | AK69: 1 | AL69: 0 | AM69: Tax Payable | AN69: 0 | AO69: 0 | BA69: N/A | BD69: KWAP (i-VCAP Syariah) | BF69: 701537070.2 | BK69: 0 | BL69: 0 | BM69: 0 | BN69: 0 | BO69: 0 | BP69: 0 | BY69: FALSE | BZ69: 0 | CB69: 0 | CC69: 9 | CD69: 0 | CE69: 0 | CF69: 3000-01-01 | CG69: 3000-01-01 | CH69: 0 | CI69: 0 | CJ69: 0 | CK69: 0 | CL69: 0 | CM69: KWAP | CN69: Not Classified | CO69: 0 | CQ69: 0 | CR69: 0 | CT69: 0 | CU69: 3000-01-01 | CV69: 0 | CW69: 0 | CX69: 0 | CY69: 0
A70: TBI | B70: KWAP | C70: BankVal | D70: 0 | E70: 72050 | F70: 72050 | G70: KWAP | H70: 1 | I70: 3000-01-01 | J70: 3000-01-01 | K70: 3000-01-01 | L70: 72050 | M70: 0 | N70: 0 | O70: 0 | P70: 0 | Q70: 0 | R70: 0 | S70: KWAP (i-VCAP Syariah) | T70: MYR | U70: 365 | V70: IV | X70: MYR | Y70: TBI | Z70: Cash And Equivalent | AJ70: CASH AND EQUIVALENT | AK70: 1 | AL70: 0 | AM70: Bank Balance | AN70: 0 | AO70: 0 | BA70: N/A | BD70: KWAP (i-VCAP Syariah) | BF70: 701537070.2 | BK70: 0 | BL70: 0 | BM70: 0 | BN70: 0 | BO70: 0 | BP70: 0 | BY70: FALSE | BZ70: 0 | CB70: 0 | CC70: 9 | CD70: 0.01027030546 | CE70: 0 | CF70: 3000-01-01 | CG70: 3000-01-01 | CH70: 0 | CI70: 0 | CJ70: 0 | CK70: 0 | CL70: 0 | CM70: KWAP | CN70: Not Classified | CO70: 0 | CQ70: 0 | CR70: 0 | CT70: 0 | CU70: 3000-01-01 | CV70: 0 | CW70: 0 | CX70: 0 | CY70: 0
A71: TBI | B71: KWAP | C71: BankVal-FX | D71: 0 | E71: 0 | F71: 0 | G71: KWAP | H71: 1 | I71: 3000-01-01 | J71: 3000-01-01 | K71: 3000-01-01 | L71: 0 | M71: 0 | N71: 0 | O71: 0 | P71: 0 | Q71: 0 | R71: 0 | S71: KWAP (i-VCAP Syariah) | T71: MYR | U71: 365 | V71: IV | X71: MYR | Y71: TBI | Z71: Cash And Equivalent | AJ71: CASH AND EQUIVALENT | AK71: 1 | AL71: 0 | AM71: Bank Balance - Foreign | AN71: 0 | AO71: 0 | BA71: N/A | BD71: KWAP (i-VCAP Syariah) | BF71: 701537070.2 | BK71: 0 | BL71: 0 | BM71: 0 | BN71: 0 | BO71: 0 | BP71: 0 | BY71: FALSE | BZ71: 0 | CB71: 0 | CC71: 9 | CD71: 0 | CE71: 0 | CF71: 3000-01-01 | CG71: 3000-01-01 | CH71: 0 | CI71: 0 | CJ71: 0 | CK71: 0 | CL71: 0 | CM71: KWAP | CN71: Not Classified | CO71: 0 | CQ71: 0 | CR71: 0 | CT71: 0 | CU71: 3000-01-01 | CV71: 0 | CW71: 0 | CX71: 0 | CY71: 0
A72: BND | B72: KWAPSUKUK | C72: VM130204 | D72: 5000000 | E72: 5099100 | F72: 5099100 | G72: KWAPSUKUK | H72: 1 | I72: 2017-07-05 | J72: 2018-01-05 | K72: 2022-07-05 | L72: 5040500 | M72: 5040500 | N72: 46300 | O72: 46300 | P72: 24238.64 | Q72: 0 | R72: 101.056 | S72: KWAP (I-VCAP MGT FIXED INCOME SUKUK) | T72: MYR | U72: 365 | V72: IV | W72: KEVSB IMTN 4.630% 05.07.2022 | X72: MYR | Y72: BND | Z72: Bond | AA72: Others | AB72: 2 | AC72: 3 | AD72: 0.0463 | AE72: 2022-07-05 | AF72: 1 | AI72: Ringgit Malaysia | AJ72: BOND | AK72: 1 | AL72: 11938.64 | AM72: KEVSB IMTN 4.630% 05.07.2022 | AN72: 0 | AO72: 0 | AP72: 2000000000 | AR72: 1 | AS72: Kapar Energy Ventures Sdn Berhad | AT72: Kapar Energy Ventures Sdn Berhad | AX72: 5 | AY72: Corporate Bond | AZ72: ISLAMIC | BA72: N/A | BB72: MY | BD72: KWAP (I-VCAP MGT FIXED INCOME SUKUK) | BE72: AA+ | BF72: 162076693.6 | BK72: 0 | BL72: 0 | BM72: 0 | BN72: 0 | BO72: 0 | BP72: 0 | BY72: FALSE | BZ72: 0 | CA72: 0 | CB72: 0 | CC72: 2 | CD72: 3.146103173 | CE72: 0.04495 | CF72: 2015-06-22 | CG72: 2017-09-15 | CH72: 5074861.36 | CI72: 0.04382 | CJ72: 1902.74 | CK72: 0 | CL72: 0 | CM72: KWAPSUKUK | CN72: Others | CO72: 0 | CQ72: 0 | CR72: 0 | CS72: BDCO | CT72: 0 | CU72: 2015-06-18 | CV72: 4.229849777 | CW72: 0.03571428571 | CX72: 0.1510660635 | CY72: 0.001605357143
A73: BND | B73: KWAPSUKUK | C73: VI150273 | D73: 5000000 | E73: 5100687.91 | F73: 5100687.91 | G73: KWAPSUKUK | H73: 1 | I73: 2017-06-05 | J73: 2017-12-04 | K73: 2020-12-03 | L73: 5054500 | M73: 5054500 | N73: 60837.91 | O73: 60837.91 | P73: -225.86 | Q73: 0 | R73: 100.797 | S73: KWAP (I-VCAP MGT FIXED INCOME SUKUK) | T73: MYR | U73: 365 | V73: IV | W73: RANTAU IMTN 0% 03.12.2020 - Tranche No 9 | X73: MYR | Y73: BND | Z73: Bond | AA73: Others | AB73: 2 | AC73: 1 | AD73: 0.043 | AE73: 2020-12-03 | AF73: 1 | AI73: Ringgit Malaysia | AJ73: BOND | AK73: 1 | AL73: 14424.14 | AM73: RANTAU IMTN 0% 03.12.2020 - Tranche No 9 | AN73: 0 | AO73: 0 | AP73: 7000000000 | AR73: 1 | AS73: Rantau Abang Capital Berhad | AT73: Khazanah Nasional Berhad | AX73: 5 | AY73: Corporate Bond | AZ73: ISLAMIC | BA73: N/A | BB73: MY | BD73: KWAP (I-VCAP MGT FIXED INCOME SUKUK) | BE73: AAA | BF73: 162076693.6 | BK73: 0 | BL73: 0 | BM73: 0 | BN73: 0 | BO73: 0 | BP73: 0 | BY73: FALSE | BZ73: 0 | CA73: 0 | CB73: 0 | CC73: 2 | CD73: 3.1470829 | CE73: 0.0403 | CF73: 2016-07-01 | CG73: 2017-09-15 | CH73: 5100913.77 | CI73: 0.04031 | CJ73: 1721.98 | CK73: 0 | CL73: 0 | CM73: KWAPSUKUK | CN73: Others | CO73: 0 | CQ73: 0 | CR73: 0 | CS73: BDCO | CT73: 0 | CU73: 2016-06-30 | CV73: 2.944226336 | CW73: 0.03571428571 | CX73: 0.1051509406 | CY73: 0.001439285714
A74: BND | B74: KWAPSUKUK | C74: VW120018 | D74: 5000000 | E74: 5189038.36 | F74: 5189038.36 | G74: KWAPSUKUK | H74: 1 | I74: 2017-07-12 | J74: 2018-01-12 | K74: 2031-01-10 | L74: 5263500 | M74: 5263500 | N74: 45838.36 | O74: 45838.36 | P74: -103802.14 | Q74: 0 | R74: 102.864 | S74: KWAP (I-VCAP MGT FIXED INCOME SUKUK) | T74: MYR | U74: 365 | V74: IV | W74: PLUS BERHAD IMTN 5.070% 10.01.2031 - Series 1 (15) | X74: MYR | Y74: BND | Z74: Bond | AA74: Others | AB74: 2 | AC74: 3 | AD74: 0.0507 | AE74: 2031-01-10 | AF74: 1 | AI74: Ringgit Malaysia | AJ74: BOND | AK74: 1 | AL74: 16497.86 | AM74: PLUS BERHAD IMTN 5.070% 10.01.2031 - Series 1 (15) | AN74: 0 | AO74: 0 | AP74: 23350000000 | AR74: 1 | AS74: Projek Lebuhraya Usahasama Bhd | AT74: Projek Lebuhraya Usahasama Bhd | AX74: 5 | AY74: Corporate Bond | AZ74: ISLAMIC | BA74: N/A | BB74: MY | BD74: KWAP (I-VCAP MGT FIXED INCOME SUKUK) | BE74: AAA | BF74: 162076693.6 | BK74: 0 | BL74: 0 | BM74: 0 | BN74: 0 | BO74: 0 | BP74: 0 | BY74: FALSE | BZ74: 0 | CA74: 0 | CB74: 0 | CC74: 2 | CD74: 3.201594408 | CE74: 0.0457 | CF74: 2016-07-13 | CG74: 2017-09-15 | CH74: 5292840.5 | CI74: 0.04776 | CJ74: 2083.56 | CK74: 0 | CL74: 0 | CM74: KWAPSUKUK | CN74: Others | CO74: 0 | CQ74: 0 | CR74: 0 | CS74: BDCO | CT74: 0 | CU74: 2016-07-11 | CV74: 9.631424335 | CW74: 0.03571428571 | CX74: 0.3439794405 | CY74: 0.001632142857
A75: BND | B75: KWAPSUKUK | C75: VS160109 | D75: 5000000 | E75: 5139369.18 | F75: 5139369.18 | G75: KWAPSUKUK | H75: 1 | I75: 2017-04-25 | J75: 2017-10-25 | K75: 2031-04-25 | L75: 5109500 | M75: 5109500 | N75: 99419.18 | O75: 99419.18 | P75: -63636.93 | Q75: 0 | R75: 100.799 | S75: KWAP (I-VCAP MGT FIXED INCOME SUKUK) | T75: MYR | U75: 365 | V75: IV | W75: SEB IMTN 5.040% 25.04.2031 | X75: MYR | Y75: BND | Z75: Bond | AA75: Energy | AB75: 2 | AC75: 3 | AD75: 0.0504 | AE75: 2031-04-25 | AF75: 1 | AI75: Ringgit Malaysia | AJ75: BOND | AK75: 1 | AL75: 5913.07 | AM75: SEB IMTN 5.040% 25.04.2031 | AN75: 0 | AO75: 0 | AP75: 800000000 | AR75: 1 | AS75: Sarawak Energy Berhad | AT75: Sarawak Energy Berhad | AX75: 5 | AY75: Corporate Bond | AZ75: ISLAMIC | BA75: N/A | BB75: MY | BD75: KWAP (I-VCAP MGT FIXED INCOME SUKUK) | BE75: AA1 | BF75: 162076693.6 | BK75: 0 | BL75: 0 | BM75: 0 | BN75: 0 | BO75: 0 | BP75: 0 | BY75: FALSE | BZ75: 0 | CA75: 34 | CB75: 0 | CC75: 2 | CD75: 3.170948929 | CE75: 0.0483 | CF75: 2016-07-20 | CG75: 2017-09-15 | CH75: 5203006.11 | CI75: 0.04958 | CJ75: 2071.23 | CK75: 0 | CL75: 0 | CM75: KWAPSUKUK | CN75: Energy | CO75: 0 | CQ75: 0 | CR75: 0 | CS75: BDCO | CT75: 0 | CU75: 2016-07-18 | CV75: 9.629407165 | CW75: 0.03571428571 | CX75: 0.3439073987 | CY75: 0.001725
A76: BND | B76: KWAPSUKUK | C76: VP150072 | D76: 5000000 | E76: 5070209.59 | F76: 5070209.59 | G76: KWAPSUKUK | H76: 1 | I76: 2017-05-08 | J76: 2017-11-08 | K76: 2027-05-07 | L76: 5094000 | M76: 5094000 | N76: 82009.59 | O76: 82009.59 | P76: -97423.55 | Q76: 0 | R76: 99.764 | S76: KWAP (I-VCAP MGT FIXED INCOME SUKUK) | T76: MYR | U76: 365 | V76: IV | W76: AMAN IMTN 4.570% 07.05.2027 - Tranche No 41 | X76: MYR | Y76: BND | Z76: Bond | AA76: Others | AB76: 2 | AC76: 3 | AD76: 0.0457 | AE76: 2027-05-07 | AF76: 1 | AI76: Ringgit Malaysia | AJ76: BOND | AK76: 1 | AL76: 8376.45 | AM76: AMAN IMTN 4.570% 07.05.2027 - Tranche No 41 | AN76: 0 | AO76: 0 | AP76: 10000000000 | AR76: 1 | AS76: Aman Sukuk Berhad | AT76: Aman Sukuk Berhad | AX76: 5 | AY76: Corporate Bond | AZ76: ISLAMIC | BA76: N/A | BB76: MY | BD76: KWAP (I-VCAP MGT FIXED INCOME SUKUK) | BE76: AAA | BF76: 162076693.6 | BK76: 0 | BL76: 0 | BM76: 0 | BN76: 0 | BO76: 0 | BP76: 0 | BY76: FALSE | BZ76: 0 | CA76: 0 | CB76: 0 | CC76: 2 | CD76: 3.128278025 | CE76: 0.0435 | CF76: 2016-07-22 | CG76: 2017-09-15 | CH76: 5167633.14 | CI76: 0.046 | CJ76: 1878.08 | CK76: 0 | CL76: 0 | CM76: KWAPSUKUK | CN76: Others | CO76: 0 | CQ76: 0 | CR76: 0 | CS76: BDCO | CT76: 0 | CU76: 2016-07-20 | CV76: 7.631562652 | CW76: 0.03571428571 | CX76: 0.272555809 | CY76: 0.001553571429
A77: BND | B77: KWAPSUKUK | C77: VP140145 | D77: 5000000 | E77: 5202312.33 | F77: 5202312.33 | G77: KWAPSUKUK | H77: 1 | I77: 2017-05-30 | J77: 2017-11-29 | K77: 2026-05-29 | L77: 5254500 | M77: 5254500 | N77: 73612.33 | O77: 73612.33 | P77: -101333.52 | Q77: 0 | R77: 102.574 | S77: KWAP (I-VCAP MGT FIXED INCOME SUKUK) | T77: MYR | U77: 365 | V77: IV | W77: AMAN IMTN 4.930% 29.05.2026 - Tranche No 35 | X77: MYR | Y77: BND | Z77: Bond | AA77: Others | AB77: 2 | AC77: 3 | AD77: 0.0493 | AE77: 2026-05-29 | AF77: 1 | AI77: Ringgit Malaysia | AJ77: BOND | AK77: 1 | AL77: 24466.48 | AM77: AMAN IMTN 4.930% 29.05.2026 - Tranche No 35 | AN77: 0 | AO77: 0 | AP77: 10000000000 | AR77: 1 | AS77: Aman Sukuk Berhad | AT77: Aman Sukuk Berhad | AX77: 5 | AY77: Corporate Bond | AZ77: ISLAMIC | BA77: N/A | BB77: MY | BD77: KWAP (I-VCAP MGT FIXED INCOME SUKUK) | BE77: AAA | BF77: 162076693.6 | BK77: 0 | BL77: 0 | BM77: 0 | BN77: 0 | BO77: 0 | BP77: 0 | BY77: FALSE | BZ77: 0 | CA77: 0 | CB77: 0 | CC77: 2 | CD77: 3.20978434 | CE77: 0.0429 | CF77: 2016-07-28 | CG77: 2017-09-15 | CH77: 5303645.85 | CI77: 0.04567 | CJ77: 1976.03 | CK77: 0 | CL77: 0 | CM77: KWAPSUKUK | CN77: Others | CO77: 0 | CQ77: 0 | CR77: 0 | CS77: BDCO | CT77: 0 | CU77: 2016-07-26 | CV77: 6.971928456 | CW77: 0.03571428571 | CX77: 0.2489974448 | CY77: 0.001532142857
A78: BND | B78: KWAPSUKUK | C78: VX110056 | D78: 5000000 | E78: 5216518.92 | F78: 5216518.92 | G78: KWAPSUKUK | H78: 1 | I78: 2017-05-12 | J78: 2017-11-13 | K78: 2031-05-12 | L78: 5277500 | M78: 5277500 | N78: 86668.92 | O78: 86668.92 | P78: -132495.63 | Q78: 0 | R78: 102.597 | S78: KWAP (I-VCAP MGT FIXED INCOME SUKUK) | T78: MYR | U78: 365 | V78: IV | W78: RANTAU IMTN 0% 12.05.2031 - MTN 5 | X78: MYR | Y78: BND | Z78: Bond | AA78: Others | AB78: 2 | AC78: 1 | AD78: 0.0505 | AE78: 2031-05-12 | AF78: 1 | AI78: Ringgit Malaysia | AJ78: BOND | AK78: 1 | AL78: 15154.37 | AM78: RANTAU IMTN 0% 12.05.2031 - MTN 5 | AN78: 0 | AO78: 0 | AP78: 7000000000 | AR78: 1 | AS78: Rantau Abang Capital Berhad | AT78: Khazanah Nasional Berhad | AX78: 5 | AY78: Corporate Bond | AZ78: ISLAMIC | BA78: N/A | BB78: MY | BD78: KWAP (I-VCAP MGT FIXED INCOME SUKUK) | BE78: AAA | BF78: 162076693.6 | BK78: 0 | BL78: 0 | BM78: 0 | BN78: 0 | BO78: 0 | BP78: 0 | BY78: FALSE | BZ78: 0 | CA78: 0 | CB78: 0 | CC78: 2 | CD78: 3.21854969 | CE78: 0.0453 | CF78: 2016-08-04 | CG78: 2017-09-15 | CH78: 5349014.55 | CI78: 0.04788 | CJ78: 5597.3 | CK78: 0 | CL78: 0 | CM78: KWAPSUKUK | CN78: Others | CO78: 0 | CQ78: 0 | CR78: 0 | CS78: BDCO | CT78: 0 | CU78: 2016-08-02 | CV78: 9.751183055 | CW78: 0.03571428571 | CX78: 0.3482565377 | CY78: 0.001617857143
A79: BND | B79: KWAPSUKUK | C79: VT130338 | D79: 5000000 | E79: 5579660.27 | F79: 5579660.27 | G79: KWAPSUKUK | H79: 1 | I79: 2017-06-19 | J79: 2017-12-18 | K79: 2029-12-17 | L79: 5605000 | M79: 5605000 | N79: 73760.27 | O79: 73760.27 | P79: -62673.61 | Q79: 0 | R79: 110.118 | S79: KWAP (I-VCAP MGT FIXED INCOME SUKUK) | T79: MYR | U79: 365 | V79: IV | W79: MALAKOFF POW IMTN 6.050% 17.12.2029 | X79: MYR | Y79: BND | Z79: Bond | AA79: Others | AB79: 2 | AC79: 3 | AD79: 0.0605 | AE79: 2029-12-17 | AF79: 1 | AI79: Ringgit Malaysia | AJ79: BOND | AK79: 1 | AL79: 36426.39 | AM79: MALAKOFF POW IMTN 6.050% 17.12.2029 | AN79: 0 | AO79: 0 | AP79: 5400000000 | AR79: 1 | AS79: Malakoff Power Bhd | AT79: Malakoff Group | AX79: 5 | AY79: Corporate Bond | AZ79: ISLAMIC | BA79: N/A | BB79: MY | BD79: KWAP (I-VCAP MGT FIXED INCOME SUKUK) | BE79: AA- | BF79: 162076693.6 | BK79: 0 | BL79: 0 | BM79: 0 | BN79: 0 | BO79: 0 | BP79: 0 | BY79: FALSE | BZ79: 0 | CA79: 0 | CB79: 0 | CC79: 2 | CD79: 3.442604945 | CE79: 0.0481 | CF79: 2016-08-17 | CG79: 2017-09-15 | CH79: 5642333.88 | CI79: 0.04938 | CJ79: 2386.31 | CK79: 0 | CL79: 0 | CM79: KWAPSUKUK | CN79: Others | CO79: 0 | CQ79: 0 | CR79: 0 | CS79: BDCO | CT79: 0 | CU79: 2016-08-15 | CV79: 8.70316722 | CW79: 0.03571428571 | CX79: 0.3108274007 | CY79: 0.001717857143
A80: BND | B80: KWAPSUKUK | C80: GO160003 | D80: 10000000 | E80: 10245131.69 | F80: 10245131.69 | G80: KWAPSUKUK | H80: 1 | I80: 2017-03-31 | J80: 2017-09-30 | K80: 2026-09-30 | L80: 10420500 | M80: 10420500 | N80: 187931.69 | O80: 187931.69 | P80: -326123.82 | Q80: 0 | R80: 100.572 | S80: KWAP (I-VCAP MGT FIXED INCOME SUKUK) | T80: MYR | U80: 365 | V80: IV | W80: GII MURABAHAH 3/2016 4.070% 30.09.2026 | X80: MYR | Y80: BND | Z80: Bond | AA80: Others | AB80: 2 | AC80: 1 | AD80: 0.0407 | AE80: 2026-09-30 | AF80: 1 | AI80: Ringgit Malaysia | AJ80: BOND | AK80: 1 | AL80: 37176.18 | AM80: GII MURABAHAH 3/2016 4.070% 30.09.2026 | AN80: 0 | AO80: 0 | AP80: 7500000000 | AR80: 1 | AS80: Malaysia Govt | AT80: N/A | AX80: 7 | AY80: Malaysia Government Securities | AZ80: ISLAMIC | BA80: N/A | BB80: MY | BD80: KWAP (I-VCAP MGT FIXED INCOME SUKUK) | BE80: X | BF80: 162076693.6 | BK80: 0 | BL80: 0 | BM80: 0 | BN80: 0 | BO80: 0 | BP80: 0 | BY80: FALSE | BZ80: 0 | CA80: 0 | CB80: 0 | CC80: 2 | CD80: 6.321162816 | CE80: 0.0357 | CF80: 2016-09-14 | CG80: 2017-09-15 | CH80: 10571255.51 | CI80: 0.03994 | CJ80: -463.93 | CK80: 0 | CL80: 0 | CM80: KWAPSUKUK | CN80: GG | CO80: 0 | CQ80: 0 | CR80: 0 | CS80: BDCO | CT80: 0 | CU80: 2016-09-09 | CV80: 7.417358356 | CW80: 0.07142857143 | CX80: 0.5298113111 | CY80: 0.00255
A81: BND | B81: KWAPSUKUK | C81: VN160022 | D81: 5000000 | E81: 5066873.29 | F81: 5066873.29 | G81: KWAPSUKUK | H81: 1 | I81: 2017-08-23 | J81: 2018-02-23 | K81: 2026-02-23 | L81: 5158500 | M81: 5158500 | N81: 15123.29 | O81: 15123.29 | P81: -92554.29 | Q81: 0 | R81: 101.035 | S81: KWAP (I-VCAP MGT FIXED INCOME SUKUK) | T81: MYR | U81: 365 | V81: IV | W81: DANGA IMTN 4.600% 23.02.2026 - Tranche 6 | X81: MYR | Y81: BND | Z81: Bond | AA81: Others | AB81: 2 | AC81: 3 | AD81: 0.046 | AE81: 2026-02-23 | AF81: 1 | AI81: Ringgit Malaysia | AJ81: BOND | AK81: 1 | AL81: 14195.71 | AM81: DANGA IMTN 4.600% 23.02.2026 - Tranche 6 | AN81: 0 | AO81: 0 | AP81: 10000000000 | AR81: 1 | AS81: Danga Capital Berhad | AT81: Khazanah Nasional Berhad | AX81: 5 | AY81: Corporate Bond | AZ81: ISLAMIC | BA81: N/A | BB81: MY | BD81: KWAP (I-VCAP MGT FIXED INCOME SUKUK) | BE81: AAA | BF81: 162076693.6 | BK81: 0 | BL81: 0 | BM81: 0 | BN81: 0 | BO81: 0 | BP81: 0 | BY81: FALSE | BZ81: 0 | CA81: 0 | CB81: 0 | CC81: 2 | CD81: 3.126219555 | CE81: 0.0419 | CF81: 2016-09-20 | CG81: 2017-09-15 | CH81: 5159427.58 | CI81: 0.04451 | CJ81: 3240.41 | CK81: 0 | CL81: 0 | CM81: KWAPSUKUK | CN81: Finance | CO81: 0 | CQ81: 0 | CR81: 0 | CS81: BDCO | CT81: 0 | CU81: 2016-09-15 | CV81: 6.945175903 | CW81: 0.03571428571 | CX81: 0.2480419965 | CY81: 0.001496428571
A82: BND | B82: KWAPSUKUK | C82: VX160280 | D82: 5000000 | E82: 4900934.93 | F82: 4900934.93 | G82: KWAPSUKUK | H82: 1 | I82: 2017-03-21 | J82: 2017-09-19 | K82: 2036-09-19 | L82: 5000000 | M82: 5000000 | N82: 113284.93 | O82: 113284.93 | P82: -212350 | Q82: 0 | R82: 95.753 | S82: KWAP (I-VCAP MGT FIXED INCOME SUKUK) | T82: MYR | U82: 365 | V82: IV | W82: LPPSA IMTN 4.620% 19.09.2036 Tranche | X82: MYR | Y82: BND | Z82: Bond | AA82: Construction | AB82: 2 | AC82: 3 | AD82: 0.0462 | AE82: 2036-09-19 | AF82: 1 | AI82: Ringgit Malaysia | AJ82: BOND | AK82: 1 | AL82: 0 | AM82: LPPSA IMTN 4.620% 19.09.2036 Tranche | AN82: 0 | AO82: 0 | AP82: 900000000 | AR82: 1 | AS82: Lembaga Pembiayaan Perumahan Sektor Awam | AT82: Lembaga Pembiayaan Perumahan Sektor Awam | AX82: 7 | AY82: Malaysia Government Securities | AZ82: ISLAMIC | BA82: N/A | BB82: MY | BD82: KWAP (I-VCAP MGT FIXED INCOME SUKUK) | BE82: X | BF82: 162076693.6 | BK82: 0 | BL82: 0 | BM82: 0 | BN82: 0 | BO82: 0 | BP82: 0 | BY82: FALSE | BZ82: 0 | CA82: 2 | CB82: 0 | CC82: 2 | CD82: 3.023836938 | CE82: 0.0462 | CF82: 2016-09-21 | CG82: 2017-09-15 | CH82: 5113284.93 | CI82: 0.04968 | CJ82: 1848.63 | CK82: 0 | CL82: 0 | CM82: KWAPSUKUK | CN82: Construction | CO82: 0 | CQ82: 0 | CR82: 0 | CS82: BDCO | CT82: 0 | CU82: 2016-09-20 | CV82: 12.28014747 | CW82: 0.03571428571 | CX82: 0.4385766955 | CY82: 0.00165
A83: BND | B83: KWAPSUKUK | C83: VY120020 | D83: 5000000 | E83: 5252046.58 | F83: 5252046.58 | G83: KWAPSUKUK | H83: 1 | I83: 2017-07-12 | J83: 2018-01-12 | K83: 2033-01-12 | L83: 5411000 | M83: 5411000 | N83: 47646.58 | O83: 47646.58 | P83: -189354.15 | Q83: 0 | R83: 104.088 | S83: KWAP (I-VCAP MGT FIXED INCOME SUKUK) | T83: MYR | U83: 365 | V83: IV | W83: PLUS BERHAD IMTN 5.270% 12.01.2033 - Series 1 (17) | X83: MYR | Y83: BND | Z83: Bond | AA83: Others | AB83: 2 | AC83: 3 | AD83: 0.0527 | AE83: 2033-01-12 | AF83: 1 | AI83: Ringgit Malaysia | AJ83: BOND | AK83: 1 | AL83: 17245.85 | AM83: PLUS BERHAD IMTN 5.270% 12.01.2033 - Series 1 (17) | AN83: 0 | AO83: 0 | AP83: 23350000000 | AR83: 1 | AS83: Projek Lebuhraya Usahasama Bhd | AT83: Projek Lebuhraya Usahasama Bhd | AX83: 5 | AY83: Corporate Bond | AZ83: ISLAMIC | BA83: N/A | BB83: MY | BD83: KWAP (I-VCAP MGT FIXED INCOME SUKUK) | BE83: AAA | BF83: 162076693.6 | BK83: 0 | BL83: 0 | BM83: 0 | BN83: 0 | BO83: 0 | BP83: 0 | BY83: FALSE | BZ83: 0 | CA83: 0 | CB83: 0 | CC83: 2 | CD83: 3.240469967 | CE83: 0.0455 | CF83: 2016-09-30 | CG83: 2017-09-15 | CH83: 5441400.73 | CI83: 0.04887 | CJ83: 2165.75 | CK83: 0 | CL83: 0 | CM83: KWAPSUKUK | CN83: Others | CO83: 0 | CQ83: 0 | CR83: 0 | CS83: BDCO | CT83: 0 | CU83: 2016-09-28 | CV83: 10.56021999 | CW83: 0.03571428571 | CX83: 0.3771507138 | CY83: 0.001625
A84: BND | B84: KWAPSUKUK | C84: VN130259 | D84: 5000000 | E84: 5105004.79 | F84: 5105004.79 | G84: KWAPSUKUK | H84: 1 | I84: 2017-04-28 | J84: 2017-10-30 | K84: 2023-10-27 | L84: 5085000 | M84: 5085000 | N84: 83054.79 | O84: 83054.79 | P84: -53082.08 | Q84: 0 | R84: 100.439 | S84: KWAP (I-VCAP MGT FIXED INCOME SUKUK) | T84: MYR | U84: 365 | V84: IV | W84: CAGAMAS IMTN 4.300% 27.10.2023 | X84: MYR | Y84: BND | Z84: Bond | AA84: Others | AB84: 2 | AC84: 3 | AD84: 0.043 | AE84: 2023-10-27 | AF84: 1 | AI84: Ringgit Malaysia | AJ84: BOND | AK84: 1 | AL84: 9967.92 | AM84: CAGAMAS IMTN 4.300% 27.10.2023 | AN84: 0 | AO84: 0 | AP84: 20000000000 | AR84: 1 | AS84: CAGAMAS | AT84: CAGAMAS | AX84: 3 | AY84: Cagamas Bond | AZ84: ISLAMIC | BA84: N/A | BB84: MY | BD84: KWAP (I-VCAP MGT FIXED INCOME SUKUK) | BE84: AAA | BF84: 162076693.6 | BK84: 0 | BL84: 0 | BM84: 0 | BN84: 0 | BO84: 0 | BP84: 0 | BY84: FALSE | BZ84: 0 | CA84: 0 | CB84: 0 | CC84: 2 | CD84: 3.14974638 | CE84: 0.0402 | CF84: 2016-10-05 | CG84: 2017-09-15 | CH84: 5158086.87 | CI84: 0.04217 | CJ84: 417.13 | CK84: 0 | CL84: 0 | CM84: KWAPSUKUK | CN84: Others | CO84: 0 | CQ84: 0 | CR84: 0 | CS84: BDCO | CT84: 0 | CU84: 2016-09-30 | CV84: 5.254627027 | CW84: 0.03571428571 | CX84: 0.187665251 | CY84: 0.001435714286
A85: BND | B85: KWAPSUKUK | C85: VS140170 | D85: 5000000 | E85: 5347403.42 | F85: 5347403.42 | G85: KWAPSUKUK | H85: 1 | I85: 2017-07-04 | J85: 2018-01-04 | K85: 2029-07-04 | L85: 5410500 | M85: 5410500 | N85: 55753.42 | O85: 55753.42 | P85: -95332.03 | Q85: 0 | R85: 105.833 | S85: KWAP (I-VCAP MGT FIXED INCOME SUKUK) | T85: MYR | U85: 365 | V85: IV | W85: SEB IMTN 5.500% 04.07.2029 | X85: MYR | Y85: BND | Z85: Bond | AA85: Others | AB85: 2 | AC85: 3 | AD85: 0.055 | AE85: 2029-07-04 | AF85: 1 | AI85: Ringgit Malaysia | AJ85: BOND | AK85: 1 | AL85: 23517.97 | AM85: SEB IMTN 5.500% 04.07.2029 | AN85: 0 | AO85: 0 | AP85: 15000000000 | AR85: 1 | AS85: Sarawak Energy Berhad | AT85: Sarawak Energy Berhad | AX85: 5 | AY85: Corporate Bond | AZ85: ISLAMIC | BA85: N/A | BB85: MY | BD85: KWAP (I-VCAP MGT FIXED INCOME SUKUK) | BE85: AA1 | BF85: 162076693.6 | BK85: 0 | BL85: 0 | BM85: 0 | BN85: 0 | BO85: 0 | BP85: 0 | BY85: FALSE | BZ85: 0 | CA85: 0 | CB85: 0 | CC85: 2 | CD85: 3.299304361 | CE85: 0.0464 | CF85: 2016-10-07 | CG85: 2017-09-15 | CH85: 5442735.45 | CI85: 0.04844 | CJ85: 2210.28 | CK85: 0 | CL85: 0 | CM85: KWAPSUKUK | CN85: Others | CO85: 0 | CQ85: 0 | CR85: 0 | CS85: BDCO | CT85: 0 | CU85: 2016-10-05 | CV85: 8.669272138 | CW85: 0.03571428571 | CX85: 0.3096168621 | CY85: 0.001657142857
A86: BND | B86: KWAPSUKUK | C86: GO160003 | D86: 10000000 | E86: 10245131.69 | F86: 10245131.69 | G86: KWAPSUKUK | H86: 1 | I86: 2017-03-31 | J86: 2017-09-30 | K86: 2026-09-30 | L86: 10308500 | M86: 10308500 | N86: 187931.69 | O86: 187931.69 | P86: -224784.25 | Q86: 0 | R86: 100.572 | S86: KWAP (I-VCAP MGT FIXED INCOME SUKUK) | T86: MYR | U86: 365 | V86: IV | W86: GII MURABAHAH 3/2016 4.070% 30.09.2026 | X86: MYR | Y86: BND | Z86: Bond | AA86: Others | AB86: 2 | AC86: 1 | AD86: 0.0407 | AE86: 2026-09-30 | AF86: 1 | AI86: Ringgit Malaysia | AJ86: BOND | AK86: 1 | AL86: 26515.75 | AM86: GII MURABAHAH 3/2016 4.070% 30.09.2026 | AN86: 0 | AO86: 0 | AP86: 7500000000 | AR86: 1 | AS86: Malaysia Govt | AT86: N/A | AX86: 7 | AY86: Malaysia Government Securities | AZ86: ISLAMIC | BA86: N/A | BB86: MY | BD86: KWAP (I-VCAP MGT FIXED INCOME SUKUK) | BE86: X | BF86: 162076693.6 | BK86: 0 | BL86: 0 | BM86: 0 | BN86: 0 | BO86: 0 | BP86: 0 | BY86: FALSE | BZ86: 0 | CA86: 0 | CB86: 0 | CC86: 2 | CD86: 6.321162816 | CE86: 0.037 | CF86: 2016-10-28 | CG86: 2017-09-15 | CH86: 10469915.94 | CI86: 0.03994 | CJ86: -463.93 | CK86: 0 | CL86: 0 | CM86: KWAPSUKUK | CN86: GG | CO86: 0 | CQ86: 0 | CR86: 0 | CS86: BDCO | CT86: 0 | CU86: 2016-10-26 | CV86: 7.403554246 | CW86: 0.07142857143 | CX86: 0.5288253033 | CY86: 0.002642857143
A87: BND | B87: KWAPSUKUK | C87: PO140002 | D87: 5000000 | E87: 5240435.62 | F87: 5240435.62 | G87: KWAPSUKUK | H87: 1 | I87: 2017-07-31 | J87: 2018-01-30 | K87: 2025-01-30 | L87: 5285500 | M87: 5285500 | N87: 32835.62 | O87: 32835.62 | P87: -52229.87 | Q87: 0 | R87: 104.152 | S87: KWAP (I-VCAP MGT FIXED INCOME SUKUK) | T87: MYR | U87: 365 | V87: IV | W87: TNB WE 5.100% 30.01.2025 - Tranche 2 | X87: MYR | Y87: BND | Z87: Bond | AA87: Others | AB87: 2 | AC87: 3 | AD87: 0.051 | AE87: 2025-01-30 | AF87: 1 | AI87: Ringgit Malaysia | AJ87: BOND | AK87: 1 | AL87: 25670.13 | AM87: TNB WE 5.100% 30.01.2025 - Tranche 2 | AN87: 0 | AO87: 0 | AP87: 4000000000 | AR87: 1 | AS87: TNB Western Energy Berhad | AT87: Tenaga Nasional Berhad | AX87: 5 | AY87: Corporate Bond | AZ87: ISLAMIC | BA87: N/A | BB87: MY | BD87: KWAP (I-VCAP MGT FIXED INCOME SUKUK) | BE87: AAA | BF87: 162076693.6 | BK87: 0 | BL87: 0 | BM87: 0 | BN87: 0 | BO87: 0 | BP87: 0 | BY87: FALSE | BZ87: 0 | CA87: 0 | CB87: 0 | CC87: 2 | CD87: 3.233306099 | CE87: 0.0427 | CF87: 2016-11-02 | CG87: 2017-09-15 | CH87: 5292665.49 | CI87: 0.04432 | CJ87: 2345.89 | CK87: 0 | CL87: 0 | CM87: KWAPSUKUK | CN87: Others | CO87: 0 | CQ87: 0 | CR87: 0 | CS87: BDCO | CT87: 0 | CU87: 2016-10-31 | CV87: 6.101937559 | CW87: 0.03571428571 | CX87: 0.2179263414 | CY87: 0.001525
A88: BND | B88: KWAPSUKUK | C88: VZ160270 | D88: 5000000 | E88: 5642739.73 | F88: 5642739.73 | G88: KWAPSUKUK | H88: 1 | I88: 2017-08-23 | J88: 2018-02-23 | K88: 2039-08-23 | L88: 5684500 | M88: 5684500 | N88: 21139.73 | O88: 21139.73 | P88: -49499.53 | Q88: 0 | R88: 112.432 | S88: KWAP (I-VCAP MGT FIXED INCOME SUKUK) | T88: MYR | U88: 365 | V88: IV | W88: LDF3 IMTN 6.430% 23.08.2039 | X88: MYR | Y88: BND | Z88: Bond | AA88: Highway | AB88: 2 | AC88: 3 | AD88: 0.0643 | AE88: 2039-08-23 | AF88: 1 | AI88: Ringgit Malaysia | AJ88: BOND | AK88: 1 | AL88: 13400.47 | AM88: LDF3 IMTN 6.430% 23.08.2039 | AN88: 0 | AO88: 0 | AP88: 440000000 | AR88: 1 | AS88: Lebuhraya DUKE Fasa 3 | AT88: Lebuhraya DUKE Fasa 3 | AX88: 5 | AY88: Corporate Bond | AZ88: ISLAMIC | BA88: N/A | BB88: MY | BD88: KWAP (I-VCAP MGT FIXED INCOME SUKUK) | BE88: AA- | BF88: 162076693.6 | BK88: 0 | BL88: 0 | BM88: 0 | BN88: 0 | BO88: 0 | BP88: 0 | BY88: FALSE | BZ88: 0 | CA88: 47 | CB88: 0 | CC88: 2 | CD88: 3.481524459 | CE88: 0.0538 | CF88: 2016-11-03 | CG88: 2017-09-15 | CH88: 5692239.26 | CI88: 0.05451 | CJ88: 2592.46 | CK88: 0 | CL88: 0 | CM88: KWAPSUKUK | CN88: Highway | CO88: 0 | CQ88: 0 | CR88: 0 | CS88: BDCO | CT88: 0 | CU88: 2016-11-01 | CV88: 12.28428382 | CW88: 0.03571428571 | CX88: 0.438724422 | CY88: 0.001921428571
A89: BND | B89: KWAPSUKUK | C89: VS120327 | D89: 5000000 | E89: 5242171.92 | F89: 5242171.92 | G89: KWAPSUKUK | H89: 1 | I89: 2017-08-16 | J89: 2018-02-16 | K89: 2027-08-16 | L89: 5286000 | M89: 5286000 | N89: 22421.92 | O89: 22421.92 | P89: -48379.85 | Q89: 0 | R89: 104.395 | S89: KWAP (I-VCAP MGT FIXED INCOME SUKUK) | T89: MYR | U89: 365 | V89: IV | W89: TANJUNG BP IMTN 5.280% 16.08.2027 | X89: MYR | Y89: BND | Z89: Bond | AA89: Others | AB89: 2 | AC89: 3 | AD89: 0.0528 | AE89: 2027-08-16 | AF89: 1 | AI89: Ringgit Malaysia | AJ89: BOND | AK89: 1 | AL89: 17870.15 | AM89: TANJUNG BP IMTN 5.280% 16.08.2027 | AN89: 0 | AO89: 0 | AP89: 4500000000 | AR89: 1 | AS89: Tanjung Bin Power Sdn Bhd | AT89: Malakoff Group | AX89: 5 | AY89: Corporate Bond | AZ89: ISLAMIC | BA89: N/A | BB89: MY | BD89: KWAP (I-VCAP MGT FIXED INCOME SUKUK) | BE89: AA3 | BF89: 162076693.6 | BK89: 0 | BL89: 0 | BM89: 0 | BN89: 0 | BO89: 0 | BP89: 0 | BY89: FALSE | BZ89: 0 | CA89: 0 | CB89: 0 | CC89: 2 | CD89: 3.234377382 | CE89: 0.046 | CF89: 2016-11-14 | CG89: 2017-09-15 | CH89: 5290551.77 | CI89: 0.04719 | CJ89: 2119.86 | CK89: 0 | CL89: 0 | CM89: KWAPSUKUK | CN89: Others | CO89: 0 | CQ89: 0 | CR89: 0 | CS89: BDCO | CT89: 0 | CU89: 2016-11-10 | CV89: 7.700554428 | CW89: 0.03571428571 | CX89: 0.275019801 | CY89: 0.001642857143
A90: BND | B90: KWAPSUKUK | C90: VS150302 | D90: 5000000 | E90: 5499044.52 | F90: 5499044.52 | G90: KWAPSUKUK | H90: 1 | I90: 2017-06-05 | J90: 2017-12-04 | K90: 2030-06-04 | L90: 5399800 | M90: 5399800 | N90: 81694.52 | O90: 81694.52 | P90: 29643.33 | Q90: 0 | R90: 108.347 | S90: KWAP (I-VCAP MGT FIXED INCOME SUKUK) | T90: MYR | U90: 365 | V90: IV | W90: JEP IMTN 5.790% 04.06.2030 - Tranche 19 | X90: MYR | Y90: BND | Z90: Bond | AA90: Power | AB90: 2 | AC90: 3 | AD90: 0.0579 | AE90: 2030-06-04 | AF90: 1 | AI90: Ringgit Malaysia | AJ90: BOND | AK90: 1 | AL90: 12093.33 | AM90: JEP IMTN 5.790% 04.06.2030 - Tranche 19 | AN90: 0 | AO90: 0 | AP90: 275000000 | AR90: 1 | AS90: Jimah East Power Sdn Bhd | AT90: Jimah East Power Sdn Bhd | AX90: 5 | AY90: Corporate Bond | AZ90: ISLAMIC | BA90: N/A | BB90: MY | BD90: KWAP (I-VCAP MGT FIXED INCOME SUKUK) | BE90: AA- | BF90: 162076693.6 | BK90: 0 | BL90: 0 | BM90: 0 | BN90: 0 | BO90: 0 | BP90: 0 | BY90: FALSE | BZ90: 0 | CA90: 46 | CB90: 0 | CC90: 2 | CD90: 3.392865684 | CE90: 0.049597 | CF90: 2017-02-24 | CG90: 2017-09-15 | CH90: 5469401.19 | CI90: 0.04899 | CJ90: -2177.4 | CK90: 0 | CL90: 0 | CM90: KWAPSUKUK | CN90: Power | CO90: 0 | CQ90: 0 | CR90: 0 | CS90: BDCO | CT90: 0 | CU90: 2017-02-22 | CV90: 8.960943029 | CW90: 0.03571428571 | CX90: 0.3200336796 | CY90: 0.001771321429
A91: BND | B91: KWAPSUKUK | C91: VO160258 | D91: 5000000 | E91: 5193177.4 | F91: 5193177.4 | G91: KWAPSUKUK | H91: 1 | I91: 2017-08-23 | J91: 2018-02-23 | K91: 2027-08-23 | L91: 5171000 | M91: 5171000 | N91: 17227.4 | O91: 17227.4 | P91: 9289.65 | Q91: 0 | R91: 103.519 | S91: KWAP (I-VCAP MGT FIXED INCOME SUKUK) | T91: MYR | U91: 365 | V91: IV | W91: LDF3 IMTN 5.240% 23.08.2027 | X91: MYR | Y91: BND | Z91: Bond | AA91: Highway | AB91: 2 | AC91: 3 | AD91: 0.0524 | AE91: 2027-08-23 | AF91: 1 | AI91: Ringgit Malaysia | AJ91: BOND | AK91: 1 | AL91: 4339.65 | AM91: LDF3 IMTN 5.240% 23.08.2027 | AN91: 0 | AO91: 0 | AP91: 90000000 | AR91: 1 | AS91: Lebuhraya DUKE Fasa 3 | AT91: Lebuhraya DUKE Fasa 3 | AX91: 5 | AY91: Corporate Bond | AZ91: ISLAMIC | BA91: N/A | BB91: MY | BD91: KWAP (I-VCAP MGT FIXED INCOME SUKUK) | BE91: AA- | BF91: 162076693.6 | BK91: 0 | BL91: 0 | BM91: 0 | BN91: 0 | BO91: 0 | BP91: 0 | BY91: FALSE | BZ91: 0 | CA91: 47 | CB91: 0 | CC91: 2 | CD91: 3.204148162 | CE91: 0.04813588 | CF91: 2017-05-12 | CG91: 2017-09-15 | CH91: 5183887.75 | CI91: 0.0479 | CJ91: 2103.42 | CK91: 0 | CL91: 0 | CM91: KWAPSUKUK | CN91: Highway | CO91: 0 | CQ91: 0 | CR91: 0 | CS91: BDCO | CT91: 0 | CU91: 2017-05-09 | CV91: 7.70083744 | CW91: 0.03571428571 | CX91: 0.2750299086 | CY91: 0.001719138571
A92: BND | B92: KWAPSUKUK | C92: VJ130331 | D92: 5000000 | E92: 5129768.49 | F92: 5129768.49 | G92: KWAPSUKUK | H92: 1 | I92: 2017-06-19 | J92: 2017-12-18 | K92: 2019-12-17 | L92: 5075500 | M92: 5075500 | N92: 61568.49 | O92: 61568.49 | P92: 1241.76 | Q92: 0 | R92: 101.364 | S92: KWAP (I-VCAP MGT FIXED INCOME SUKUK) | T92: MYR | U92: 365 | V92: IV | W92: MALAKOFF POW IMTN 5.050% 17.12.2019 | X92: MYR | Y92: BND | Z92: Bond | AA92: Others | AB92: 2 | AC92: 3 | AD92: 0.0505 | AE92: 2019-12-17 | AF92: 1 | AI92: Ringgit Malaysia | AJ92: BOND | AK92: 1 | AL92: 8541.76 | AM92: MALAKOFF POW IMTN 5.050% 17.12.2019 | AN92: 0 | AO92: 0 | AP92: 5400000000 | AR92: 1 | AS92: Malakoff Power Bhd | AT92: Malakoff Group | AX92: 5 | AY92: Corporate Bond | AZ92: ISLAMIC | BA92: N/A | BB92: MY | BD92: KWAP (I-VCAP MGT FIXED INCOME SUKUK) | BE92: AA- | BF92: 162076693.6 | BK92: 0 | BL92: 0 | BM92: 0 | BN92: 0 | BO92: 0 | BP92: 0 | BY92: FALSE | BZ92: 0 | CA92: 0 | CB92: 0 | CC92: 2 | CD92: 3.165025381 | CE92: 0.04415884 | CF92: 2017-05-31 | CG92: 2017-09-15 | CH92: 5128526.73 | CI92: 0.04402 | CJ92: 2025.35 | CK92: 0 | CL92: 0 | CM92: KWAPSUKUK | CN92: Others | CO92: 0 | CQ92: 0 | CR92: 0 | CS92: BDCO | CT92: 0 | CU92: 2017-05-29 | CV92: 2.088204702 | CW92: 0.03571428571 | CX92: 0.07457873937 | CY92: 0.001577101429
A93: BND | B93: KWAPSUKUK | C93: VN120219 | D93: 5000000 | E93: 5117171.23 | F93: 5117171.23 | G93: KWAPSUKUK | H93: 1 | I93: 2017-06-21 | J93: 2017-12-21 | K93: 2022-06-21 | L93: 5065500 | M93: 5065500 | N93: 56371.23 | O93: 56371.23 | P93: -1421.45 | Q93: 0 | R93: 101.216 | S93: KWAP (I-VCAP MGT FIXED INCOME SUKUK) | T93: MYR | U93: 365 | V93: IV | W93: UGB IMTN 4.73% 21.06.2022 - Issue No. 1 | X93: MYR | Y93: BND | Z93: Bond | AA93: Others | AB93: 2 | AC93: 3 | AD93: 0.0473 | AE93: 2022-06-21 | AF93: 1 | AI93: Ringgit Malaysia | AJ93: BOND | AK93: 1 | AL93: 3278.55 | AM93: UGB IMTN 4.73% 21.06.2022 - Issue No. 1 | AN93: 0 | AO93: 0 | AP93: 2200000000 | AR93: 1 | AS93: United Growth Berhad | AT93: United Growth Berhad | AX93: 5 | AY93: Corporate Bond | AZ93: ISLAMIC | BA93: N/A | BB93: MY | BD93: KWAP (I-VCAP MGT FIXED INCOME SUKUK) | BE93: AA3 | BF93: 162076693.6 | BK93: 0 | BL93: 0 | BM93: 0 | BN93: 0 | BO93: 0 | BP93: 0 | BY93: FALSE | BZ93: 0 | CA93: 0 | CB93: 0 | CC93: 2 | CD93: 3.157252974 | CE93: 0.04435839 | CF93: 2017-06-14 | CG93: 2017-09-15 | CH93: 5118592.68 | CI93: 0.04442 | CJ93: 1893.84 | CK93: 0 | CL93: 0 | CM93: KWAPSUKUK | CN93: Others | CO93: 0 | CQ93: 0 | CR93: 0 | CS93: BDCO | CT93: 0 | CU93: 2017-06-09 | CV93: 4.186300876 | CW93: 0.03571428571 | CX93: 0.1495107456 | CY93: 0.001584228214
A94: BND | B94: KWAPSUKUK | C94: VM130384 | D94: 5000000 | E94: 5638158.22 | F94: 5638158.22 | G94: KWAPSUKUK | H94: 1 | I94: 2017-06-28 | J94: 2017-12-28 | K94: 2022-12-28 | L94: 5570000 | M94: 5570000 | N94: 77808.22 | O94: 77808.22 | P94: 12346.75 | Q94: 0 | R94: 111.207 | S94: KWAP (I-VCAP MGT FIXED INCOME SUKUK) | T94: MYR | U94: 365 | V94: IV | W94: BGSM MGMT IMTN 7.100% 28.12.2022 - Issue No 6 | X94: MYR | Y94: BND | Z94: Bond | AA94: Others | AB94: 2 | AC94: 3 | AD94: 0.071 | AE94: 2022-12-28 | AF94: 1 | AI94: Ringgit Malaysia | AJ94: BOND | AK94: 1 | AL94: 21996.75 | AM94: BGSM MGMT IMTN 7.100% 28.12.2022 - Issue No 6 | AN94: 0 | AO94: 0 | AP94: 10000000000 | AR94: 1 | AS94: BGSM Management Sdn Bhd | AT94: BGSM Management Sdn Bhd | AX94: 5 | AY94: Corporate Bond | AZ94: ISLAMIC | BA94: N/A | BB94: MY | BD94: KWAP (I-VCAP MGT FIXED INCOME SUKUK) | BE94: AA3 | BF94: 162076693.6 | BK94: 0 | BL94: 0 | BM94: 0 | BN94: 0 | BO94: 0 | BP94: 0 | BY94: FALSE | BZ94: 0 | CA94: 0 | CB94: 0 | CC94: 2 | CD94: 3.478697704 | CE94: 0.04729183 | CF94: 2017-06-21 | CG94: 2017-09-15 | CH94: 5625811.47 | CI94: 0.04676 | CJ94: 2667.81 | CK94: 0 | CL94: 0 | CM94: KWAPSUKUK | CN94: Others | CO94: 0 | CQ94: 0 | CR94: 0 | CS94: BDCO | CT94: 0 | CU94: 2017-06-19 | CV94: 4.380299856 | CW94: 0.03571428571 | CX94: 0.1564392806 | CY94: 0.001688993929
A95: BND | B95: KWAPSUKUK | C95: VI130332 | D95: 5000000 | E95: 5098089.73 | F95: 5098089.73 | G95: KWAPSUKUK | H95: 1 | I95: 2017-06-19 | J95: 2017-12-18 | K95: 2018-12-17 | L95: 5036500 | M95: 5036500 | N95: 30205.48 | O95: 30205.48 | P95: 5069.27 | Q95: 0 | R95: 100.767 | S95: KWAP (I-VCAP MGT FIXED INCOME SUKUK) | T95: MYR | U95: 365 | V95: IV | W95: MALAKOFF POW IMTN 4.900% 17.12.2018 | X95: MYR | Y95: BND | Z95: Bond | AA95: Others | AB95: 2 | AC95: 3 | AD95: 0.049 | AE95: 2018-12-17 | AF95: 1 | AI95: Ringgit Malaysia | AJ95: BOND | AK95: 1 | AL95: 3219.27 | AM95: MALAKOFF POW IMTN 4.900% 17.12.2018 | AN95: 0 | AO95: 0 | AP95: 5400000000 | AR95: 1 | AS95: Malakoff Power Bhd | AT95: Malakoff Group | AX95: 5 | AY95: Corporate Bond | AZ95: ISLAMIC | BA95: N/A | BB95: MY | BD95: KWAP (I-VCAP MGT FIXED INCOME SUKUK) | BE95: AA- | BF95: 162076693.6 | BK95: 0 | BL95: 0 | BM95: 0 | BN95: 0 | BO95: 0 | BP95: 0 | BY95: FALSE | BZ95: 0 | CA95: 0 | CB95: 0 | CC95: 2 | CD95: 3.145479844 | CE95: 0.04343185 | CF95: 2017-08-02 | CG95: 2017-09-15 | CH95: 5093020.46 | CI95: 0.04256 | CJ95: 1913.69 | CK95: 29534.25 | CL95: 29534.25 | CM95: KWAPSUKUK | CN95: Others | CO95: 29534.25 | CQ95: 0 | CR95: 0 | CS95: BDCO | CT95: 0 | CU95: 2017-07-31 | CV95: 1.192106416 | CW95: 0.03571428571 | CX95: 0.04257522914 | CY95: 0.0015511375
A96: BND | B96: KWAPSUKUK | C96: VN130300 | D96: 5000000 | E96: 4968712.33 | F96: 4968712.33 | G96: KWAPSUKUK | H96: 1 | I96: 2017-06-02 | J96: 2017-12-04 | K96: 2023-12-01 | L96: 4897500 | M96: 4897500 | N96: 18630.14 | O96: 18630.14 | P96: 8309.81 | Q96: 0 | R96: 98.14 | S96: KWAP (I-VCAP MGT FIXED INCOME SUKUK) | T96: MYR | U96: 365 | V96: IV | W96: KESTURI IMTN 4.25% 01.12.2023 - IMTN 5 | X96: MYR | Y96: BND | Z96: Bond | AA96: Others | AB96: 2 | AC96: 3 | AD96: 0.0425 | AE96: 2023-12-01 | AF96: 1 | AI96: Ringgit Malaysia | AJ96: BOND | AK96: 1 | AL96: -1190.19 | AM96: KESTURI IMTN 4.25% 01.12.2023 - IMTN 5 | AN96: 0 | AO96: 0 | AP96: 2300000000 | AR96: 1 | AS96: Konsortium Lebuhraya Utara-Timur (KL) Sdn Bhd | AT96: Konsortium Lebuhraya Utara-Timur (KL) Sdn Bhd | AX96: 5 | AY96: Corporate Bond | AZ96: ISLAMIC | BA96: N/A | BB96: MY | BD96: KWAP (I-VCAP MGT FIXED INCOME SUKUK) | BE96: AA- | BF96: 162076693.6 | BK96: 0 | BL96: 0 | BM96: 0 | BN96: 0 | BO96: 0 | BP96: 0 | BY96: FALSE | BZ96: 0 | CA96: 0 | CB96: 0 | CC96: 2 | CD96: 3.065655042 | CE96: 0.04628058 | CF96: 2017-08-15 | CG96: 2017-09-15 | CH96: 4960402.52 | CI96: 0.04597 | CJ96: 1796.57 | CK96: 43082.19 | CL96: 43082.19 | CM96: KWAPSUKUK | CN96: Others | CO96: 43082.19 | CQ96: 0 | CR96: 0 | CS96: BDCO | CT96: 0 | CU96: 2017-08-11 | CV96: 5.323887741 | CW96: 0.03571428571 | CX96: 0.1901388479 | CY96: 0.001652877857
A97: BND | B97: KWAPSUKUK | C97: VI160110 | D97: 5000000 | E97: 5127134.25 | F97: 5127134.25 | G97: KWAPSUKUK | H97: 1 | I97: 2017-04-25 | J97: 2017-10-25 | K97: 2021-04-23 | L97: 5037000 | M97: 5037000 | N97: 16454.8 | O97: 16454.8 | P97: -435.26 | Q97: 0 | R97: 100.72 | S97: KWAP (I-VCAP MGT FIXED INCOME SUKUK) | T97: MYR | U97: 365 | V97: IV | W97: GAMUDA IMTN 4.620% 23.04.2021 | X97: MYR | Y97: BND | Z97: Bond | AA97: Construction | AB97: 2 | AC97: 3 | AD97: 0.0462 | AE97: 2021-04-23 | AF97: 1 | AI97: Ringgit Malaysia | AJ97: BOND | AK97: 1 | AL97: 564.74 | AM97: GAMUDA IMTN 4.620% 23.04.2021 | AN97: 0 | AO97: 0 | AP97: 300000000 | AR97: 1 | AS97: Gamuda Berhad | AT97: Gamuda Berhad | AX97: 5 | AY97: Corporate Bond | AZ97: ISLAMIC | BA97: N/A | BB97: MY | BD97: KWAP (I-VCAP MGT FIXED INCOME SUKUK) | BE97: AA3 | BF97: 162076693.6 | BK97: 0 | BL97: 0 | BM97: 0 | BN97: 0 | BO97: 0 | BP97: 0 | BY97: FALSE | BZ97: 0 | CA97: 2 | CB97: 0 | CC97: 2 | CD97: 3.163400077 | CE97: 0.04397832 | CF97: 2017-08-21 | CG97: 2017-09-15 | CH97: 5127569.51 | CI97: 0.044 | CJ97: 1898.63 | CK97: 74679.45 | CL97: 74679.45 | CM97: KWAPSUKUK | CN97: Construction | CO97: 74679.45 | CQ97: 0 | CR97: 0 | CS97: BDCO | CT97: 0 | CU97: 2017-08-17 | CV97: 3.230936142 | CW97: 0.03571428571 | CX97: 0.1153905765 | CY97: 0.001570654286
A98: CSH | B98: KWAPSUKUK | C98: RPF*MYR*MIB | D98: 861355.63 | E98: 863309.61 | F98: 863309.61 | G98: KWAPSUKUK | H98: 1 | I98: 3000-01-01 | J98: 3000-01-01 | K98: 2017-10-23 | L98: 861355.63 | M98: 861355.63 | N98: 1953.98 | O98: 1953.98 | P98: 0 | Q98: 0 | R98: 0 | S98: KWAP (I-VCAP MGT FIXED INCOME SUKUK) | T98: MYR | U98: 365 | V98: IV | W98: RPF*MYR*MIB | X98: MYR | Y98: CSH | Z98: Cash | AA98: Money Market Placement | AG98: F_MIB | AH98: Maybank Islamic Berhad | AI98: Ringgit Malaysia | AJ98: MONEY MARKET | AK98: 1 | AL98: 0 | AM98: Maybank Islamic Bank - COMMODITY MURABAHAH | AN98: 0 | AO98: 0 | AP98: 0 | AR98: 1 | AS98: Maybank Islamic Berhad | AT98: Maybank Berhad | AW98: COMMODITY MURABAHAH | AZ98: COMMODITY MURABAHAH | BA98: N/A | BB98: MY | BD98: KWAP (I-VCAP MGT FIXED INCOME SUKUK) | BF98: 162076693.6 | BH98: RPF | BI98: COMMODITY MURABAHAH | BK98: 0 | BL98: 0 | BM98: 0 | BN98: 0 | BO98: 0 | BP98: 0 | BY98: FALSE | BZ98: 0 | CA98: 96 | CB98: 0 | CC98: 4 | CD98: 0.5326549985 | CE98: 0.0345 | CF98: 2017-08-23 | CG98: 2017-09-15 | CH98: 863309.61 | CI98: 0 | CJ98: 244.25 | CK98: 0 | CL98: 0 | CM98: KWAPSUKUK | CN98: Others | CO98: 0 | CP98: 365 | CQ98: 0 | CR98: 0 | CS98: CSMM | CT98: 0 | CU98: 2017-08-23 | CV98: 0 | CW98: 0.006152540214 | CX98: 0 | CY98: 0.0002122626374
A99: CSH | B99: KWAPSUKUK | C99: RPF*MYR*MIB | D99: 403406.85 | E99: 404245.72 | F99: 404245.72 | G99: KWAPSUKUK | H99: 1 | I99: 3000-01-01 | J99: 3000-01-01 | K99: 2017-10-02 | L99: 403406.85 | M99: 403406.85 | N99: 838.87 | O99: 838.87 | P99: 0 | Q99: 0 | R99: 0 | S99: KWAP (I-VCAP MGT FIXED INCOME SUKUK) | T99: MYR | U99: 365 | V99: IV | W99: RPF*MYR*MIB | X99: MYR | Y99: CSH | Z99: Cash | AA99: Money Market Placement | AG99: F_MIB | AH99: Maybank Islamic Berhad | AI99: Ringgit Malaysia | AJ99: MONEY MARKET | AK99: 1 | AL99: 0 | AM99: Maybank Islamic Bank - COMMODITY MURABAHAH | AN99: 0 | AO99: 0 | AP99: 0 | AR99: 1 | AS99: Maybank Islamic Berhad | AT99: Maybank Berhad | AW99: COMMODITY MURABAHAH | AZ99: COMMODITY MURABAHAH | BA99: N/A | BB99: MY | BD99: KWAP (I-VCAP MGT FIXED INCOME SUKUK) | BF99: 162076693.6 | BH99: RPF | BI99: COMMODITY MURABAHAH | BK99: 0 | BL99: 0 | BM99: 0 | BN99: 0 | BO99: 0 | BP99: 0 | BY99: FALSE | BZ99: 0 | CA99: 96 | CB99: 0 | CC99: 4 | CD99: 0.249416317 | CE99: 0.033 | CF99: 2017-08-24 | CG99: 2017-09-15 | CH99: 404245.72 | CI99: 0 | CJ99: 109.41 | CK99: 0 | CL99: 0 | CM99: KWAPSUKUK | CN99: Others | CO99: 0 | CP99: 365 | CQ99: 0 | CR99: 0 | CS99: CSMM | CT99: 0 | CU99: 2017-08-24 | CV99: 0 | CW99: 0.0028814775 | CX99: 0 | CY99: 9.50887575e-05
A100: CSH | B100: KWAPSUKUK | C100: RPF*MYR*MIB | D100: 5053253.18 | E100: 5055399.08 | F100: 5055399.08 | G100: KWAPSUKUK | H100: 1 | I100: 3000-01-01 | J100: 3000-01-01 | K100: 2017-09-25 | L100: 5053253.18 | M100: 5053253.18 | N100: 2145.9 | O100: 2145.9 | P100: 0 | Q100: 0 | R100: 0 | S100: KWAP (I-VCAP MGT FIXED INCOME SUKUK) | T100: MYR | U100: 365 | V100: IV | W100: RPF*MYR*MIB | X100: MYR | Y100: CSH | Z100: Cash | AA100: Money Market Placement | AG100: F_MIB | AH100: Maybank Islamic Berhad | AI100: Ringgit Malaysia | AJ100: MONEY MARKET | AK100: 1 | AL100: 0 | AM100: Maybank Islamic Bank - COMMODITY MURABAHAH | AN100: 0 | AO100: 0 | AP100: 0 | AR100: 1 | AS100: Maybank Islamic Berhad | AT100: Maybank Berhad | AW100: COMMODITY MURABAHAH | AZ100: COMMODITY MURABAHAH | BA100: N/A | BB100: MY | BD100: KWAP (I-VCAP MGT FIXED INCOME SUKUK) | BF100: 162076693.6 | BH100: RPF | BI100: COMMODITY MURABAHAH | BK100: 0 | BL100: 0 | BM100: 0 | BN100: 0 | BO100: 0 | BP100: 0 | BY100: FALSE | BZ100: 0 | CA100: 96 | CB100: 0 | CC100: 4 | CD100: 3.119140061 | CE100: 0.031 | CF100: 2017-09-11 | CG100: 2017-09-15 | CH100: 5055399.08 | CI100: 0 | CJ100: 1287.54 | CK100: 0 | CL100: 0 | CM100: KWAPSUKUK | CN100: Others | CO100: 0 | CP100: 365 | CQ100: 0 | CR100: 0 | CS100: CSMM | CT100: 0 | CU100: 2017-09-11 | CV100: 0 | CW100: 0.03609466557 | CX100: 0 | CY100: 0.001118934633
A101: CSH | B101: KWAPSUKUK | C101: RPF*MYR*CIMBI | D101: 5000000 | E101: 5000835.62 | F101: 5000835.62 | G101: KWAPSUKUK | H101: 1 | I101: 3000-01-01 | J101: 3000-01-01 | K101: 2017-09-25 | L101: 5000000 | M101: 5000000 | N101: 835.62 | O101: 835.62 | P101: 0 | Q101: 0 | R101: 0 | S101: KWAP (I-VCAP MGT FIXED INCOME SUKUK) | T101: MYR | U101: 365 | V101: IV | W101: RPF*MYR*CIMBI | X101: MYR | Y101: CSH | Z101: Cash | AA101: Money Market Placement | AG101: F_CIMB | AH101: CIMB Islamic Bank Berhad | AI101: Ringgit Malaysia | AJ101: MONEY MARKET | AK101: 1 | AL101: 0 | AM101: CIMB Islamic Bank Berhad - COMMODITY MURABAHAH | AN101: 0 | AO101: 0 | AP101: 0 | AR101: 1 | AS101: CIMB Islamic | AT101: CIMB Group | AW101: COMMODITY MURABAHAH | AZ101: COMMODITY MURABAHAH | BA101: N/A | BB101: MY | BD101: KWAP (I-VCAP MGT FIXED INCOME SUKUK) | BF101: 162076693.6 | BH101: RPF | BI101: COMMODITY MURABAHAH | BK101: 0 | BL101: 0 | BM101: 0 | BN101: 0 | BO101: 0 | BP101: 0 | BY101: FALSE | BZ101: 0 | CA101: 96 | CB101: 0 | CC101: 4 | CD101: 3.08547485 | CE101: 0.0305 | CF101: 2017-09-14 | CG101: 2017-09-15 | CH101: 5000835.62 | CI101: 0 | CJ101: 1253.42 | CK101: 0 | CL101: 0 | CM101: KWAPSUKUK | CN101: Others | CO101: 0 | CP101: 365 | CQ101: 0 | CR101: 0 | CS101: CSMM | CT101: 0 | CU101: 2017-09-14 | CV101: 0 | CW101: 0.03571428571 | CX101: 0 | CY101: 0.001089285714
A102: CSH | B102: KWAPSUKUK | C102: RPF*MYR*BIMB | D102: 5095975.54 | E102: 5096827.2 | F102: 5096827.2 | G102: KWAPSUKUK | H102: 1 | I102: 3000-01-01 | J102: 3000-01-01 | K102: 2017-09-25 | L102: 5095975.54 | M102: 5095975.54 | N102: 851.66 | O102: 851.66 | P102: 0 | Q102: 0 | R102: 0 | S102: KWAP (I-VCAP MGT FIXED INCOME SUKUK) | T102: MYR | U102: 365 | V102: IV | W102: RPF*MYR*BIMB | X102: MYR | Y102: CSH | Z102: Cash | AA102: Money Market Placement | AG102: F_BIMB | AH102: Bank Islam Malaysia Berhad | AI102: Ringgit Malaysia | AJ102: MONEY MARKET | AK102: 1 | AL102: 0 | AM102: Bank Islam Malaysia Berhad - COMMODITY MURABAHAH | AN102: 0 | AO102: 0 | AP102: 0 | AR102: 1 | AS102: BIMB HOLDINGS BERHAD | AT102: BIMB HOLDINGS BERHAD | AW102: COMMODITY MURABAHAH | AZ102: COMMODITY MURABAHAH | BA102: N/A | BB102: MY | BD102: KWAP (I-VCAP MGT FIXED INCOME SUKUK) | BF102: 162076693.6 | BH102: RPF | BI102: COMMODITY MURABAHAH | BK102: 0 | BL102: 0 | BM102: 0 | BN102: 0 | BO102: 0 | BP102: 0 | BY102: FALSE | BZ102: 0 | CA102: 96 | CB102: 0 | CC102: 4 | CD102: 3.144700873 | CE102: 0.0305 | CF102: 2017-09-14 | CG102: 2017-09-15 | CH102: 5096827.2 | CI102: 0 | CJ102: 1277.48 | CK102: 0 | CL102: 0 | CM102: KWAPSUKUK | CN102: Others | CO102: 0 | CP102: 365 | CQ102: 0 | CR102: 0 | CS102: CSMM | CT102: 0 | CU102: 2017-09-14 | CV102: 0 | CW102: 0.03639982529 | CX102: 0 | CY102: 0.001110194671
A103: TBI | B103: KWAPSUKUK | C103: TradeDrVal | D103: 0 | E103: 0 | F103: 0 | G103: KWAPSUKUK | H103: 1 | I103: 3000-01-01 | J103: 3000-01-01 | K103: 3000-01-01 | L103: 0 | M103: 0 | N103: 0 | O103: 0 | P103: 0 | Q103: 0 | R103: 0 | S103: KWAP (I-VCAP MGT FIXED INCOME SUKUK) | T103: MYR | U103: 365 | V103: IV | X103: MYR | Y103: TBI | Z103: Cash And Equivalent | AJ103: CASH AND EQUIVALENT | AK103: 1 | AL103: 0 | AM103: Debtor Broker | AN103: 0 | AO103: 0 | BA103: N/A | BD103: KWAP (I-VCAP MGT FIXED INCOME SUKUK) | BF103: 162076693.6 | BK103: 0 | BL103: 0 | BM103: 0 | BN103: 0 | BO103: 0 | BP103: 0 | BY103: FALSE | BZ103: 0 | CB103: 0 | CC103: 9 | CD103: 0 | CE103: 0 | CF103: 3000-01-01 | CG103: 3000-01-01 | CH103: 0 | CI103: 0 | CJ103: 0 | CK103: 0 | CL103: 0 | CM103: KWAPSUKUK | CN103: Not Classified | CO103: 0 | CQ103: 0 | CR103: 0 | CT103: 0 | CU103: 3000-01-01 | CV103: 0 | CW103: 0 | CX103: 0 | CY103: 0
A104: TBI | B104: KWAPSUKUK | C104: TradeCrVal | D104: 0 | E104: 0 | F104: 0 | G104: KWAPSUKUK | H104: 1 | I104: 3000-01-01 | J104: 3000-01-01 | K104: 3000-01-01 | L104: 0 | M104: 0 | N104: 0 | O104: 0 | P104: 0 | Q104: 0 | R104: 0 | S104: KWAP (I-VCAP MGT FIXED INCOME SUKUK) | T104: MYR | U104: 365 | V104: IV | X104: MYR | Y104: TBI | Z104: Cash And Equivalent | AJ104: CASH AND EQUIVALENT | AK104: 1 | AL104: 0 | AM104: Creditor Broker | AN104: 0 | AO104: 0 | BA104: N/A | BD104: KWAP (I-VCAP MGT FIXED INCOME SUKUK) | BF104: 162076693.6 | BK104: 0 | BL104: 0 | BM104: 0 | BN104: 0 | BO104: 0 | BP104: 0 | BY104: FALSE | BZ104: 0 | CB104: 0 | CC104: 9 | CD104: 0 | CE104: 0 | CF104: 3000-01-01 | CG104: 3000-01-01 | CH104: 0 | CI104: 0 | CJ104: 0 | CK104: 0 | CL104: 0 | CM104: KWAPSUKUK | CN104: Not Classified | CO104: 0 | CQ104: 0 | CR104: 0 | CT104: 0 | CU104: 3000-01-01 | CV104: 0 | CW104: 0 | CX104: 0 | CY104: 0
A105: TBI | B105: KWAPSUKUK | C105: MngDb | D105: 0 | E105: 0 | F105: 0 | G105: KWAPSUKUK | H105: 1 | I105: 3000-01-01 | J105: 3000-01-01 | K105: 3000-01-01 | L105: 0 | M105: 0 | N105: 0 | O105: 0 | P105: 0 | Q105: 0 | R105: 0 | S105: KWAP (I-VCAP MGT FIXED INCOME SUKUK) | T105: MYR | U105: 365 | V105: IV | X105: MYR | Y105: TBI | Z105: Cash And Equivalent | AJ105: CASH AND EQUIVALENT | AK105: 1 | AL105: 0 | AM105: Others | AN105: 0 | AO105: 0 | BA105: N/A | BD105: KWAP (I-VCAP MGT FIXED INCOME SUKUK) | BF105: 162076693.6 | BK105: 0 | BL105: 0 | BM105: 0 | BN105: 0 | BO105: 0 | BP105: 0 | BY105: FALSE | BZ105: 0 | CB105: 0 | CC105: 9 | CD105: 0 | CE105: 0 | CF105: 3000-01-01 | CG105: 3000-01-01 | CH105: 0 | CI105: 0 | CJ105: 0 | CK105: 0 | CL105: 0 | CM105: KWAPSUKUK | CN105: Not Classified | CO105: 0 | CQ105: 0 | CR105: 0 | CT105: 0 | CU105: 3000-01-01 | CV105: 0 | CW105: 0 | CX105: 0 | CY105: 0
